Workbook

Sheet INDICE
F1: ÁUSTRIA
F2: Trocas comerciais com Portugal (PT) 2019-2023 Setores agrícola e agroalimentar, do mar e das florestas
C3: Fonte
D4: Estatísticas do Comércio Internacional | F4: Áustria - Síntese
D5: dados: 2022 definitivos | F5: 1. Evolução da balança comercial
F6: 2. Ranking dos parceiros comerciais de Portugal por país
C7: Data | D7: 2024-05-03T12:05:18 | F7: 2A Parceiros comerciais de Portugal - UE vs. Países Terceiros
F8: 3. Principais produtos transacionados (NC a 2 e 4 dígitos)
F9: 3A Principais produtos transacionados (sem mar nem florestas)
F10: 4A Evolução da balança comercial por produto
F11: 5.2. Trocas comerciais por produto (NC 2 dígitos)

Sheet Sintese
A1: Áustria - Síntese (2019-2023)
A3: • As trocas comerciais de bens transacionáveis (excluindo serviços) entre Portugal e Áustria representam um total de 430,9 milhões de € (M€) em exportações e 482,2 M€ em importações, na média do período 2019-2023, correspondendo a um saldo negativo da balança comercial de cerca de -51,3 M€.
A4: • No que respeita aos produtos dos setores agrícola e agroalimentar, mar e florestas, Portugal exportou para Áustria 42,2 M€ em média anual, no mesmo período (este país ocupa assim a 30ª posição em relação ao total dos países), enquanto as importações totalizaram 70,4 M€ (26ª posição), com um saldo negativo de -28,2 M€. Estes setores representam perto de 9,8% do total de exportações de bens transacionáveis e 14,6% das correspondentes importações.
A5: • Se nos referirmos apenas ao setor agrícola e agroalimentar, as exportações representam, em média, 14,6 M€ (39ª posição) e as importações 27,6 milhões (27ª posição), ou seja, Portugal tem um saldo negativo de -13,1 M€. Estes valores representam, respetivamente, cerca de 34,5% das exportações do setor agroflorestal e mar e 39,3% das importações.
A6: • As principais exportações agrícolas e agroalimentares (NC 4 dígitos) neste período são Vinhos de uvas frescas (16%), Tomates preparados (16%) e Margarina e preparações de gorduras animais ou vegetais (10%). As importações agrícolas e agroalimentares mais relevantes referem-se a Águas com açúcar ou outros produtos; outras bebidas (18%), Chocolate e outras preparações com cacau (12%) e Agentes de apresto ou de acabamento, etc. (NC 380910) (8%). Se considerarmos também os produtos do mar e da floresta, merecem particular destaque, em termos de exportações, Preparações e conservas de peixes, etc. (16%), Cortiça aglomerada e suas obras (14%) e Papel e cartão p/ escrita, etc. (11%). Nas importações destes setores, destacam-se Papel e cartão revestidos (9%), Obras de marcenaria ou carpintaria (9%) e Papel para cigarros (8%).
A9: Saldo da Balança Comercial | B9: 2019 | C9: 2020 | D9: 2021 | E9: 2022 | F9: 2023 | G9: média 2019-2023 | J9: Posição entre os parceiros comerciais de Portugal (milhares de euros)
A10: Total de Bens Transacionáveis* | B10: 103874.699 | C10: -5167.886 | D10: -88337.205 | E10: -110208.113 | F10: -156630.034 | G10: -51293.7078 | J10: AA + M + F | K10: Posição | L10: média 2019-2023 | M10: % do total | N10: TVMA* 2019-2023 | O10: TVT* 2019-2023
A11: Agrícola e Agroalimentar (AA) | B11: -6098.173 | C11: -7314.603 | D11: -14139.943 | E11: -15966.949 | F11: -21911.697 | G11: -13086.273 | J11: Exportações | K11: 30ª | L11: 42223.0512 | M11: 0.003042886498 | N11: 0.1028569036 | O11: 0.4793695128
A12: Mar (M) | B12: 5526.865 | C12: 5366.104 | D12: 6709.274 | E12: 9885.022 | F12: 9211.079 | G12: 7339.6688 | J12: Importações | K12: 26ª | L12: 70408.8626 | M12: 0.00435264567 | N12: 0.1302093509 | O12: 0.6316822329
A13: Florestas (F) | B13: -19656.566 | C13: -18652.792 | D13: -20975.058 | E13: -27529.134 | F13: -25382.486 | G13: -22439.2072 | J13: AA
A14: AA + M + F | B14: -20227.874 | C14: -20601.291 | D14: -28405.727 | E14: -33611.061 | F14: -38083.104 | G14: -28185.8114 | J14: Exportações | K14: 39ª | L14: 14557.4362 | M14: 0.001879142239 | N14: 0.07569891866 | O14: 0.338945587
J15: Importações | K15: 27ª | L15: 27643.7092 | M15: 0.002464291211 | N15: 0.158728383 | O15: 1.088854671
A16: milhares de euros *exclui serviços | K16: *TVMA - Taxa de variação média anual; TVT - Taxa de variação total
A18: Evolução das trocas comerciais Portugal-Áustria em milhares de euros (2019-2023)
E27: Exportações | G27: Importações | I27: Saldo
A28: Principais produtos agrícolas e agroalimentares, do mar e da floresta transacionados (NC 4 dígitos)
A47: Principais produtos agrícolas e agroalimentares transacionados (NC 4 dígitos)
A81: Fonte: GPP a partir de dados INE/Comércio Internacional (2022 definitivos) | N81: 2024-05-03T12:05:18

Sheet 1
A1: Evolução da balança comercial Portugal-Áustria 2019-2023 em milhões de euros
A3: Total de Bens Transacionáveis (BT)(1) | B3: 2019 | C3: 2020 | D3: 2021 | E3: 2022 | F3: 2023 | G3: média quinquénio | H3: var. 19/20 | I3: var. 20/21 | J3: var. 21/22 | K3: var. 22/23 | L3: TVMA* 2019-2023 | M3: TVT* 2019-2023
A4: Exportações | B4: 525.060018 | C4: 395.3195 | D4: 367.285924 | E4: 441.595978 | F4: 425.402766 | G4: 430.9328372 | H4: -0.2470965481 | I4: -0.07091371916 | J4: 0.2023220852 | K4: -0.03666974521 | L4: -0.0512586265 | M4: -0.189801639
A5: Importações | B5: 421.185319 | C5: 400.487386 | D5: 455.623129 | E5: 551.804091 | F5: 582.0328 | G5: 482.226545 | H5: -0.04914210459 | I5: 0.1376716095 | J5: 0.2110976285 | K5: 0.05478159639 | L5: 0.08422285726 | M5: 0.3818924206
A6: Saldo (exp-imp) | B6: 103.874699 | C6: -5.167886 | D6: -88.337205 | E6: -110.208113 | F6: -156.630034 | G6: -51.2937078
A7: Cobertura (exp/imp) | B7: 1.246624691 | C7: 0.9870960081 | D7: 0.8061178211 | E7: 0.8002767381 | F7: 0.7308913965 | G7: 0.8936315134
A8: Exp BT Áustria / Exp BT Mundo | B8: 0.008765198469 | C8: 0.007353769987 | D8: 0.005773254289 | E8: 0.005637049214 | F8: 0.005489301694 | G8: 0.006468256965 | L8: Exportações
A9: Imp BT Áustria / Imp BT Mundo | B9: 0.005266322106 | C9: 0.005876939586 | D9: 0.005479814925 | E9: 0.005039960285 | F9: 0.005544881838 | G9: 0.005409501605 | L9: Importações
A10: Exp BT Áustria / Exp TE Mundo | B10: 0.005629401842 | C10: 0.005321604734 | D10: 0.004106059432 | E10: 0.003673887974 | F10: 0.003375114713 | G10: 0.00428153233
A11: Imp BT Áustria / Imp TE Mundo | B11: 0.004563133719 | C11: 0.005096246648 | D11: 0.004768536651 | E11: 0.004378278654 | F11: 0.00470333355 | G11: 0.004670786917
A12: (1) Todos os produtos transacionados entre PT e Áustria (exclui serviços) | D12: TE - Total da Economia (bens e serviços) Fonte: INE/Contas Nacionais | H12: *TVMA - Taxa de variação média anual; TVT - Taxa de variação total
A24: Agro(1) + Mar + Florestas (AMF) | B24: 2019 | C24: 2020 | D24: 2021 | E24: 2022 | F24: 2023 | G24: média quinquénio | H24: var. 19/20 | I24: var. 20/21 | J24: var. 21/22 | K24: var. 22/23 | L24: TVMA* 2019-2023 | M24: TVT* 2019-2023
A25: Exportações | B25: 33.336949 | C25: 32.047692 | D25: 39.128019 | E25: 57.28493 | F25: 49.317666 | G25: 42.2230512 | H25: -0.03867351508 | I25: 0.2209309488 | J25: 0.464038596 | K25: -0.1390813256 | L25: 0.1028569036 | M25: 0.4793695128
A26: Importações | B26: 53.564823 | C26: 52.648983 | D26: 67.533746 | E26: 90.895991 | F26: 87.40077 | G26: 70.4088626 | H26: -0.01709778823 | I26: 0.282717009 | J26: 0.3459343866 | K26: -0.03845297203 | L26: 0.1302093509 | M26: 0.6316822329
A27: Saldo (exp-imp) | B27: -20.227874 | C27: -20.601291 | D27: -28.405727 | E27: -33.611061 | F27: -38.083104 | G27: -28.1858114
A28: Cobertura (exp/imp) | B28: 0.6223664549 | C28: 0.6087048633 | D28: 0.5793846975 | E28: 0.6302250448 | F28: 0.5642703834 | G28: 0.5996837563
A29: Exp AMF / Exp BT | B29: 0.06349169211 | C29: 0.08106782489 | D29: 0.1065328575 | E29: 0.1297224904 | F29: 0.1159317004 | G29: 0.09798058434 | L29: Exportações
A30: Imp AMF / Imp BT | B30: 0.1271763772 | C30: 0.1314622753 | D30: 0.1482228221 | E30: 0.1647251126 | F30: 0.1501646814 | G30: 0.1460078532 | L30: Importações
A31: Exp AMF Áustria / Exp AMF Mundo | B31: 0.002818518864 | C31: 0.002778194386 | D31: 0.00292074914 | E31: 0.003495463427 | F31: 0.003038348887 | G31: 0.003042886498
A32: Imp AMF Áustria / Imp AMF Mundo | B32: 0.00387214686 | C32: 0.004035831186 | D32: 0.004518936327 | E32: 0.004706386632 | F32: 0.004426735549 | G32: 0.00435264567
A33: (1) Produtos agrícolas e agroalimentares | B33: BT - Total de Bens Transacionáveis (exclui serviços) | H33: *TVMA - Taxa de variação média anual; TVT - Taxa de variação total
A45: Agroalimentar (AA)(1) | B45: 2019 | C45: 2020 | D45: 2021 | E45: 2022 | F45: 2023 | G45: média quinquénio | H45: var. 19/20 | I45: var. 20/21 | J45: var. 21/22 | K45: var. 22/23 | L45: TVMA* 2019-2023 | M45: TVT* 2019-2023
A46: Exportações | B46: 12.232816 | C46: 12.091572 | D46: 12.212269 | E46: 19.871449 | F46: 16.379075 | G46: 14.5574362 | H46: -0.01154631934 | I46: 0.009981911368 | J46: 0.6271709213 | K46: -0.1757483312 | L46: 0.07569891866 | M46: 0.338945587
A47: Importações | B47: 18.330989 | C47: 19.406175 | D47: 26.352212 | E47: 35.838398 | F47: 38.290772 | G47: 27.6437092 | H47: 0.05865400934 | I47: 0.3579292158 | J47: 0.3599768399 | K47: 0.06842867251 | L47: 0.2022009212 | M47: 1.088854671
A48: Saldo (exp-imp) | B48: -6.098173 | C48: -7.314603 | D48: -14.139943 | E48: -15.966949 | F48: -21.911697 | G48: -13.086273
A49: Cobertura (exp/imp) | B49: 0.6673298424 | C49: 0.6230785819 | D49: 0.4634248161 | E49: 0.5544736961 | F49: 0.4277551521 | G49: 0.5266093669
A50: Exp AA / Exp AMF | B50: 0.3669446775 | C50: 0.3772993075 | D50: 0.3121105876 | E50: 0.3468878988 | F50: 0.3321137501 | G50: 0.3447746145 | L50: Exportações
A51: Imp AA / Imp AMF | B51: 0.3422206585 | C51: 0.368595439 | D51: 0.3902080598 | E51: 0.3942791932 | F51: 0.4381056597 | G51: 0.3926168976 | L51: Importações
A52: Exp AA / Exp BT | B52: 0.02329793848 | C52: 0.03058683419 | D52: 0.03325003275 | E52: 0.04499916211 | F52: 0.03850251176 | G52: 0.03378121819
A53: Imp AA / Imp BT | B53: 0.04352238355 | C53: 0.04845639508 | D53: 0.05783773984 | E53: 0.06494768449 | F53: 0.06578799683 | G53: 0.05732515036
A54: Exp AA Áustria / Exp AA Mundo | B54: 0.00194429087 | C54: 0.00182732701 | D54: 0.001638834161 | E54: 0.002238432238 | F54: 0.001724781525 | G54: 0.001879142239
A55: Imp AA Áustria / Imp AA Mundo | B55: 0.001967462175 | C55: 0.00213619674 | D55: 0.002565730069 | E55: 0.002707400036 | F55: 0.002700528582 | G55: 0.002464291211
A56: (1) Produtos agrícolas e agroalimentares | B56: AMF - Agroalimentar, Mar e Florestas; BT - Total de Bens Transacionáveis (exclui serviços) | H56: *TVMA - Taxa de variação média anual; TVT - Taxa de variação total
A67: Mar (M) | B67: 2019 | C67: 2020 | D67: 2021 | E67: 2022 | F67: 2023 | G67: média quinquénio | H67: var. 19/20 | I67: var. 20/21 | J67: var. 21/22 | K67: var. 22/23 | L67: TVMA* 2019-2023 | M67: TVT* 2019-2023
A68: Exportações | B68: 5.75592 | C68: 5.552429 | D68: 6.779143 | E68: 10.056545 | F68: 9.411493 | G68: 7.511106 | H68: -0.03535334056 | I68: 0.2209328566 | J68: 0.4834537345 | K68: -0.0641425062 | L68: 0.1308003744 | M68: 0.6350979513
A69: Importações | B69: 0.229055 | C69: 0.186325 | D69: 0.069869 | E69: 0.171523 | F69: 0.200414 | G69: 0.1714372 | H69: -0.1865490821 | I69: -0.62501543 | J69: 1.454922784 | K69: 0.168438052 | L69: -0.03284279853
A70: Saldo (exp-imp) | B70: 5.526865 | C70: 5.366104 | D70: 6.709274 | E70: 9.885022 | F70: 9.211079 | G70: 7.3396688
A71: Cobertura (exp/imp) | B71: 25.12898649 | C71: 29.79969945 | D71: 97.02647812 | E71: 58.63088332 | F71: 46.96025727 | G71: 43.81257977
A72: Exp M / Exp AMF | B72: 0.1726588717 | C72: 0.173255191 | D72: 0.1732554618 | E72: 0.1755530643 | F72: 0.1908341121 | G72: 0.1778911231 | L72: Exportações
A73: Imp M / Imp AMF | B73: 0.004276220608 | C73: 0.003539004733 | D73: 0.001034579068 | E73: 0.001887024918 | F73: 0.00229304616 | G73: 0.002434880975 | L73: Importações
A74: Exp M / Exp BT | B74: 0.01096240392 | C74: 0.01404542149 | D74: 0.01845739942 | E74: 0.02277318069 | F74: 0.0221237231 | G74: 0.01742987619
A75: Imp M / Imp BT | B75: 0.0005438342451 | C75: 0.0004652456145 | D75: 0.0001533482292 | E75: 0.0003108403921 | F75: 0.0003443345461 | G75: 0.000355511744
A76: Exp M Áustria / Exp M Mundo | B76: 0.005387486318 | C76: 0.006171630606 | D76: 0.006188590179 | E76: 0.007862070298 | F76: 0.007059123424 | G76: 0.00661673208
A77: Imp M Áustria / Imp M Mundo | B77: 0.0001051028129 | C77: 9.679890054e-05 | D77: 3.339731199e-05 | E77: 6.595942244e-05 | F77: 7.900133561e-05 | G77: 7.563268607e-05
A78: AMF - Agroalimentar, Mar e Florestas; BT - Total de Bens Transacionáveis (exclui serviços) | H78: *TVMA - Taxa de variação média anual; TVT - Taxa de variação total
A90: Florestas (F) | B90: 2019 | C90: 2020 | D90: 2021 | E90: 2022 | F90: 2023 | G90: média quinquénio | H90: var. 19/20 | I90: var. 20/21 | J90: var. 21/22 | K90: var. 22/23 | L90: TVMA* 2019-2023 | M90: TVT* 2019-2023
A91: Exportações | B91: 15.348213 | C91: 14.403691 | D91: 20.136607 | E91: 27.356936 | F91: 23.527098 | G91: 20.154509 | H91: -0.0615395421 | I91: 0.3980171471 | J91: 0.3585673098 | K91: -0.1399951369 | L91: 0.1126988417 | M91: 0.5328884216
A92: Importações | B92: 35.004779 | C92: 33.056483 | D92: 41.111665 | E92: 54.88607 | F92: 48.909584 | G92: 42.5937162 | H92: -0.0556580003 | I92: 0.2436793412 | J92: 0.3350485805 | K92: -0.1088889403 | L92: 0.08721805818 | M92: 0.3972259045
A93: Saldo (exp-imp) | B93: -19.656566 | C93: -18.652792 | D93: -20.975058 | E93: -27.529134 | F93: -25.382486 | G93: -22.4392072
A94: Cobertura (exp/imp) | B94: 0.4384605028 | C94: 0.4357296873 | D94: 0.4898027604 | E94: 0.4984313142 | F94: 0.48103247 | G94: 0.4731803373
A95: Exp F / Exp AMF | B95: 0.4603964508 | C95: 0.4494455014 | D95: 0.5146339507 | E95: 0.4775590369 | F95: 0.4770521379 | G95: 0.4773342624 | L95: Exportações
A96: Imp F / Imp AMF | B96: 0.6535031209 | C96: 0.6278655563 | D96: 0.6087573611 | E96: 0.6038337818 | F96: 0.5596012941 | G96: 0.6049482214 | L96: Importações
A97: Exp F / Exp BT | B97: 0.0292313497 | C97: 0.0364355692 | D97: 0.05482542533 | E97: 0.06195014756 | F97: 0.0553054655 | G97: 0.04676948995
A98: Imp F / Imp BT | B98: 0.0831101594 | C98: 0.08254063463 | D98: 0.09023173404 | E98: 0.09946658768 | F98: 0.08403235007 | G98: 0.08832719111
A99: Exp F Áustria / Exp F Mundo | B99: 0.003435311575 | C99: 0.003584177721 | D99: 0.004152442224 | E99: 0.004389859806 | F99: 0.004355115448 | G99: 0.004035772131
A100: Imp F Áustria / Imp F Mundo | B100: 0.01497882988 | C100: 0.01623543754 | D100: 0.01592418091 | E100: 0.01579139176 | F100: 0.01615239665 | G100: 0.01582416977
A101: AMF - Agroalimentar, Mar e Florestas; BT - Total de Bens Transacionáveis (exclui serviços) | H101: *TVMA - Taxa de variação média anual; TVT - Taxa de variação total
A111: Fonte: GPP a partir de dados INE/Comércio Internacional (2022 definitivos) | H111: 2024-05-03T12:05:18

Sheet 2
A1: Ranking dos parceiros comerciais de Portugal por país (média 2019-2023 em milhares de euros) produtos agrícolas e agroalimentares, do mar e da floresta
A2: Exportações | F2: Importações | K2: Trocas comerciais (total e saldo)
A3: P | B3: País | C3: média quinquénio | D3: % do Total | F3: P | G3: País | H3: média quinquénio | I3: % do Total | K3: P | L3: País | M3: Total (exp+imp) | N3: % do Total | O3: Saldo (exp-imp)
A4: 1 | B4: Espanha | C4: 4589477.65 | D4: 0.330749654 | F4: 1 | G4: Espanha | H4: 7534700.686 | I4: 0.4657919629 | K4: 1 | L4: Espanha | M4: 12124178.34 | N4: 0.4034387285 | O4: -2945223.036
A5: 2 | B5: França | C5: 1475809.99 | D5: 0.106357124 | F5: 2 | G5: França | H5: 1064197.953 | I5: 0.06578826077 | K5: 2 | L5: França | M5: 2540007.943 | N5: 0.08452016677 | O5: 411612.0364
A6: 3 | B6: Itália | C6: 915116.4714 | D6: 0.06594965252 | F6: 3 | G6: Países Baixos | H6: 947328.0688 | I6: 0.05856341467 | K6: 3 | L6: Países Baixos | M6: 1580850.188 | N6: 0.05260366289 | O6: -313805.9492
A7: 4 | B7: Alemanha | C7: 650630.7046 | D7: 0.04688897012 | F7: 4 | G7: Alemanha | H7: 912999.7532 | I7: 0.05644125293 | K7: 4 | L7: Alemanha | M7: 1563630.458 | N7: 0.05203066685 | O7: -262369.0486
A8: 5 | B8: Países Baixos | C8: 633522.1196 | D8: 0.04565600659 | F8: 5 | G8: Brasil | H8: 813481.1404 | I8: 0.050289055 | K8: 5 | L8: Itália | M8: 1408658.586 | N8: 0.04687389224 | O8: 421574.357
A9: 6 | B9: Estados Unidos | C9: 565282.6516 | D9: 0.0407381963 | F9: 6 | G9: Itália | H9: 493542.1144 | I9: 0.03051056171 | K9: 6 | L9: Brasil | M9: 1307207.503 | N9: 0.04349805145 | O9: -319754.7774 | P9: Nota: Nesta listagem, o Reino Unido passa a ser constituído por três componentes: Reino Unido [até 2020] ; Reino Unido (sem Irlanda do Norte) pós-2020 e Reino Unido (Irlanda do Norte) pós-2020. Estas componentes são calculadas igualmente como média do quinquénio, embora a primeira corresponda apenas a 2019-2020 e as duas últimas a 2021-2023.
A10: 7 | B10: Brasil | C10: 493726.363 | D10: 0.03558135286 | F10: 7 | G10: Suécia | H10: 338954.0252 | I10: 0.02095399238 | K10: 7 | L10: Estados Unidos | M10: 831258.1132 | N10: 0.0276605727 | O10: 299307.19
A11: 8 | B11: Reino Unido (sem Irlanda do Norte) pós 2020 | C11: 454913.9818 | D11: 0.03278426295 | F11: 8 | G11: Bélgica | H11: 311896.3766 | I11: 0.01928130015 | K11: 8 | L11: Bélgica | M11: 566475.8276 | N11: 0.01884979594 | O11: -57316.9256
A12: 9 | B12: Angola | C12: 292707.7282 | D12: 0.02109455306 | F12: 9 | G12: Estados Unidos | H12: 265975.4616 | I12: 0.01644248889 | K12: 9 | L12: Reino Unido (sem Irlanda do Norte) pós 2020 | M12: 544532.3606 | N12: 0.01811961496 | O12: 365295.603
A13: 10 | B13: Reino Unido | C13: 261878.4294 | D13: 0.01887277954 | F13: 10 | G13: Polónia | H13: 241286.9558 | I13: 0.01491625606 | K13: 10 | L13: Polónia | M13: 500653.6594 | N13: 0.01665952695 | O13: 18079.7478
A14: 11 | B14: Polónia | C14: 259366.7036 | D14: 0.01869176713 | F14: 11 | G14: Ucrânia | H14: 222824.0602 | I14: 0.01377488778 | K14: 11 | L14: Suécia | M14: 438293.7972 | N14: 0.01458446811 | O14: -239614.2532
A15: 12 | B15: Bélgica | C15: 254579.451 | D15: 0.01834676444 | F15: 12 | G15: China, República Popular da | H15: 185792.3874 | I15: 0.01148560566 | K15: 12 | L15: China, República Popular da | M15: 398800.9512 | N15: 0.01327032185 | O15: 27216.1764
A16: 13 | B16: Israel | C16: 229312.128 | D16: 0.01652582555 | F16: 13 | G16: Dinamarca | H16: 157445.0856 | I16: 0.009733187625 | K16: 13 | L16: Reino Unido | M16: 360801.6302 | N16: 0.01200587346 | O16: 162955.2286
A17: 14 | B17: China, República Popular da | C17: 213008.5638 | D17: 0.01535087741 | F17: 14 | G17: África do Sul | H17: 152632.7646 | I17: 0.009435692006 | K17: 14 | L17: Angola | M17: 311606.1852 | N17: 0.01036886787 | O17: 273809.2712
A18: 15 | B18: Turquia | C18: 183340.2302 | D18: 0.01321277111 | F18: 15 | G18: Roménia | H18: 151340.3218 | I18: 0.009355793747 | K18: 15 | L18: Turquia | M18: 242682.4712 | N18: 0.008075393227 | O18: 123997.9892
A19: 16 | B19: Suíça | C19: 154487.3474 | D19: 0.01113343186 | F19: 16 | G19: Irlanda | H19: 122298.3798 | I19: 0.007560433355 | K19: 16 | L19: Dinamarca | M19: 241944.339 | N19: 0.00805083147 | O19: -72945.8322
A20: 17 | B20: Marrocos | C20: 118641.6206 | D20: 0.008550139679 | F20: 17 | G20: Canadá | H20: 119672.9708 | I20: 0.007398131698 | K20: 17 | L20: Ucrânia | M20: 239492.5 | N20: 0.007969245174 | O20: -206155.6204
A21: 18 | B21: Cabo Verde | C21: 109797.6224 | D21: 0.007912779707 | F21: 18 | G21: Argentina | H21: 105868.1334 | I21: 0.006544722574 | K21: 18 | L21: Israel | M21: 237364.4856 | N21: 0.00789843432 | O21: 221259.7704
A22: 19 | B22: Suécia | C22: 99339.772 | D22: 0.007159114331 | F22: 19 | G22: Uruguai | H22: 104314.013 | I22: 0.006448647518 | K22: 19 | L22: Canadá | M22: 218508.6438 | N22: 0.007270995772 | O22: -20837.2978
A23: 20 | B23: Canadá | C23: 98835.673 | D23: 0.007122785454 | F23: 20 | G23: Rússia, Federação da | H23: 103735.9496 | I23: 0.006412911886 | K23: 20 | L23: Irlanda | M23: 195589.7628 | N23: 0.006508357353 | O23: -49006.9968
A24: 21 | B24: Argélia | C24: 96652.6324 | D24: 0.006965460377 | F24: 21 | G24: Reino Unido | H24: 98923.2008 | I24: 0.006115389821 | K24: 21 | L24: África do Sul | M24: 189444.1922 | N24: 0.006303860098 | O24: -115821.337
A25: 22 | B25: Dinamarca | C25: 84499.2534 | D25: 0.006089603427 | F25: 22 | G25: Reino Unido (sem Irlanda do Norte) pós 2020 | H25: 89618.3788 | I25: 0.005540169718 | K25: 22 | L25: Roménia | M25: 177441.9662 | N25: 0.0059044794 | O25: -125238.6774
A26: 23 | B26: Egito | C26: 82715.0134 | D26: 0.005961018693 | F26: 23 | G26: Finlândia | H26: 81334.7174 | I26: 0.005028077325 | K26: 23 | L26: Rússia, Federação da | M26: 176432.6266 | N26: 0.005870893068 | O26: -31039.2726
A27: 24 | B27: México | C27: 78972.8492 | D27: 0.005691332334 | F27: 24 | G27: Índia | H27: 79609.9066 | I27: 0.004921450262 | K27: 24 | L27: Marrocos | M27: 161461.9424 | N27: 0.005372735285 | O27: 75821.2988
A28: 25 | B28: Japão | C28: 73363.5888 | D28: 0.005287090048 | F28: 25 | G28: Costa Rica | H28: 70759.3454 | I28: 0.004374312367 | K28: 25 | L28: Suíça | M28: 158551.5506 | N28: 0.005275890391 | O28: 150423.1442
A29: 26 | B29: Irlanda | C29: 73291.383 | D29: 0.005281886397 | F29: 26 | G29: Áustria | H29: 70408.8626 | I29: 0.00435264567 | K29: 26 | L29: Argentina | M29: 121955.0376 | N29: 0.004058121214 | O29: -89781.2292
A30: 27 | B30: Rússia, Federação da | C30: 72696.677 | D30: 0.005239027749 | F30: 27 | G30: Vietname | H30: 69724.8096 | I30: 0.004310357807 | K30: 27 | L30: Grécia | M30: 120604.866 | N30: 0.004013193508 | O30: -5813.7356
A31: 28 | B31: Luxemburgo | C31: 58628.216 | D31: 0.004225156681 | F31: 28 | G31: Grécia | H31: 63209.3008 | I31: 0.003907571849 | K31: 28 | L31: Áustria | M31: 112631.9138 | N31: 0.003747889122 | O31: -28185.8114
A32: 29 | B32: Grécia | C32: 57395.5652 | D32: 0.004136323298 | F32: 29 | G32: Turquia | H32: 59342.241 | I32: 0.003668511872 | K32: 29 | L32: Finlândia | M32: 112130.7098 | N32: 0.003731211282 | O32: -50538.725
A33: 30 | B33: Áustria | C33: 42223.0512 | D33: 0.003042886498 | F33: 30 | G33: Equador | H33: 58414.7256 | I33: 0.003611173268 | K33: 30 | L33: Índia | M33: 110947.4156 | N33: 0.003691836514 | O33: -48272.3976
A34: 31 | B34: Moçambique | C34: 41346.8404 | D34: 0.002979740659 | F34: 31 | G34: Chile | H34: 53583.805 | I34: 0.00331252783 | K34: 31 | L34: Cabo Verde | M34: 110216.5244 | N34: 0.003667515706 | O34: 109378.7204
A35: 32 | B35: África do Sul | C35: 36811.4276 | D35: 0.002652887293 | F35: 32 | G35: Bulgária | H35: 44086.0538 | I35: 0.002725380927 | K35: 32 | L35: Uruguai | M35: 107585.2684 | N35: 0.003579959209 | O35: -101042.7576
A36: 33 | B36: Arábia Saudita | C36: 35880.8896 | D36: 0.002585826258 | F36: 33 | G36: Marrocos | H36: 42820.3218 | I36: 0.002647133918 | K36: 33 | L36: Argélia | M36: 103327.6826 | N36: 0.003438285691 | O36: 89977.5822
A37: 34 | B37: Austrália | C37: 35113.0132 | D37: 0.002530487749 | F37: 34 | G37: Checa, República | H37: 40116.599 | I37: 0.002479990934 | K37: 34 | L37: Egito | M37: 96954.5744 | N37: 0.003226216997 | O37: 68475.4524
A38: 35 | B38: Guiné-Bissau | C38: 34934.7244 | D38: 0.002517639019 | F38: 35 | G38: Moçambique | H38: 38763.0688 | I38: 0.002396316278 | K38: 35 | L38: México | M38: 96736.9562 | N38: 0.003218975631 | O38: 61208.7422
A39: 36 | B39: Índia | C39: 31337.509 | D39: 0.002258398678 | F39: 36 | G39: Cuba | H39: 37252.762 | I39: 0.00230294976 | K39: 36 | L39: Japão | M39: 88210.8558 | N39: 0.002935264933 | O39: 58516.3218
A40: 37 | B40: Emirados Árabes Unidos | C40: 31194.84 | D40: 0.002248116959 | F40: 37 | G40: Colômbia | H40: 31648.7828 | I40: 0.001956514171 | K40: 37 | L40: Chile | M40: 83999.5896 | N40: 0.002795132725 | O40: -23168.0204
A41: 38 | B41: Checa, República | C41: 30815.952 | D41: 0.002220811656 | F41: 38 | G41: Guiana | H41: 31014.2578 | I41: 0.001917288108 | K41: 38 | L41: Moçambique | M41: 80109.9092 | N41: 0.002665701462 | O41: 2583.7716
A42: 39 | B42: Finlândia | C42: 30795.9924 | D42: 0.002219373229 | F42: 39 | G42: Indonésia | H42: 29000.573 | I42: 0.001792802977 | K42: 39 | L42: Vietname | M42: 76018.5502 | N42: 0.002529559232 | O42: -63431.069
A43: 40 | B43: Chile | C43: 30415.7846 | D43: 0.002191972812 | F43: 40 | G43: Hungria | H43: 27853.1164 | I43: 0.001721867703 | K43: 40 | L43: Costa Rica | M43: 75105.2118 | N43: 0.002499167392 | O43: -66413.479
A44: 41 | B44: Jordânia | C44: 29568.7308 | D44: 0.002130928229 | F44: 41 | G44: Costa do Marfim | H44: 23657.68 | I44: 0.001462507625 | K44: 41 | L44: Checa, República | M44: 70932.551 | N44: 0.0023603198 | O44: -9300.647
A45: 42 | B45: São Tomé e Príncipe | C45: 26643.6118 | D45: 0.001920123826 | F45: 42 | G45: Uganda | H45: 22974.374 | I45: 0.001420265941 | K45: 42 | L45: Luxemburgo | M45: 67457.2882 | N45: 0.002244678512 | O45: 49799.1438
A46: 43 | B46: Roménia | C46: 26101.6444 | D46: 0.001881065889 | F46: 43 | G46: Namíbia | H46: 22899.6914 | I46: 0.001415649095 | K46: 43 | L46: Equador | M46: 61226.8336 | N46: 0.002037356695 | O46: -55602.6176
A47: 44 | B47: Tunísia | C47: 25934.5578 | D47: 0.001869024467 | F47: 44 | G47: Peru | H47: 21918.8742 | I47: 0.001355015397 | K47: 44 | L47: Bulgária | M47: 58372.2568 | N47: 0.001942369075 | O47: -29799.8508
A48: 45 | B48: Noruega | C48: 23600.8176 | D48: 0.00170083893 | F48: 45 | G48: Letónia | H48: 19634.0354 | I48: 0.001213767643 | K48: 45 | L48: Austrália | M48: 52768.539 | N48: 0.001755902271 | O48: 17457.4874
A49: 46 | B49: Coreia, República da | C49: 22131.0668 | D49: 0.001594918473 | F49: 46 | G49: Lituânia | H49: 19279.9074 | I49: 0.001191875602 | K49: 46 | L49: Hungria | M49: 47560.2566 | N49: 0.001582593799 | O49: -8145.9762
A50: 47 | B50: Hungria | C50: 19707.1402 | D50: 0.001420233477 | F50: 47 | G50: Angola | H50: 18898.457 | I50: 0.001168294502 | K50: 47 | L50: Cuba | M50: 44341.484 | N50: 0.001475487363 | O50: -30164.04
A51: 48 | B51: Nigéria | C51: 18837.3684 | D51: 0.001357551677 | F51: 48 | G51: Suazilândia | H51: 17908.5294 | I51: 0.001107097602 | K51: 48 | L51: Colômbia | M51: 40554.3906 | N51: 0.001349469739 | O51: -22743.175
A52: 49 | B52: Ucrânia | C52: 16668.4398 | D52: 0.001201243609 | F52: 49 | G52: México | H52: 17764.107 | I52: 0.001098169471 | K52: 49 | L52: Noruega | M52: 38853.5172 | N52: 0.001292872238 | O52: 8348.118
A53: 50 | B53: Argentina | C53: 16086.9042 | D53: 0.001159334112 | F53: 50 | G53: Austrália | H53: 17655.5258 | I53: 0.001091457028 | K53: 50 | L53: Tunísia | M53: 37484.3298 | N53: 0.001247311771 | O53: 14384.7858
A54: 51 | B54: Lituânia | C54: 15764.2352 | D54: 0.001136080342 | F54: 51 | G54: Senegal | H54: 16694.6988 | I54: 0.001032059115 | K54: 51 | L54: Arábia Saudita | M54: 35932.1724 | N54: 0.001195662877 | O54: 35829.6068
A55: 52 | B55: Macau | C55: 14584.6512 | D55: 0.001051071321 | F55: 52 | G55: Nova Zelânda | H55: 16509.396 | I55: 0.001020603776 | K55: 52 | L55: Costa do Marfim | M55: 35761.2586 | N55: 0.001189975626 | O55: -11554.1014
A56: 53 | B56: Bulgária | C56: 14286.203 | D56: 0.00102956307 | F56: 53 | G56: Estónia | H56: 16320.5418 | I56: 0.00100892889 | K56: 53 | L56: Guiné-Bissau | M56: 35226.5238 | N56: 0.00117218203 | O56: 34642.925
A57: 54 | B57: Líbia, Jamahira Árabe da | C57: 13798.5402 | D57: 0.0009944186996 | F57: 54 | G57: Eslovénia | H57: 16026.5852 | I57: 0.0009907566193 | K57: 54 | L57: Coreia, República da | M57: 35092.7906 | N57: 0.001167731984 | O57: 9169.343
A58: 55 | B58: Iraque | C58: 13659.5246 | D58: 0.0009844002694 | F58: 55 | G58: Noruega | H58: 15252.6996 | I58: 0.0009429153436 | K58: 55 | L58: Lituânia | M58: 35044.1426 | N58: 0.001166113195 | O58: -3515.6722
A59: 56 | B59: Senegal | C59: 13224.0438 | D59: 0.0009530164966 | F59: 56 | G59: Japão | H59: 14847.267 | I59: 0.0009178516743 | K59: 56 | L59: Indonésia | M59: 33328.2666 | N59: 0.001109016473 | O59: -24672.8794
A60: 57 | B60: Letónia | C60: 13144.4668 | D60: 0.0009472816249 | F60: 57 | G60: Egito | H60: 14239.561 | I60: 0.0008802835502 | K60: 57 | L60: Letónia | M60: 32778.5022 | N60: 0.001090722759 | O60: -6489.5686
A61: 58 | B61: Eslováquia | C61: 12793.9168 | D61: 0.0009220185558 | F61: 58 | G61: Mauritânia | H61: 13443.2356 | I61: 0.0008310550557 | K61: 58 | L61: Emirados Árabes Unidos | M61: 31953.4188 | N61: 0.001063267654 | O61: 30436.2612
A62: 59 | B62: Croácia | C62: 12333.56 | D62: 0.0008888420455 | F62: 59 | G62: Tanzânia, República Unida da | H62: 13079.5878 | I62: 0.0008085745048 | K62: 59 | L62: Guiana | M62: 31130.901 | N62: 0.00103589792 | O62: -30897.6146
A63: 60 | B63: Costa do Marfim | C63: 12103.5786 | D63: 0.0008722679876 | F63: 60 | G63: Camarões | H63: 13022.8276 | I63: 0.0008050656135 | K63: 60 | L63: Senegal | M63: 29918.7426 | N63: 0.0009955626797 | O63: -3470.655
A64: 61 | B64: Síria, República Árabe da | C64: 11995.3212 | D64: 0.000864466207 | F64: 61 | G64: Coreia, República da | H64: 12961.7238 | I64: 0.0008012882029 | K64: 61 | L64: Jordânia | M64: 29716.5252 | N64: 0.0009888337841 | O64: 29420.9364
A65: 62 | B65: Dominicana, República | C65: 11848.0206 | D65: 0.0008538507021 | F65: 62 | G65: Paquistão | H65: 12615.7756 | I65: 0.0007799018336 | K65: 62 | L65: São Tomé e Príncipe | M65: 27732.7016 | N65: 0.0009228209584 | O65: 25554.522
A66: 63 | B66: Território Palestiniano Ocupado | C66: 11806.0928 | D66: 0.0008508290935 | F66: 63 | G66: Tailândia | H66: 12316.114 | I66: 0.0007613768821 | K66: 63 | L66: Peru | M66: 27430.0544 | N66: 0.0009127502057 | O66: -16407.694
A67: 64 | B67: HongKong | C67: 11528.0934 | D67: 0.0008307945247 | F67: 64 | G67: Moldava, República de | H67: 12178.8658 | I67: 0.0007528922573 | K67: 64 | L67: Nigéria | M67: 25016.4128 | N67: 0.0008324349488 | O67: 12658.324
A68: 65 | B68: Kuwait | C68: 10775.802 | D68: 0.0007765791784 | F68: 65 | G68: Sérvia | H68: 11730.1152 | I68: 0.0007251506877 | K68: 65 | L68: Estónia | M68: 24786.1618 | N68: 0.0008247732196 | O68: -7854.9218
A69: 66 | B69: Chipre | C69: 10753.9998 | D69: 0.0007750079604 | F69: 66 | G69: Tunísia | H69: 11549.772 | I69: 0.0007140019485 | K69: 66 | L69: Uganda | M69: 24133.8048 | N69: 0.0008030656803 | O69: -21814.9432
A70: 67 | B70: Malta | C70: 10377.2016 | D70: 0.0007478532635 | F70: 67 | G70: Belize | H70: 10934.5394 | I70: 0.0006759685332 | K70: 67 | L70: Eslovénia | M70: 23946.301 | N70: 0.0007968263878 | O70: -8106.8694
A71: 68 | B71: Tailândia | C71: 9256.6804 | D71: 0.0006671007188 | F71: 68 | G71: Paraguai | H71: 10263.5706 | I71: 0.0006344895299 | K71: 68 | L71: Namíbia | M71: 23765.809 | N71: 0.0007908204168 | O71: -22033.5738
A72: 69 | B72: Colômbia | C72: 8905.6078 | D72: 0.0006417999875 | F72: 69 | G72: Maurícias | H72: 9873.1322 | I72: 0.0006103527956 | K72: 69 | L72: Camarões | M72: 21652.1438 | N72: 0.0007204870402 | O72: -4393.5114
A73: 70 | B73: Geórgia | C73: 8776.724 | D73: 0.0006325117252 | F73: 70 | G73: Reino Unido (Irlanda do Norte) pós-2020 | H73: 9138.2728 | I73: 0.0005649241029 | K73: 70 | L73: Tailândia | M73: 21572.7944 | N73: 0.0007178466451 | O73: -3059.4336
A74: 71 | B74: Líbano | C74: 8677.7716 | D74: 0.0006253805276 | F74: 71 | G74: Islândia | H74: 9112.164 | I74: 0.000563310068 | K74: 71 | L74: Nova Zelânda | M74: 20810.7044 | N74: 0.0006924876796 | O74: -12208.0876
A75: 72 | B75: Camarões | C75: 8629.3162 | D75: 0.0006218884947 | F75: 72 | G75: Luxemburgo | H75: 8829.0722 | I75: 0.0005458094545 | K75: 72 | L75: Croácia | M75: 20488.528 | N75: 0.000681767082 | O75: 4178.592
A76: 73 | B76: Estónia | C76: 8465.62 | D76: 0.0006100914089 | F76: 73 | G76: Croácia | H76: 8154.968 | I76: 0.0005041366221 | K76: 73 | L76: Eslováquia | M76: 20124.608 | N76: 0.000669657443 | O76: 5463.2256
A77: 74 | B77: Gana | C77: 8178.0838 | D77: 0.0005893695521 | F77: 74 | G77: Israel | H77: 8052.3576 | I77: 0.0004977932912 | K77: 74 | L77: Suazilândia | M77: 19975.6478 | N77: 0.0006647007101 | O77: -15841.411
A78: 75 | B78: Eslovénia | C78: 7919.7158 | D78: 0.0005707497585 | F78: 75 | G78: Bangladesh | H78: 7823.177 | I78: 0.0004836254449 | K78: 75 | L78: Sérvia | M78: 19112.5644 | N78: 0.0006359811335 | O78: -4347.666
A79: 76 | B79: Belarus | C79: 7872.655 | D79: 0.0005673582302 | F79: 76 | G79: Malásia | H79: 7805.5168 | I79: 0.0004825336989 | K79: 76 | L79: Paquistão | M79: 17209.3712 | N79: 0.0005726513289 | O79: -8022.18
A80: 77 | B80: Sérvia | C80: 7382.4492 | D80: 0.0005320305936 | F80: 77 | G80: Quénia | H80: 7356.7132 | I80: 0.0004547888529 | K80: 77 | L80: Mauritânia | M80: 16816.7526 | N80: 0.0005595867282 | O80: -10069.7186
A81: 78 | B81: Gibraltar | C81: 7309.7404 | D81: 0.0005267906922 | F81: 78 | G81: Eslováquia | H81: 7330.6912 | I81: 0.0004531801841 | K81: 78 | L81: Maurícias | M81: 16663.174 | N81: 0.0005544763155 | O81: -3083.0904
A82: 79 | B82: Cuba | C82: 7088.722 | D82: 0.0005108625703 | F82: 79 | G82: Filipinas | H82: 7323.2812 | I82: 0.000452722101 | K82: 79 | L82: Moldava, República de | M82: 15413.0416 | N82: 0.0005128774696 | O82: -8944.69
A83: 80 | B83: Maurícias | C83: 6790.0418 | D83: 0.0004893375994 | F83: 80 | G83: Gana | H83: 6780.4694 | I83: 0.0004191657085 | K83: 80 | L83: Chipre | M83: 14994.9744 | N83: 0.0004989660527 | O83: 6513.0252
A84: 81 | B84: Taiwan | C84: 6498.8018 | D84: 0.0004683488211 | F84: 81 | G84: Argélia | H84: 6675.0502 | I84: 0.0004126487388 | K84: 81 | L84: Gana | M84: 14958.5532 | N84: 0.0004977541171 | O84: 1397.6144
A85: 82 | B85: Vietname | C85: 6293.7406 | D85: 0.0004535706859 | F85: 82 | G85: Nigéria | H85: 6179.0444 | I85: 0.0003819858731 | K85: 82 | L85: Macau | M85: 14605.4142 | N85: 0.0004860032219 | O85: 14563.8882
A86: 83 | B86: Andorra | C86: 6022.5714 | D86: 0.0004340283489 | F86: 83 | G86: Panamá | H86: 5653.6226 | I86: 0.0003495045229 | K86: 83 | L86: HongKong | M86: 14502.5934 | N86: 0.000482581803 | O86: 8553.5934
A87: 84 | B87: Guatemala | C87: 5731.0826 | D87: 0.0004130216402 | F87: 84 | G87: Congo | H87: 5587.8752 | I87: 0.0003454400469 | K87: 84 | L87: Dominicana, República | M87: 14480.0812 | N87: 0.0004818326971 | O87: 9215.96
A88: 85 | B88: Peru | C88: 5511.1802 | D88: 0.0003971739451 | F88: 85 | G88: Honduras | H88: 5352.3066 | I88: 0.0003308772971 | K88: 85 | L88: Líbia, Jamahira Árabe da | M88: 13839.6806 | N88: 0.0004605230136 | O88: 13757.3998
A89: 86 | B89: Singapura | C89: 5118.6402 | D89: 0.0003688847847 | F89: 86 | G89: Camboja | H89: 5251.3418 | I89: 0.0003246356965 | K89: 86 | L89: Iraque | M89: 13672.6982 | N89: 0.000454966582 | O89: 13646.351
A90: 87 | B90: Omã | C90: 4766.6966 | D90: 0.0003435212831 | F90: 87 | G90: Zimbabwe | H90: 5173.412 | I90: 0.0003198181097 | K90: 87 | L90: Tanzânia, República Unida da | M90: 13489.132 | N90: 0.0004488583154 | O90: -12670.0436
A91: 88 | B91: Panamá | C91: 4742.5904 | D91: 0.0003417840228 | F91: 88 | G91: Etiópia | H91: 4865.2444 | I91: 0.0003007673209 | K91: 88 | L91: Malta | M91: 12868.9092 | N91: 0.0004282200592 | O91: 7885.494
A92: 89 | B92: Paquistão | C92: 4593.5956 | D92: 0.0003310464221 | F92: 89 | G92: Sri Lanca | H92: 4526.3628 | I92: 0.0002798178058 | K92: 89 | L92: Reino Unido (Irlanda do Norte) pós-2020 | M92: 12739.7782 | N92: 0.0004239231539 | O92: -5536.7674
A93: 90 | B93: Mali | C93: 4507.5844 | D93: 0.0003248478573 | F93: 90 | G93: Suriname | H93: 4461.0484 | I93: 0.0002757800977 | K93: 90 | L93: Kuwait | M93: 12319.6144 | N93: 0.0004099419715 | O93: 9231.9896
A94: 91 | B94: Costa Rica | C94: 4345.8664 | D94: 0.0003131933343 | F94: 91 | G94: Macedónia, Antiga República jugoslava da | H94: 4419.1744 | I94: 0.0002731914649 | K94: 91 | L94: Síria, República Árabe da | M94: 12141.732 | N94: 0.0004040228364 | O94: 11848.9104
A95: 92 | B95: Indonésia | C95: 4327.6936 | D95: 0.0003118836761 | F95: 92 | G95: Myanmar | H95: 4417.7084 | I95: 0.0002731008374 | K95: 92 | L95: Território Palestiniano Ocupado | M95: 11817.7626 | N95: 0.0003932425757 | O95: 11794.423
A96: 93 | B96: Nova Zelânda | C96: 4301.3084 | D96: 0.0003099821752 | F96: 93 | G96: Papuásia-Nova Guiné | H96: 4268.11 | I96: 0.0002638527286 | K96: 93 | L96: Paraguai | M96: 11233.3798 | N96: 0.0003737969154 | O96: -9293.7614
A97: 94 | B97: Burquina Faso | C97: 4086.0794 | D97: 0.0002944712777 | F97: 94 | G97: Chipre | H97: 4240.9746 | I97: 0.0002621752298 | K97: 94 | L97: Islândia | M97: 10997.3204 | N97: 0.0003659419085 | O97: -7227.0076
A98: 95 | B98: Venezuela | C98: 3914.122 | D98: 0.0002820788325 | F98: 95 | G98: Suíça | H98: 4064.2032 | I98: 0.0002512472977 | K98: 95 | L98: Belize | M98: 10954.0486 | N98: 0.0003645020155 | O98: -10915.0302
A99: 96 | B99: Reino Unido (Irlanda do Norte) pós-2020 | C99: 3601.5054 | D99: 0.0002595495077 | F99: 96 | G99: Guatemala | H99: 3891.5604 | I99: 0.0002405745939 | K99: 96 | L99: Filipinas | M99: 10864.8014 | N99: 0.0003615322656 | O99: -3781.761
A100: 97 | B100: Filipinas | C100: 3541.5202 | D100: 0.0002552265574 | F100: 97 | G100: Malavi | H100: 3761.9744 | I100: 0.000232563643 | K100: 97 | L100: Malásia | M100: 10802.9 | N100: 0.0003594724623 | O100: -4808.1336
A101: 98 | B101: Catar | C101: 3509.4766 | D101: 0.0002529172729 | F101: 98 | G101: Congo, República Democrática do | H101: 3658.6746 | I101: 0.0002261776937 | K101: 98 | L101: Panamá | M101: 10396.213 | N101: 0.0003459397279 | O101: -911.0322
A102: 99 | B102: Mauritânia | C102: 3373.517 | D102: 0.0002431190792 | F102: 99 | G102: Madagáscar | H102: 3530.0814 | I102: 0.0002182281172 | K102: 99 | L102: Bangladesh | M102: 9992.5026 | N102: 0.0003325060414 | O102: -5653.8514
A103: 100 | B103: Uruguai | C103: 3271.2554 | D103: 0.0002357493977 | F103: 100 | G103: Taiwan | H103: 3371.904 | I103: 0.0002084496582 | K103: 100 | L103: Taiwan | M103: 9870.7058 | N103: 0.0003284531856 | O103: 3126.8978
A104: 101 | B104: Moldava, República de | C104: 3234.1758 | D104: 0.000233077184 | F104: 101 | G104: Nicarágua | H104: 3348.1498 | I104: 0.0002069811838 | K104: 101 | L104: Geórgia | M104: 9763.0358 | N104: 0.0003248704069 | O104: 7790.4122
A105: 102 | B105: Guiné | C105: 3199.9078 | D105: 0.0002306075938 | F105: 102 | G105: Gâmbia | H105: 3121.0524 | I105: 0.00019294212 | K105: 102 | L105: Quénia | M105: 9728.6568 | N105: 0.0003237264267 | O105: -4984.7696
A106: 103 | B106: Malásia | C106: 2997.3832 | D106: 0.0002160122637 | F106: 103 | G106: HongKong | H106: 2974.5 | I106: 0.0001838823135 | K106: 103 | L106: Guatemala | M106: 9622.643 | N106: 0.000320198759 | O106: 1839.5222
A107: 104 | B107: Gabão | C107: 2969.7446 | D107: 0.0002140204341 | F107: 104 | G107: Gabão | H107: 2833.2392 | I107: 0.0001751496315 | K107: 104 | L107: Líbano | M107: 9030.5168 | N107: 0.0003004954327 | O107: 8325.0264
A108: 105 | B108: Equador | C108: 2812.108 | D108: 0.0002026600452 | F108: 105 | G108: Dominicana, República | H108: 2632.0606 | I108: 0.0001627128568 | K108: 105 | L108: Belarus | M108: 8568.8254 | N108: 0.0002851323965 | O108: 7176.4846
A109: 106 | B109: Arménia | C109: 2727.7232 | D109: 0.0001965786901 | F109: 106 | G109: Malta | H109: 2491.7076 | I109: 0.0001540362945 | K109: 106 | L109: Congo | M109: 8278.2768 | N109: 0.0002754642314 | O109: -2897.4736
A110: 107 | B110: Guiné Equatorial | C110: 2712.0278 | D110: 0.0001954475705 | F110: 107 | G110: Mali | H110: 2475.2544 | I110: 0.0001530191648 | K110: 107 | L110: Gibraltar | M110: 7352.4128 | N110: 0.0002446555956 | O110: 7267.068
A111: 108 | B111: Congo | C111: 2690.4016 | D111: 0.0001938890362 | F111: 108 | G111: Centro-Africana, República | H111: 2466.2132 | I111: 0.0001524602417 | K111: 108 | L111: Mali | M111: 6982.8388 | N111: 0.0002323578167 | O111: 2032.33
A112: 109 | B112: Timor-Leste | C112: 2668.7438 | D112: 0.0001923282246 | F112: 109 | G112: Benim | H112: 1927.4492 | I112: 0.0001191540824 | K112: 109 | L112: Singapura | M112: 6659.3268 | N112: 0.0002215927762 | O112: 3577.9536
A113: 110 | B113: Benim | C113: 2476.0626 | D113: 0.0001784422783 | F113: 110 | G113: Serra Leoa | H113: 1903.7664 | I113: 0.0001176900219 | K113: 110 | L113: Honduras | M113: 6528.2066 | N113: 0.0002172296792 | O113: -4176.4066
A114: 111 | B114: Quénia | C114: 2371.9436 | D114: 0.0001709387396 | F114: 111 | G114: Laos, República Democrática Popular do | H114: 1764.877 | I114: 0.0001091039388 | K114: 111 | L114: Etiópia | M114: 6273.7972 | N114: 0.0002087640659 | O114: -3456.6916
A115: 112 | B115: Seychelles | C115: 2348.937 | D115: 0.0001692807241 | F115: 112 | G115: Burquina Faso | H115: 1596.8146 | I115: 9.871439331e-05 | K115: 112 | L115: Camboja | M115: 6129.6458 | N115: 0.0002039673485 | O115: -4373.0378
A116: 113 | B116: Congo, República Democrática do | C116: 2232.4506 | D116: 0.0001608859046 | F116: 113 | G116: Kuwait | H116: 1543.8124 | I116: 9.543782005e-05 | K116: 113 | L116: Andorra | M116: 6085.3588 | N116: 0.0002024936741 | O116: 5959.784
A117: 114 | B117: Bangladesh | C117: 2169.3256 | D117: 0.0001563366784 | F117: 114 | G117: Singapura | H117: 1540.6866 | I117: 9.524458443e-05 | K117: 114 | L117: Sri Lanca | M117: 6081.5556 | N117: 0.0002023671205 | O117: -2971.17
A118: 115 | B118: Suazilândia | C118: 2067.1184 | D118: 0.0001489709173 | F118: 115 | G118: Seychelles | H118: 1430.66 | I118: 8.844278724e-05 | K118: 115 | L118: Congo, República Democrática do | M118: 5891.1252 | N118: 0.0001960304438 | O118: -1426.224
A119: 116 | B119: Irão, República Islâmica do | C119: 2015.5486 | D119: 0.0001452544391 | F119: 116 | G119: Bolívia | H119: 1415.5294 | I119: 8.750742004e-05 | K119: 116 | L119: Gabão | M119: 5802.9838 | N119: 0.0001930974901 | O119: 136.5054
A120: 117 | B120: Islândia | C120: 1885.1564 | D120: 0.0001358574711 | F120: 117 | G120: São Tomé e Príncipe | H120: 1089.0898 | I120: 6.732706406e-05 | K120: 117 | L120: Burquina Faso | M120: 5682.894 | N120: 0.0001891014357 | O120: 2489.2648
A121: 118 | B121: Togo | C121: 1879.1826 | D121: 0.0001354269575 | F121: 118 | G121: Venezuela | H121: 1080.4086 | I121: 6.6790396e-05 | K121: 118 | L121: Omã | M121: 5590.2944 | N121: 0.0001860201329 | O121: 3943.0988
A122: 119 | B122: Sudão | C122: 1868.0632 | D122: 0.0001346256163 | F122: 119 | G122: Bósnia-Herzegovina | H122: 1034.9794 | I122: 6.398198235e-05 | K122: 119 | L122: Macedónia, Antiga República jugoslava da | M122: 5497.1524 | N122: 0.0001829207814 | O122: -3341.1964
A123: 120 | B123: Nicarágua | C123: 1709.2518 | D123: 0.0001231805631 | F123: 120 | G123: Geórgia | H123: 986.3118 | I123: 6.097337221e-05 | K123: 120 | L123: Zimbabwe | M123: 5240.2714 | N123: 0.0001743729243 | O123: -5106.5526
A124: 121 | B124: Jamaica | C124: 1645.8018 | D124: 0.0001186079152 | F124: 121 | G124: Cazaquistão | H124: 977.1902 | I124: 6.040947881e-05 | K124: 121 | L124: Suriname | M124: 5124.6412 | N124: 0.0001705252655 | O124: -3797.4556
A125: 122 | B125: El Salvador | C125: 1616.0178 | D125: 0.0001164614732 | F125: 122 | G125: El Salvador | H125: 921.9616 | I125: 5.699527046e-05 | K125: 122 | L125: Nicarágua | M125: 5057.4016 | N125: 0.0001682878307 | O125: -1638.898
A126: 123 | B126: Cazaquistão | C126: 1586.0954 | D126: 0.0001143050571 | F126: 123 | G126: Omã | H126: 823.5978 | I126: 5.091446255e-05 | K126: 123 | L126: Venezuela | M126: 4994.5306 | N126: 0.0001661957635 | O126: 2833.7134
A127: 124 | B127: Sri Lanca | C127: 1555.1928 | D127: 0.000112078001 | F127: 124 | G127: Timor-Leste | H127: 773.0574 | I127: 4.779007671e-05 | K127: 124 | L127: Myanmar | M127: 4788.3204 | N127: 0.0001593340052 | O127: -4047.0964
A128: 125 | B128: Ruanda | C128: 1542.3664 | D128: 0.0001111536414 | F128: 125 | G128: Emirados Árabes Unidos | H128: 758.5788 | I128: 4.689501588e-05 | K128: 125 | L128: Benim | M128: 4403.5118 | N128: 0.0001465292866 | O128: 548.6134
A129: 126 | B129: Azerbaijão | C129: 1447.7444 | D129: 0.0001043345225 | F129: 126 | G129: Belarus | H129: 696.1704 | I129: 4.303695537e-05 | K129: 126 | L129: Papuásia-Nova Guiné | M129: 4270.9956 | N129: 0.0001421197368 | O129: -4265.2244
A130: 127 | B130: Etiópia | C130: 1408.5528 | D130: 0.0001015101035 | F130: 127 | G130: Turquemenistão | H130: 693.7048 | I130: 4.288453304e-05 | K130: 127 | L130: Madagáscar | M130: 3916.3472 | N130: 0.0001303186155 | O130: -3143.8156
A131: 128 | B131: Albânia | C131: 1395.6804 | D131: 0.0001005824289 | F131: 128 | G131: Iémen | H131: 684.2014 | I131: 4.229703693e-05 | K131: 128 | L131: Seychelles | M131: 3779.597 | N131: 0.0001257681771 | O131: 918.277
A132: 129 | B132: Bolívia | C132: 1235.6182 | D132: 8.904723441e-05 | F132: 129 | G132: Gronelândia | H132: 628.3832 | I132: 3.884637976e-05 | K132: 129 | L132: Malavi | M132: 3770.4898 | N132: 0.00012546513 | O132: -3753.459
A133: 130 | B133: Montenegro | C133: 1193.9358 | D133: 8.604331099e-05 | F133: 130 | G133: Faroé, Ilhas | H133: 595.1746 | I133: 3.679343836e-05 | K133: 130 | L133: Gâmbia | M133: 3599.2092 | N133: 0.0001197656734 | O133: -2642.8956
A134: 131 | B134: São Bartolomeu | C134: 1183.3114 | D134: 8.527764289e-05 | F134: 131 | G134: Cabo Verde | H134: 418.902 | I134: 2.589634187e-05 | K134: 131 | L134: Catar | M134: 3530.8284 | N134: 0.0001174902646 | O134: 3488.1248
A135: 132 | B135: Honduras | C135: 1175.9 | D135: 8.47435259e-05 | F135: 132 | G135: Usbequistão | H135: 380.4082 | I135: 2.351667167e-05 | K135: 132 | L135: Guiné | M135: 3487.284 | N135: 0.0001160413006 | O135: 2912.5316
A136: 133 | B136: Uganda | C136: 1159.4308 | D136: 8.35566409e-05 | F136: 133 | G136: Líbano | H136: 352.7452 | I136: 2.180655689e-05 | K136: 133 | L136: Timor-Leste | M136: 3441.8012 | N136: 0.0001145278353 | O136: 1895.6864
A137: 134 | B137: Macedónia, Antiga República jugoslava da | C137: 1077.978 | D137: 7.768658608e-05 | F137: 134 | G137: Chade | H137: 303.1764 | I137: 1.874223494e-05 | K137: 134 | L137: Arménia | M137: 2777.2048 | N137: 9.241302316e-05 | O137: 2678.2416
A138: 135 | B138: Paraguai | C138: 969.8092 | D138: 6.989119063e-05 | F138: 135 | G138: Guiné-Bissau | H138: 291.7994 | I138: 1.803891368e-05 | K138: 135 | L138: Guiné Equatorial | M138: 2721.8116 | N138: 9.056978384e-05 | O138: 2702.244
A139: 136 | B139: Bermudas | C139: 957.27 | D139: 6.898752874e-05 | F139: 136 | G139: Guiné | H139: 287.3762 | I139: 1.776547336e-05 | K139: 136 | L139: Bolívia | M139: 2651.1476 | N139: 8.821840023e-05 | O139: -179.9112
A140: 137 | B140: Aruba | C140: 940.2512 | D140: 6.776103574e-05 | F140: 137 | G140: Togo | H140: 238.6312 | I140: 1.475207838e-05 | K140: 137 | L140: Centro-Africana, República | M140: 2569.5112 | N140: 8.550190394e-05 | O140: -2362.9152
A141: 138 | B141: Barbados | C141: 924.8742 | D141: 6.665286225e-05 | F141: 138 | G141: Irão, República Islâmica do | H141: 211.8398 | I141: 1.309584553e-05 | K141: 138 | L141: Cazaquistão | M141: 2563.2856 | N141: 8.529474366e-05 | O141: 608.9052
A142: 139 | B142: Camboja | C142: 878.304 | D142: 6.329669e-05 | F142: 139 | G142: Zâmbia | H142: 183.9494 | I142: 1.137167297e-05 | K142: 139 | L142: El Salvador | M142: 2537.9794 | N142: 8.445266589e-05 | O142: 694.0562
A143: 140 | B143: Trindade e Tobago | C143: 878.2468 | D143: 6.329256777e-05 | F143: 140 | G143: Jordânia | H143: 147.7944 | I143: 9.136586383e-06 | K143: 140 | L143: Serra Leoa | M143: 2340.2336 | N143: 7.787256521e-05 | O143: -1467.2992
A144: 141 | B144: Kosovo | C144: 870.5922 | D144: 6.27409241e-05 | F144: 141 | G144: Síria, República Árabe da | H144: 146.4108 | I144: 9.051052825e-06 | K144: 141 | L144: Irão, República Islâmica do | M144: 2227.3884 | N144: 7.411757887e-05 | O144: 1803.7088
A145: 142 | B145: Namíbia | C145: 866.1176 | D145: 6.241845333e-05 | F145: 142 | G145: Maldivas | H145: 127.2588 | I145: 7.867084403e-06 | K145: 142 | L145: Togo | M145: 2117.8138 | N145: 7.047142355e-05 | O145: 1640.5514
A146: 143 | B146: Turquemenistão | C146: 749.1004 | D146: 5.398538069e-05 | F146: 143 | G146: Albânia | H146: 125.4572 | I146: 7.755710265e-06 | K146: 143 | L146: Laos, República Democrática Popular do | M146: 1935.8146 | N146: 6.441529968e-05 | O146: -1593.9394
A147: 144 | B147: Barém | C147: 728.9324 | D147: 5.253193445e-05 | F147: 144 | G147: Azerbaijão | H147: 124.9342 | I147: 7.723378629e-06 | K147: 144 | L147: Sudão | M147: 1883.1514 | N147: 6.266290262e-05 | O147: 1852.975
A148: 145 | B148: Iémen | C148: 704.0114 | D148: 5.0735954e-05 | F148: 145 | G148: Kosovo | H148: 80.0466 | I148: 4.94844646e-06 | K148: 145 | L148: Jamaica | M148: 1660.4886 | N148: 5.525367501e-05 | O148: 1631.115
A149: 146 | B149: Suriname | C149: 663.5928 | D149: 4.78231088e-05 | F149: 146 | G149: Tajiquistão | H149: 74.7168 | I149: 4.618960512e-06 | K149: 146 | L149: Azerbaijão | M149: 1572.6786 | N149: 5.233174877e-05 | O149: 1322.8102
A150: 147 | B150: Niger | C150: 619.0434 | D150: 4.461256944e-05 | F150: 147 | G150: Andorra | H150: 62.7874 | I150: 3.881490123e-06 | K150: 147 | L150: Bósnia-Herzegovina | M150: 1571.857 | N150: 5.230440958e-05 | O150: -498.1018
A151: 148 | B151: São Martinho (parte holandesa) | C151: 606.1984 | D151: 4.368686947e-05 | F151: 148 | G151: Libéria | H151: 54.4472 | I151: 3.365902538e-06 | K151: 148 | L151: Ruanda | M151: 1569.669 | N151: 5.223160267e-05 | O151: 1515.0638
A152: 149 | B152: Bósnia-Herzegovina | C152: 536.8776 | D152: 3.869113088e-05 | F152: 149 | G152: Arábia Saudita | H152: 51.2828 | I152: 3.170280688e-06 | K152: 149 | L152: Albânia | M152: 1521.1376 | N152: 5.061669354e-05 | O152: 1270.2232
A153: 150 | B153: Curaçau | C153: 534.0534 | D153: 3.84875994e-05 | F153: 150 | G153: Fiji, Ilhas | H153: 50.1218 | I153: 3.098508166e-06 | K153: 150 | L153: Turquemenistão | M153: 1442.8052 | N153: 4.801013968e-05 | O153: 55.3956
A154: 151 | B154: Burundi | C154: 485.0592 | D154: 3.495673687e-05 | F154: 151 | G154: Arménia | H154: 49.4816 | I154: 3.058931277e-06 | K154: 151 | L154: Iémen | M154: 1388.2128 | N154: 4.619354742e-05 | O154: 19.81
A155: 152 | B155: Gâmbia | C155: 478.1568 | D155: 3.445930195e-05 | F155: 152 | G155: Falkland Ilhas (Malvinas) | H155: 46.09 | I155: 2.849264021e-06 | K155: 152 | L155: Montenegro | M155: 1194.2042 | N155: 3.973780414e-05 | O155: 1193.6674
A156: 153 | B156: Antígua e Barbuda | C156: 468.1724 | D156: 3.37397567e-05 | F156: 153 | G156: Aruba | H156: 45.6344 | I156: 2.821099024e-06 | K156: 153 | L156: São Bartolomeu | M156: 1185.2626 | N156: 3.944026746e-05 | O156: 1181.3602
A157: 154 | B157: Serra Leoa | C157: 436.4672 | D157: 3.145485966e-05 | F157: 154 | G157: Gibraltar | H157: 42.6724 | I157: 2.637989455e-06 | K157: 154 | L157: Aruba | M157: 985.8856 | N157: 3.28058877e-05 | O157: 894.6168
A158: 155 | B158: Tanzânia, República Unida da | C158: 409.5442 | D158: 2.951460117e-05 | F158: 155 | G158: Líbia, Jamahira Árabe da | H158: 41.1404 | I158: 2.543281873e-06 | K158: 155 | L158: Bermudas | M158: 958.1048 | N158: 3.188146624e-05 | O158: 956.4352
A159: 156 | B159: Nova Caledónia | C159: 388.6078 | D159: 2.800577869e-05 | F159: 156 | G159: Curaçau | H159: 39.2148 | I159: 2.424242107e-06 | K159: 156 | L159: Kosovo | M159: 950.6388 | N159: 3.163303097e-05 | O159: 790.5456
A160: 157 | B160: Madagáscar | C160: 386.2658 | D160: 2.78369979e-05 | F160: 157 | G160: Botswana | H160: 30.037 | I160: 1.85687445e-06 | K160: 157 | L160: Barbados | M160: 935.22 | N160: 3.111996188e-05 | O160: 914.5284
A161: 158 | B161: Myanmar | C161: 370.612 | D161: 2.670887628e-05 | F161: 158 | G161: São Pedro e Miquelon | H161: 28.9156 | I161: 1.787549983e-06 | K161: 158 | L161: Trindade e Tobago | M161: 878.6292 | N161: 2.923687177e-05 | O161: 877.8644
A162: 159 | B162: Comores | C162: 333.8038 | D162: 2.405622159e-05 | F162: 159 | G162: Ruanda | H162: 27.3026 | I162: 1.687835015e-06 | K162: 159 | L162: Barém | M162: 733.5568 | N162: 2.440950756e-05 | O162: 724.308
A163: 160 | B163: Haiti | C163: 328.0528 | D163: 2.364176457e-05 | F163: 160 | G163: São Marino | H163: 25.3104 | I163: 1.564678066e-06 | K163: 160 | L163: Usbequistão | M163: 665.2294 | N163: 2.213587559e-05 | O163: -95.587
A164: 161 | B164: Polinésia Francesa | C164: 317.6242 | D164: 2.289020718e-05 | F164: 161 | G164: Catar | H164: 21.3518 | I164: 1.319959113e-06 | K164: 161 | L164: Gronelândia | M164: 629.1046 | N164: 2.093380293e-05 | O164: -627.6618
A165: 162 | B165: Bahamas | C165: 305.389 | D165: 2.200845364e-05 | F165: 162 | G165: Macau | H165: 20.763 | I165: 1.28355975e-06 | K165: 162 | L165: Niger | M165: 622.3102 | N165: 2.070771552e-05 | O165: 615.7766
A166: 163 | B166: Libéria | C166: 303.6128 | D166: 2.188044832e-05 | F166: 163 | G166: Marshall, Ilhas | H166: 18.3784 | I166: 1.136144801e-06 | K166: 163 | L166: São Martinho (parte holandesa) | M166: 606.2012 | N166: 2.017167965e-05 | O166: 606.1956
A167: 164 | B167: Somália | C167: 293.0252 | D167: 2.111743229e-05 | F167: 164 | G167: Quirguizistão | H167: 17.5046 | I167: 1.08212686e-06 | K167: 164 | L167: Faroé, Ilhas | M167: 600.7416 | N167: 1.999000844e-05 | O167: -589.6076
A168: 165 | B168: Usbequistão | C168: 284.8212 | D168: 2.052619503e-05 | F168: 165 | G168: Salomão, Ilhas | H168: 16.0532 | I168: 9.924019348e-07 | K168: 165 | L168: Curaçau | M168: 573.2682 | N168: 1.907581589e-05 | O168: 494.8386
A169: 166 | B169: São Marino | C169: 251.4926 | D169: 1.81243045e-05 | F169: 166 | G169: Sudão | H169: 15.0882 | I169: 9.32746049e-07 | K169: 166 | L169: Burundi | M169: 485.2096 | N169: 1.614561735e-05 | O169: 484.9088
A170: 167 | B170: Bonaire, Santo Eustáquio e Saba | C170: 241.8602 | D170: 1.743012682e-05 | F170: 167 | G170: Jamaica | H170: 14.6868 | I170: 9.079316732e-07 | K170: 167 | L170: Antígua e Barbuda | M170: 477.853 | N170: 1.590082242e-05 | O170: 458.4918
A171: 168 | B171: Laos, República Democrática Popular do | C171: 170.9376 | D171: 1.231895138e-05 | F171: 168 | G171: Iraque | H171: 13.1736 | I171: 8.143862986e-07 | K171: 168 | L171: Nova Caledónia | M171: 390.0338 | N171: 1.297859005e-05 | O171: 387.1818
A172: 169 | B172: Zâmbia | C172: 164.8696 | D172: 1.188164914e-05 | F172: 169 | G172: São Cristovão e Nevis | H172: 12.4064 | I172: 7.669583239e-07 | K172: 169 | L172: Libéria | M172: 358.06 | N172: 1.19146442e-05 | O172: 249.1656
A173: 170 | B173: Santa Lúcia | C173: 158.8492 | D173: 1.144777727e-05 | F173: 170 | G173: Nepal | H173: 12.0278 | I173: 7.435534343e-07 | K173: 170 | L173: Zâmbia | M173: 348.819 | N173: 1.160714483e-05 | O173: -19.0798
A174: 171 | B174: Liechtenstein | C174: 144.4366 | D174: 1.040910516e-05 | F174: 171 | G174: Território Palestiniano Ocupado | H174: 11.6698 | I174: 7.21422028e-07 | K174: 171 | L174: Comores | M174: 333.8038 | N174: 1.110750576e-05 | O174: 333.8038
A175: 172 | B175: Maldivas | C175: 139.5096 | D175: 1.00540313e-05 | F175: 172 | G175: Barbados | H175: 10.3458 | I175: 6.395729161e-07 | K175: 172 | L175: Haiti | M175: 328.3394 | N175: 1.092567483e-05 | O175: 327.7662
A176: 173 | B176: Ceuta e Melilha | C176: 132.796 | D176: 9.570202624e-06 | F176: 173 | G176: Jibuti | H176: 9.885 | I176: 6.110864579e-07 | K176: 173 | L176: Polinésia Francesa | M176: 318.4566 | N176: 1.05968192e-05 | O176: 316.7918
A177: 174 | B177: Quirguizistão | C177: 130.9018 | D177: 9.433693408e-06 | F177: 174 | G177: Guiné Equatorial | H177: 9.7838 | I177: 6.048303173e-07 | K177: 174 | L177: Bahamas | M177: 305.389 | N177: 1.01619876e-05 | O177: 305.389
A178: 175 | B178: Botswana | C178: 118.8382 | D178: 8.564306557e-06 | F178: 175 | G178: Antígua e Barbuda | H178: 9.6806 | I178: 5.984505376e-07 | K178: 175 | L178: Chade | M178: 303.2232 | N178: 1.008991941e-05 | O178: -303.1296
A179: 176 | B179: Guiana | C179: 116.6432 | D179: 8.406119603e-06 | F179: 176 | G179: Santa Helena | H179: 5.0476 | I179: 3.120404658e-07 | K179: 176 | L179: Somália | M179: 293.0252 | N179: 9.750575325e-06 | O179: 293.0252
A180: 177 | B180: Nepal | C180: 114.3036 | D180: 8.237511767e-06 | F180: 177 | G180: Barém | H180: 4.6244 | I180: 2.858784235e-07 | K180: 177 | L180: São Marino | M180: 276.803 | N180: 9.210772662e-06 | O180: 226.1822
A181: 178 | B181: Afeganistão | C181: 109.4574 | D181: 7.888260917e-06 | F181: 178 | G181: Niger | H181: 3.2668 | I181: 2.019521741e-07 | K181: 178 | L181: Maldivas | M181: 266.7684 | N181: 8.876865807e-06 | O181: 12.2508
A182: 179 | B182: Virgens Britânicas, Ilhas | C182: 106.6708 | D182: 7.687439155e-06 | F182: 179 | G182: São Bartolomeu | H182: 1.9512 | I182: 1.206223467e-07 | K182: 179 | L182: Bonaire, Santo Eustáquio e Saba | M182: 241.8602 | N182: 8.048031699e-06 | O182: 241.8602
A183: 180 | B183: Centro-Africana, República | C183: 103.298 | D183: 7.444371748e-06 | F183: 180 | G183: Liechtenstein | H183: 1.8568 | I183: 1.147865792e-07 | K183: 180 | L183: Santa Lúcia | M183: 158.8768 | N183: 5.286713244e-06 | O183: 158.8216
A184: 181 | B184: Jibuti | C184: 90.5704 | D184: 6.527132442e-06 | F184: 181 | G184: Lesoto | H184: 1.7136 | I184: 1.059340166e-07 | K184: 181 | L184: Botswana | M184: 148.8752 | N184: 4.953904482e-06 | O184: 88.8012
A185: 182 | B185: Caimão, Ilhas | C185: 73.8006 | D185: 5.318584112e-06 | F185: 182 | G185: Nova Caledónia | H185: 1.426 | I185: 8.815470804e-08 | K185: 182 | L185: Quirguizistão | M185: 148.4064 | N185: 4.938304903e-06 | O185: 113.3972
A186: 183 | B186: Zimbabwe | C186: 66.8594 | D186: 4.818353003e-06 | F186: 183 | G186: Bermudas | H186: 0.8348 | I186: 5.160697775e-08 | K186: 183 | L186: Liechtenstein | M186: 146.2934 | N186: 4.867993661e-06 | O186: 142.5798
A187: 184 | B187: Turcas e Caicos, Ilhas | C187: 48.519 | D187: 3.496616322e-06 | F187: 184 | G187: Polinésia Francesa | H187: 0.8324 | I187: 5.145861078e-08 | K187: 184 | L187: Ceuta e Melilha | M187: 132.796 | N187: 4.418860224e-06 | O187: 132.796
A188: 185 | B188: Virgens dos Estados Unidos, Ilhas | C188: 27.4406 | D188: 1.977560334e-06 | F188: 185 | G188: Micronésia, Estados Federados da | H188: 0.6592 | I188: 4.075146111e-08 | K188: 185 | L188: Nepal | M188: 126.3314 | N188: 4.203747089e-06 | O188: 102.2758
A189: 186 | B189: Mongólia | C189: 26.1112 | D189: 1.881754531e-06 | F189: 186 | G189: Afeganistão | H189: 0.6156 | I189: 3.805612782e-08 | K189: 186 | L189: Afeganistão | M189: 110.073 | N189: 3.662739852e-06 | O189: 108.8418
A190: 187 | B190: Belize | C190: 19.5092 | D190: 1.405968531e-06 | F190: 187 | G190: Trindade e Tobago | H190: 0.3824 | I190: 2.363980389e-08 | K190: 187 | L190: Virgens Britânicas, Ilhas | M190: 106.6778 | N190: 3.549762697e-06 | O190: 106.6638
A191: 188 | B191: Anguila | C191: 15.482 | D191: 1.115740512e-06 | F191: 188 | G191: Haiti | H191: 0.2866 | I191: 1.771748901e-08 | K191: 188 | L191: Jibuti | M191: 100.4554 | N191: 3.342708902e-06 | O191: 80.6854
A192: 189 | B192: Brunei Darussalam | C192: 13.5634 | D192: 9.774728627e-07 | F192: 189 | G192: Montenegro | H192: 0.2684 | I192: 1.659237282e-08 | K192: 189 | L192: Tajiquistão | M192: 74.7168 | N192: 2.486242775e-06 | O192: -74.7168
A193: 190 | B193: Fiji, Ilhas | C193: 11.4598 | D193: 8.258728277e-07 | F193: 190 | G193: Burundi | H193: 0.1504 | I193: 9.297663457e-09 | K193: 190 | L193: Caimão, Ilhas | M193: 73.8014 | N193: 2.455782335e-06 | O193: 73.7998
A194: 191 | B194: Malavi | C194: 8.5154 | D194: 6.136789017e-07 | F194: 191 | G194: Oceano Indico, Território Britânico do | H194: 0.1384 | I194: 8.555828606e-09 | K194: 191 | L194: Fiji, Ilhas | M194: 61.5816 | N194: 2.049161742e-06 | O194: -38.662
A195: 192 | B195: São Vicente e Granadinas | C195: 7.5006 | D195: 5.405453613e-07 | F195: 192 | G195: Vanuatu | H195: 0.0874 | I195: 5.403030493e-09 | K195: 192 | L195: Turcas e Caicos, Ilhas | M195: 48.519 | N195: 1.614496515e-06 | O195: 48.519
A196: 193 | B196: Guam | C196: 6.4026 | D196: 4.614158508e-07 | F196: 193 | G196: Nauru | H196: 0.0694 | I196: 4.290278217e-09 | K196: 193 | L196: Falkland Ilhas (Malvinas) | M196: 46.09 | N196: 1.533670199e-06 | O196: -46.09
A197: 194 | B197: Territórios Franceses do Sul | C197: 6.3292 | D197: 4.561261367e-07 | F197: 194 | G197: Palau | H197: 0.0478 | I197: 2.954975487e-09 | K197: 194 | L197: São Pedro e Miquelon | M197: 28.9156 | N197: 9.621825558e-07 | O197: -28.9156
A198: 195 | B198: Faroé, Ilhas | C198: 5.567 | D198: 4.011967078e-07 | F198: 195 | G198: Santa Lúcia | H198: 0.0276 | I198: 1.706220156e-09 | K198: 195 | L198: Virgens dos Estados Unidos, Ilhas | M198: 27.4406 | N198: 9.131011164e-07 | O198: 27.4406
A199: 196 | B199: Sudão do Sul | C199: 3.771 | D199: 2.717644665e-07 | F199: 196 | G199: Coreia, República Popular Democrática da | H199: 0.0196 | I199: 1.211663589e-09 | K199: 196 | L199: Mongólia | M199: 26.1254 | N199: 8.693371102e-07 | O199: 26.097
A200: 197 | B200: Marianas do Norte, Ilhas | C200: 2.9244 | D200: 2.107525871e-07 | F200: 197 | G200: São Vicente e Granadinas | H200: 0.0144 | I200: 8.902018203e-10 | K200: 197 | L200: Marshall, Ilhas | M200: 18.3784 | N200: 6.115514077e-07 | O200: -18.3784
... 58 more rows

Sheet 2AA
A1: Ranking dos parceiros comerciais de Portugal por país (média 2019-2023 em milhares de euros) produtos agrícolas e agroalimentares
A2: Exportações | F2: Importações | K2: Trocas comerciais (total e saldo)
A3: P | B3: País | C3: média quinquénio | D3: % do Total | F3: P | G3: País | H3: média quinquénio | I3: % do Total | K3: P | L3: País | M3: Total (exp+imp) | N3: % do Total | O3: Saldo (exp-imp)
A4: 1 | B4: Espanha | C4: 2756093.353 | D4: 0.355769475 | F4: 1 | G4: Espanha | H4: 5218042.717 | I4: 0.4651610503 | K4: 1 | L4: Espanha | M4: 7974136.07 | N4: 0.4204755872 | O4: -2461949.364
A5: 2 | B5: França | C5: 750650.2316 | D5: 0.0968974576 | F5: 2 | G5: França | H5: 878313.0456 | I5: 0.07829698623 | K5: 2 | L5: França | M5: 1628963.277 | N5: 0.08589510946 | O5: -127662.814
A6: 3 | B6: Itália | C6: 480436.9156 | D6: 0.06201705361 | F6: 3 | G6: Alemanha | H6: 721146.7026 | I6: 0.06428643378 | K6: 3 | L6: Países Baixos | M6: 1048192.809 | N6: 0.05527112696 | O6: -310787.729
A7: 4 | B7: Brasil | C7: 405387.3582 | D7: 0.05232930424 | F7: 4 | G7: Países Baixos | H7: 679490.2692 | I7: 0.06057298194 | K7: 4 | L7: Brasil | M7: 1040823.749 | N7: 0.05488255698 | O7: -230049.033
A8: 5 | B8: Países Baixos | C8: 368702.5402 | D8: 0.04759385563 | F8: 5 | G8: Brasil | H8: 635436.3912 | I8: 0.05664581054 | K8: 5 | L8: Alemanha | M8: 1002872.88 | N8: 0.05288141054 | O8: -439420.525
A9: 6 | B9: Alemanha | C9: 281726.1776 | D9: 0.03636653823 | F9: 6 | G9: Itália | H9: 370236.6922 | I9: 0.03300465288 | K9: 6 | L9: Itália | M9: 850673.6078 | N9: 0.04485595451 | O9: 110200.2234 | P9: Nota: Nesta listagem, o Reino Unido passa a ser constituído por três componentes: Reino Unido [até 2020] ; Reino Unido (sem Irlanda do Norte) pós-2020 e Reino Unido (Irlanda do Norte) pós-2020. Estas componentes são calculadas igualmente como média do quinquénio, embora a primeira corresponda apenas a 2019-2020 e as duas últimas a 2021-2023.
A10: 7 | B10: Angola | C10: 239258.0836 | D10: 0.03088455719 | F10: 7 | G10: Bélgica | H10: 281579.9028 | I10: 0.02510136663 | K10: 7 | L10: Bélgica | M10: 455978.039 | N10: 0.02404368725 | O10: -107181.7666
A11: 8 | B11: Reino Unido (sem Irlanda do Norte) pós 2020 | C11: 237670.7152 | D11: 0.03067965222 | F11: 8 | G11: Ucrânia | H11: 218361.6698 | I11: 0.01946579382 | K11: 8 | L11: Estados Unidos | M11: 399330.4768 | N11: 0.02105666561 | O11: -4827.0664
A12: 9 | B12: Estados Unidos | C12: 197251.7052 | D12: 0.02546217657 | F12: 9 | G12: Polónia | H12: 216442.184 | I12: 0.01929468176 | K12: 9 | L12: Polónia | M12: 361797.3752 | N12: 0.01907754802 | O12: -71086.9928
A13: 10 | B13: Israel | C13: 180621.8384 | D13: 0.02331551526 | F13: 10 | G13: Estados Unidos | H13: 202078.7716 | I13: 0.01801425913 | K13: 10 | L13: Reino Unido (sem Irlanda do Norte) pós 2020 | M13: 312265.2586 | N13: 0.01646572329 | O13: 163076.1718
A14: 11 | B14: Bélgica | C14: 174398.1362 | D14: 0.02251213054 | F14: 11 | G14: Roménia | H14: 147921.5572 | I14: 0.01318642844 | K14: 11 | L14: Angola | M14: 248844.089 | N14: 0.01312152985 | O14: 229672.0782
A15: 12 | B15: Polónia | C15: 145355.1912 | D15: 0.01876313079 | F15: 12 | G15: África do Sul | H15: 122030.5704 | I15: 0.01087838321 | K15: 12 | L15: Ucrânia | M15: 226323.7844 | N15: 0.0119340359 | O15: -210399.5552
A16: 13 | B16: Reino Unido | C16: 140181.6612 | D16: 0.01809530724 | F16: 13 | G16: Canadá | H16: 114587.6202 | I16: 0.01021488337 | K16: 13 | L16: Reino Unido | M16: 218445.519 | N16: 0.01151861557 | O16: 61917.8034
A17: 14 | B17: Suíça | C17: 101113.5758 | D17: 0.01305221528 | F17: 14 | G17: Irlanda | H17: 113855.5454 | I17: 0.01014962275 | K17: 14 | L17: Canadá | M17: 187938.0432 | N17: 0.009909958695 | O17: -41237.1972
A18: 15 | B18: Cabo Verde | C18: 93276.7052 | D18: 0.01204059522 | F18: 15 | G18: Argentina | H18: 81740.7412 | I18: 0.007286756949 | K18: 15 | L18: Israel | M18: 185954.1124 | N18: 0.009805346175 | O18: 175289.5644
A19: 16 | B19: Canadá | C19: 73350.423 | D19: 0.009468417118 | F19: 16 | G19: Reino Unido | H19: 78263.8578 | I19: 0.00697681109 | K19: 16 | L19: Roménia | M19: 164671.813 | N19: 0.00868313215 | O19: -131171.3014
A20: 17 | B20: China, República Popular da | C20: 65002.3268 | D20: 0.00839080565 | F20: 17 | G20: Dinamarca | H20: 77963.4376 | I20: 0.00695003021 | K20: 17 | L20: Irlanda | M20: 144404.9996 | N20: 0.007614464624 | O20: -83306.0912
A21: 18 | B21: Japão | C21: 61056.1688 | D21: 0.007881417041 | F21: 18 | G21: Reino Unido (sem Irlanda do Norte) pós 2020 | H21: 74594.5434 | I21: 0.006649711019 | K21: 18 | L21: África do Sul | M21: 144191.7208 | N21: 0.007603218449 | O21: -99869.42
A22: 19 | B22: Suécia | C22: 55383.66 | D22: 0.007149182962 | F22: 19 | G22: Costa Rica | H22: 70756.5738 | I22: 0.006307576225 | K22: 19 | L22: Dinamarca | M22: 126433.7134 | N22: 0.006666840072 | O22: -29493.1618
A23: 20 | B23: Marrocos | C23: 49767.4468 | D23: 0.006424215784 | F23: 20 | G23: China, República Popular da | H23: 48105.6586 | I23: 0.004288366327 | K23: 20 | L23: China, República Popular da | M23: 113107.9854 | N23: 0.00596417545 | O23: 16896.6682
A24: 21 | B24: Dinamarca | C24: 48470.2758 | D24: 0.006256770858 | F24: 21 | G24: Bulgária | H24: 41846.0794 | I24: 0.00373035778 | K24: 21 | L24: Suíça | M24: 103785.6028 | N24: 0.005472606926 | O24: 98441.5488
A25: 22 | B25: Luxemburgo | C25: 48434.8998 | D25: 0.006252204358 | F25: 22 | G25: Grécia | H25: 35033.7506 | I25: 0.003123074514 | K25: 22 | L25: Cabo Verde | M25: 93421.8838 | N25: 0.004926128813 | O25: 93131.5266
A26: 23 | B26: Rússia, Federação da | C26: 47519.044 | D26: 0.00613398139 | F26: 23 | G26: Colômbia | H26: 31210.9096 | I26: 0.002782288355 | K26: 23 | L26: Argentina | M26: 82057.1494 | N26: 0.004326867234 | O26: -81424.333
A27: 24 | B27: Guiné-Bissau | C27: 33196.0112 | D27: 0.004285097043 | F27: 24 | G27: Guiana | H27: 31014.2578 | I27: 0.002764757882 | K27: 24 | L27: Japão | M27: 72872.0242 | N27: 0.003842536282 | O27: 49240.3134
A28: 25 | B28: Irlanda | C28: 30549.4542 | D28: 0.003943467035 | F28: 25 | G28: Vietname | H28: 30892.5166 | I28: 0.002753905295 | K28: 25 | L28: Costa Rica | M28: 72068.7862 | N28: 0.003800181604 | O28: -69444.3614
A29: 26 | B29: Arábia Saudita | C29: 29146.6976 | D29: 0.003762392624 | F29: 26 | G29: Cuba | H29: 28789.5394 | I29: 0.002566435944 | K29: 26 | L29: Suécia | M29: 68731.8356 | N29: 0.003624224453 | O29: 42035.4844
A30: 27 | B30: Moçambique | C30: 28593.955 | D30: 0.003691042013 | F30: 27 | G30: Áustria | H30: 27643.7092 | I30: 0.002464291211 | K30: 27 | L30: Marrocos | M30: 61090.9854 | N30: 0.003221323004 | O30: 38443.9082
A31: 28 | B31: São Tomé e Príncipe | C31: 25054.826 | D31: 0.003234194619 | F31: 28 | G31: Chile | H31: 26079.5266 | I31: 0.002324852563 | K31: 28 | L31: Grécia | M31: 59934.495 | N31: 0.003160341354 | O31: -10133.0062
A32: 29 | B32: Grécia | C32: 24900.7444 | D32: 0.003214305043 | F32: 29 | G32: Checa, República | H32: 24321.05 | I32: 0.002168093627 | K32: 29 | L32: Rússia, Federação da | M32: 59387.4766 | N32: 0.003131497115 | O32: 35650.6114
A33: 30 | B33: Finlândia | C33: 22507.9646 | D33: 0.002905433787 | F33: 30 | G33: Índia | H33: 24071.1366 | I33: 0.002145815163 | K33: 30 | L33: Luxemburgo | M33: 56679.3754 | N33: 0.002988699145 | O33: 40190.4242
A34: 31 | B34: África do Sul | C34: 22161.1504 | D34: 0.002860665382 | F34: 31 | G34: Uruguai | H34: 22728.6906 | I34: 0.002026143166 | K34: 31 | L34: Bulgária | M34: 50875.6622 | N34: 0.002682669791 | O34: -32816.4966
A35: 32 | B35: Jordânia | C35: 21893.2362 | D35: 0.002826081758 | F35: 32 | G35: Costa do Marfim | H35: 22619.1534 | I35: 0.002016378501 | K35: 32 | L35: Checa, República | M35: 43840.9252 | N35: 0.002311728645 | O35: -4801.1748
A36: 33 | B36: Argélia | C36: 20568.7852 | D36: 0.002655115402 | F36: 33 | G36: Turquia | H36: 19669.1464 | I36: 0.0017534009 | K36: 33 | L36: Áustria | M36: 42201.1454 | N36: 0.002225263181 | O36: -13086.273
A37: 34 | B37: Checa, República | C37: 19519.8752 | D37: 0.002519717173 | F37: 34 | G37: Hungria | H37: 19322.5132 | I37: 0.001722500375 | K37: 34 | L37: Moçambique | M37: 38413.517 | N37: 0.002025541824 | O37: 18774.393
A38: 35 | B38: Noruega | C38: 18383.7692 | D38: 0.002373063274 | F38: 35 | G38: Suazilândia | H38: 17908.3876 | I38: 0.001596438519 | K38: 35 | L38: Colômbia | M38: 37783.0652 | N38: 0.001992298149 | O38: -24638.754
A39: 36 | B39: Coreia, República da | C39: 16791.4172 | D39: 0.002167514999 | F39: 36 | G39: Letónia | H39: 17568.283 | I39: 0.001566119983 | K39: 36 | L39: Guiné-Bissau | M39: 33466.8492 | N39: 0.001764704408 | O39: 32925.1732
A40: 37 | B40: Roménia | C40: 16750.2558 | D40: 0.002162201692 | F40: 37 | G40: Uganda | H40: 17520.2176 | I40: 0.001561835206 | K40: 37 | L40: Austrália | M40: 33457.6176 | N40: 0.001764217626 | O40: -224.8624
A41: 38 | B41: Austrália | C41: 16616.3776 | D41: 0.002144920065 | F41: 38 | G41: Austrália | H41: 16841.24 | I41: 0.001501307925 | K41: 38 | L41: Cuba | M41: 33227.7552 | N41: 0.001752096999 | O41: -24351.3236
A42: 39 | B42: Áustria | C42: 14557.4362 | D42: 0.001879142239 | F42: 39 | G42: Lituânia | H42: 14594.912 | I42: 0.001301059605 | K42: 39 | L42: Vietname | M42: 32990.675 | N42: 0.001739595779 | O42: -28794.3582
A43: 40 | B43: Emirados Árabes Unidos | C43: 13772.665 | D43: 0.001777840287 | F43: 40 | G43: México | H43: 13942.9954 | I43: 0.00124294467 | K43: 40 | L43: Hungria | M43: 31339.561 | N43: 0.001652532663 | O43: -7305.4654
A44: 41 | B44: Iraque | C44: 13213.736 | D44: 0.001705691106 | F44: 41 | G44: Peru | H44: 13551.1124 | I44: 0.001208010363 | K44: 41 | L44: Chile | M44: 31046.9382 | N44: 0.001637102685 | O44: -21112.115
A45: 42 | B45: Nigéria | C45: 12563.3872 | D45: 0.001621741028 | F45: 42 | G45: Egito | H45: 13444.2972 | I45: 0.00119848835 | K45: 42 | L45: Guiana | M45: 31034.393 | N45: 0.001636441178 | O45: -30994.1226
A46: 43 | B46: Hungria | C46: 12017.0478 | D46: 0.001551216972 | F46: 43 | G46: Indonésia | H46: 13373.0146 | I46: 0.001192133881 | K46: 43 | L46: Finlândia | M46: 30593.483 | N46: 0.001613192027 | O46: 14422.4462
A47: 44 | B47: Macau | C47: 11451.795 | D47: 0.001478251486 | F47: 44 | G47: Suécia | H47: 13348.1756 | I47: 0.001189919615 | K47: 44 | L47: Costa do Marfim | M47: 30195.695 | N47: 0.001592216696 | O47: -15042.6118
A48: 45 | B48: Território Palestiniano Ocupado | C48: 11126.9966 | D48: 0.001436324983 | F48: 45 | G48: Paquistão | H48: 12392.2934 | I48: 0.001104707747 | K48: 45 | L48: Turquia | M48: 29730.2176 | N48: 0.001567672108 | O48: -9608.0752
A49: 46 | B49: Líbia, Jamahira Árabe da | C49: 10747.1924 | D49: 0.001387298073 | F49: 46 | G49: Moldava, República de | H49: 12169.9448 | I49: 0.001084886539 | K49: 46 | L49: Arábia Saudita | M49: 29183.7518 | N49: 0.001538857008 | O49: 29109.6434
A50: 47 | B50: Senegal | C50: 10277.8906 | D50: 0.001326718392 | F50: 47 | G50: Rússia, Federação da | H50: 11868.4326 | I50: 0.001058008313 | K50: 47 | L50: Índia | M50: 27213.734 | N50: 0.00143497812 | O50: -20928.5392
A51: 48 | B51: Turquia | C51: 10061.0712 | D51: 0.001298730326 | F51: 48 | G51: Japão | H51: 11815.8554 | I51: 0.001053321333 | K51: 48 | L51: São Tomé e Príncipe | M51: 26143.659 | N51: 0.001378553147 | O51: 23965.993
A52: 49 | B52: Kuwait | C52: 9238.6512 | D52: 0.00119256849 | F52: 49 | G52: Marrocos | H52: 11323.5386 | I52: 0.00100943388 | K52: 49 | L52: Uruguai | M52: 24804.8014 | N52: 0.001307955287 | O52: -20652.5798
A53: 50 | B53: Bulgária | C53: 9029.5828 | D53: 0.001165580959 | F53: 50 | G53: Tailândia | H53: 10221.1584 | I53: 0.0009111624865 | K53: 50 | L53: Letónia | M53: 24571.9238 | N53: 0.001295675669 | O53: -10564.6422
A54: 51 | B54: Eslováquia | C54: 8981.6584 | D54: 0.001159394652 | F54: 51 | G54: Paraguai | H54: 9863.0808 | I54: 0.0008792417527 | K54: 51 | L54: Argélia | M54: 22398.8544 | N54: 0.001181089885 | O54: 18738.716
A55: 52 | B55: Ucrânia | C55: 7962.1146 | D55: 0.00102778715 | F55: 52 | G55: Moçambique | H55: 9819.562 | I55: 0.0008753622806 | K55: 52 | L55: Jordânia | M55: 22013.8634 | N55: 0.001160789339 | O55: 21772.609
A56: 53 | B56: Costa do Marfim | C56: 7576.5416 | D56: 0.0009780155757 | F56: 53 | G56: Angola | H56: 9586.0054 | I56: 0.0008545419388 | K56: 53 | L56: México | M56: 20411.1484 | N56: 0.0010762783 | O56: -7474.8424
A57: 54 | B57: Letónia | C57: 7003.6408 | D57: 0.0009040628496 | F57: 54 | G57: Equador | H57: 9434.7056 | I57: 0.0008410543577 | K57: 54 | L57: Lituânia | M57: 20237.3848 | N57: 0.001067115758 | O57: -8952.4392
A58: 55 | B58: Gibraltar | C58: 6867.0166 | D58: 0.0008864267562 | F58: 55 | G58: Sérvia | H58: 8961.3684 | I58: 0.0007988588371 | K58: 55 | L58: Suazilândia | M58: 19974.7344 | N58: 0.001053266223 | O58: -15842.0408
A59: 56 | B59: Maurícias | C59: 6601.9064 | D59: 0.0008522050864 | F59: 56 | G59: Belize | H59: 8481.6488 | I59: 0.0007560943591 | K59: 56 | L59: Noruega | M59: 19562.9914 | N59: 0.001031555046 | O59: 17204.547
A60: 57 | B60: Colômbia | C60: 6572.1556 | D60: 0.0008483647134 | F60: 57 | G60: Luxemburgo | H60: 8244.4756 | I60: 0.0007349516164 | K60: 57 | L60: Uganda | M60: 18130.6166 | N60: 0.0009560260316 | O60: -16909.8186
A61: 58 | B61: México | C61: 6468.153 | D61: 0.0008349395693 | F61: 58 | G61: Estónia | H61: 8133.3802 | I61: 0.0007250480461 | K61: 58 | L61: Coreia, República da | M61: 18110.515 | N61: 0.0009549660757 | O61: 15472.3194
A62: 59 | B62: Andorra | C62: 5880.33 | D62: 0.0007590606155 | F62: 59 | G62: Finlândia | H62: 8085.5184 | I62: 0.0007207814184 | K62: 59 | L62: Peru | M62: 15536.0606 | N62: 0.0008192152914 | O62: -11566.1642
A63: 60 | B63: Lituânia | C63: 5642.4728 | D63: 0.0007283568909 | F63: 60 | G63: Nova Zelânda | H63: 7373.8184 | I63: 0.0006573371085 | K63: 60 | L63: Egito | M63: 15081.7762 | N63: 0.0007952609096 | O63: -11806.8182
A64: 61 | B64: Malta | C64: 5438.0306 | D64: 0.0007019665315 | F64: 61 | G64: Malásia | H64: 6878.308 | I64: 0.0006131649638 | K64: 61 | L64: Indonésia | M64: 14601.4892 | N64: 0.0007699354127 | O64: -12144.54
A65: 62 | B65: Estónia | C65: 5388.6736 | D65: 0.0006955952981 | F65: 62 | G65: Camarões | H65: 6873.6916 | I65: 0.000612753436 | K65: 62 | L65: Emirados Árabes Unidos | M65: 14301.0792 | N65: 0.0007540948163 | O65: 13244.2508
A66: 63 | B66: HongKong | C66: 4973.9084 | D66: 0.000642055458 | F66: 63 | G66: Eslovénia | H66: 5854.3628 | I66: 0.0005218856373 | K66: 63 | L66: Eslováquia | M66: 14115.3302 | N66: 0.0007443002857 | O66: 3847.9866
A67: 64 | B67: Chile | C67: 4967.4116 | D67: 0.0006412168206 | F67: 64 | G67: Israel | H67: 5332.274 | I67: 0.0004753441681 | K67: 64 | L67: Tailândia | M67: 13545.4648 | N67: 0.0007142513266 | O67: -6896.852
A68: 65 | B68: Chipre | C68: 4599.9132 | D68: 0.000593778401 | F68: 65 | G68: Honduras | H68: 5320.7232 | I68: 0.000474314475 | K68: 65 | L68: Estónia | M68: 13522.0538 | N68: 0.0007130168663 | O68: -2744.7066
A69: 66 | B69: Cuba | C69: 4438.2158 | D69: 0.0005729057412 | F69: 66 | G69: Camboja | H69: 5251.2876 | I69: 0.0004681246567 | K69: 66 | L69: Iraque | M69: 13226 | N69: 0.000697405972 | O69: 13201.472
A70: 67 | B70: Mali | C70: 4408.7876 | D70: 0.0005691070109 | F70: 67 | G70: Zimbabwe | H70: 5172.692 | I70: 0.0004611182725 | K70: 67 | L70: Paquistão | M70: 12653.1142 | N70: 0.0006671977475 | O70: -12131.4726
A71: 68 | B71: Omã | C71: 4251.3822 | D71: 0.0005487883825 | F71: 68 | G71: Eslováquia | H71: 5133.6718 | I71: 0.000457639827 | K71: 68 | L71: Nigéria | M71: 12613.3818 | N71: 0.000665102661 | O71: 12513.3926
A72: 69 | B72: Sérvia | C72: 3643.2286 | D72: 0.0004702850594 | F72: 69 | G72: Etiópia | H72: 4865.161 | I72: 0.0004337035021 | K72: 69 | L72: Sérvia | M72: 12604.597 | N72: 0.0006646394392 | O72: -5318.1398
A73: 70 | B73: Gana | C73: 3561.703 | D73: 0.0004597613521 | F73: 70 | G73: Reino Unido (Irlanda do Norte) pós-2020 | H73: 4852.6168 | I73: 0.0004325852527 | K73: 70 | L73: Moldava, República de | M73: 12435.7646 | N73: 0.0006557369196 | O73: -11904.125
A74: 71 | B74: Síria, República Árabe da | C74: 3557.076 | D74: 0.0004591640772 | F74: 71 | G74: Tanzânia, República Unida da | H74: 4645.6104 | I74: 0.0004141317214 | K74: 71 | L74: Macau | M74: 11470.0196 | N74: 0.0006048132594 | O74: 11433.5704
A75: 72 | B75: Tailândia | C75: 3324.3064 | D75: 0.0004291170839 | F75: 72 | G75: Filipinas | H75: 4316.8954 | I75: 0.0003848285089 | K75: 72 | L75: Território Palestiniano Ocupado | M75: 11138.6664 | N75: 0.0005873410304 | O75: 11115.3268
A76: 73 | B76: Singapura | C76: 3292.5498 | D76: 0.0004250177928 | F76: 73 | G76: Macedónia, Antiga República jugoslava da | H76: 4269.76 | I76: 0.000380626636 | K76: 73 | L76: Kuwait | M76: 10781.5982 | N76: 0.0005685128514 | O76: 7695.7042
A77: 74 | B77: Eslovénia | C77: 3210.1356 | D77: 0.0004143793808 | F77: 74 | G77: Myanmar | H77: 4258.6984 | I77: 0.0003796405526 | K77: 74 | L77: Senegal | M77: 10777.8706 | N77: 0.0005683162953 | O77: 9777.9106
A78: 75 | B78: Índia | C78: 3142.5974 | D78: 0.0004056612327 | F78: 75 | G78: Tunísia | H78: 4096.3914 | I78: 0.0003651717376 | K78: 75 | L78: Líbia, Jamahira Árabe da | M78: 10763.4438 | N78: 0.0005675555713 | O78: 10730.941
A79: 76 | B79: Taiwan | C79: 3027.0112 | D79: 0.0003907408232 | F79: 76 | G79: Quénia | H79: 3999.6272 | I79: 0.0003565457184 | K79: 76 | L79: Paraguai | M79: 10570.8508 | N79: 0.0005574001571 | O79: -9155.3108
A80: 77 | B80: Guiné | C80: 2745.3572 | D80: 0.0003543836019 | F80: 77 | G80: Chipre | H80: 3965.5184 | I80: 0.0003535050983 | K80: 77 | L80: Equador | M80: 10263.4314 | N80: 0.0005411899555 | O80: -8605.9798
A81: 78 | B81: Burquina Faso | C81: 2525.8832 | D81: 0.0003260528672 | F81: 78 | G81: Suriname | H81: 3877.4378 | I81: 0.0003456531763 | K81: 78 | L81: Nova Zelânda | M81: 9856.0686 | N81: 0.0005197097461 | O81: -4891.5682
A82: 79 | B82: Venezuela | C82: 2486.9168 | D82: 0.0003210229012 | F82: 79 | G82: Malavi | H82: 3756.8802 | I82: 0.0003349061007 | K82: 79 | L82: Maurícias | M82: 9426.6558 | N82: 0.0004970668419 | O82: 3777.157
A83: 80 | B83: Nova Zelânda | C83: 2482.2502 | D83: 0.0003204205146 | F83: 80 | G83: Guatemala | H83: 3336.065 | I83: 0.00029739264 | K83: 80 | L83: Eslovénia | M83: 9064.4984 | N83: 0.0004779703098 | O83: -2644.2272
A84: 81 | B84: Timor-Leste | C84: 2425.5014 | D84: 0.000313095113 | F84: 81 | G84: Sri Lanca | H84: 3081.7942 | I84: 0.0002747257362 | K84: 81 | L84: Camarões | M84: 8912.7596 | N84: 0.0004699691345 | O84: -4834.6236
A85: 82 | B85: Filipinas | C85: 2423.494 | D85: 0.0003128359883 | F85: 82 | G85: Nicarágua | H85: 3050.9764 | I85: 0.0002719784915 | K85: 82 | L85: Chipre | M85: 8565.4316 | N85: 0.0004516545555 | O85: 634.3948
A86: 83 | B86: Congo | C86: 2401.0914 | D86: 0.0003099441555 | F86: 83 | G86: Maurícias | H86: 2824.7494 | I86: 0.0002518115449 | K86: 83 | L86: Belize | M86: 8501.158 | N86: 0.0004482654135 | O86: -8462.1396
A87: 84 | B87: Dominicana, República | C87: 2366.1238 | D87: 0.0003054303735 | F87: 84 | G87: Suíça | H87: 2672.027 | I87: 0.0002381971465 | K87: 84 | L87: Malásia | M87: 8478.9536 | N87: 0.0004470945771 | O87: -5277.6624
A88: 85 | B88: Seychelles | C88: 2266.2448 | D88: 0.000292537523 | F88: 85 | G88: Taiwan | H88: 2620.8988 | I88: 0.0002336393366 | K88: 85 | L88: Mali | M88: 6882.4546 | N88: 0.0003629113065 | O88: 1935.1206
A89: 86 | B89: Belarus | C89: 2265.0334 | D89: 0.0002923811498 | F89: 86 | G89: Dominicana, República | H89: 2590.705 | I89: 0.0002309477182 | K89: 86 | L89: Gibraltar | M89: 6867.0382 | N89: 0.0003620984009 | O89: 6866.995
A90: 87 | B90: Benim | C90: 2254.9256 | D90: 0.0002910763875 | F90: 87 | G90: Mali | H90: 2473.667 | I90: 0.0002205143963 | K90: 87 | L90: Filipinas | M90: 6740.3894 | N90: 0.0003554202194 | O90: -1893.4014
A91: 88 | B91: Guiné Equatorial | C91: 2237.2378 | D91: 0.0002887931632 | F91: 88 | G91: Gana | H91: 2244.213 | I91: 0.0002000597796 | K91: 88 | L91: Reino Unido (Irlanda do Norte) pós-2020 | M91: 6619.5794 | N91: 0.0003490499173 | O91: -3085.6542
A92: 89 | B92: Líbano | C92: 2221.1552 | D92: 0.0002867171457 | F92: 89 | G92: Croácia | H92: 2137.0316 | I92: 0.0001905051218 | K92: 89 | L92: HongKong | M92: 6486.8174 | N92: 0.0003420493871 | O92: 3460.9994
A93: 90 | B93: Gabão | C93: 2209.6904 | D93: 0.0002852372154 | F93: 90 | G93: Congo, República Democrática do | H93: 1937.5966 | I93: 0.000172726541 | K93: 90 | L93: Honduras | M93: 6000.5624 | N93: 0.000316409198 | O93: -4640.884
A94: 91 | B94: Croácia | C94: 2104.1144 | D94: 0.0002716089695 | F94: 91 | G94: Benim | H94: 1901.2374 | I94: 0.0001694853097 | K94: 91 | L94: Malta | M94: 5960.075 | N94: 0.0003142743005 | O94: 4915.9862
A95: 92 | B95: Vietname | C95: 2098.1584 | D95: 0.000270840141 | F95: 92 | G95: Serra Leoa | H95: 1900.5094 | I95: 0.0001694204123 | K95: 92 | L95: Andorra | M95: 5897.0704 | N95: 0.0003109520728 | O95: 5863.5896
A96: 93 | B96: Uruguai | C96: 2076.1108 | D96: 0.0002679941333 | F96: 93 | G96: Argélia | H96: 1830.0692 | I96: 0.0001631410391 | K96: 93 | L96: Gana | M96: 5805.916 | N96: 0.0003061455082 | O96: 1317.49
A97: 94 | B97: Suazilândia | C97: 2066.3468 | D97: 0.0002667337503 | F97: 94 | G97: Laos, República Democrática Popular do | H97: 1764.7672 | I97: 0.0001573197095 | K97: 94 | L97: Camboja | M97: 5661.8046 | N97: 0.0002985465251 | O97: -4840.7706
A98: 95 | B98: Camarões | C98: 2039.068 | D98: 0.0002632124747 | F98: 95 | G98: Burquina Faso | H98: 1596.6714 | I98: 0.0001423348534 | K98: 95 | L98: Taiwan | M98: 5647.91 | N98: 0.0002978138639 | O98: 406.1124
A99: 96 | B99: Peru | C99: 1984.9482 | D99: 0.0002562264367 | F99: 96 | G99: Kuwait | H99: 1542.947 | I99: 0.0001375456059 | K99: 96 | L99: Etiópia | M99: 5274.7014 | N99: 0.0002781346028 | O99: -4455.6206
A100: 97 | B100: Catar | C100: 1923.0908 | D100: 0.000248241593 | F100: 97 | G100: HongKong | H100: 1512.909 | I100: 0.0001348678762 | K100: 97 | L100: Zimbabwe | M100: 5238.022 | N100: 0.0002762005009 | O100: -5107.362
A101: 98 | B101: Irão, República Islâmica do | C101: 1920.529 | D101: 0.0002479109038 | F101: 98 | G101: Panamá | H101: 1505.4946 | I101: 0.0001342069215 | K101: 98 | L101: Tunísia | M101: 5011.6662 | N101: 0.0002642647768 | O101: -3181.1166
A102: 99 | B102: Geórgia | C102: 1916.3824 | D102: 0.0002473756412 | F102: 99 | G102: Madagáscar | H102: 1471.794 | I102: 0.0001312026904 | K102: 99 | L102: Tanzânia, República Unida da | M102: 4986.1414 | N102: 0.000262918856 | O102: -4305.0794
A103: 100 | B103: Reino Unido (Irlanda do Norte) pós-2020 | C103: 1766.9626 | D103: 0.0002280878316 | F103: 100 | G103: Coreia, República da | H103: 1319.0978 | I103: 0.0001175906276 | K103: 100 | L103: Dominicana, República | M103: 4956.8288 | N103: 0.0002613732049 | O103: -224.5812
A104: 101 | B104: Egito | C104: 1637.479 | D104: 0.0002113734803 | F104: 101 | G104: Singapura | H104: 1313.0876 | I104: 0.0001170548499 | K104: 101 | L104: Omã | M104: 4826.1814 | N104: 0.0002544841774 | O104: 3676.583
A105: 102 | B105: Malásia | C105: 1600.6456 | D105: 0.0002066188521 | F105: 102 | G105: Noruega | H105: 1179.2222 | I105: 0.0001051214539 | K105: 102 | L105: Singapura | M105: 4605.6374 | N105: 0.0002428549091 | O105: 1979.4622
A106: 103 | B106: Bangladesh | C106: 1592.1082 | D106: 0.0002055168044 | F106: 103 | G106: São Tomé e Príncipe | H106: 1088.833 | I106: 9.706373239e-05 | K106: 103 | L106: Myanmar | M106: 4593.3818 | N106: 0.0002422086722 | O106: -3924.015
A107: 104 | B107: Congo, República Democrática do | C107: 1487.5888 | D107: 0.0001920249493 | F107: 104 | G107: Timor-Leste | H107: 773.0574 | I107: 6.891399929e-05 | K107: 104 | L107: Macedónia, Antiga República jugoslava da | M107: 4569.63 | N107: 0.0002409562416 | O107: -3969.89
A108: 105 | B108: Costa Rica | C108: 1312.2124 | D108: 0.0001693865399 | F108: 105 | G108: El Salvador | H108: 699.8376 | I108: 6.238683941e-05 | K108: 105 | L108: Quénia | M108: 4449.3114 | N108: 0.000234611851 | O108: -3549.943
A109: 106 | B109: Sudão | C109: 1307.024 | D109: 0.0001687167968 | F109: 106 | G109: Turquemenistão | H109: 693.7048 | I109: 6.184013257e-05 | K109: 106 | L109: Croácia | M109: 4241.146 | N109: 0.0002236353054 | O109: -32.9172
A110: 107 | B110: Togo | C110: 1248.9136 | D110: 0.0001612156335 | F110: 107 | G110: Cazaquistão | H110: 686.1514 | I110: 6.11667867e-05 | K110: 107 | L110: Benim | M110: 4156.163 | N110: 0.0002191541582 | O110: 353.6882
A111: 108 | B111: Indonésia | C111: 1228.4746 | D111: 0.0001585772713 | F111: 108 | G111: Omã | H111: 574.7992 | I111: 5.124032402e-05 | K111: 108 | L111: Burquina Faso | M111: 4122.5546 | N111: 0.0002173819899 | O111: 929.2118
A112: 109 | B112: Islândia | C112: 1198.9784 | D112: 0.0001547697633 | F112: 109 | G112: Geórgia | H112: 547.4606 | I112: 4.880323169e-05 | K112: 109 | L112: Suriname | M112: 4115.4388 | N112: 0.0002170067743 | O112: -3639.4368
A113: 110 | B113: Panamá | C113: 1014.5438 | D113: 0.0001309620789 | F113: 110 | G113: Emirados Árabes Unidos | H113: 528.4142 | I113: 4.710534535e-05 | K113: 110 | L113: Guatemala | M113: 3875.6304 | N113: 0.0002043616956 | O113: -2796.4996
A114: 111 | B114: Tunísia | C114: 915.2748 | D114: 0.0001181479701 | F114: 111 | G114: Malta | H114: 522.0444 | I114: 4.65375112e-05 | K114: 111 | L114: Malavi | M114: 3763.5146 | N114: 0.000198449838 | O114: -3750.2458
A115: 112 | B115: Equador | C115: 828.7258 | D115: 0.0001069758187 | F115: 112 | G115: Senegal | H115: 499.98 | I115: 4.457058605e-05 | K115: 112 | L115: Síria, República Árabe da | M115: 3703.4868 | N115: 0.0001952845767 | O115: 3410.6652
A116: 113 | B116: Bermudas | C116: 818.2718 | D116: 0.0001056263673 | F116: 113 | G116: Usbequistão | H116: 380.3558 | I116: 3.390671809e-05 | K116: 113 | L116: Sri Lanca | M116: 3487.0654 | N116: 0.0001838726928 | O116: -2676.523
A117: 114 | B117: Kosovo | C117: 799.843 | D117: 0.0001032474912 | F117: 114 | G117: Líbano | H117: 342.8862 | I117: 3.056650042e-05 | K117: 114 | L117: Nicarágua | M117: 3449.8386 | N117: 0.0001819097265 | O117: -2652.1142
A118: 115 | B118: Paraguai | C118: 707.77 | D118: 9.13622759e-05 | F118: 115 | G118: Chade | H118: 303.1764 | I118: 2.702658071e-05 | K118: 115 | L118: Congo, República Democrática do | M118: 3425.1854 | N118: 0.0001806097651 | O118: -450.0078
A119: 116 | B119: Honduras | C119: 679.8392 | D119: 8.775683705e-05 | F119: 116 | G119: Bangladesh | H119: 298.8156 | I119: 2.663783834e-05 | K119: 116 | L119: Timor-Leste | M119: 3198.5588 | N119: 0.0001686597618 | O119: 1652.444
A120: 117 | B120: Aruba | C120: 651.3298 | D120: 8.407670979e-05 | F120: 117 | G120: Bolívia | H120: 296.509 | I120: 2.643221709e-05 | K120: 117 | L120: Guiné | M120: 3020.6542 | N120: 0.0001592788658 | O120: 2470.0602
A121: 118 | B121: Mauritânia | C121: 615.705 | D121: 7.947809328e-05 | F121: 118 | G121: Venezuela | H121: 285.0498 | I121: 2.541068971e-05 | K121: 118 | L121: Venezuela | M121: 2771.9666 | N121: 0.0001461655876 | O121: 2201.867
A122: 119 | B122: Uganda | C122: 610.399 | D122: 7.879316988e-05 | F122: 119 | G122: Guiné | H122: 275.297 | I122: 2.454127891e-05 | K122: 119 | L122: Congo | M122: 2655.1662 | N122: 0.0001400067114 | O122: 2147.0166
A123: 120 | B123: Namíbia | C123: 600.2532 | D123: 7.748350236e-05 | F123: 120 | G123: Guiné-Bissau | H123: 270.838 | I123: 2.414378252e-05 | K123: 120 | L123: Líbano | M123: 2564.0414 | N123: 0.0001352017076 | O123: 1878.269
A124: 121 | B124: Cazaquistão | C124: 584.6762 | D124: 7.547275004e-05 | F124: 121 | G124: Congo | H124: 254.0748 | I124: 2.264943145e-05 | K124: 121 | L124: Panamá | M124: 2520.0384 | N124: 0.0001328814328 | O124: -490.9508
A125: 122 | B125: Albânia | C125: 582.0574 | D125: 7.513470304e-05 | F125: 122 | G125: Belarus | H125: 241.8304 | I125: 2.155790762e-05 | K125: 122 | L125: Belarus | M125: 2506.8638 | N125: 0.0001321867371 | O125: 2023.203
A126: 123 | B126: Ruanda | C126: 580.43 | D126: 7.49246306e-05 | F126: 123 | G126: Togo | H126: 238.6312 | I126: 2.127271578e-05 | K126: 123 | L126: Geórgia | M126: 2463.843 | N126: 0.0001299182536 | O126: 1368.9218
A127: 124 | B127: Azerbaijão | C127: 564.159 | D127: 7.28242935e-05 | F127: 124 | G127: Irão, República Islâmica do | H127: 186.7426 | I127: 1.664712013e-05 | K127: 124 | L127: Serra Leoa | M127: 2326.8524 | N127: 0.0001226947497 | O127: -1474.1664
A128: 125 | B128: São Bartolomeu | C128: 548.5216 | D128: 7.080574446e-05 | F128: 125 | G128: Zâmbia | H128: 183.9494 | I128: 1.639812105e-05 | K128: 125 | L128: Seychelles | M128: 2267.3882 | N128: 0.000119559207 | O128: 2265.1014
A129: 126 | B129: Guatemala | C129: 539.5654 | D129: 6.96496361e-05 | F129: 126 | G129: Islândia | H129: 183.9414 | I129: 1.639740789e-05 | K129: 126 | L129: Guiné Equatorial | M129: 2237.2378 | N129: 0.0001179693787 | O129: 2237.2378
A130: 127 | B130: Arménia | C130: 525.5354 | D130: 6.78385778e-05 | F130: 127 | G130: Síria, República Árabe da | H130: 146.4108 | I130: 1.305175239e-05 | K130: 127 | L130: Gabão | M130: 2210.0274 | N130: 0.0001165345764 | O130: 2209.3534
A131: 128 | B131: Barém | C131: 502.4658 | D131: 6.486064548e-05 | F131: 128 | G131: Cabo Verde | H131: 145.1786 | I131: 1.294190824e-05 | K131: 128 | L131: Irão, República Islâmica do | M131: 2107.2716 | N131: 0.0001111162709 | O131: 1733.7864
A132: 129 | B132: Bolívia | C132: 494.4554 | D132: 6.382662542e-05 | F132: 129 | G132: Azerbaijão | H132: 124.8964 | I132: 1.113385684e-05 | K132: 129 | L132: Catar | M132: 1939.3412 | N132: 0.0001022613137 | O132: 1906.8404
A133: 130 | B133: Burundi | C133: 484.978 | D133: 6.260323811e-05 | F133: 130 | G133: Jordânia | H133: 120.6272 | I133: 1.075328013e-05 | K133: 130 | L133: Bangladesh | M133: 1890.9238 | N133: 9.970826787e-05 | O133: 1293.2926
A134: 131 | B134: Quénia | C134: 449.6842 | D134: 5.804734864e-05 | F134: 131 | G134: Albânia | H134: 120.2784 | I134: 1.072218644e-05 | K134: 131 | L134: Laos, República Democrática Popular do | M134: 1777.8864 | N134: 9.374781438e-05 | O134: -1751.648
A135: 132 | B135: Gâmbia | C135: 434.028 | D135: 5.602637281e-05 | F135: 132 | G135: Iémen | H135: 84.6154 | I135: 7.543017654e-06 | K135: 132 | L135: Madagáscar | M135: 1602.4536 | N135: 8.44972562e-05 | O135: -1341.1344
A136: 133 | B136: Serra Leoa | C136: 426.343 | D136: 5.503435691e-05 | F136: 133 | G136: Kosovo | H136: 79.8322 | I136: 7.116620544e-06 | K136: 133 | L136: Togo | M136: 1487.5448 | N136: 7.843812394e-05 | O136: 1010.2824
A137: 134 | B137: Camboja | C137: 410.517 | D137: 5.29914625e-05 | F137: 134 | G137: Tajiquistão | H137: 74.7168 | I137: 6.660609552e-06 | K137: 134 | L137: Islândia | M137: 1382.9198 | N137: 7.292125566e-05 | O137: 1015.037
A138: 135 | B138: Etiópia | C138: 409.5404 | D138: 5.286539839e-05 | F138: 135 | G138: Namíbia | H138: 64.9894 | I138: 5.793463028e-06 | K138: 135 | L138: Sudão | M138: 1318.1622 | N138: 6.950659235e-05 | O138: 1295.8858
A139: 136 | B139: Sri Lanca | C139: 405.2712 | D139: 5.231431e-05 | F139: 136 | G139: Libéria | H139: 54.4472 | I139: 4.853681373e-06 | K139: 136 | L139: Cazaquistão | M139: 1270.8276 | N139: 6.70106425e-05 | O139: -101.4752
A140: 137 | B140: Antígua e Barbuda | C140: 403.3246 | D140: 5.206303373e-05 | F140: 137 | G140: Nigéria | H140: 49.9946 | I140: 4.456755513e-06 | K140: 137 | L140: El Salvador | M140: 1081.0474 | N140: 5.700354701e-05 | O140: -318.6278
A141: 138 | B141: Nicarágua | C141: 398.8622 | D141: 5.148700618e-05 | F141: 138 | G141: Aruba | H141: 45.6144 | I141: 4.066283732e-06 | K141: 138 | L141: Kosovo | M141: 879.6752 | N141: 4.638520626e-05 | O141: 720.0108
A142: 139 | B142: El Salvador | C142: 381.2098 | D142: 4.920835147e-05 | F142: 139 | G142: Bósnia-Herzegovina | H142: 42.5574 | I142: 3.793768268e-06 | K142: 139 | L142: Bermudas | M142: 818.9736 | N142: 4.318441551e-05 | O142: 817.57
A143: 140 | B143: São Martinho (parte holandesa) | C143: 373.2376 | D143: 4.817926245e-05 | F143: 140 | G143: Curaçau | H143: 39.2148 | I143: 3.495793067e-06 | K143: 140 | L143: Bolívia | M143: 790.9644 | N143: 4.170749253e-05 | O143: 197.9464
A144: 141 | B144: Iémen | C144: 360.3172 | D144: 4.651143654e-05 | F144: 141 | G144: Arménia | H144: 37.5752 | I144: 3.349631355e-06 | K144: 141 | L144: Albânia | M144: 702.3358 | N144: 3.703411321e-05 | O144: 461.779
A145: 142 | B145: Tanzânia, República Unida da | C145: 340.531 | D145: 4.395734091e-05 | F145: 142 | G145: Arábia Saudita | H145: 37.0542 | I145: 3.303186947e-06 | K145: 142 | L145: Turquemenistão | M145: 700.9924 | N145: 3.696327583e-05 | O145: -686.4172
A146: 143 | B146: Myanmar | C146: 334.6834 | D146: 4.320250523e-05 | F146: 143 | G146: Botswana | H146: 30.037 | I146: 2.677640492e-06 | K146: 143 | L146: Aruba | M146: 696.9442 | N146: 3.674981455e-05 | O146: 605.7154
A147: 144 | B147: Comores | C147: 333.8038 | D147: 4.308896233e-05 | F147: 144 | G147: Ruanda | H147: 26.8278 | I147: 2.391557199e-06 | K147: 144 | L147: Azerbaijão | M147: 689.0554 | N147: 3.633383873e-05 | O147: 439.2626
A148: 145 | B148: Argentina | C148: 316.4082 | D148: 4.084345658e-05 | F148: 145 | G148: São Marino | H148: 25.2246 | I148: 2.248640355e-06 | K148: 145 | L148: Namíbia | M148: 665.2426 | N148: 3.50781916e-05 | O148: 535.2638
A149: 146 | B149: Jamaica | C149: 302.5728 | D149: 3.905751817e-05 | F149: 146 | G149: Macau | H149: 18.2246 | I149: 1.62462719e-06 | K149: 146 | L149: Mauritânia | M149: 617.715 | N149: 3.257206487e-05 | O149: 613.695
A150: 147 | B150: Libéria | C150: 301.9358 | D150: 3.897529121e-05 | F150: 147 | G150: Quirguizistão | H150: 17.5046 | I150: 1.560442979e-06 | K150: 147 | L150: Ruanda | M150: 607.2578 | N150: 3.202065751e-05 | O150: 553.6022
A151: 148 | B151: Macedónia, Antiga República jugoslava da | C151: 299.87 | D151: 3.870862805e-05 | F151: 148 | G151: Andorra | H151: 16.7404 | I151: 1.49231857e-06 | K151: 148 | L151: Arménia | M151: 563.1106 | N151: 2.969277902e-05 | O151: 487.9602
A152: 149 | B152: Somália | C152: 292.8384 | D152: 3.780095609e-05 | F152: 149 | G152: Líbia, Jamahira Árabe da | H152: 16.2514 | I152: 1.448726793e-06 | K152: 149 | L152: São Bartolomeu | M152: 548.8046 | N152: 2.893842473e-05 | O152: 548.2386
A153: 150 | B153: Moldava, República de | C153: 265.8198 | D153: 3.43132683e-05 | F153: 150 | G153: Catar | H153: 16.2504 | I153: 1.448637649e-06 | K153: 150 | L153: Barém | M153: 506.7884 | N153: 2.672291371e-05 | O153: 498.1432
A154: 151 | B154: Paquistão | C154: 260.8208 | D154: 3.36679739e-05 | F154: 151 | G154: Jamaica | H154: 14.6512 | I154: 1.306077384e-06 | K154: 151 | L154: Burundi | M154: 485.092 | N154: 2.557886419e-05 | O154: 484.864
A155: 152 | B155: Curaçau | C155: 251.4226 | D155: 3.245481011e-05 | F155: 152 | G155: São Cristovão e Nevis | H155: 12.4064 | I155: 1.105965276e-06 | K155: 152 | L155: Iémen | M155: 444.9326 | N155: 2.346126209e-05 | O155: 275.7018
A156: 153 | B156: Suriname | C156: 238.001 | D156: 3.072228694e-05 | F156: 153 | G156: Iraque | H156: 12.264 | I156: 1.093271065e-06 | K156: 153 | L156: Gâmbia | M156: 434.067 | N156: 2.288831983e-05 | O156: 433.989
A157: 154 | B157: Nova Caledónia | C157: 206.2626 | D157: 2.662534519e-05 | F157: 154 | G157: Território Palestiniano Ocupado | H157: 11.6698 | I157: 1.040301262e-06 | K157: 154 | L157: Usbequistão | M157: 421.6984 | N157: 2.223612449e-05 | O157: -339.0132
A158: 155 | B158: Trindade e Tobago | C158: 189.8074 | D158: 2.450123069e-05 | F158: 155 | G158: Sudão | H158: 11.1382 | I158: 9.929119195e-07 | K158: 155 | L158: Antígua e Barbuda | M158: 403.7924 | N158: 2.129194248e-05 | O158: 402.8568
A159: 156 | B159: Haiti | C159: 187.225 | D159: 2.416788237e-05 | F159: 156 | G159: Barém | H159: 4.3226 | I159: 3.85337044e-07 | K159: 156 | L159: São Martinho (parte holandesa) | M159: 373.2376 | N159: 1.96807902e-05 | O159: 373.2376
A160: 157 | B160: Zâmbia | C160: 152.2624 | D160: 1.965474575e-05 | F160: 157 | G160: Nepal | H160: 2.6584 | I160: 2.369823712e-07 | K160: 157 | L160: Libéria | M160: 356.383 | N160: 1.879204843e-05 | O160: 247.4886
A161: 158 | B161: Maldivas | C161: 137.7162 | D161: 1.777705393e-05 | F161: 158 | G161: Fiji, Ilhas | H161: 2.251 | I161: 2.00664805e-07 | K161: 158 | L161: Zâmbia | M161: 336.2118 | N161: 1.772842259e-05 | O161: -31.687
A162: 159 | B162: Liechtenstein | C162: 135.8048 | D162: 1.753032144e-05 | F162: 159 | G162: Mauritânia | H162: 2.01 | I162: 1.791809232e-07 | K162: 159 | L162: Comores | M162: 333.8038 | N162: 1.760144893e-05 | O162: 333.8038
A163: 160 | B163: Polinésia Francesa | C163: 133.9344 | D163: 1.728888142e-05 | F163: 160 | G163: Liechtenstein | H163: 1.7982 | I163: 1.603000677e-07 | K163: 160 | L163: Jamaica | M163: 317.224 | N163: 1.672719734e-05 | O163: 287.9216
A164: 161 | B164: Madagáscar | C164: 130.6596 | D164: 1.686615486e-05 | F164: 161 | G164: Lesoto | H164: 1.7136 | I164: 1.527584228e-07 | K164: 161 | L164: Chade | M164: 303.1804 | N164: 1.598667939e-05 | O164: -303.1724
A165: 162 | B165: Niger | C165: 126.732 | D165: 1.63591618e-05 | F165: 162 | G165: Seychelles | H165: 1.1434 | I165: 1.019280933e-07 | K165: 162 | L165: Somália | M165: 292.8384 | N165: 1.544134651e-05 | O165: 292.8384
A166: 163 | B166: Bósnia-Herzegovina | C166: 90.5322 | D166: 1.168632159e-05 | F166: 163 | G166: Bermudas | H166: 0.7018 | I166: 6.256177705e-08 | K166: 163 | L166: Curaçau | M166: 290.6374 | N166: 1.532528795e-05 | O166: 212.2078
A167: 164 | B167: Centro-Africana, República | C167: 89.9082 | D167: 1.160577274e-05 | F167: 164 | G167: Afeganistão | H167: 0.5848 | I167: 5.213184272e-08 | K167: 164 | L167: Nova Caledónia | M167: 206.2906 | N167: 1.087768762e-05 | O167: 206.2346
A168: 165 | B168: Nepal | C168: 87.8934 | D168: 1.13456929e-05 | F168: 165 | G168: Antígua e Barbuda | H168: 0.4678 | I168: 4.170190838e-08 | K168: 165 | L168: Trindade e Tobago | M168: 189.8764 | N168: 1.00121681e-05 | O168: 189.7384
A169: 166 | B169: Jibuti | C169: 70.7204 | D169: 9.128921396e-06 | F169: 166 | G169: Gabão | H169: 0.337 | I169: 3.004177667e-08 | K169: 166 | L169: Haiti | M169: 187.2274 | N169: 9.872486533e-06 | O169: 187.2226
A170: 167 | B170: Zimbabwe | C170: 65.33 | D170: 8.433103246e-06 | F170: 167 | G170: São Bartolomeu | H170: 0.283 | I170: 2.522796082e-08 | K170: 167 | L170: Maldivas | M170: 137.7198 | N170: 7.261954558e-06 | O170: 137.7126
A171: 168 | B171: Montenegro | C171: 54.6326 | D171: 7.05223261e-06 | F171: 168 | G171: Barbados | H171: 0.1636 | I171: 1.458407912e-08 | K171: 168 | L171: Liechtenstein | M171: 137.603 | N171: 7.255795703e-06 | O171: 134.0066
A172: 169 | B172: Caimão, Ilhas | C172: 53.1296 | D172: 6.85821831e-06 | F172: 169 | G172: Oceano Indico, Território Britânico do | H172: 0.1384 | I172: 1.233763172e-08 | K172: 169 | L172: Polinésia Francesa | M172: 133.9626 | N172: 7.063837689e-06 | O172: 133.9062
A173: 170 | B173: Ceuta e Melilha | C173: 51.6648 | D173: 6.669135046e-06 | F173: 170 | G173: Niger | H173: 0.1252 | I173: 1.116092118e-08 | K173: 170 | L173: Bósnia-Herzegovina | M173: 133.0896 | N173: 7.017804465e-06 | O173: 47.9748
A174: 171 | B174: Bahamas | C174: 43.9552 | D174: 5.673943668e-06 | F174: 171 | G174: Burundi | H174: 0.114 | I174: 1.016250012e-08 | K174: 171 | L174: Niger | M174: 126.8572 | N174: 6.689170488e-06 | O174: 126.6068
A175: 172 | B175: Usbequistão | C175: 41.3426 | D175: 5.336696988e-06 | F175: 172 | G175: Trindade e Tobago | H175: 0.069 | I175: 6.150986914e-09 | K175: 172 | L175: Nepal | M175: 90.5518 | N175: 4.774789513e-06 | O175: 85.235
A176: 173 | B176: Virgens dos Estados Unidos, Ilhas | C176: 26.0742 | D176: 3.365780203e-06 | F176: 173 | G176: Gâmbia | H176: 0.039 | I176: 3.476644778e-09 | K176: 173 | L176: Centro-Africana, República | M176: 89.9082 | N176: 4.740852534e-06 | O176: 89.9082
A177: 174 | B177: Turcas e Caicos, Ilhas | C177: 25.0024 | D177: 3.227427225e-06 | F177: 174 | G177: Polinésia Francesa | H177: 0.0282 | I177: 2.513881608e-09 | K177: 174 | L177: Tajiquistão | M177: 74.7168 | N177: 3.93981117e-06 | O177: -74.7168
A178: 175 | B178: Quirguizistão | C178: 23.7908 | D178: 3.071028206e-06 | F178: 175 | G178: Nova Caledónia | H178: 0.028 | I178: 2.496052661e-09 | K178: 175 | L178: Jibuti | M178: 70.7204 | N178: 3.729081302e-06 | O178: 70.7204
A179: 176 | B179: Guiana | C179: 20.1352 | D179: 2.599146188e-06 | F179: 176 | G179: Papuásia-Nova Guiné | H179: 0.0222 | I179: 1.979013181e-09 | K179: 176 | L179: Montenegro | M179: 54.634 | N179: 2.880846656e-06 | O179: 54.6312
A180: 177 | B180: Belize | C180: 19.5092 | D180: 2.518339168e-06 | F180: 177 | G180: Gibraltar | H180: 0.0216 | I180: 1.925526338e-09 | K180: 177 | L180: Caimão, Ilhas | M180: 53.1304 | N180: 2.801561943e-06 | O180: 53.1288
A181: 178 | B181: Mongólia | C181: 19.1206 | D181: 2.468176855e-06 | F181: 178 | G181: São Vicente e Granadinas | H181: 0.0144 | I181: 1.283684226e-09 | K181: 178 | L181: Ceuta e Melilha | M181: 51.6648 | N181: 2.724280967e-06 | O181: 51.6648
A182: 179 | B182: Afeganistão | C182: 18.9718 | D182: 2.448969052e-06 | F182: 179 | G182: Mongólia | H182: 0.0112 | I182: 9.984210643e-10 | K182: 179 | L182: Bahamas | M182: 43.9552 | N182: 2.317754346e-06 | O182: 43.9552
A183: 180 | B183: Barbados | C183: 15.4724 | D183: 1.997250064e-06 | F183: 180 | G183: Santa Lúcia | H183: 0.009 | I183: 8.02302641e-10 | K183: 180 | L183: Quirguizistão | M183: 41.2954 | N183: 2.177503295e-06 | O183: 6.2862
A184: 181 | B184: Virgens Britânicas, Ilhas | C184: 13.47 | D184: 1.738770867e-06 | F184: 181 | G184: Virgens Britânicas, Ilhas | H184: 0.007 | I184: 6.240131652e-10 | K184: 181 | L184: Botswana | M184: 30.0886 | N184: 1.586569585e-06 | O184: -29.9854
A185: 182 | B185: Laos, República Democrática Popular do | C185: 13.1192 | D185: 1.693487955e-06 | F185: 182 | G185: Maldivas | H185: 0.0036 | I185: 3.209210564e-10 | K185: 182 | L185: Virgens dos Estados Unidos, Ilhas | M185: 26.0742 | N185: 1.374890579e-06 | O185: 26.0742
A186: 183 | B186: Brunei Darussalam | C186: 12.819 | D186: 1.654736729e-06 | F186: 183 | G186: Faroé, Ilhas | H186: 0.0026 | I186: 2.317763185e-10 | K186: 183 | L186: São Marino | M186: 25.2486 | N186: 1.331356754e-06 | O186: -25.2006
A187: 184 | B187: Fiji, Ilhas | C187: 11.4226 | D187: 1.474482858e-06 | F187: 184 | G187: Haiti | H187: 0.0024 | I187: 2.139473709e-10 | K187: 184 | L187: Turcas e Caicos, Ilhas | M187: 25.0024 | N187: 1.318374647e-06 | O187: 25.0024
A188: 185 | B188: Turquemenistão | C188: 7.2876 | D188: 9.407176369e-07 | F188: 185 | G188: Montenegro | H188: 0.0014 | I188: 1.24802633e-10 | K188: 185 | L188: Afeganistão | M188: 19.5566 | N188: 1.031218028e-06 | O188: 18.387
A189: 186 | B189: Santa Lúcia | C189: 7.138 | D189: 9.214065662e-07 | F189: 186 | G189: Caimão, Ilhas | H189: 0.0008 | I189: 7.131579031e-11 | K189: 186 | L189: Mongólia | M189: 19.1318 | N189: 1.008818356e-06 | O189: 19.1094
A190: 187 | B190: Malavi | C190: 6.6344 | D190: 8.563995129e-07 | F190: 187 | G190: Anguila | H190: 0 | I190: 0 | K190: 187 | L190: Barbados | M190: 15.636 | N190: 8.244850884e-07 | O190: 15.3088
A191: 188 | B191: Bonaire, Santo Eustáquio e Saba | C191: 6.6316 | D191: 8.560380757e-07 | F191: 188 | G191: Antárctica | H191: 0 | I191: 0 | K191: 188 | L191: Fiji, Ilhas | M191: 13.6736 | N191: 7.210078859e-07 | O191: 9.1716
A192: 189 | B192: Guam | C192: 6.3336 | D192: 8.17570836e-07 | F192: 189 | G192: Antilhas Holandesas | H192: 0 | I192: 0 | K192: 189 | L192: Virgens Britânicas, Ilhas | M192: 13.477 | N192: 7.106411829e-07 | O192: 13.463
A193: 190 | B193: São Vicente e Granadinas | C193: 4.3128 | D193: 5.567164806e-07 | F193: 190 | G193: Bahamas | H193: 0 | I193: 0 | K193: 190 | L193: São Cristovão e Nevis | M193: 13.1558 | N193: 6.937043314e-07 | O193: -11.657
A194: 191 | B194: Sudão do Sul | C194: 3.771 | D194: 4.867783919e-07 | F194: 191 | G194: Bonaire, Santo Eustáquio e Saba | H194: 0 | I194: 0 | K194: 191 | L194: Brunei Darussalam | M194: 12.819 | N194: 6.759448931e-07 | O194: 12.819
A195: 192 | B195: Marianas do Norte, Ilhas | C195: 2.9244 | D195: 3.774952875e-07 | F195: 192 | G195: Bouvet, Ilha | H195: 0 | I195: 0 | K195: 192 | L195: Santa Lúcia | M195: 7.147 | N195: 3.768607653e-07 | O195: 7.129
A196: 193 | B196: Papuásia-Nova Guiné | C196: 2.8856 | D196: 3.724868013e-07 | F196: 193 | G196: Brunei Darussalam | H196: 0 | I196: 0 | K196: 193 | L196: Bonaire, Santo Eustáquio e Saba | M196: 6.6316 | N196: 3.496837626e-07 | O196: 6.6316
A197: 194 | B197: Anguila | C197: 2.7816 | D197: 3.590619928e-07 | F197: 194 | G197: Butão | H197: 0 | I197: 0 | K197: 194 | L197: Guam | M197: 6.3336 | N197: 3.339702453e-07 | O197: 6.3336
A198: 195 | B198: Domínica | C198: 1.4248 | D198: 1.839198761e-07 | F198: 195 | G198: Centro-Africana, República | H198: 0 | I198: 0 | K198: 195 | L198: São Vicente e Granadinas | M198: 4.3272 | N198: 2.281729262e-07 | O198: 4.2984
A199: 196 | B199: São Cristovão e Nevis | C199: 0.7494 | D199: 9.673607183e-08 | F199: 196 | G199: Ceuta | H199: 0 | I199: 0 | K199: 196 | L199: Sudão do Sul | M199: 3.771 | N199: 1.988445426e-07 | O199: 3.771
A200: 197 | B200: Granada | C200: 0.6942 | D200: 8.961059656e-08 | F200: 197 | G200: Ceuta e Melilha | H200: 0 | I200: 0 | K200: 197 | L200: Marianas do Norte, Ilhas | M200: 2.9244 | N200: 1.542033891e-07 | O200: 2.9244
... 58 more rows

Sheet 2A
A1: Parceiros comerciais de Portugal - União Europeia vs. Países Terceiros (média 2019-2023 em milhões de euros) produtos agrícolas e agroalimentares, do mar e da floresta
A2: Exportações | F2: Importações | K2: Trocas comerciais (total e saldo)
A3: P | B3: Grupo de Países | C3: média quinquénio | D3: % do Total | F3: P | G3: Grupo de Países | H3: média quinquénio | I3: % do Total | K3: P | L3: Grupo de Países | M3: média quinquénio | N3: % do Total | O3: Saldo (exp-imp)
A4: 1 | B4: União Europeia | C4: 9407.139979 | D4: 0.6779438817 | F4: 1 | G4: União Europeia | H4: 12705.30685 | I4: 0.7854366173 | K4: 1 | L4: União Europeia | M4: 22112.44683 | N4: 0.7358038778 | O4: -3298.166875
A5: 2 | B5: Países Terceiros | C5: 4469.1217 | D5: 0.3220759678 | F5: 2 | G5: Países Terceiros | H5: 3470.800262 | I5: 0.2145633827 | K5: 2 | L5: Países Terceiros | M5: 7939.921962 | N5: 0.2642052873 | O5: 998.3214384
B6: Outros | C6: -0.2754318 | D6: -1.984952962e-05 | G6: Outros | H6: 0 | I6: 0 | L6: Outros | M6: -0.2754318 | N6: -9.165145225e-06 | O6: -0.2754318
B7: Total | C7: 13875.98625 | D7: 1 | G7: Total | H7: 16176.10712 | I7: 1 | L7: Total | M7: 30052.09336 | N7: 1 | O7: -2300.120868
F27: valores em milhões de euros
A28: Nota: Outros = Países não determinados, abastecimentos de bordo, etc.
A29: Fonte: GPP a partir de dados INE/Comércio Internacional (2022 provisórios) | M29: 2024-03-04

Sheet 3
A1: Principais produtos agrícolas e agroalimentares, do mar e da floresta transacionados entre Portugal e Áustria em 2019-2023 (NC a 2 e 4 dígitos) em milhões de euros
AC4: P | AE4: Cód.NC | AF4: Descritivo | AG4: Média export quinquénio | AH4: % do total | AI4: % acumulada | AN4: P | AO4: NC | AP4: Exportações | AQ4: 2019 | AR4: 2020 | AS4: 2021 | AT4: 2022 | AU4: 2023 | AV4: média quinquénio
AC5: 1 | AD5: º | AE5: 45 | AF5: Cortiça e suas obras | AG5: 10.0365782 | AH5: 0.2377037641 | AN5: 1º | AO5: 45 | AP5: Cortiça e suas obras | AQ5: 8.018189 | AR5: 7.86367 | AS5: 9.333487 | AT5: 10.517014 | AU5: 14.450531 | AV5: 10.0365782
AC6: 2 | AD6: º | AE6: 16p | AF6: Preparações e conservas de peixes ou crustáceos (NC 1604-05) (p) | AG6: 6.943692 | AH6: 0.1644526343 | AN6: 2º | AO6: 16p | AP6: Preparações e conservas de peixes ou crustáceos (NC 1604-05) (p) | AQ6: 4.965132 | AR6: 5.206308 | AS6: 6.208306 | AT6: 9.396324 | AU6: 8.94239 | AV6: 6.943692
AC7: 3 | AD7: º | AE7: 48 | AF7: Papel e cartão | AG7: 5.4838376 | AH7: 0.1298778142 | AI7: 0.5320342126 | AN7: 3º | AO7: 48 | AP7: Papel e cartão | AQ7: 4.826423 | AR7: 4.128109 | AS7: 4.566998 | AT7: 7.776185 | AU7: 6.121473 | AV7: 5.4838376
AC8: 4 | AD8: º | AE8: 44 | AF8: Madeira e suas obras | AG8: 3.0031166 | AH8: 0.07112504934 | AO8: - | AP8: Outros | AQ8: 15.527205 | AR8: 14.849605 | AS8: 19.019228 | AT8: 29.595407 | AU8: 19.803272 | AV8: 19.7589434
AC9: 5 | AD9: º | AE9: 20 | AF9: Preparações de produtos vegetais | AG9: 2.7866194 | AH9: 0.06599758475 | AP9: Total | AQ9: 33.336949 | AR9: 32.047692 | AS9: 39.128019 | AT9: 57.28493 | AU9: 49.317666 | AV9: 42.2230512
AC10: 6 | AD10: º | AE10: 22 | AF10: Bebidas, líquidos alcoólicos e vinagres | AG10: 2.5579728 | AH10: 0.06058237686
AC11: 7 | AD11: º | AE11: 04 | AF11: Leite e laticínios; ovos; mel, etc. | AG11: 1.882449 | AH11: 0.04458344308
AC12: 8 | AD12: º | AE12: 15 | AF12: Gorduras e óleos animais ou vegetais | AG12: 1.7748872 | AH12: 0.04203597678
AC13: 9 | AD13: º | AE13: 47 | AF13: Pastas de madeira | AG13: 1.4041752 | AH13: 0.03325612811
AC14: 10 | AD14: º | AE14: 21 | AF14: Preparações alimentícias diversas | AG14: 1.3355406 | AH14: 0.03163060371 | AI14: 0.8812453753
AE15: - | AF15: Outros | AG15: 5.0141826 | AH15: 0.1187546247
AE16: Total | AG16: 42.2230512 | AH16: 1
AC38: P | AE38: Cód.NC | AF38: Descritivo | AG38: Média import quinquénio | AH38: % do total | AI38: % acumulada | AN38: P | AO38: NC | AP38: Importações | AQ38: 2019 | AR38: 2020 | AS38: 2021 | AT38: 2022 | AU38: 2023 | AV38: média quinquénio
AC39: 1 | AD39: º | AE39: 48 | AF39: Papel e cartão | AG39: 25.980549 | AH39: 0.3689954367 | AN39: 1º | AO39: 48 | AP39: Papel e cartão | AQ39: 20.09184 | AR39: 18.64422 | AS39: 23.744722 | AT39: 35.838675 | AU39: 31.583288 | AV39: 25.980549
AC40: 2 | AD40: º | AE40: 44 | AF40: Madeira e suas obras | AG40: 14.0513098 | AH40: 0.1995673454 | AN40: 2º | AO40: 44 | AP40: Madeira e suas obras | AQ40: 11.606365 | AR40: 11.406691 | AS40: 14.264325 | AT40: 17.339631 | AU40: 15.639537 | AV40: 14.0513098
AC41: 3 | AD41: º | AE41: 22 | AF41: Bebidas, líquidos alcoólicos e vinagres | AG41: 5.393573 | AH41: 0.07660360927 | AI41: 0.6451663913 | AN41: 3º | AO41: 22 | AP41: Bebidas, líquidos alcoólicos e vinagres | AQ41: 4.147187 | AR41: 3.571999 | AS41: 3.550933 | AT41: 6.684788 | AU41: 9.012958 | AV41: 5.393573
AC42: 4 | AD42: º | AE42: 18 | AF42: Cacau e suas preparações | AG42: 3.3507502 | AH42: 0.04758989247 | AO42: - | AP42: Outros | AQ42: 17.719431 | AR42: 19.026073 | AS42: 25.973766 | AT42: 31.032897 | AU42: 31.164987 | AV42: 24.9834308
AC43: 5 | AD43: º | AE43: 19a | AF43: Preparações à base de cereais (exc. NC 19022010) (a) | AG43: 2.585856 | AH43: 0.03672628565 | AP43: Total | AQ43: 53.564823 | AR43: 52.648983 | AS43: 67.533746 | AT43: 90.895991 | AU43: 87.40077 | AV43: 70.4088626
AC44: 6 | AD44: º | AE44: 47 | AF44: Pastas de madeira | AG44: 2.5592516 | AH44: 0.03634842981
AC45: 7 | AD45: º | AE45: 21 | AF45: Preparações alimentícias diversas | AG45: 2.5509272 | AH45: 0.03623020037
AC46: 8 | AD46: º | AE46: 20 | AF46: Preparações de produtos vegetais | AG46: 2.3090848 | AH46: 0.03279537142
AC47: 9 | AD47: º | AE47: 38a | AF47: Agentes de acabamento, ácidos gordos, sorbitol (a) | AG47: 2.1018426 | AH47: 0.02985196071
AC48: 10 | AD48: º | AE48: 16a | AF48: Preparações de carnes (exc. NC 1604-05) (a) | AG48: 1.9982904 | AH48: 0.02838123393 | AI48: 0.8930897657
AE49: - | AF49: Outros | AG49: 7.527428 | AH49: 0.1069102343
AE50: Total | AG50: 70.4088626 | AH50: 1
AC62: DESAGREGAÇÃO A 4 DÍGITOS | AN62: DESAGREGAÇÃO A 4 DÍGITOS
AC64: P | AE64: Cód.NC | AF64: Descritivo | AG64: Média export quinquénio | AH64: % do total | AI64: % acumulada | AN64: P | AO64: NC | AP64: Exportações | AQ64: 2019 | AR64: 2020 | AS64: 2021 | AT64: 2022 | AU64: 2023 | AV64: média quinquénio
AC65: 1 | AD65: º | AE65: 1604 | AF65: Preparações e conservas de peixes, etc. | AG65: 6.9216082 | AH65: 0.1639296072 | AN65: 1º | AO65: 1604 | AP65: Preparações e conservas de peixes, etc. | AQ65: 4.941447 | AR65: 5.194098 | AS65: 6.193067 | AT65: 9.347199 | AU65: 8.93223 | AV65: 6.9216082
AC66: 2 | AD66: º | AE66: 4504 | AF66: Cortiça aglomerada e suas obras | AG66: 5.897839 | AH66: 0.139682918 | AN66: 2º | AO66: 4504 | AP66: Cortiça aglomerada e suas obras | AQ66: 4.483276 | AR66: 4.616723 | AS66: 5.165416 | AT66: 5.448438 | AU66: 9.775342 | AV66: 5.897839
AC67: 3 | AD67: º | AE67: 4802 | AF67: Papel e cartão p/ escrita, etc. | AG67: 4.800574 | AH67: 0.113695573 | AI67: 0.4173080983 | AN67: 3º | AO67: 4802 | AP67: Papel e cartão p/ escrita, etc. | AQ67: 4.071967 | AR67: 3.654736 | AS67: 3.649631 | AT67: 7.11259 | AU67: 5.513946 | AV67: 4.800574
AC68: 4 | AD68: º | AE68: 4503 | AF68: Obras de cortiça natural | AG68: 3.8960578 | AH68: 0.09227324149 | AN68: - | AO68: - | AP68: Outros | AQ68: 19.840259 | AR68: 18.582135 | AS68: 24.119905 | AT68: 35.376703 | AU68: 25.096148 | AV68: 24.60303
AC69: 5 | AD69: º | AE69: 2204 | AF69: Vinhos de uvas frescas | AG69: 2.397221 | AH69: 0.05677517214 | AP69: Total | AQ69: 33.336949 | AR69: 32.047692 | AS69: 39.128019 | AT69: 57.28493 | AU69: 49.317666 | AV69: 42.2230512
AC70: 6 | AD70: º | AE70: 2002 | AF70: Tomates preparados | AG70: 2.3937616 | AH70: 0.05669324059
AC71: 7 | AD71: º | AE71: 1517 | AF71: Margarina e preparações de gorduras animais ou vegetais | AG71: 1.4130238 | AH71: 0.0334656961
AC72: 8 | AD72: º | AE72: 4703 | AF72: Pastas químicas de madeira, à soda ou ao sulfato | AG72: 1.4041744 | AH72: 0.03325610917
AC73: 9 | AD73: º | AE73: 0402 | AF73: Leite e nata, concentrados | AG73: 1.2364048 | AH73: 0.02928269665
AC74: 10 | AD74: º | AE74: 4408 | AF74: Folhas para folheados ou contraplacados, etc. | AG74: 0.7752518 | AH74: 0.01836086635 | AI74: 0.7374151208
AE75: - | AF75: Outros | AG75: 11.0871348 | AH75: 0.2625848792
AE76: Total | AG76: 42.2230512 | AH76: 1
AC89: DESAGREGAÇÃO A 4 DÍGITOS | AN89: DESAGREGAÇÃO A 4 DÍGITOS
G91: média 2019-2023 em milhões de euros | I91: Cód. NC | J91: Descritivo | K91: Export | L91: Import | M91: Saldo | AC91: P | AE91: Cód.NC | AF91: Descritivo | AG91: Média import quinquénio | AH91: % do total | AI91: % acumulada | AN91: P | AO91: NC | AP91: Importações | AQ91: 2019 | AR91: 2020 | AS91: 2021 | AT91: 2022 | AU91: 2023 | AV91: média quinquénio
I92: 1604 | J92: Preparações e conservas de peixes, etc. | K92: 6.9216082 | L92: 0.068254 | M92: 6.8533542 | AC92: 1 | AD92: º | AE92: 4810 | AF92: Papel e cartão revestidos | AG92: 6.5634486 | AH92: 0.0932190687 | AN92: 1º | AO92: 4810 | AP92: Papel e cartão revestidos | AQ92: 4.554636 | AR92: 3.846487 | AS92: 5.779493 | AT92: 10.142142 | AU92: 8.494485 | AV92: 6.5634486
I93: 4504 | J93: Cortiça aglomerada e suas obras | K93: 5.897839 | L93: 0.0002452 | M93: 5.8975938 | AC93: 2 | AD93: º | AE93: 4418 | AF93: Obras de marcenaria ou carpintaria | AG93: 6.3493194 | AH93: 0.09017784361 | AN93: 2º | AO93: 4418 | AP93: Obras de marcenaria ou carpintaria | AQ93: 5.309903 | AR93: 4.127206 | AS93: 7.049721 | AT93: 7.35887 | AU93: 7.900897 | AV93: 6.3493194
I94: 4802 | J94: Papel e cartão p/ escrita, etc. | K94: 4.800574 | L94: 0.8586532 | M94: 3.9419208 | AC94: 3 | AD94: º | AE94: 4813 | AF94: Papel para cigarros | AG94: 5.2957472 | AH94: 0.07521421316 | AI94: 0.2586111255 | AN94: 3º | AO94: 4813 | AP94: Papel para cigarros | AQ94: 5.531784 | AR94: 5.810464 | AS94: 6.203111 | AT94: 5.043498 | AU94: 3.889879 | AV94: 5.2957472
I95: 4503 | J95: Obras de cortiça natural | K95: 3.8960578 | L95: 0.0019284 | M95: 3.8941294 | AC95: 4 | AD95: º | AE95: 2202 | AF95: Águas com açúcar ou outros produtos; outras bebidas | AG95: 5.034686 | AH95: 0.07150642425 | AN95: - | AO95: - | AP95: Outros | AQ95: 38.1685 | AR95: 38.864826 | AS95: 48.501421 | AT95: 68.351481 | AU95: 67.115509 | AV95: 52.2003474
I96: 2002 | J96: Tomates preparados | K96: 2.3937616 | L96: 0.000489 | M96: 2.3932726 | AC96: 5 | AD96: º | AE96: 4804 | AF96: Papel e cartão "kraft", não revestidos | AG96: 4.2799376 | AH96: 0.06078691577 | AP96: Total | AQ96: 53.564823 | AR96: 52.648983 | AS96: 67.533746 | AT96: 90.895991 | AU96: 87.40077 | AV96: 70.4088626
I97: 2204 | J97: Vinhos de uvas frescas | K97: 2.397221 | L97: 0.1510662 | M97: 2.2461548 | AC97: 6 | AD97: º | AE97: 1806 | AF97: Chocolate e outras preparações com cacau | AG97: 3.3507502 | AH97: 0.04758989247
I98: 1517 | J98: Margarina e preparações de gorduras animais ou vegetais | K98: 1.4130238 | L98: 0.3929232 | M98: 1.0201006 | AC98: 7 | AD98: º | AE98: 4801 | AF98: Papel de jornal | AG98: 3.0466856 | AH98: 0.0432713367
I99: 0402 | J99: Leite e nata, concentrados | K99: 1.2364048 | L99: 0.354931 | M99: 0.8814738 | AC99: 8 | AD99: º | AE99: 4407 | AF99: Madeira serrada, etc. | AG99: 2.7804998 | AH99: 0.03949076433
I100: 2105 | J100: Sorvetes, mesmo contendo cacau | K100: 0.6551448 | L100: 0.0018692 | M100: 0.6532756 | AC100: 9 | AD100: º | AE100: 4703 | AF100: Pastas químicas de madeira, à soda ou ao sulfato | AG100: 2.5592516 | AH100: 0.03634842981
I101: 4409 | J101: Madeira em tacos e frisos | K101: 0.7723794 | L101: 0.1241124 | M101: 0.648267 | AC101: 10 | AD101: º | AE101: 4805 | AF101: Papéis e cartões, não revestidos | AG101: 2.385441 | AH101: 0.03387984001 | AI101: 0.5914847288
I102: - | J102: Outros | K102: 11.3983338 | L102: 27.2763768 | M102: -15.878043 | AE102: - | AF102: Outros | AG102: 28.7630956 | AH102: 0.4085152712
I103: 3809 | J103: Agentes de apresto ou de acabamento, etc. (NC 380910) | K103: 0 | L103: 2.0914986 | M103: -2.0914986 | AE103: Total | AG103: 70.4088626 | AH103: 1
I104: 4805 | J104: Papéis e cartões, não revestidos | K104: 0.0034588 | L104: 2.385441 | M104: -2.3819822
I105: 4407 | J105: Madeira serrada, etc. | K105: 0.0189916 | L105: 2.7804998 | M105: -2.7615082
I106: 4801 | J106: Papel de jornal | K106: 0 | L106: 3.0466856 | M106: -3.0466856
I107: 1806 | J107: Chocolate e outras preparações com cacau | K107: 0.0044058 | L107: 3.3507502 | M107: -3.3463444
I108: 4804 | J108: Papel e cartão "kraft", não revestidos | K108: 0.0349562 | L108: 4.2799376 | M108: -4.2449814
I109: 2202 | J109: Águas com açúcar ou outros produtos; outras bebidas | K109: 0.0972932 | L109: 5.034686 | M109: -4.9373928
I110: 4813 | J110: Papel para cigarros | K110: 1.4e-05 | L110: 5.2957472 | M110: -5.2957332
I111: 4418 | J111: Obras de marcenaria ou carpintaria | K111: 0.2751184 | L111: 6.3493194 | M111: -6.074201
I112: 4810 | J112: Papel e cartão revestidos | K112: 0.006465 | L112: 6.5634486 | M112: -6.5569836
I113: Total | K113: 42.2230512 | L113: 70.4088626 | M113: -28.1858114
A116: Fonte: GPP a partir de dados INE/Comércio Internacional (2022 definitivos) | Y116: 2024-05-03T12:05:18

Sheet 3A
A1: Principais produtos agrícolas e agroalimentares transacionados entre Portugal e Áustria em 2019-2023 (NC a 2 e 4 dígitos) em milhões de euros
AC4: P | AE4: Cód.NC | AF4: Descritivo | AG4: Média export quinquénio | AH4: % do total | AI4: % acumulada | AN4: P | AO4: NC | AP4: Exportações | AQ4: 2019 | AR4: 2020 | AS4: 2021 | AT4: 2022 | AU4: 2023 | AV4: média quinquénio
AC5: 1 | AD5: º | AE5: 20 | AF5: Preparações de produtos vegetais | AG5: 2.7866194 | AH5: 0.1914224017 | AN5: 1º | AO5: 20 | AP5: Preparações de produtos vegetais | AQ5: 1.536415 | AR5: 2.44832 | AS5: 2.633994 | AT5: 3.92336 | AU5: 3.391008 | AV5: 2.7866194
AC6: 2 | AD6: º | AE6: 22 | AF6: Bebidas, líquidos alcoólicos e vinagres | AG6: 2.5579728 | AH6: 0.175715886 | AN6: 2º | AO6: 22 | AP6: Bebidas, líquidos alcoólicos e vinagres | AQ6: 2.071198 | AR6: 2.365962 | AS6: 2.410853 | AT6: 2.97326 | AU6: 2.968591 | AV6: 2.5579728
AC7: 3 | AD7: º | AE7: 04 | AF7: Leite e laticínios; ovos; mel, etc. | AG7: 1.882449 | AH7: 0.1293118496 | AI7: 0.4964501373 | AN7: 3º | AO7: 04 | AP7: Leite e laticínios; ovos; mel, etc. | AQ7: 0.344629 | AR7: 0.385225 | AS7: 1.404826 | AT7: 4.486573 | AU7: 2.790992 | AV7: 1.882449
AC8: 4 | AD8: º | AE8: 15 | AF8: Gorduras e óleos animais ou vegetais | AG8: 1.7748872 | AH8: 0.1219230622 | AO8: - | AP8: Outros | AQ8: 8.280574 | AR8: 6.892065 | AS8: 5.762596 | AT8: 8.488256 | AU8: 7.228484 | AV8: 7.330395
AC9: 5 | AD9: º | AE9: 21 | AF9: Preparações alimentícias diversas | AG9: 1.3355406 | AH9: 0.09174284411 | AP9: Total | AQ9: 12.232816 | AR9: 12.091572 | AS9: 12.212269 | AT9: 19.871449 | AU9: 16.379075 | AV9: 14.5574362
AC10: 6 | AD10: º | AE10: 19a | AF10: Preparações à base de cereais (exc. NC 19022010) (a) | AG10: 1.01122 | AH10: 0.06946415468
AC11: 7 | AD11: º | AE11: 08 | AF11: Frutas | AG11: 0.8511818 | AH11: 0.05847058426
AC12: 8 | AD12: º | AE12: 24 | AF12: Tabaco | AG12: 0.5966962 | AH12: 0.04098909944
AC13: 9 | AD13: º | AE13: 07 | AF13: Produtos hortícolas | AG13: 0.5494286 | AH13: 0.0377421266
AC14: 10 | AD14: º | AE14: 05a | AF14: Outros produtos de origem animal (exc. NC 0508, 051191) (a) | AG14: 0.2781584 | AH14: 0.01910765029 | AI14: 0.9358896589
AE15: - | AF15: Outros | AG15: 0.9332822 | AH15: 0.06411034108
AE16: Total | AG16: 14.5574362 | AH16: 1
AC38: P | AE38: Cód.NC | AF38: Descritivo | AG38: Média import quinquénio | AH38: % do total | AI38: % acumulada | AN38: P | AO38: NC | AP38: Importações | AQ38: 2019 | AR38: 2020 | AS38: 2021 | AT38: 2022 | AU38: 2023 | AV38: média quinquénio
AC39: 1 | AD39: º | AE39: 22 | AF39: Bebidas, líquidos alcoólicos e vinagres | AG39: 5.393573 | AH39: 0.1951103219 | AN39: 1º | AO39: 22 | AP39: Bebidas, líquidos alcoólicos e vinagres | AQ39: 4.147187 | AR39: 3.571999 | AS39: 3.550933 | AT39: 6.684788 | AU39: 9.012958 | AV39: 5.393573
AC40: 2 | AD40: º | AE40: 18 | AF40: Cacau e suas preparações | AG40: 3.3507502 | AH40: 0.1212120333 | AN40: 2º | AO40: 18 | AP40: Cacau e suas preparações | AQ40: 2.16817 | AR40: 2.912288 | AS40: 3.712035 | AT40: 4.049685 | AU40: 3.911573 | AV40: 3.3507502
AC41: 3 | AD41: º | AE41: 19a | AF41: Preparações à base de cereais (exc. NC 19022010) (a) | AG41: 2.585856 | AH41: 0.09354229497 | AI41: 0.4098646501 | AN41: 3º | AO41: 19a | AP41: Preparações à base de cereais (exc. NC 19022010) (a) | AQ41: 1.645227 | AR41: 1.915436 | AS41: 2.518105 | AT41: 3.196908 | AU41: 3.653604 | AV41: 2.585856
AC42: 4 | AD42: º | AE42: 21 | AF42: Preparações alimentícias diversas | AG42: 2.5509272 | AH42: 0.09227875975 | AO42: - | AP42: Outros | AQ42: 10.370405 | AR42: 11.006452 | AS42: 16.571139 | AT42: 21.907017 | AU42: 21.712637 | AV42: 16.31353
AC43: 5 | AD43: º | AE43: 20 | AF43: Preparações de produtos vegetais | AG43: 2.3090848 | AH43: 0.08353020875 | AP43: Total | AQ43: 18.330989 | AR43: 19.406175 | AS43: 26.352212 | AT43: 35.838398 | AU43: 38.290772 | AV43: 27.6437092
AC44: 6 | AD44: º | AE44: 38a | AF44: Agentes de acabamento, ácidos gordos, sorbitol (a) | AG44: 2.1018426 | AH44: 0.07603330598
AC45: 7 | AD45: º | AE45: 16a | AF45: Preparações de carnes (exc. NC 1604-05) (a) | AG45: 1.9982904 | AH45: 0.07228734703
AC46: 8 | AD46: º | AE46: 23a | AF46: Resíduos indústrias alimentares; alimentos p/ animais (exc. NC 230120) (a) | AG46: 1.6720608 | AH46: 0.06048612319
AC47: 9 | AD47: º | AE47: 04 | AF47: Leite e laticínios; ovos; mel, etc. | AG47: 1.3730436 | AH47: 0.04966929691
AC48: 10 | AD48: º | AE48: 17 | AF48: Açúcares e produtos de confeitaria | AG48: 0.8934996 | AH48: 0.03232198666 | AI48: 0.8764716784
AE49: - | AF49: Outros | AG49: 3.414781 | AH49: 0.1235283216
AE50: Total | AG50: 27.6437092 | AH50: 1
AC62: DESAGREGAÇÃO A 4 DÍGITOS | AN62: DESAGREGAÇÃO A 4 DÍGITOS
AC64: P | AE64: Cód.NC | AF64: Descritivo | AG64: Média export quinquénio | AH64: % do total | AI64: % acumulada | AN64: P | AO64: NC | AP64: Exportações | AQ64: 2019 | AR64: 2020 | AS64: 2021 | AT64: 2022 | AU64: 2023 | AV64: média quinquénio
AC65: 1 | AD65: º | AE65: 2204 | AF65: Vinhos de uvas frescas | AG65: 2.397221 | AH65: 0.164673296 | AN65: 1º | AO65: 2204 | AP65: Vinhos de uvas frescas | AQ65: 2.017024 | AR65: 2.232337 | AS65: 2.371466 | AT65: 2.818607 | AU65: 2.546671 | AV65: 2.397221
AC66: 2 | AD66: º | AE66: 2002 | AF66: Tomates preparados | AG66: 2.3937616 | AH66: 0.164435658 | AN66: 2º | AO66: 2002 | AP66: Tomates preparados | AQ66: 1.340602 | AR66: 2.067496 | AS66: 2.079353 | AT66: 3.263804 | AU66: 3.217553 | AV66: 2.3937616
AC67: 3 | AD67: º | AE67: 1517 | AF67: Margarina e preparações de gorduras animais ou vegetais | AG67: 1.4130238 | AH67: 0.09706542969 | AI67: 0.4261743836 | AN67: 3º | AO67: 1517 | AP67: Margarina e preparações de gorduras animais ou vegetais | AQ67: 5.194014 | AR67: 0.881342 | AS67: 0.266214 | AT67: 0.525698 | AU67: 0.197851 | AV67: 1.4130238
AC68: 4 | AD68: º | AE68: 0402 | AF68: Leite e nata, concentrados | AG68: 1.2364048 | AH68: 0.08493286751 | AN68: - | AO68: - | AP68: Outros | AQ68: 3.681176 | AR68: 6.910397 | AS68: 7.495236 | AT68: 13.26334 | AU68: 10.417 | AV68: 8.3534298
AC69: 5 | AD69: º | AE69: 1905 | AF69: Produtos de padaria, pastelaria, etc. | AG69: 0.7403164 | AH69: 0.05085486138 | AP69: Total | AQ69: 12.232816 | AR69: 12.091572 | AS69: 12.212269 | AT69: 19.871449 | AU69: 16.379075 | AV69: 14.5574362
AC70: 6 | AD70: º | AE70: 2105 | AF70: Sorvetes, mesmo contendo cacau | AG70: 0.6551448 | AH70: 0.04500413335
AC71: 7 | AD71: º | AE71: 2402 | AF71: Charutos, cigarrilhas e cigarros | AG71: 0.5966962 | AH71: 0.04098909944
AC72: 8 | AD72: º | AE72: 0406 | AF72: Queijos e requeijão | AG72: 0.561404 | AH72: 0.03856475771
AC73: 9 | AD73: º | AE73: 2102 | AF73: Leveduras, vivas ou mortas, etc. | AG73: 0.3013444 | AH73: 0.0207003758
AC74: 10 | AD74: º | AE74: 0810 | AF74: Outras frutas frescas | AG74: 0.2788918 | AH74: 0.01915803004 | AI74: 0.7263785089
AE75: - | AF75: Outros | AG75: 3.9832274 | AH75: 0.2736214911
AE76: Total | AG76: 14.5574362 | AH76: 1
AC89: DESAGREGAÇÃO A 4 DÍGITOS | AN89: DESAGREGAÇÃO A 4 DÍGITOS
G91: média 2019-2023 em milhões de euros | I91: Cód. NC | J91: Descritivo | K91: Export | L91: Import | M91: Saldo | AC91: P | AE91: Cód.NC | AF91: Descritivo | AG91: Média import quinquénio | AH91: % do total | AI91: % acumulada | AN91: P | AO91: NC | AP91: Importações | AQ91: 2019 | AR91: 2020 | AS91: 2021 | AT91: 2022 | AU91: 2023 | AV91: média quinquénio
I92: 2002 | J92: Tomates preparados | K92: 2.3937616 | L92: 0.000489 | M92: 2.3932726 | AC92: 1 | AD92: º | AE92: 2202 | AF92: Águas com açúcar ou outros produtos; outras bebidas | AG92: 5.034686 | AH92: 0.1821277298 | AN92: 1º | AO92: 2202 | AP92: Águas com açúcar ou outros produtos; outras bebidas | AQ92: 3.791601 | AR92: 3.545579 | AS92: 3.387618 | AT92: 6.258992 | AU92: 8.18964 | AV92: 5.034686
I93: 2204 | J93: Vinhos de uvas frescas | K93: 2.397221 | L93: 0.1510662 | M93: 2.2461548 | AC93: 2 | AD93: º | AE93: 1806 | AF93: Chocolate e outras preparações com cacau | AG93: 3.3507502 | AH93: 0.1212120333 | AN93: 2º | AO93: 1806 | AP93: Chocolate e outras preparações com cacau | AQ93: 2.16817 | AR93: 2.912288 | AS93: 3.712035 | AT93: 4.049685 | AU93: 3.911573 | AV93: 3.3507502
I94: 1517 | J94: Margarina e preparações de gorduras animais ou vegetais | K94: 1.4130238 | L94: 0.3929232 | M94: 1.0201006 | AC94: 3 | AD94: º | AE94: 3809 | AF94: Agentes de apresto ou de acabamento, etc. (NC 380910) | AG94: 2.0914986 | AH94: 0.07565911596 | AI94: 0.3789988791 | AN94: 3º | AO94: 3809 | AP94: Agentes de apresto ou de acabamento, etc. (NC 380910) | AQ94: 1.804187 | AR94: 1.554738 | AS94: 1.972703 | AT94: 3.108592 | AU94: 2.017273 | AV94: 2.0914986
I95: 0402 | J95: Leite e nata, concentrados | K95: 1.2364048 | L95: 0.354931 | M95: 0.8814738 | AC95: 4 | AD95: º | AE95: 2009 | AF95: Sumos de frutas | AG95: 1.7093272 | AH95: 0.06183422013 | AN95: - | AO95: - | AP95: Outros | AQ95: 10.567031 | AR95: 11.39357 | AS95: 17.279856 | AT95: 22.421129 | AU95: 24.172286 | AV95: 17.1667744
I96: 2105 | J96: Sorvetes, mesmo contendo cacau | K96: 0.6551448 | L96: 0.0018692 | M96: 0.6532756 | AC96: 5 | AD96: º | AE96: 2309 | AF96: Preparações p/ alimentação animal | AG96: 1.6680884 | AH96: 0.06034242322 | AP96: Total | AQ96: 18.330989 | AR96: 19.406175 | AS96: 26.352212 | AT96: 35.838398 | AU96: 38.290772 | AV96: 27.6437092
I97: 2402 | J97: Charutos, cigarrilhas e cigarros | K97: 0.5966962 | L97: 0 | M97: 0.5966962 | AC97: 6 | AD97: º | AE97: 1602 | AF97: Outras preparações e conservas de carnes, miudezas ou sangue | AG97: 1.4448226 | AH97: 0.05226587321
I98: 0406 | J98: Queijos e requeijão | K98: 0.561404 | L98: 0.2659444 | M98: 0.2954596 | AC98: 7 | AD98: º | AE98: 1905 | AF98: Produtos de padaria, pastelaria, etc. | AG98: 1.3423602 | AH98: 0.04855933733
I99: 0504 | J99: Tripas de animais (excepto peixes) | K99: 0.2781584 | L99: 0.0007182 | M99: 0.2774402 | AC99: 8 | AD99: º | AE99: 2101 | AF99: Extratos e preparados de café, chá ou mate | AG99: 1.24491 | AH99: 0.04503411575
I100: 2102 | J100: Leveduras, vivas ou mortas, etc. | K100: 0.3013444 | L100: 0.0284692 | M100: 0.2728752 | AC100: 9 | AD100: º | AE100: 2106 | AF100: Outras preparações alimentícias | AG100: 1.0999826 | AH100: 0.03979142567
I101: 1509 | J101: Azeite (processos mecânicos ou físicos) | K101: 0.2555424 | L101: 1.94e-05 | M101: 0.255523 | AC101: 10 | AD101: º | AE101: 1902 | AF101: Massas alimentícias (exc. NC 1902 20 10) (a) | AG101: 0.9142448 | AH101: 0.03307243588 | AI101: 0.7198987103
I102: - | J102: Outros | K102: 3.861544 | L102: 7.1736032 | M102: -3.3120592 | AE102: - | AF102: Outros | AG102: 7.7430386 | AH102: 0.2801012897
I103: 0403 | J103: Leitelho, leite coalhado, iogurte, etc. | K103: 2.22e-05 | L103: 0.7153658 | M103: -0.7153436 | AE103: Total | AG103: 27.6437092 | AH103: 1
I104: 1902 | J104: Massas alimentícias (exc. NC 1902 20 10) (a) | K104: 0.0003178 | L104: 0.9142448 | M104: -0.913927
I105: 2106 | J105: Outras preparações alimentícias | K105: 0.0899508 | L105: 1.0999826 | M105: -1.0100318
I106: 2101 | J106: Extratos e preparados de café, chá ou mate | K106: 0.1401066 | L106: 1.24491 | M106: -1.1048034
I107: 1602 | J107: Outras preparações e conservas de carnes, miudezas ou sangue | K107: 0.0110474 | L107: 1.4448226 | M107: -1.4337752
I108: 2009 | J108: Sumos de frutas | K108: 0.2605884 | L108: 1.7093272 | M108: -1.4487388
I109: 2309 | J109: Preparações p/ alimentação animal | K109: 0.0034586 | L109: 1.6680884 | M109: -1.6646298
I110: 3809 | J110: Agentes de apresto ou de acabamento, etc. (NC 380910) | K110: 0 | L110: 2.0914986 | M110: -2.0914986
I111: 1806 | J111: Chocolate e outras preparações com cacau | K111: 0.0044058 | L111: 3.3507502 | M111: -3.3463444
I112: 2202 | J112: Águas com açúcar ou outros produtos; outras bebidas | K112: 0.0972932 | L112: 5.034686 | M112: -4.9373928
I113: Total | K113: 14.5574362 | L113: 27.6437092 | M113: -13.086273
A116: Fonte: GPP a partir de dados INE/Comércio Internacional (2022 definitivos) | Y116: 2024-05-03T12:05:18

Sheet 4A
A1: Evolução da balança comercial Portugal-Áustria 2019-2023 por produto em euros (NC 2 dígitos)
A3: =+aux!A31 -> Evolução da balança comercial Portugal-Áustria para Preparações de produtos vegetais
A5: Selecione o produto:
Q7: Para obter uma maior desagregação deste produto, clique no botão respetivo:
A20: =+aux!A43 -> Evolução da balança comercial Portugal-Áustria para Bebidas, líquidos alcoólicos e vinagres
A22: Selecione o produto:
A38: Fonte: GPP a partir de dados INE/Comércio Internacional (2022 definitivos) | N38: 2024-05-03T12:05:18

Sheet 5.2
A1: Trocas comerciais Portugal-Áustria 2019-2023 em milhares de euros (NC 2 dígitos) | C1: Produtos agrícolas e agroalimentares, do mar e da floresta
A2: Cód. NC | B2: Descritivo | C2: Importações | K2: Exportações | S2: Saldo quinquénio (exp-imp) | T2: Evolução das importações | U2: =+"Variação das Importações " & INDEX(K3:N3,1,aux!AL1) & "-"& '5.2'!O3 &"" -> Variação das Importações 2019-2023 | Z2: Evolução das exportações | AA2: ="Variação das Exportações " & INDEX(K3:N3,1,aux!AL1) & "-"& '5.2'!O3 &"" -> Variação das Exportações 2019-2023
C3: 2019 | D3: 2020 | E3: 2021 | F3: 2022 | G3: 2023 | H3: média quinquénio | I3: % Subtot | J3: % Total | K3: 2019 | L3: 2020 | M3: 2021 | N3: 2022 | O3: 2023 | P3: média quinquénio | Q3: % Subtot | R3: % Total | U3: variação total em valor | V3: % no subtotal de variação | W3: % no total de variação | X3: taxa de variação média anual | Y3: taxa de variação total | AA3: variação total em valor | AB3: % no subtotal de variação | AC3: % no total de variação | AD3: taxa de variação média anual | AE3: taxa de variação total
A4: 01 | B4: Animais vivos | C4: 1.253 | D4: 0 | E4: 0.703 | F4: 0 | G4: 29.866 | H4: 6.3644 | I4: 0.000230229596 | J4: 9.039202971e-05 | K4: 0 | L4: 0 | M4: 1.493 | N4: 54.228 | O4: 114.076 | P4: 33.9594 | Q4: 0.002332787143 | R4: 0.0008042857879 | S4: 27.595 | U4: =G4-INDEX($C4:$G4,1,aux!$AL$1) -> 28.613 | V4: =IF($U$37<>0,U4/$U$37, "n.d.") -> 0.001433532619 | W4: =IF($U$53<>0,U4/$U$53, "n.d.") -> 0.0008456391068 | X4: =+IF(INDEX($C4:$G4,1,aux!$AL$1)>0,(G4/INDEX($C4:$G4,1,aux!$AL$1))^(1/($G$3-INDEX($C$3:$G$3,1,aux!$AL$1)))-1,"n.d.") -> 1.209563552 | Y4: =IF(INDEX($C4:$G4,1,aux!$AL$1)>0,(G4-INDEX($C4:$G4,1,aux!$AL$1))/INDEX($C4:$G4,1,aux!$AL$1),"n.d.") -> 22.83559457 | AA4: =O4-INDEX($K4:$O4,1,aux!$AL$1) -> 114.076 | AB4: =IF($AA$37<>0,AA4/$AA$37, "n.d.") -> 0.02751299424 | AC4: =IF($AA$53<>0,AA4/$AA$53, "n.d.") -> 0.007138353054 | AD4: =+IF(INDEX($K4:$O4,1,aux!$AL$1)>0,(O4/INDEX($K4:$O4,1,aux!$AL$1))^(1/($O$3-INDEX($K$3:$O$3,1,aux!$AL$1)))-1,"n.d.") -> n.d. | AE4: =IF(INDEX($K4:$O4,1,aux!$AL$1)>0,(O4-INDEX($K4:$O4,1,aux!$AL$1))/INDEX($K4:$O4,1,aux!$AL$1),"n.d.") -> n.d.
A5: 02 | B5: Carnes e miudezas | C5: 116.561 | D5: 272.405 | E5: 498.924 | F5: 245.879 | G5: 369.252 | H5: 300.6042 | I5: 0.01087423536 | J5: 0.00426940855 | K5: 132.509 | L5: 37.683 | M5: 77.491 | N5: 21.887 | O5: 25.062 | P5: 58.9264 | Q5: 0.004047855624 | R5: 0.001395597862 | S5: -241.6778 | U5: =G5-INDEX($C5:$G5,1,aux!$AL$1) -> 252.691 | V5: 0.01266000738 | W5: 0.007468122586 | X5: =+IF(INDEX($C5:$G5,1,aux!$AL$1)>0,(G5/INDEX($C5:$G5,1,aux!$AL$1))^(1/($G$3-INDEX($C$3:$G$3,1,aux!$AL$1)))-1,"n.d.") -> 0.3341123298 | Y5: =IF(INDEX($C5:$G5,1,aux!$AL$1)>0,(G5-INDEX($C5:$G5,1,aux!$AL$1))/INDEX($C5:$G5,1,aux!$AL$1),"n.d.") -> 2.167886343 | AA5: =O5-INDEX($K5:$O5,1,aux!$AL$1) -> -107.447 | AB5: -0.02591420362 | AC5: -0.006723540627 | AD5: =+IF(INDEX($K5:$O5,1,aux!$AL$1)>0,(O5/INDEX($K5:$O5,1,aux!$AL$1))^(1/($O$3-INDEX($K$3:$O$3,1,aux!$AL$1)))-1,"n.d.") -> -0.3405337302 | AE5: =IF(INDEX($K5:$O5,1,aux!$AL$1)>0,(O5-INDEX($K5:$O5,1,aux!$AL$1))/INDEX($K5:$O5,1,aux!$AL$1),"n.d.") -> -0.810865677
A6: 04 | B6: Leite e laticínios; ovos; mel, etc. | C6: 1297.922 | D6: 988.302 | E6: 1086.185 | F6: 1282.326 | G6: 2210.483 | H6: 1373.0436 | I6: 0.04966929691 | J6: 0.01950100526 | K6: 344.629 | L6: 385.225 | M6: 1404.826 | N6: 4486.573 | O6: 2790.992 | P6: 1882.449 | Q6: 0.1293118496 | R6: 0.04458344308 | S6: 509.4054 | U6: =G6-INDEX($C6:$G6,1,aux!$AL$1) -> 912.561 | V6: 0.04571998603 | W6: 0.02697016283 | X6: =+IF(INDEX($C6:$G6,1,aux!$AL$1)>0,(G6/INDEX($C6:$G6,1,aux!$AL$1))^(1/($G$3-INDEX($C$3:$G$3,1,aux!$AL$1)))-1,"n.d.") -> 0.1423775147 | Y6: =IF(INDEX($C6:$G6,1,aux!$AL$1)>0,(G6-INDEX($C6:$G6,1,aux!$AL$1))/INDEX($C6:$G6,1,aux!$AL$1),"n.d.") -> 0.7030938685 | AA6: =O6-INDEX($K6:$O6,1,aux!$AL$1) -> 2446.363 | AB6: 0.5900169285 | AC6: 0.1530821802 | AD6: =+IF(INDEX($K6:$O6,1,aux!$AL$1)>0,(O6/INDEX($K6:$O6,1,aux!$AL$1))^(1/($O$3-INDEX($K$3:$O$3,1,aux!$AL$1)))-1,"n.d.") -> 0.6869479893 | AE6: =IF(INDEX($K6:$O6,1,aux!$AL$1)>0,(O6-INDEX($K6:$O6,1,aux!$AL$1))/INDEX($K6:$O6,1,aux!$AL$1),"n.d.") -> 7.09854075
A7: 05a | B7: Outros produtos de origem animal (exc. NC 0508, 051191) (a) | C7: 3.591 | D7: 0 | E7: 0 | F7: 0 | G7: 293.914 | H7: 59.501 | I7: 0.00215242461 | J7: 0.0008450782729 | K7: 370.007 | L7: 232.71 | M7: 352.266 | N7: 312.298 | O7: 123.511 | P7: 278.1584 | Q7: 0.01910765029 | R7: 0.006587832762 | S7: 218.6574 | U7: =G7-INDEX($C7:$G7,1,aux!$AL$1) -> 290.323 | V7: 0.01454539861 | W7: 0.00858031253 | X7: =+IF(INDEX($C7:$G7,1,aux!$AL$1)>0,(G7/INDEX($C7:$G7,1,aux!$AL$1))^(1/($G$3-INDEX($C$3:$G$3,1,aux!$AL$1)))-1,"n.d.") -> 2.007815666 | Y7: =IF(INDEX($C7:$G7,1,aux!$AL$1)>0,(G7-INDEX($C7:$G7,1,aux!$AL$1))/INDEX($C7:$G7,1,aux!$AL$1),"n.d.") -> 80.84739627 | AA7: =O7-INDEX($K7:$O7,1,aux!$AL$1) -> -246.496 | AB7: -0.05945021765 | AC7: -0.01542458952 | AD7: =+IF(INDEX($K7:$O7,1,aux!$AL$1)>0,(O7/INDEX($K7:$O7,1,aux!$AL$1))^(1/($O$3-INDEX($K$3:$O$3,1,aux!$AL$1)))-1,"n.d.") -> -0.2398944136 | AE7: =IF(INDEX($K7:$O7,1,aux!$AL$1)>0,(O7-INDEX($K7:$O7,1,aux!$AL$1))/INDEX($K7:$O7,1,aux!$AL$1),"n.d.") -> -0.6661928018
A8: 06 | B8: Plantas vivas e produtos de floricultura | C8: 1.274 | D8: 6.384 | E8: 0.305 | F8: 0 | G8: 12.682 | H8: 4.129 | I8: 0.0001493649051 | J8: 5.864318564e-05 | K8: 73.309 | L8: 172.819 | M8: 316.317 | N8: 239.916 | O8: 234.995 | P8: 207.4712 | Q8: 0.01425190515 | R8: 0.004913695105 | S8: 203.3422 | U8: =G8-INDEX($C8:$G8,1,aux!$AL$1) -> 11.408 | V8: 0.0005715492999 | W8: 0.0003371562203 | X8: =+IF(INDEX($C8:$G8,1,aux!$AL$1)>0,(G8/INDEX($C8:$G8,1,aux!$AL$1))^(1/($G$3-INDEX($C$3:$G$3,1,aux!$AL$1)))-1,"n.d.") -> 0.7762520011 | Y8: =IF(INDEX($C8:$G8,1,aux!$AL$1)>0,(G8-INDEX($C8:$G8,1,aux!$AL$1))/INDEX($C8:$G8,1,aux!$AL$1),"n.d.") -> 8.954474097 | AA8: =O8-INDEX($K8:$O8,1,aux!$AL$1) -> 161.686 | AB8: 0.03899563438 | AC8: 0.01011756857 | AD8: =+IF(INDEX($K8:$O8,1,aux!$AL$1)>0,(O8/INDEX($K8:$O8,1,aux!$AL$1))^(1/($O$3-INDEX($K$3:$O$3,1,aux!$AL$1)))-1,"n.d.") -> 0.3380592098 | AE8: =IF(INDEX($K8:$O8,1,aux!$AL$1)>0,(O8-INDEX($K8:$O8,1,aux!$AL$1))/INDEX($K8:$O8,1,aux!$AL$1),"n.d.") -> 2.205540929
A9: 07 | B9: Produtos hortícolas | C9: 59.298 | D9: 39.699 | E9: 106.054 | F9: 139.061 | G9: 30.301 | H9: 74.8826 | I9: 0.002708847769 | J9: 0.001063539407 | K9: 292.145 | L9: 310.325 | M9: 874.13 | N9: 757.404 | O9: 513.139 | P9: 549.4286 | Q9: 0.0377421266 | R9: 0.01301252715 | S9: 474.546 | U9: =G9-INDEX($C9:$G9,1,aux!$AL$1) -> -28.997 | V9: -0.001452771305 | W9: -0.0008569879838 | X9: =+IF(INDEX($C9:$G9,1,aux!$AL$1)>0,(G9/INDEX($C9:$G9,1,aux!$AL$1))^(1/($G$3-INDEX($C$3:$G$3,1,aux!$AL$1)))-1,"n.d.") -> -0.154518267 | Y9: =IF(INDEX($C9:$G9,1,aux!$AL$1)>0,(G9-INDEX($C9:$G9,1,aux!$AL$1))/INDEX($C9:$G9,1,aux!$AL$1),"n.d.") -> -0.4890046882 | AA9: =O9-INDEX($K9:$O9,1,aux!$AL$1) -> 220.994 | AB9: 0.05329961298 | AC9: 0.01382879129 | AD9: =+IF(INDEX($K9:$O9,1,aux!$AL$1)>0,(O9/INDEX($K9:$O9,1,aux!$AL$1))^(1/($O$3-INDEX($K$3:$O$3,1,aux!$AL$1)))-1,"n.d.") -> 0.1512221617 | AE9: =IF(INDEX($K9:$O9,1,aux!$AL$1)>0,(O9-INDEX($K9:$O9,1,aux!$AL$1))/INDEX($K9:$O9,1,aux!$AL$1),"n.d.") -> 0.7564531312
A10: 08 | B10: Frutas | C10: 453.676 | D10: 196.211 | E10: 494.389 | F10: 684.239 | G10: 1330.802 | H10: 631.8634 | I10: 0.02285740294 | J10: 0.008974202631 | K10: 326.788 | L10: 916.174 | M10: 444.757 | N10: 682.339 | O10: 1885.851 | P10: 851.1818 | Q10: 0.05847058426 | R10: 0.02015917315 | S10: 219.3184 | U10: =G10-INDEX($C10:$G10,1,aux!$AL$1) -> 877.126 | V10: 0.04394466613 | W10: 0.02592290383 | X10: =+IF(INDEX($C10:$G10,1,aux!$AL$1)>0,(G10/INDEX($C10:$G10,1,aux!$AL$1))^(1/($G$3-INDEX($C$3:$G$3,1,aux!$AL$1)))-1,"n.d.") -> 0.3087054468 | Y10: =IF(INDEX($C10:$G10,1,aux!$AL$1)>0,(G10-INDEX($C10:$G10,1,aux!$AL$1))/INDEX($C10:$G10,1,aux!$AL$1),"n.d.") -> 1.93337536 | AA10: =O10-INDEX($K10:$O10,1,aux!$AL$1) -> 1559.063 | AB10: 0.3760167901 | AC10: 0.0975590144 | AD10: =+IF(INDEX($K10:$O10,1,aux!$AL$1)>0,(O10/INDEX($K10:$O10,1,aux!$AL$1))^(1/($O$3-INDEX($K$3:$O$3,1,aux!$AL$1)))-1,"n.d.") -> 0.5499236995 | AE10: =IF(INDEX($K10:$O10,1,aux!$AL$1)>0,(O10-INDEX($K10:$O10,1,aux!$AL$1))/INDEX($K10:$O10,1,aux!$AL$1),"n.d.") -> 4.770869799
A11: 09 | B11: Café, chá, mate e especiarias | C11: 195.802 | D11: 265.5 | E11: 309.564 | F11: 257.175 | G11: 708.149 | H11: 347.238 | I11: 0.01256119421 | J11: 0.004931737102 | K11: 64.32 | L11: 164.52 | M11: 349.416 | N11: 364.735 | O11: 227.666 | P11: 234.1314 | Q11: 0.01608328532 | R11: 0.005545108498 | S11: -113.1066 | U11: =G11-INDEX($C11:$G11,1,aux!$AL$1) -> 512.347 | V11: 0.02566896644 | W11: 0.01514209134 | X11: =+IF(INDEX($C11:$G11,1,aux!$AL$1)>0,(G11/INDEX($C11:$G11,1,aux!$AL$1))^(1/($G$3-INDEX($C$3:$G$3,1,aux!$AL$1)))-1,"n.d.") -> 0.3790400549 | Y11: =IF(INDEX($C11:$G11,1,aux!$AL$1)>0,(G11-INDEX($C11:$G11,1,aux!$AL$1))/INDEX($C11:$G11,1,aux!$AL$1),"n.d.") -> 2.616658665 | AA11: =O11-INDEX($K11:$O11,1,aux!$AL$1) -> 163.346 | AB11: 0.03939599528 | AC11: 0.01022144376 | AD11: =+IF(INDEX($K11:$O11,1,aux!$AL$1)>0,(O11/INDEX($K11:$O11,1,aux!$AL$1))^(1/($O$3-INDEX($K$3:$O$3,1,aux!$AL$1)))-1,"n.d.") -> 0.3716333479 | AE11: =IF(INDEX($K11:$O11,1,aux!$AL$1)>0,(O11-INDEX($K11:$O11,1,aux!$AL$1))/INDEX($K11:$O11,1,aux!$AL$1),"n.d.") -> 2.539583333
A12: 10 | B12: Cereais | C12: 3.056 | D12: 0.625 | E12: 28.219 | F12: 347.146 | G12: 208.682 | H12: 117.5456 | I12: 0.004252164539 | J12: 0.00166947165 | K12: 0.134 | L12: 331.89 | M12: 57.559 | N12: 168.835 | O12: 73.553 | P12: 126.3942 | Q12: 0.00868244918 | R12: 0.002993488069 | S12: 8.8486 | U12: =G12-INDEX($C12:$G12,1,aux!$AL$1) -> 205.626 | V12: 0.01030201581 | W12: 0.006077146297 | X12: =+IF(INDEX($C12:$G12,1,aux!$AL$1)>0,(G12/INDEX($C12:$G12,1,aux!$AL$1))^(1/($G$3-INDEX($C$3:$G$3,1,aux!$AL$1)))-1,"n.d.") -> 1.874636331 | Y12: =IF(INDEX($C12:$G12,1,aux!$AL$1)>0,(G12-INDEX($C12:$G12,1,aux!$AL$1))/INDEX($C12:$G12,1,aux!$AL$1),"n.d.") -> 67.28599476 | AA12: =O12-INDEX($K12:$O12,1,aux!$AL$1) -> 73.419 | AB12: 0.01770728746 | AC12: 0.004594224402 | AD12: =+IF(INDEX($K12:$O12,1,aux!$AL$1)>0,(O12/INDEX($K12:$O12,1,aux!$AL$1))^(1/($O$3-INDEX($K$3:$O$3,1,aux!$AL$1)))-1,"n.d.") -> 3.840318036 | AE12: =IF(INDEX($K12:$O12,1,aux!$AL$1)>0,(O12-INDEX($K12:$O12,1,aux!$AL$1))/INDEX($K12:$O12,1,aux!$AL$1),"n.d.") -> 547.9029851
A13: 11 | B13: Produtos da indústria de moagem e outros | C13: 82.793 | D13: 27.049 | E13: 104.792 | F13: 64.851 | G13: 321.117 | H13: 120.1204 | I13: 0.004345306888 | J13: 0.00170604091 | K13: 0.054 | L13: 139.803 | M13: 1.425 | N13: 234.264 | O13: 1.014 | P13: 75.312 | Q13: 0.005173438438 | R13: 0.001783670243 | S13: -44.8084 | U13: =G13-INDEX($C13:$G13,1,aux!$AL$1) -> 238.324 | V13: 0.01194020997 | W13: 0.007043514993 | X13: =+IF(INDEX($C13:$G13,1,aux!$AL$1)>0,(G13/INDEX($C13:$G13,1,aux!$AL$1))^(1/($G$3-INDEX($C$3:$G$3,1,aux!$AL$1)))-1,"n.d.") -> 0.4033545904 | Y13: =IF(INDEX($C13:$G13,1,aux!$AL$1)>0,(G13-INDEX($C13:$G13,1,aux!$AL$1))/INDEX($C13:$G13,1,aux!$AL$1),"n.d.") -> 2.878552535 | AA13: =O13-INDEX($K13:$O13,1,aux!$AL$1) -> 0.96 | AB13: 0.0002315340166 | AC13: 6.00723985e-05 | AD13: =+IF(INDEX($K13:$O13,1,aux!$AL$1)>0,(O13/INDEX($K13:$O13,1,aux!$AL$1))^(1/($O$3-INDEX($K$3:$O$3,1,aux!$AL$1)))-1,"n.d.") -> 1.081665999 | AE13: =IF(INDEX($K13:$O13,1,aux!$AL$1)>0,(O13-INDEX($K13:$O13,1,aux!$AL$1))/INDEX($K13:$O13,1,aux!$AL$1),"n.d.") -> 17.77777778
A14: 12 | B14: Sementes e frutos oleaginosos | C14: 137.188 | D14: 91.012 | E14: 205.125 | F14: 191.585 | G14: 366.933 | H14: 198.3686 | I14: 0.007175903876 | J14: 0.002817381118 | K14: 27.281 | L14: 23.813 | M14: 14.504 | N14: 160.77 | O14: 75.064 | P14: 60.2864 | Q14: 0.004141278668 | R14: 0.001427807756 | S14: -138.0822 | U14: =G14-INDEX($C14:$G14,1,aux!$AL$1) -> 229.745 | V14: 0.01151039568 | W14: 0.006789968077 | X14: =+IF(INDEX($C14:$G14,1,aux!$AL$1)>0,(G14/INDEX($C14:$G14,1,aux!$AL$1))^(1/($G$3-INDEX($C$3:$G$3,1,aux!$AL$1)))-1,"n.d.") -> 0.2788442694 | Y14: =IF(INDEX($C14:$G14,1,aux!$AL$1)>0,(G14-INDEX($C14:$G14,1,aux!$AL$1))/INDEX($C14:$G14,1,aux!$AL$1),"n.d.") -> 1.674672712 | AA14: =O14-INDEX($K14:$O14,1,aux!$AL$1) -> 47.783 | AB14: 0.01152436449 | AC14: 0.00299004106 | AD14: =+IF(INDEX($K14:$O14,1,aux!$AL$1)>0,(O14/INDEX($K14:$O14,1,aux!$AL$1))^(1/($O$3-INDEX($K$3:$O$3,1,aux!$AL$1)))-1,"n.d.") -> 0.2879317646 | AE14: =IF(INDEX($K14:$O14,1,aux!$AL$1)>0,(O14-INDEX($K14:$O14,1,aux!$AL$1))/INDEX($K14:$O14,1,aux!$AL$1),"n.d.") -> 1.751512041
A15: 13a | B15: Sucos e extratos vegetais (exc. NC 1301) (a) | C15: 0 | D15: 0 | E15: 0 | F15: 0 | G15: 0 | H15: 0 | I15: 0 | J15: 0 | K15: 0 | L15: 0 | M15: 0 | N15: 0 | O15: 0 | P15: 0 | Q15: 0 | R15: 0 | S15: 0 | U15: =G15-INDEX($C15:$G15,1,aux!$AL$1) -> 0 | V15: 0 | W15: 0 | X15: =+IF(INDEX($C15:$G15,1,aux!$AL$1)>0,(G15/INDEX($C15:$G15,1,aux!$AL$1))^(1/($G$3-INDEX($C$3:$G$3,1,aux!$AL$1)))-1,"n.d.") -> n.d. | Y15: =IF(INDEX($C15:$G15,1,aux!$AL$1)>0,(G15-INDEX($C15:$G15,1,aux!$AL$1))/INDEX($C15:$G15,1,aux!$AL$1),"n.d.") -> n.d. | AA15: =O15-INDEX($K15:$O15,1,aux!$AL$1) -> 0 | AB15: 0 | AC15: 0 | AD15: =+IF(INDEX($K15:$O15,1,aux!$AL$1)>0,(O15/INDEX($K15:$O15,1,aux!$AL$1))^(1/($O$3-INDEX($K$3:$O$3,1,aux!$AL$1)))-1,"n.d.") -> n.d. | AE15: =IF(INDEX($K15:$O15,1,aux!$AL$1)>0,(O15-INDEX($K15:$O15,1,aux!$AL$1))/INDEX($K15:$O15,1,aux!$AL$1),"n.d.") -> n.d.
A16: 14 | B16: Matérias para entrançar e outros | C16: 0 | D16: 4.872 | E16: 0.422 | F16: 1.562 | G16: 0 | H16: 1.3712 | I16: 4.960260543e-05 | J16: 1.947482106e-05 | K16: 0.005 | L16: 0.011 | M16: 0.016 | N16: 0.023 | O16: 0.012 | P16: 0.0134 | Q16: 9.204917553e-07 | R16: 3.173621901e-07 | S16: -1.3578 | U16: =G16-INDEX($C16:$G16,1,aux!$AL$1) -> 0 | V16: 0 | W16: 0 | X16: =+IF(INDEX($C16:$G16,1,aux!$AL$1)>0,(G16/INDEX($C16:$G16,1,aux!$AL$1))^(1/($G$3-INDEX($C$3:$G$3,1,aux!$AL$1)))-1,"n.d.") -> n.d. | Y16: =IF(INDEX($C16:$G16,1,aux!$AL$1)>0,(G16-INDEX($C16:$G16,1,aux!$AL$1))/INDEX($C16:$G16,1,aux!$AL$1),"n.d.") -> n.d. | AA16: =O16-INDEX($K16:$O16,1,aux!$AL$1) -> 0.007 | AB16: 1.688268871e-06 | AC16: 4.380279058e-07 | AD16: =+IF(INDEX($K16:$O16,1,aux!$AL$1)>0,(O16/INDEX($K16:$O16,1,aux!$AL$1))^(1/($O$3-INDEX($K$3:$O$3,1,aux!$AL$1)))-1,"n.d.") -> 0.2446659546 | AE16: =IF(INDEX($K16:$O16,1,aux!$AL$1)>0,(O16-INDEX($K16:$O16,1,aux!$AL$1))/INDEX($K16:$O16,1,aux!$AL$1),"n.d.") -> 1.4
A17: 15 | B17: Gorduras e óleos animais ou vegetais | C17: 342.128 | D17: 282.326 | E17: 580.544 | F17: 1531.093 | G17: 1567.123 | H17: 860.6428 | I17: 0.03113340521 | J17: 0.01222350097 | K17: 5264.871 | L17: 1419.164 | M17: 426.073 | N17: 981.583 | O17: 782.745 | P17: 1774.8872 | Q17: 0.1219230622 | R17: 0.04203597678 | S17: 914.2444 | U17: =G17-INDEX($C17:$G17,1,aux!$AL$1) -> 1224.995 | V17: 0.06137316222 | W17: 0.03620395197 | X17: =+IF(INDEX($C17:$G17,1,aux!$AL$1)>0,(G17/INDEX($C17:$G17,1,aux!$AL$1))^(1/($G$3-INDEX($C$3:$G$3,1,aux!$AL$1)))-1,"n.d.") -> 0.4629470802 | Y17: =IF(INDEX($C17:$G17,1,aux!$AL$1)>0,(G17-INDEX($C17:$G17,1,aux!$AL$1))/INDEX($C17:$G17,1,aux!$AL$1),"n.d.") -> 3.580516649 | AA17: =O17-INDEX($K17:$O17,1,aux!$AL$1) -> -4482.126 | AB17: -1.081004829 | AC17: -0.280470895 | AD17: =+IF(INDEX($K17:$O17,1,aux!$AL$1)>0,(O17/INDEX($K17:$O17,1,aux!$AL$1))^(1/($O$3-INDEX($K$3:$O$3,1,aux!$AL$1)))-1,"n.d.") -> -0.3790478403 | AE17: =IF(INDEX($K17:$O17,1,aux!$AL$1)>0,(O17-INDEX($K17:$O17,1,aux!$AL$1))/INDEX($K17:$O17,1,aux!$AL$1),"n.d.") -> -0.8513268416
A18: 16a | B18: Preparações de carnes (exc. NC 1604-05) (a) | C18: 12.102 | D18: 441.448 | E18: 825.376 | F18: 4023.121 | G18: 4689.405 | H18: 1998.2904 | I18: 0.07228734703 | J18: 0.02838123393 | K18: 56.903 | L18: 17.092 | M18: 101.238 | N18: 40.876 | O18: 44.799 | P18: 52.1816 | Q18: 0.003584532282 | R18: 0.001235855736 | S18: -1946.1088 | U18: =G18-INDEX($C18:$G18,1,aux!$AL$1) -> 4677.303 | V18: 0.2343363653 | W18: 0.1382347301 | X18: =+IF(INDEX($C18:$G18,1,aux!$AL$1)>0,(G18/INDEX($C18:$G18,1,aux!$AL$1))^(1/($G$3-INDEX($C$3:$G$3,1,aux!$AL$1)))-1,"n.d.") -> 3.436751945 | Y18: =IF(INDEX($C18:$G18,1,aux!$AL$1)>0,(G18-INDEX($C18:$G18,1,aux!$AL$1))/INDEX($C18:$G18,1,aux!$AL$1),"n.d.") -> 386.4900843 | AA18: =O18-INDEX($K18:$O18,1,aux!$AL$1) -> -12.104 | AB18: -0.002919258059 | AC18: -0.0007574128245 | AD18: =+IF(INDEX($K18:$O18,1,aux!$AL$1)>0,(O18/INDEX($K18:$O18,1,aux!$AL$1))^(1/($O$3-INDEX($K$3:$O$3,1,aux!$AL$1)))-1,"n.d.") -> -0.05803820403 | AE18: =IF(INDEX($K18:$O18,1,aux!$AL$1)>0,(O18-INDEX($K18:$O18,1,aux!$AL$1))/INDEX($K18:$O18,1,aux!$AL$1),"n.d.") -> -0.2127128622
A19: 17 | B19: Açúcares e produtos de confeitaria | C19: 775.583 | D19: 858.862 | E19: 967.485 | F19: 1074.757 | G19: 790.811 | H19: 893.4996 | I19: 0.03232198666 | J19: 0.01269015813 | K19: 0.256 | L19: 0.147 | M19: 0.366 | N19: 8.643 | O19: 34.971 | P19: 8.8766 | Q19: 0.0006097639638 | R19: 0.0002102311355 | S19: -884.623 | U19: =G19-INDEX($C19:$G19,1,aux!$AL$1) -> 15.228 | V19: 0.0007629341461 | W19: 0.0004500539027 | X19: =+IF(INDEX($C19:$G19,1,aux!$AL$1)>0,(G19/INDEX($C19:$G19,1,aux!$AL$1))^(1/($G$3-INDEX($C$3:$G$3,1,aux!$AL$1)))-1,"n.d.") -> 0.004872832961 | Y19: =IF(INDEX($C19:$G19,1,aux!$AL$1)>0,(G19-INDEX($C19:$G19,1,aux!$AL$1))/INDEX($C19:$G19,1,aux!$AL$1),"n.d.") -> 0.01963426223 | AA19: =O19-INDEX($K19:$O19,1,aux!$AL$1) -> 34.715 | AB19: 0.008372607693 | AC19: 0.002172305535 | AD19: =+IF(INDEX($K19:$O19,1,aux!$AL$1)>0,(O19/INDEX($K19:$O19,1,aux!$AL$1))^(1/($O$3-INDEX($K$3:$O$3,1,aux!$AL$1)))-1,"n.d.") -> 2.418747464 | AE19: =IF(INDEX($K19:$O19,1,aux!$AL$1)>0,(O19-INDEX($K19:$O19,1,aux!$AL$1))/INDEX($K19:$O19,1,aux!$AL$1),"n.d.") -> 135.6054687
A20: 18 | B20: Cacau e suas preparações | C20: 2168.17 | D20: 2912.288 | E20: 3712.035 | F20: 4049.685 | G20: 3911.573 | H20: 3350.7502 | I20: 0.1212120333 | J20: 0.04758989247 | K20: 0.063 | L20: 0.227 | M20: 2.698 | N20: 4.032 | O20: 15.023 | P20: 4.4086 | Q20: 0.0003028417875 | R20: 0.0001044121605 | S20: -3346.3416 | U20: =G20-INDEX($C20:$G20,1,aux!$AL$1) -> 1743.403 | V20: 0.08734578928 | W20: 0.05152517233 | X20: =+IF(INDEX($C20:$G20,1,aux!$AL$1)>0,(G20/INDEX($C20:$G20,1,aux!$AL$1))^(1/($G$3-INDEX($C$3:$G$3,1,aux!$AL$1)))-1,"n.d.") -> 0.1589495393 | Y20: =IF(INDEX($C20:$G20,1,aux!$AL$1)>0,(G20-INDEX($C20:$G20,1,aux!$AL$1))/INDEX($C20:$G20,1,aux!$AL$1),"n.d.") -> 0.804089624 | AA20: =O20-INDEX($K20:$O20,1,aux!$AL$1) -> 14.96 | AB20: 0.003608071758 | AC20: 0.00093612821 | AD20: =+IF(INDEX($K20:$O20,1,aux!$AL$1)>0,(O20/INDEX($K20:$O20,1,aux!$AL$1))^(1/($O$3-INDEX($K$3:$O$3,1,aux!$AL$1)))-1,"n.d.") -> 2.929651433 | AE20: =IF(INDEX($K20:$O20,1,aux!$AL$1)>0,(O20-INDEX($K20:$O20,1,aux!$AL$1))/INDEX($K20:$O20,1,aux!$AL$1),"n.d.") -> 237.4603175
A21: 19a | B21: Preparações à base de cereais (exc. NC 19022010) (a) | C21: 1645.227 | D21: 1915.436 | E21: 2518.105 | F21: 3196.908 | G21: 3653.604 | H21: 2585.856 | I21: 0.09354229497 | J21: 0.03672628565 | K21: 1260.353 | L21: 1205.675 | M21: 1372.744 | N21: 1076.32 | O21: 141.008 | P21: 1011.22 | Q21: 0.06946415468 | R21: 0.02394947715 | S21: -1574.636 | U21: =G21-INDEX($C21:$G21,1,aux!$AL$1) -> 2008.377 | V21: 0.1006211841 | W21: 0.0593563112 | X21: =+IF(INDEX($C21:$G21,1,aux!$AL$1)>0,(G21/INDEX($C21:$G21,1,aux!$AL$1))^(1/($G$3-INDEX($C$3:$G$3,1,aux!$AL$1)))-1,"n.d.") -> 0.2207420692 | Y21: =IF(INDEX($C21:$G21,1,aux!$AL$1)>0,(G21-INDEX($C21:$G21,1,aux!$AL$1))/INDEX($C21:$G21,1,aux!$AL$1),"n.d.") -> 1.220729419 | AA21: =O21-INDEX($K21:$O21,1,aux!$AL$1) -> -1119.345 | AB21: -0.2699650456 | AC21: -0.07004347802 | AD21: =+IF(INDEX($K21:$O21,1,aux!$AL$1)>0,(O21/INDEX($K21:$O21,1,aux!$AL$1))^(1/($O$3-INDEX($K$3:$O$3,1,aux!$AL$1)))-1,"n.d.") -> -0.4216537975 | AE21: =IF(INDEX($K21:$O21,1,aux!$AL$1)>0,(O21-INDEX($K21:$O21,1,aux!$AL$1))/INDEX($K21:$O21,1,aux!$AL$1),"n.d.") -> -0.888120233
A22: 20 | B22: Preparações de produtos vegetais | C22: 1606.551 | D22: 1544.227 | E22: 3070.419 | F22: 3444.933 | G22: 1879.294 | H22: 2309.0848 | I22: 0.08353020875 | J22: 0.03279537142 | K22: 1536.415 | L22: 2448.32 | M22: 2633.994 | N22: 3923.36 | O22: 3391.008 | P22: 2786.6194 | Q22: 0.1914224017 | R22: 0.06599758475 | S22: 477.5346 | U22: =G22-INDEX($C22:$G22,1,aux!$AL$1) -> 272.743 | V22: 0.01366462752 | W22: 0.008060746756 | X22: =+IF(INDEX($C22:$G22,1,aux!$AL$1)>0,(G22/INDEX($C22:$G22,1,aux!$AL$1))^(1/($G$3-INDEX($C$3:$G$3,1,aux!$AL$1)))-1,"n.d.") -> 0.03998015613 | Y22: =IF(INDEX($C22:$G22,1,aux!$AL$1)>0,(G22-INDEX($C22:$G22,1,aux!$AL$1))/INDEX($C22:$G22,1,aux!$AL$1),"n.d.") -> 0.1697692759 | AA22: =O22-INDEX($K22:$O22,1,aux!$AL$1) -> 1854.593 | AB22: 0.44729309 | AC22: 0.1160519268 | AD22: =+IF(INDEX($K22:$O22,1,aux!$AL$1)>0,(O22/INDEX($K22:$O22,1,aux!$AL$1))^(1/($O$3-INDEX($K$3:$O$3,1,aux!$AL$1)))-1,"n.d.") -> 0.2188634918 | AE22: =IF(INDEX($K22:$O22,1,aux!$AL$1)>0,(O22-INDEX($K22:$O22,1,aux!$AL$1))/INDEX($K22:$O22,1,aux!$AL$1),"n.d.") -> 1.207091183
A23: 21 | B23: Preparações alimentícias diversas | C23: 1376.123 | D23: 1723.436 | E23: 3499.497 | F23: 3497.696 | G23: 2657.884 | H23: 2550.9272 | I23: 0.09227875975 | J23: 0.03623020037 | K23: 395.841 | L23: 1813.666 | M23: 1097.278 | N23: 1736.619 | O23: 1634.299 | P23: 1335.5406 | Q23: 0.09174284411 | R23: 0.03163060371 | S23: -1215.3866 | U23: =G23-INDEX($C23:$G23,1,aux!$AL$1) -> 1281.761 | V23: 0.06421718112 | W23: 0.03788163517 | X23: =+IF(INDEX($C23:$G23,1,aux!$AL$1)>0,(G23/INDEX($C23:$G23,1,aux!$AL$1))^(1/($G$3-INDEX($C$3:$G$3,1,aux!$AL$1)))-1,"n.d.") -> 0.178880251 | Y23: =IF(INDEX($C23:$G23,1,aux!$AL$1)>0,(G23-INDEX($C23:$G23,1,aux!$AL$1))/INDEX($C23:$G23,1,aux!$AL$1),"n.d.") -> 0.9314290946 | AA23: =O23-INDEX($K23:$O23,1,aux!$AL$1) -> 1238.458 | AB23: 0.2986928699 | AC23: 0.07749702344 | AD23: =+IF(INDEX($K23:$O23,1,aux!$AL$1)>0,(O23/INDEX($K23:$O23,1,aux!$AL$1))^(1/($O$3-INDEX($K$3:$O$3,1,aux!$AL$1)))-1,"n.d.") -> 0.4254522866 | AE23: =IF(INDEX($K23:$O23,1,aux!$AL$1)>0,(O23-INDEX($K23:$O23,1,aux!$AL$1))/INDEX($K23:$O23,1,aux!$AL$1),"n.d.") -> 3.128675402
A24: 22 | B24: Bebidas, líquidos alcoólicos e vinagres | C24: 4147.187 | D24: 3571.999 | E24: 3550.933 | F24: 6684.788 | G24: 9012.958 | H24: 5393.573 | I24: 0.1951103219 | J24: 0.07660360927 | K24: 2071.198 | L24: 2365.962 | M24: 2410.853 | N24: 2973.26 | O24: 2968.591 | P24: 2557.9728 | Q24: 0.175715886 | R24: 0.06058237686 | S24: -2835.6002 | U24: =G24-INDEX($C24:$G24,1,aux!$AL$1) -> 4865.771 | V24: 0.2437787525 | W24: 0.1438047825 | X24: =+IF(INDEX($C24:$G24,1,aux!$AL$1)>0,(G24/INDEX($C24:$G24,1,aux!$AL$1))^(1/($G$3-INDEX($C$3:$G$3,1,aux!$AL$1)))-1,"n.d.") -> 0.2141670203 | Y24: =IF(INDEX($C24:$G24,1,aux!$AL$1)>0,(G24-INDEX($C24:$G24,1,aux!$AL$1))/INDEX($C24:$G24,1,aux!$AL$1),"n.d.") -> 1.173270219 | AA24: =O24-INDEX($K24:$O24,1,aux!$AL$1) -> 897.393 | AB24: 0.216434381 | AC24: 0.05615473949 | AD24: =+IF(INDEX($K24:$O24,1,aux!$AL$1)>0,(O24/INDEX($K24:$O24,1,aux!$AL$1))^(1/($O$3-INDEX($K$3:$O$3,1,aux!$AL$1)))-1,"n.d.") -> 0.09416340921 | AE24: =IF(INDEX($K24:$O24,1,aux!$AL$1)>0,(O24-INDEX($K24:$O24,1,aux!$AL$1))/INDEX($K24:$O24,1,aux!$AL$1),"n.d.") -> 0.4332724346
A25: 23a | B25: Resíduos indústrias alimentares; alimentos p/ animais (exc. NC 230120) (a) | C25: 1467.372 | D25: 2127.834 | E25: 2281.698 | F25: 1268.522 | G25: 1214.878 | H25: 1672.0608 | I25: 0.06048612319 | J25: 0.02374787404 | K25: 6.093 | L25: 10.851 | M25: 0.068 | N25: 0 | O25: 0.5 | P25: 3.5024 | Q25: 0.0002405918152 | R25: 8.294995033e-05 | S25: -1668.5584 | U25: =G25-INDEX($C25:$G25,1,aux!$AL$1) -> -252.494 | V25: -0.01265013753 | W25: -0.007462300375 | X25: =+IF(INDEX($C25:$G25,1,aux!$AL$1)>0,(G25/INDEX($C25:$G25,1,aux!$AL$1))^(1/($G$3-INDEX($C$3:$G$3,1,aux!$AL$1)))-1,"n.d.") -> -0.04611040847 | Y25: =IF(INDEX($C25:$G25,1,aux!$AL$1)>0,(G25-INDEX($C25:$G25,1,aux!$AL$1))/INDEX($C25:$G25,1,aux!$AL$1),"n.d.") -> -0.1720722489 | AA25: =O25-INDEX($K25:$O25,1,aux!$AL$1) -> -5.593 | AB25: -0.001348926828 | AC25: -0.0003499842967 | AD25: =+IF(INDEX($K25:$O25,1,aux!$AL$1)>0,(O25/INDEX($K25:$O25,1,aux!$AL$1))^(1/($O$3-INDEX($K$3:$O$3,1,aux!$AL$1)))-1,"n.d.") -> -0.4647770757 | AE25: =IF(INDEX($K25:$O25,1,aux!$AL$1)>0,(O25-INDEX($K25:$O25,1,aux!$AL$1))/INDEX($K25:$O25,1,aux!$AL$1),"n.d.") -> -0.9179386181
A26: 24 | B26: Tabaco | C26: 0 | D26: 0 | E26: 0 | F26: 0 | G26: 0 | H26: 0 | I26: 0 | J26: 0 | K26: 0 | L26: 0 | M26: 142.784 | N26: 1595.761 | O26: 1244.936 | P26: 596.6962 | Q26: 0.04098909944 | R26: 0.01413200096 | S26: 596.6962 | U26: =G26-INDEX($C26:$G26,1,aux!$AL$1) -> 0 | V26: 0 | W26: 0 | X26: =+IF(INDEX($C26:$G26,1,aux!$AL$1)>0,(G26/INDEX($C26:$G26,1,aux!$AL$1))^(1/($G$3-INDEX($C$3:$G$3,1,aux!$AL$1)))-1,"n.d.") -> n.d. | Y26: =IF(INDEX($C26:$G26,1,aux!$AL$1)>0,(G26-INDEX($C26:$G26,1,aux!$AL$1))/INDEX($C26:$G26,1,aux!$AL$1),"n.d.") -> n.d. | AA26: =O26-INDEX($K26:$O26,1,aux!$AL$1) -> 1244.936 | AB26: 0.3002552421 | AC26: 0.07790238698 | AD26: =+IF(INDEX($K26:$O26,1,aux!$AL$1)>0,(O26/INDEX($K26:$O26,1,aux!$AL$1))^(1/($O$3-INDEX($K$3:$O$3,1,aux!$AL$1)))-1,"n.d.") -> n.d. | AE26: =IF(INDEX($K26:$O26,1,aux!$AL$1)>0,(O26-INDEX($K26:$O26,1,aux!$AL$1))/INDEX($K26:$O26,1,aux!$AL$1),"n.d.") -> n.d.
A27: 29 | B27: Manitol e sorbitol (NC 290543; 290544) | C27: 0 | D27: 0 | E27: 0 | F27: 0 | G27: 0 | H27: 0 | I27: 0 | J27: 0 | K27: 0 | L27: 0 | M27: 0 | N27: 0 | O27: 0 | P27: 0 | Q27: 0 | R27: 0 | S27: 0 | U27: =G27-INDEX($C27:$G27,1,aux!$AL$1) -> 0 | V27: 0 | W27: 0 | X27: =+IF(INDEX($C27:$G27,1,aux!$AL$1)>0,(G27/INDEX($C27:$G27,1,aux!$AL$1))^(1/($G$3-INDEX($C$3:$G$3,1,aux!$AL$1)))-1,"n.d.") -> n.d. | Y27: =IF(INDEX($C27:$G27,1,aux!$AL$1)>0,(G27-INDEX($C27:$G27,1,aux!$AL$1))/INDEX($C27:$G27,1,aux!$AL$1),"n.d.") -> n.d. | AA27: =O27-INDEX($K27:$O27,1,aux!$AL$1) -> 0 | AB27: 0 | AC27: 0 | AD27: =+IF(INDEX($K27:$O27,1,aux!$AL$1)>0,(O27/INDEX($K27:$O27,1,aux!$AL$1))^(1/($O$3-INDEX($K$3:$O$3,1,aux!$AL$1)))-1,"n.d.") -> n.d. | AE27: =IF(INDEX($K27:$O27,1,aux!$AL$1)>0,(O27-INDEX($K27:$O27,1,aux!$AL$1))/INDEX($K27:$O27,1,aux!$AL$1),"n.d.") -> n.d.
A28: 33 | B28: Óleos essenciais e resinóides (NC 3301) | C28: 50.906 | D28: 25.792 | E28: 16.039 | F28: 26.28 | G28: 21.282 | H28: 28.0598 | I28: 0.001015051916 | J28: 0.0003985265344 | K28: 0 | L28: 0 | M28: 94.287 | N28: 0 | O28: 0.021 | P28: 18.8616 | Q28: 0.001295667708 | R28: 0.0004467133346 | S28: -9.1982 | U28: =G28-INDEX($C28:$G28,1,aux!$AL$1) -> -29.624 | V28: -0.001484184472 | W28: -0.000875518572 | X28: =+IF(INDEX($C28:$G28,1,aux!$AL$1)>0,(G28/INDEX($C28:$G28,1,aux!$AL$1))^(1/($G$3-INDEX($C$3:$G$3,1,aux!$AL$1)))-1,"n.d.") -> -0.1958985108 | Y28: =IF(INDEX($C28:$G28,1,aux!$AL$1)>0,(G28-INDEX($C28:$G28,1,aux!$AL$1))/INDEX($C28:$G28,1,aux!$AL$1),"n.d.") -> -0.5819353318 | AA28: =O28-INDEX($K28:$O28,1,aux!$AL$1) -> 0.021 | AB28: 5.064806612e-06 | AC28: 1.314083717e-06 | AD28: =+IF(INDEX($K28:$O28,1,aux!$AL$1)>0,(O28/INDEX($K28:$O28,1,aux!$AL$1))^(1/($O$3-INDEX($K$3:$O$3,1,aux!$AL$1)))-1,"n.d.") -> n.d. | AE28: =IF(INDEX($K28:$O28,1,aux!$AL$1)>0,(O28-INDEX($K28:$O28,1,aux!$AL$1))/INDEX($K28:$O28,1,aux!$AL$1),"n.d.") -> n.d.
A29: 35 | B29: Caseínas, albuminas, gelatinas, peptonas, dextrinas (NC 3501 a 3505) | C29: 4.593 | D29: 29.573 | E29: 12.016 | F29: 114.085 | G29: 240.811 | H29: 80.2156 | I29: 0.002901766887 | J29: 0.001139282713 | K29: 0 | L29: 1.091 | M29: 0 | N29: 34.631 | O29: 0.12 | P29: 7.1684 | Q29: 0.000492421873 | R29: 0.0001697745614 | S29: -73.0472 | U29: =G29-INDEX($C29:$G29,1,aux!$AL$1) -> 236.218 | V29: 0.0118346978 | W29: 0.006981273496 | X29: =+IF(INDEX($C29:$G29,1,aux!$AL$1)>0,(G29/INDEX($C29:$G29,1,aux!$AL$1))^(1/($G$3-INDEX($C$3:$G$3,1,aux!$AL$1)))-1,"n.d.") -> 1.690883954 | Y29: =IF(INDEX($C29:$G29,1,aux!$AL$1)>0,(G29-INDEX($C29:$G29,1,aux!$AL$1))/INDEX($C29:$G29,1,aux!$AL$1),"n.d.") -> 51.43000218 | AA29: =O29-INDEX($K29:$O29,1,aux!$AL$1) -> 0.12 | AB29: 2.894175207e-05 | AC29: 7.509049813e-06 | AD29: =+IF(INDEX($K29:$O29,1,aux!$AL$1)>0,(O29/INDEX($K29:$O29,1,aux!$AL$1))^(1/($O$3-INDEX($K$3:$O$3,1,aux!$AL$1)))-1,"n.d.") -> n.d. | AE29: =IF(INDEX($K29:$O29,1,aux!$AL$1)>0,(O29-INDEX($K29:$O29,1,aux!$AL$1))/INDEX($K29:$O29,1,aux!$AL$1),"n.d.") -> n.d.
A30: 38a | B30: Agentes de acabamento, ácidos gordos, sorbitol (NC 380910, 382311-12-13-19-70, 382460) (a) | C30: 1812.716 | D30: 1560.282 | E30: 1972.703 | F30: 3113.611 | G30: 2049.901 | H30: 2101.8426 | I30: 0.07603330598 | J30: 0.02985196071 | K30: 0 | L30: 0 | M30: 0 | N30: 0 | O30: 0 | P30: 0 | Q30: 0 | R30: 0 | S30: -2101.8426 | U30: =G30-INDEX($C30:$G30,1,aux!$AL$1) -> 237.185 | V30: 0.01188314522 | W30: 0.007009852569 | X30: =+IF(INDEX($C30:$G30,1,aux!$AL$1)>0,(G30/INDEX($C30:$G30,1,aux!$AL$1))^(1/($G$3-INDEX($C$3:$G$3,1,aux!$AL$1)))-1,"n.d.") -> 0.03121869987 | Y30: =IF(INDEX($C30:$G30,1,aux!$AL$1)>0,(G30-INDEX($C30:$G30,1,aux!$AL$1))/INDEX($C30:$G30,1,aux!$AL$1),"n.d.") -> 0.1308450965 | AA30: =O30-INDEX($K30:$O30,1,aux!$AL$1) -> 0 | AB30: 0 | AC30: 0 | AD30: =+IF(INDEX($K30:$O30,1,aux!$AL$1)>0,(O30/INDEX($K30:$O30,1,aux!$AL$1))^(1/($O$3-INDEX($K$3:$O$3,1,aux!$AL$1)))-1,"n.d.") -> n.d. | AE30: =IF(INDEX($K30:$O30,1,aux!$AL$1)>0,(O30-INDEX($K30:$O30,1,aux!$AL$1))/INDEX($K30:$O30,1,aux!$AL$1),"n.d.") -> n.d.
A31: 41 | B31: Couro e peles em bruto (NC 4101 a 4103) | C31: 544.507 | D31: 388.609 | E31: 444.909 | F31: 531.377 | G31: 466.409 | H31: 475.1622 | I31: 0.01718880041 | J31: 0.006748613491 | K31: 0 | L31: 0 | M31: 0 | N31: 0 | O31: 39.977 | P31: 7.9954 | Q31: 0.0005492313269 | R31: 0.000189361019 | S31: -467.1668 | U31: =G31-INDEX($C31:$G31,1,aux!$AL$1) -> -78.098 | V31: -0.00391276799 | W31: -0.002308136965 | X31: =+IF(INDEX($C31:$G31,1,aux!$AL$1)>0,(G31/INDEX($C31:$G31,1,aux!$AL$1))^(1/($G$3-INDEX($C$3:$G$3,1,aux!$AL$1)))-1,"n.d.") -> -0.03796501942 | Y31: =IF(INDEX($C31:$G31,1,aux!$AL$1)>0,(G31-INDEX($C31:$G31,1,aux!$AL$1))/INDEX($C31:$G31,1,aux!$AL$1),"n.d.") -> -0.1434288264 | AA31: =O31-INDEX($K31:$O31,1,aux!$AL$1) -> 39.977 | AB31: 0.009641703521 | AC31: 0.00250157737 | AD31: =+IF(INDEX($K31:$O31,1,aux!$AL$1)>0,(O31/INDEX($K31:$O31,1,aux!$AL$1))^(1/($O$3-INDEX($K$3:$O$3,1,aux!$AL$1)))-1,"n.d.") -> n.d. | AE31: =IF(INDEX($K31:$O31,1,aux!$AL$1)>0,(O31-INDEX($K31:$O31,1,aux!$AL$1))/INDEX($K31:$O31,1,aux!$AL$1),"n.d.") -> n.d.
A32: 43 | B32: Peles com pelo em bruto (NC 4301) | C32: 0 | D32: 0 | E32: 0 | F32: 0 | G32: 0 | H32: 0 | I32: 0 | J32: 0 | K32: 0 | L32: 0 | M32: 0 | N32: 0 | O32: 0 | P32: 0 | Q32: 0 | R32: 0 | S32: 0 | U32: =G32-INDEX($C32:$G32,1,aux!$AL$1) -> 0 | V32: 0 | W32: 0 | X32: =+IF(INDEX($C32:$G32,1,aux!$AL$1)>0,(G32/INDEX($C32:$G32,1,aux!$AL$1))^(1/($G$3-INDEX($C$3:$G$3,1,aux!$AL$1)))-1,"n.d.") -> n.d. | Y32: =IF(INDEX($C32:$G32,1,aux!$AL$1)>0,(G32-INDEX($C32:$G32,1,aux!$AL$1))/INDEX($C32:$G32,1,aux!$AL$1),"n.d.") -> n.d. | AA32: =O32-INDEX($K32:$O32,1,aux!$AL$1) -> 0 | AB32: 0 | AC32: 0 | AD32: =+IF(INDEX($K32:$O32,1,aux!$AL$1)>0,(O32/INDEX($K32:$O32,1,aux!$AL$1))^(1/($O$3-INDEX($K$3:$O$3,1,aux!$AL$1)))-1,"n.d.") -> n.d. | AE32: =IF(INDEX($K32:$O32,1,aux!$AL$1)>0,(O32-INDEX($K32:$O32,1,aux!$AL$1))/INDEX($K32:$O32,1,aux!$AL$1),"n.d.") -> n.d.
A33: 50 | B33: Seda crua (NC 5001-5003) | C33: 18.765 | D33: 27.498 | E33: 20.105 | F33: 0 | G33: 0 | H33: 13.2736 | I33: 0.0004801671116 | J33: 0.0001885217217 | K33: 9.642 | L33: 0 | M33: 0 | N33: 0 | O33: 0 | P33: 1.9284 | Q33: 0.0001324683807 | R33: 4.567173487e-05 | S33: -11.3452 | U33: =G33-INDEX($C33:$G33,1,aux!$AL$1) -> -18.765 | V33: -0.0009401404815 | W33: -0.0005545876993 | X33: =+IF(INDEX($C33:$G33,1,aux!$AL$1)>0,(G33/INDEX($C33:$G33,1,aux!$AL$1))^(1/($G$3-INDEX($C$3:$G$3,1,aux!$AL$1)))-1,"n.d.") -> -1 | Y33: =IF(INDEX($C33:$G33,1,aux!$AL$1)>0,(G33-INDEX($C33:$G33,1,aux!$AL$1))/INDEX($C33:$G33,1,aux!$AL$1),"n.d.") -> -1 | AA33: =O33-INDEX($K33:$O33,1,aux!$AL$1) -> -9.642 | AB33: -0.002325469779 | AC33: -0.0006033521525 | AD33: =+IF(INDEX($K33:$O33,1,aux!$AL$1)>0,(O33/INDEX($K33:$O33,1,aux!$AL$1))^(1/($O$3-INDEX($K$3:$O$3,1,aux!$AL$1)))-1,"n.d.") -> -1 | AE33: =IF(INDEX($K33:$O33,1,aux!$AL$1)>0,(O33-INDEX($K33:$O33,1,aux!$AL$1))/INDEX($K33:$O33,1,aux!$AL$1),"n.d.") -> -1
A34: 51 | B34: Lã não cardada (NC 5101-5103) | C34: 0 | D34: 0 | E34: 4.732 | F34: 46.705 | G34: 12.496 | H34: 12.7866 | I34: 0.0004625500835 | J34: 0.0001816049788 | K34: 0 | L34: 0 | M34: 0 | N34: 0 | O34: 0 | P34: 0 | Q34: 0 | R34: 0 | S34: -12.7866 | U34: =G34-INDEX($C34:$G34,1,aux!$AL$1) -> 12.496 | V34: 0.0006260589106 | W34: 0.0003693113717 | X34: =+IF(INDEX($C34:$G34,1,aux!$AL$1)>0,(G34/INDEX($C34:$G34,1,aux!$AL$1))^(1/($G$3-INDEX($C$3:$G$3,1,aux!$AL$1)))-1,"n.d.") -> n.d. | Y34: =IF(INDEX($C34:$G34,1,aux!$AL$1)>0,(G34-INDEX($C34:$G34,1,aux!$AL$1))/INDEX($C34:$G34,1,aux!$AL$1),"n.d.") -> n.d. | AA34: =O34-INDEX($K34:$O34,1,aux!$AL$1) -> 0 | AB34: 0 | AC34: 0 | AD34: =+IF(INDEX($K34:$O34,1,aux!$AL$1)>0,(O34/INDEX($K34:$O34,1,aux!$AL$1))^(1/($O$3-INDEX($K$3:$O$3,1,aux!$AL$1)))-1,"n.d.") -> n.d. | AE34: =IF(INDEX($K34:$O34,1,aux!$AL$1)>0,(O34-INDEX($K34:$O34,1,aux!$AL$1))/INDEX($K34:$O34,1,aux!$AL$1),"n.d.") -> n.d.
A35: 52 | B35: Algodão (NC 5201-5203) | C35: 6.522 | D35: 104.442 | E35: 38.561 | F35: 20.897 | G35: 240.162 | H35: 82.1168 | I35: 0.002970542028 | J35: 0.001166284995 | K35: 0 | L35: 94.404 | M35: 35.185 | N35: 13.092 | O35: 16.142 | P35: 31.7646 | Q35: 0.002182018837 | R35: 0.0007523047032 | S35: -50.3522 | U35: =G35-INDEX($C35:$G35,1,aux!$AL$1) -> 233.64 | V35: 0.01170553808 | W35: 0.006905082337 | X35: =+IF(INDEX($C35:$G35,1,aux!$AL$1)>0,(G35/INDEX($C35:$G35,1,aux!$AL$1))^(1/($G$3-INDEX($C$3:$G$3,1,aux!$AL$1)))-1,"n.d.") -> 1.463376955 | Y35: =IF(INDEX($C35:$G35,1,aux!$AL$1)>0,(G35-INDEX($C35:$G35,1,aux!$AL$1))/INDEX($C35:$G35,1,aux!$AL$1),"n.d.") -> 35.82336707 | AA35: =O35-INDEX($K35:$O35,1,aux!$AL$1) -> 16.142 | AB35: 0.003893148016 | AC35: 0.001010092351 | AD35: =+IF(INDEX($K35:$O35,1,aux!$AL$1)>0,(O35/INDEX($K35:$O35,1,aux!$AL$1))^(1/($O$3-INDEX($K$3:$O$3,1,aux!$AL$1)))-1,"n.d.") -> n.d. | AE35: =IF(INDEX($K35:$O35,1,aux!$AL$1)>0,(O35-INDEX($K35:$O35,1,aux!$AL$1))/INDEX($K35:$O35,1,aux!$AL$1),"n.d.") -> n.d.
A36: 53 | B36: Linho e cânhamo em bruto (NC 5301-5302) | C36: 0.123 | D36: 0.064 | E36: 2.373 | F36: 0.116 | G36: 0 | H36: 0.5352 | I36: 1.936064354e-05 | J36: 7.601315804e-06 | K36: 0 | L36: 0 | M36: 0.501 | N36: 0 | O36: 0 | P36: 0.1002 | Q36: 6.88308014e-06 | R36: 2.373111302e-06 | S36: -0.435 | U36: =G36-INDEX($C36:$G36,1,aux!$AL$1) -> -0.123 | V36: -6.162391645e-06 | W36: =IF($U$53<>0,U36/$U$53, "n.d.") -> -3.635187158e-06 | X36: =+IF(INDEX($C36:$G36,1,aux!$AL$1)>0,(G36/INDEX($C36:$G36,1,aux!$AL$1))^(1/($G$3-INDEX($C$3:$G$3,1,aux!$AL$1)))-1,"n.d.") -> -1 | Y36: =IF(INDEX($C36:$G36,1,aux!$AL$1)>0,(G36-INDEX($C36:$G36,1,aux!$AL$1))/INDEX($C36:$G36,1,aux!$AL$1),"n.d.") -> -1 | AA36: =O36-INDEX($K36:$O36,1,aux!$AL$1) -> 0 | AB36: 0 | AC36: =IF($AA$53<>0,AA36/$AA$53, "n.d.") -> 0 | AD36: =+IF(INDEX($K36:$O36,1,aux!$AL$1)>0,(O36/INDEX($K36:$O36,1,aux!$AL$1))^(1/($O$3-INDEX($K$3:$O$3,1,aux!$AL$1)))-1,"n.d.") -> n.d. | AE36: =IF(INDEX($K36:$O36,1,aux!$AL$1)>0,(O36-INDEX($K36:$O36,1,aux!$AL$1))/INDEX($K36:$O36,1,aux!$AL$1),"n.d.") -> n.d.
A37: Subtotal Agrícola e Agroalimentar | C37: 18330.989 | D37: 19406.175 | E37: 26352.212 | F37: 35838.398 | G37: 38290.772 | H37: 27643.7092 | I37: 1 | J37: 0.3926168976 | K37: 12232.816 | L37: 12091.572 | M37: 12212.269 | N37: 19871.449 | O37: 16379.075 | P37: 14557.4362 | Q37: 1 | R37: 0.3447746145 | S37: -13086.273 | U37: =G37-INDEX($C37:$G37,1,aux!$AL$1) -> 19959.783 | V37: 1 | W37: 0.5898987547 | X37: =+IF(INDEX($C37:$G37,1,aux!$AL$1)>0,(G37/INDEX($C37:$G37,1,aux!$AL$1))^(1/($G$3-INDEX($C$3:$G$3,1,aux!$AL$1)))-1,"n.d.") -> 0.2022009212 | Y37: =IF(INDEX($C37:$G37,1,aux!$AL$1)>0,(G37-INDEX($C37:$G37,1,aux!$AL$1))/INDEX($C37:$G37,1,aux!$AL$1),"n.d.") -> 1.088854671 | AA37: =O37-INDEX($K37:$O37,1,aux!$AL$1) -> 4146.259 | AB37: 1 | AC37: 0.2594538781 | AD37: =+IF(INDEX($K37:$O37,1,aux!$AL$1)>0,(O37/INDEX($K37:$O37,1,aux!$AL$1))^(1/($O$3-INDEX($K$3:$O$3,1,aux!$AL$1)))-1,"n.d.") -> 0.07569891866 | AE37: =IF(INDEX($K37:$O37,1,aux!$AL$1)>0,(O37-INDEX($K37:$O37,1,aux!$AL$1))/INDEX($K37:$O37,1,aux!$AL$1),"n.d.") -> 0.338945587
A38: 03 | B38: Peixes e crustáceos | C38: 212.52 | D38: 153.778 | E38: 32.954 | F38: 0 | G38: 0 | H38: 79.8504 | I38: 0.4657705562 | J38: 0.001134095866 | K38: 742.533 | L38: 290.944 | M38: 528.158 | N38: 641.695 | O38: 454.648 | P38: 531.5956 | Q38: 0.07077461029 | R38: 0.01259017491 | S38: 451.7452 | U38: =G38-INDEX($C38:$G38,1,aux!$AL$1) -> -212.52 | V38: =IF($U$44<>0,U38/$U$44, "n.d.") -> 7.420131979 | W38: -0.006280894104 | X38: =+IF(INDEX($C38:$G38,1,aux!$AL$1)>0,(G38/INDEX($C38:$G38,1,aux!$AL$1))^(1/($G$3-INDEX($C$3:$G$3,1,aux!$AL$1)))-1,"n.d.") -> -1 | Y38: =IF(INDEX($C38:$G38,1,aux!$AL$1)>0,(G38-INDEX($C38:$G38,1,aux!$AL$1))/INDEX($C38:$G38,1,aux!$AL$1),"n.d.") -> -1 | AA38: =O38-INDEX($K38:$O38,1,aux!$AL$1) -> -287.885 | AB38: =IF($AA$44<>0,AA38/$AA$44, "n.d.") -> -0.07875235975 | AC38: -0.01801452338 | AD38: =+IF(INDEX($K38:$O38,1,aux!$AL$1)>0,(O38/INDEX($K38:$O38,1,aux!$AL$1))^(1/($O$3-INDEX($K$3:$O$3,1,aux!$AL$1)))-1,"n.d.") -> -0.1154143673 | AE38: =IF(INDEX($K38:$O38,1,aux!$AL$1)>0,(O38-INDEX($K38:$O38,1,aux!$AL$1))/INDEX($K38:$O38,1,aux!$AL$1),"n.d.") -> -0.3877066743
A39: 05p | B39: Outros produtos de pescado (NC 0508, 051191) (p) | C39: 0 | D39: 0 | E39: 0 | F39: 0 | G39: 0 | H39: 0 | I39: 0 | J39: 0 | K39: 0 | L39: 0.271 | M39: 1.474 | N39: 1.075 | O39: 0.586 | P39: 0.6812 | Q39: 9.069236941e-05 | R39: 1.613336745e-05 | S39: 0.6812 | U39: =G39-INDEX($C39:$G39,1,aux!$AL$1) -> 0 | V39: 0 | W39: 0 | X39: =+IF(INDEX($C39:$G39,1,aux!$AL$1)>0,(G39/INDEX($C39:$G39,1,aux!$AL$1))^(1/($G$3-INDEX($C$3:$G$3,1,aux!$AL$1)))-1,"n.d.") -> n.d. | Y39: =IF(INDEX($C39:$G39,1,aux!$AL$1)>0,(G39-INDEX($C39:$G39,1,aux!$AL$1))/INDEX($C39:$G39,1,aux!$AL$1),"n.d.") -> n.d. | AA39: =O39-INDEX($K39:$O39,1,aux!$AL$1) -> 0.586 | AB39: 0.0001603031864 | AC39: 3.666919325e-05 | AD39: =+IF(INDEX($K39:$O39,1,aux!$AL$1)>0,(O39/INDEX($K39:$O39,1,aux!$AL$1))^(1/($O$3-INDEX($K$3:$O$3,1,aux!$AL$1)))-1,"n.d.") -> n.d. | AE39: =IF(INDEX($K39:$O39,1,aux!$AL$1)>0,(O39-INDEX($K39:$O39,1,aux!$AL$1))/INDEX($K39:$O39,1,aux!$AL$1),"n.d.") -> n.d.
A40: 16p | B40: Preparações e conservas de peixes ou crustáceos (NC 1604-05) (p) | C40: 0.03 | D40: 8.53 | E40: 10.306 | F40: 155.842 | G40: 166.562 | H40: 68.254 | I40: 0.3981282942 | J40: 0.0009693950091 | K40: 4965.132 | L40: 5206.308 | M40: 6208.306 | N40: 9396.324 | O40: 8942.39 | P40: 6943.692 | Q40: 0.9244566646 | R40: 0.1644526343 | S40: 6875.438 | U40: =G40-INDEX($C40:$G40,1,aux!$AL$1) -> 166.532 | V40: -5.814461786 | W40: 0.004921747868 | X40: =+IF(INDEX($C40:$G40,1,aux!$AL$1)>0,(G40/INDEX($C40:$G40,1,aux!$AL$1))^(1/($G$3-INDEX($C$3:$G$3,1,aux!$AL$1)))-1,"n.d.") -> 7.632044451 | Y40: =IF(INDEX($C40:$G40,1,aux!$AL$1)>0,(G40-INDEX($C40:$G40,1,aux!$AL$1))/INDEX($C40:$G40,1,aux!$AL$1),"n.d.") -> 5551.066667 | AA40: =O40-INDEX($K40:$O40,1,aux!$AL$1) -> 3977.258 | AB40: 1.087998516 | AC40: 0.2488785703 | AD40: =+IF(INDEX($K40:$O40,1,aux!$AL$1)>0,(O40/INDEX($K40:$O40,1,aux!$AL$1))^(1/($O$3-INDEX($K$3:$O$3,1,aux!$AL$1)))-1,"n.d.") -> 0.1584590907 | AE40: =IF(INDEX($K40:$O40,1,aux!$AL$1)>0,(O40-INDEX($K40:$O40,1,aux!$AL$1))/INDEX($K40:$O40,1,aux!$AL$1),"n.d.") -> 0.8010377166
A41: 19p | B41: Massas recheadas com pescado (NC 19022010) (p) | C41: 0 | D41: 0 | E41: 0 | F41: 0 | G41: 0 | H41: 0 | I41: 0 | J41: 0 | K41: 0 | L41: 0 | M41: 0 | N41: 0 | O41: 0 | P41: 0 | Q41: 0 | R41: 0 | S41: 0 | U41: =G41-INDEX($C41:$G41,1,aux!$AL$1) -> 0 | V41: 0 | W41: 0 | X41: =+IF(INDEX($C41:$G41,1,aux!$AL$1)>0,(G41/INDEX($C41:$G41,1,aux!$AL$1))^(1/($G$3-INDEX($C$3:$G$3,1,aux!$AL$1)))-1,"n.d.") -> n.d. | Y41: =IF(INDEX($C41:$G41,1,aux!$AL$1)>0,(G41-INDEX($C41:$G41,1,aux!$AL$1))/INDEX($C41:$G41,1,aux!$AL$1),"n.d.") -> n.d. | AA41: =O41-INDEX($K41:$O41,1,aux!$AL$1) -> 0 | AB41: 0 | AC41: 0 | AD41: =+IF(INDEX($K41:$O41,1,aux!$AL$1)>0,(O41/INDEX($K41:$O41,1,aux!$AL$1))^(1/($O$3-INDEX($K$3:$O$3,1,aux!$AL$1)))-1,"n.d.") -> n.d. | AE41: =IF(INDEX($K41:$O41,1,aux!$AL$1)>0,(O41-INDEX($K41:$O41,1,aux!$AL$1))/INDEX($K41:$O41,1,aux!$AL$1),"n.d.") -> n.d.
A42: 23p | B42: Farinhas de pescado (NC 230120) (p) | C42: 0 | D42: 0 | E42: 0 | F42: 0 | G42: 0 | H42: 0 | I42: 0 | J42: 0 | K42: 0 | L42: 0 | M42: 0 | N42: 0 | O42: 0 | P42: 0 | Q42: 0 | R42: 0 | S42: 0 | U42: =G42-INDEX($C42:$G42,1,aux!$AL$1) -> 0 | V42: 0 | W42: 0 | X42: =+IF(INDEX($C42:$G42,1,aux!$AL$1)>0,(G42/INDEX($C42:$G42,1,aux!$AL$1))^(1/($G$3-INDEX($C$3:$G$3,1,aux!$AL$1)))-1,"n.d.") -> n.d. | Y42: =IF(INDEX($C42:$G42,1,aux!$AL$1)>0,(G42-INDEX($C42:$G42,1,aux!$AL$1))/INDEX($C42:$G42,1,aux!$AL$1),"n.d.") -> n.d. | AA42: =O42-INDEX($K42:$O42,1,aux!$AL$1) -> 0 | AB42: 0 | AC42: 0 | AD42: =+IF(INDEX($K42:$O42,1,aux!$AL$1)>0,(O42/INDEX($K42:$O42,1,aux!$AL$1))^(1/($O$3-INDEX($K$3:$O$3,1,aux!$AL$1)))-1,"n.d.") -> n.d. | AE42: =IF(INDEX($K42:$O42,1,aux!$AL$1)>0,(O42-INDEX($K42:$O42,1,aux!$AL$1))/INDEX($K42:$O42,1,aux!$AL$1),"n.d.") -> n.d.
A43: 25 | B43: Sal e cloreto de sódio puro; água do mar (NC 2501) | C43: 16.505 | D43: 24.017 | E43: 26.609 | F43: 15.681 | G43: 33.852 | H43: 23.3328 | I43: 0.1361011496 | J43: 0.0003313900997 | K43: 48.255 | L43: 54.906 | M43: 41.205 | N43: 17.451 | O43: 13.869 | P43: 35.1372 | Q43: 0.004678032769 | R43: 0.0008321805033 | S43: 11.8044 | U43: =G43-INDEX($C43:$G43,1,aux!$AL$1) -> 17.347 | V43: -0.6056701931 | W43: 0.0005126796067 | X43: =+IF(INDEX($C43:$G43,1,aux!$AL$1)>0,(G43/INDEX($C43:$G43,1,aux!$AL$1))^(1/($G$3-INDEX($C$3:$G$3,1,aux!$AL$1)))-1,"n.d.") -> 0.1967190403 | Y43: =IF(INDEX($C43:$G43,1,aux!$AL$1)>0,(G43-INDEX($C43:$G43,1,aux!$AL$1))/INDEX($C43:$G43,1,aux!$AL$1),"n.d.") -> 1.051014844 | AA43: =O43-INDEX($K43:$O43,1,aux!$AL$1) -> -34.386 | AB43: -0.009406459671 | AC43: -0.002151718224 | AD43: =+IF(INDEX($K43:$O43,1,aux!$AL$1)>0,(O43/INDEX($K43:$O43,1,aux!$AL$1))^(1/($O$3-INDEX($K$3:$O$3,1,aux!$AL$1)))-1,"n.d.") -> -0.2678067733 | AE43: =IF(INDEX($K43:$O43,1,aux!$AL$1)>0,(O43-INDEX($K43:$O43,1,aux!$AL$1))/INDEX($K43:$O43,1,aux!$AL$1),"n.d.") -> -0.712589369
A44: Subtotal Mar | C44: 229.055 | D44: 186.325 | E44: 69.869 | F44: 171.523 | G44: 200.414 | H44: 171.4372 | I44: 1 | J44: 0.002434880975 | K44: 5755.92 | L44: 5552.429 | M44: 6779.143 | N44: 10056.545 | O44: 9411.493 | P44: 7511.106 | Q44: 1 | R44: 0.1778911231 | S44: 7339.6688 | U44: =G44-INDEX($C44:$G44,1,aux!$AL$1) -> -28.641 | V44: 1 | W44: -0.0008464666291 | X44: =+IF(INDEX($C44:$G44,1,aux!$AL$1)>0,(G44/INDEX($C44:$G44,1,aux!$AL$1))^(1/($G$3-INDEX($C$3:$G$3,1,aux!$AL$1)))-1,"n.d.") -> -0.03284279853 | Y44: =IF(INDEX($C44:$G44,1,aux!$AL$1)>0,(G44-INDEX($C44:$G44,1,aux!$AL$1))/INDEX($C44:$G44,1,aux!$AL$1),"n.d.") -> -0.1250398376 | AA44: =O44-INDEX($K44:$O44,1,aux!$AL$1) -> 3655.573 | AB44: 1 | AC44: 0.2287489979 | AD44: =+IF(INDEX($K44:$O44,1,aux!$AL$1)>0,(O44/INDEX($K44:$O44,1,aux!$AL$1))^(1/($O$3-INDEX($K$3:$O$3,1,aux!$AL$1)))-1,"n.d.") -> 0.1308003744 | AE44: =IF(INDEX($K44:$O44,1,aux!$AL$1)>0,(O44-INDEX($K44:$O44,1,aux!$AL$1))/INDEX($K44:$O44,1,aux!$AL$1),"n.d.") -> 0.6350979513
A45: 13f | B45: Gomas e resinas (NC 1301) (f) | C45: 0 | D45: 0 | E45: 0 | F45: 0 | G45: 0 | H45: 0 | I45: 0 | J45: 0 | K45: 0.162 | L45: 0.923 | M45: 2.237 | N45: 0.709 | O45: 0.015 | P45: 0.8092 | Q45: 4.014982454e-05 | R45: 1.916488688e-05 | S45: 0.8092 | U45: =G45-INDEX($C45:$G45,1,aux!$AL$1) -> 0 | V45: =IF($U$52<>0,U45/$U$52, "n.d.") -> 0 | W45: 0 | X45: =+IF(INDEX($C45:$G45,1,aux!$AL$1)>0,(G45/INDEX($C45:$G45,1,aux!$AL$1))^(1/($G$3-INDEX($C$3:$G$3,1,aux!$AL$1)))-1,"n.d.") -> n.d. | Y45: =IF(INDEX($C45:$G45,1,aux!$AL$1)>0,(G45-INDEX($C45:$G45,1,aux!$AL$1))/INDEX($C45:$G45,1,aux!$AL$1),"n.d.") -> n.d. | AA45: =O45-INDEX($K45:$O45,1,aux!$AL$1) -> -0.147 | AB45: =IF($AA$52<>0,AA45/$AA$52, "n.d.") -> -1.797311003e-05 | AC45: -9.198586021e-06 | AD45: =+IF(INDEX($K45:$O45,1,aux!$AL$1)>0,(O45/INDEX($K45:$O45,1,aux!$AL$1))^(1/($O$3-INDEX($K$3:$O$3,1,aux!$AL$1)))-1,"n.d.") -> -0.4483748467 | AE45: =IF(INDEX($K45:$O45,1,aux!$AL$1)>0,(O45-INDEX($K45:$O45,1,aux!$AL$1))/INDEX($K45:$O45,1,aux!$AL$1),"n.d.") -> -0.9074074074
A46: 38f | B46: Tall oil, essências e colofónias (NC 3803,3805,3806) (f) | C46: 0 | D46: 0 | E46: 0 | F46: 0.273 | G46: 0 | H46: 0.0546 | I46: 1.281879227e-06 | J46: 7.754705584e-07 | K46: 149.367 | L46: 109.172 | M46: 99.569 | N46: 420.773 | O46: 350.384 | P46: 225.853 | Q46: 0.011206078 | R46: 0.005349044979 | S46: 225.7984 | U46: =G46-INDEX($C46:$G46,1,aux!$AL$1) -> 0 | V46: 0 | W46: 0 | X46: =+IF(INDEX($C46:$G46,1,aux!$AL$1)>0,(G46/INDEX($C46:$G46,1,aux!$AL$1))^(1/($G$3-INDEX($C$3:$G$3,1,aux!$AL$1)))-1,"n.d.") -> n.d. | Y46: =IF(INDEX($C46:$G46,1,aux!$AL$1)>0,(G46-INDEX($C46:$G46,1,aux!$AL$1))/INDEX($C46:$G46,1,aux!$AL$1),"n.d.") -> n.d. | AA46: =O46-INDEX($K46:$O46,1,aux!$AL$1) -> 201.017 | AB46: 0.0245775555 | AC46: 0.01257872222 | AD46: =+IF(INDEX($K46:$O46,1,aux!$AL$1)>0,(O46/INDEX($K46:$O46,1,aux!$AL$1))^(1/($O$3-INDEX($K$3:$O$3,1,aux!$AL$1)))-1,"n.d.") -> 0.2375774914 | AE46: =IF(INDEX($K46:$O46,1,aux!$AL$1)>0,(O46-INDEX($K46:$O46,1,aux!$AL$1))/INDEX($K46:$O46,1,aux!$AL$1),"n.d.") -> 1.345792578
A47: 44 | B47: Madeira e suas obras | C47: 11606.365 | D47: 11406.691 | E47: 14264.325 | F47: 17339.631 | G47: 15639.537 | H47: 14051.3098 | I47: 0.3298916144 | J47: 0.1995673454 | K47: 2354.05 | L47: 2301.809 | M47: 3099.879 | N47: 4666.139 | O47: 2593.706 | P47: 3003.1166 | Q47: 0.1490047016 | R47: 0.07112504934 | S47: -11048.1932 | U47: =G47-INDEX($C47:$G47,1,aux!$AL$1) -> 4033.172 | V47: 0.2900559914 | W47: 0.119197846 | X47: =+IF(INDEX($C47:$G47,1,aux!$AL$1)>0,(G47/INDEX($C47:$G47,1,aux!$AL$1))^(1/($G$3-INDEX($C$3:$G$3,1,aux!$AL$1)))-1,"n.d.") -> 0.07741226937 | Y47: =IF(INDEX($C47:$G47,1,aux!$AL$1)>0,(G47-INDEX($C47:$G47,1,aux!$AL$1))/INDEX($C47:$G47,1,aux!$AL$1),"n.d.") -> 0.3474965676 | AA47: =O47-INDEX($K47:$O47,1,aux!$AL$1) -> 239.656 | AB47: 0.02930179358 | AC47: 0.01499657368 | AD47: =+IF(INDEX($K47:$O47,1,aux!$AL$1)>0,(O47/INDEX($K47:$O47,1,aux!$AL$1))^(1/($O$3-INDEX($K$3:$O$3,1,aux!$AL$1)))-1,"n.d.") -> 0.02453374173 | AE47: =IF(INDEX($K47:$O47,1,aux!$AL$1)>0,(O47-INDEX($K47:$O47,1,aux!$AL$1))/INDEX($K47:$O47,1,aux!$AL$1),"n.d.") -> 0.101805824
A48: 45 | B48: Cortiça e suas obras | C48: 6.866 | D48: 0 | E48: 0.138 | F48: 1.088 | G48: 2.776 | H48: 2.1736 | I48: 5.103100161e-05 | J48: 3.087111366e-05 | K48: 8018.189 | L48: 7863.67 | M48: 9333.487 | N48: 10517.014 | O48: 14450.531 | P48: 10036.5782 | Q48: 0.4979817767 | R48: 0.2377037641 | S48: 10034.4046 | U48: =G48-INDEX($C48:$G48,1,aux!$AL$1) -> -4.09 | V48: -0.000294142924 | W48: -0.0001208773616 | X48: =+IF(INDEX($C48:$G48,1,aux!$AL$1)>0,(G48/INDEX($C48:$G48,1,aux!$AL$1))^(1/($G$3-INDEX($C$3:$G$3,1,aux!$AL$1)))-1,"n.d.") -> -0.2025950713 | Y48: =IF(INDEX($C48:$G48,1,aux!$AL$1)>0,(G48-INDEX($C48:$G48,1,aux!$AL$1))/INDEX($C48:$G48,1,aux!$AL$1),"n.d.") -> -0.5956889018 | AA48: =O48-INDEX($K48:$O48,1,aux!$AL$1) -> 6432.342 | AB48: 0.7864570782 | AC48: 0.4025064708 | AD48: =+IF(INDEX($K48:$O48,1,aux!$AL$1)>0,(O48/INDEX($K48:$O48,1,aux!$AL$1))^(1/($O$3-INDEX($K$3:$O$3,1,aux!$AL$1)))-1,"n.d.") -> 0.1586489683 | AE48: =IF(INDEX($K48:$O48,1,aux!$AL$1)>0,(O48-INDEX($K48:$O48,1,aux!$AL$1))/INDEX($K48:$O48,1,aux!$AL$1),"n.d.") -> 0.8022188053
A49: 46 | B49: Obras de espartaria ou de cestaria | C49: 0 | D49: 0 | E49: 1.483 | F49: 0.405 | G49: 0 | H49: 0.3776 | I49: 8.865157438e-06 | J49: 5.362961225e-06 | K49: 0.022 | L49: 0.004 | M49: 0.647 | N49: 0 | O49: 0.023 | P49: 0.1392 | Q49: 6.906643074e-06 | R49: 3.296777377e-06 | S49: -0.2384 | U49: =G49-INDEX($C49:$G49,1,aux!$AL$1) -> 0 | V49: 0 | W49: 0 | X49: =+IF(INDEX($C49:$G49,1,aux!$AL$1)>0,(G49/INDEX($C49:$G49,1,aux!$AL$1))^(1/($G$3-INDEX($C$3:$G$3,1,aux!$AL$1)))-1,"n.d.") -> n.d. | Y49: =IF(INDEX($C49:$G49,1,aux!$AL$1)>0,(G49-INDEX($C49:$G49,1,aux!$AL$1))/INDEX($C49:$G49,1,aux!$AL$1),"n.d.") -> n.d. | AA49: =O49-INDEX($K49:$O49,1,aux!$AL$1) -> 0.001 | AB49: 1.222660546e-07 | AC49: 6.257541511e-08 | AD49: =+IF(INDEX($K49:$O49,1,aux!$AL$1)>0,(O49/INDEX($K49:$O49,1,aux!$AL$1))^(1/($O$3-INDEX($K$3:$O$3,1,aux!$AL$1)))-1,"n.d.") -> 0.01117491874 | AE49: =IF(INDEX($K49:$O49,1,aux!$AL$1)>0,(O49-INDEX($K49:$O49,1,aux!$AL$1))/INDEX($K49:$O49,1,aux!$AL$1),"n.d.") -> 0.04545454545
A50: 47 | B50: Pastas de madeira | C50: 3299.708 | D50: 3005.572 | E50: 3100.997 | F50: 1705.998 | G50: 1683.983 | H50: 2559.2516 | I50: 0.06008519163 | J50: 0.03634842981 | K50: 0 | L50: 0.004 | M50: 3033.79 | N50: 3976.116 | O50: 10.966 | P50: 1404.1752 | Q50: 0.06967052385 | R50: 0.03325612811 | S50: -1155.0764 | U50: =G50-INDEX($C50:$G50,1,aux!$AL$1) -> -1615.725 | V50: -0.1161990405 | W50: -0.04775172984 | X50: =+IF(INDEX($C50:$G50,1,aux!$AL$1)>0,(G50/INDEX($C50:$G50,1,aux!$AL$1))^(1/($G$3-INDEX($C$3:$G$3,1,aux!$AL$1)))-1,"n.d.") -> -0.1547882064 | Y50: =IF(INDEX($C50:$G50,1,aux!$AL$1)>0,(G50-INDEX($C50:$G50,1,aux!$AL$1))/INDEX($C50:$G50,1,aux!$AL$1),"n.d.") -> -0.4896569636 | AA50: =O50-INDEX($K50:$O50,1,aux!$AL$1) -> 10.966 | AB50: 0.001340769555 | AC50: 0.0006862020021 | AD50: =+IF(INDEX($K50:$O50,1,aux!$AL$1)>0,(O50/INDEX($K50:$O50,1,aux!$AL$1))^(1/($O$3-INDEX($K$3:$O$3,1,aux!$AL$1)))-1,"n.d.") -> n.d. | AE50: =IF(INDEX($K50:$O50,1,aux!$AL$1)>0,(O50-INDEX($K50:$O50,1,aux!$AL$1))/INDEX($K50:$O50,1,aux!$AL$1),"n.d.") -> n.d.
A51: 48 | B51: Papel e cartão | C51: 20091.84 | D51: 18644.22 | E51: 23744.722 | F51: 35838.675 | G51: 31583.288 | H51: 25980.549 | I51: 0.6099620159 | J51: 0.3689954367 | K51: 4826.423 | L51: 4128.109 | M51: 4566.998 | N51: 7776.185 | O51: 6121.473 | P51: 5483.8376 | Q51: 0.2720898634 | R51: 0.1298778142 | S51: -20496.7114 | U51: =G51-INDEX($C51:$G51,1,aux!$AL$1) -> 11491.448 | V51: 0.826437192 | W51: 0.3396224731 | X51: =+IF(INDEX($C51:$G51,1,aux!$AL$1)>0,(G51/INDEX($C51:$G51,1,aux!$AL$1))^(1/($G$3-INDEX($C$3:$G$3,1,aux!$AL$1)))-1,"n.d.") -> 0.1197199276 | Y51: =IF(INDEX($C51:$G51,1,aux!$AL$1)>0,(G51-INDEX($C51:$G51,1,aux!$AL$1))/INDEX($C51:$G51,1,aux!$AL$1),"n.d.") -> 0.5719460239 | AA51: =O51-INDEX($K51:$O51,1,aux!$AL$1) -> 1295.05 | AB51: 0.158340654 | AC51: 0.08103829134 | AD51: =+IF(INDEX($K51:$O51,1,aux!$AL$1)>0,(O51/INDEX($K51:$O51,1,aux!$AL$1))^(1/($O$3-INDEX($K$3:$O$3,1,aux!$AL$1)))-1,"n.d.") -> 0.06122540732 | AE51: =IF(INDEX($K51:$O51,1,aux!$AL$1)>0,(O51-INDEX($K51:$O51,1,aux!$AL$1))/INDEX($K51:$O51,1,aux!$AL$1),"n.d.") -> 0.2683250101
A52: Subtotal Florestas | C52: 35004.779 | D52: 33056.483 | E52: 41111.665 | F52: 54886.07 | G52: 48909.584 | H52: 42593.7162 | I52: 1 | J52: 0.6049482214 | K52: 15348.213 | L52: 14403.691 | M52: 20136.607 | N52: 27356.936 | O52: 23527.098 | P52: 20154.509 | Q52: 1 | R52: 0.4773342624 | S52: -22439.2072 | U52: =G52-INDEX($C52:$G52,1,aux!$AL$1) -> 13904.805 | V52: 1 | W52: 0.4109477119 | X52: =+IF(INDEX($C52:$G52,1,aux!$AL$1)>0,(G52/INDEX($C52:$G52,1,aux!$AL$1))^(1/($G$3-INDEX($C$3:$G$3,1,aux!$AL$1)))-1,"n.d.") -> 0.08721805818 | Y52: =IF(INDEX($C52:$G52,1,aux!$AL$1)>0,(G52-INDEX($C52:$G52,1,aux!$AL$1))/INDEX($C52:$G52,1,aux!$AL$1),"n.d.") -> 0.3972259045 | AA52: =O52-INDEX($K52:$O52,1,aux!$AL$1) -> 8178.885 | AB52: 1 | AC52: 0.511797124 | AD52: =+IF(INDEX($K52:$O52,1,aux!$AL$1)>0,(O52/INDEX($K52:$O52,1,aux!$AL$1))^(1/($O$3-INDEX($K$3:$O$3,1,aux!$AL$1)))-1,"n.d.") -> 0.1126988417 | AE52: =IF(INDEX($K52:$O52,1,aux!$AL$1)>0,(O52-INDEX($K52:$O52,1,aux!$AL$1))/INDEX($K52:$O52,1,aux!$AL$1),"n.d.") -> 0.5328884216
B53: TOTAL | C53: 53564.823 | D53: 52648.983 | E53: 67533.746 | F53: 90895.991 | G53: 87400.77 | H53: 70408.8626 | J53: 1 | K53: 33336.949 | L53: 32047.692 | M53: 39128.019 | N53: 57284.93 | O53: 49317.666 | P53: 42223.0512 | R53: 1 | S53: -28185.8114 | U53: =G53-INDEX($C53:$G53,1,aux!$AL$1) -> 33835.947 | W53: 1 | X53: =+IF(INDEX($C53:$G53,1,aux!$AL$1)>0,(G53/INDEX($C53:$G53,1,aux!$AL$1))^(1/($G$3-INDEX($C$3:$G$3,1,aux!$AL$1)))-1,"n.d.") -> 0.1302093509 | Y53: =IF(INDEX($C53:$G53,1,aux!$AL$1)>0,(G53-INDEX($C53:$G53,1,aux!$AL$1))/INDEX($C53:$G53,1,aux!$AL$1),"n.d.") -> 0.6316822329 | AA53: =O53-INDEX($K53:$O53,1,aux!$AL$1) -> 15980.717 | AC53: 1 | AD53: =+IF(INDEX($K53:$O53,1,aux!$AL$1)>0,(O53/INDEX($K53:$O53,1,aux!$AL$1))^(1/($O$3-INDEX($K$3:$O$3,1,aux!$AL$1)))-1,"n.d.") -> 0.1028569036 | AE53: =IF(INDEX($K53:$O53,1,aux!$AL$1)>0,(O53-INDEX($K53:$O53,1,aux!$AL$1))/INDEX($K53:$O53,1,aux!$AL$1),"n.d.") -> 0.4793695128
B54: a - agrícola e agroalimentar; p - pescas; f - florestas
A55: Fonte: GPP a partir de dados INE/Comércio Internacional (2022 definitivos) | S55: 2024-05-03T12:05:18

Sheet 5.2_var
A1: ="Principais contributos por produto para a variação das trocas comerciais PT-Áustria_x000D_ no período " & INDEX('5.2'!K3:N3,1,aux!AL1) & "-2023 (NC 2 dígitos - milhares de euros) Produtos agrícolas e agroalimentares, do mar e da floresta" -> Principais contributos por produto para a variação das trocas comerciais PT-Áustria no período 2019-2023 (NC 2 dígitos - milhares de euros) Produtos agrícolas e agroalimentares, do mar e da floresta
E5: aumento das importações | J5: aumento das exportações
E17: redução das importações | J17: redução das exportações
A28: Fonte: GPP a partir de dados INE/Comércio Internacional (2022 definitivos) | F28: a - agrícola e agroalimentar; p - mar; f - florestas | H28: ='3'!Y116 -> 2024-05-03T12:05:18
A29: Cód. NC | B29: Descritivo | C29: ="Variação das Importações " & INDEX('5.2'!K3:N3,1,aux!AL1) & "-"& '5.2'!O3 &"" -> Variação das Importações 2019-2023 | F29: Cód. NC | G29: Descritivo | H29: ="Variação das Exportações " & INDEX('5.2'!K3:N3,1,aux!AL1) & "-"& '5.2'!O3 &"" -> Variação das Exportações 2019-2023
C30: variação total em valor | D30: % do aumento/ redução total | H30: variação total em valor | I30: % do aumento/ redução total
A31: =IF(C31>0,aux!AU6,"") -> 48 | B31: =IF(C31>0,aux!AV6,"") -> Papel e cartão | C31: =IF(aux!AW6>0,aux!AW6,0) -> 11491.448 | D31: =IF(SUM($C$31:$C$41)<>0,C31/SUM($C$31:$C$41),0) -> 0.3185310456 | F31: =IF(H31>0,aux!AZ6,"") -> 45 | G31: =IF(H31>0,aux!BA6,"") -> Cortiça e suas obras | H31: =IF(aux!BB6>0,aux!BB6,0) -> 6432.342 | I31: =IF(SUM($H$31:$H$41)<>0,H31/SUM($H$31:$H$41),0) -> 0.2886284809
A32: =IF(C32>0,aux!AU7,"") -> 22 | B32: =IF(C32>0,aux!AV7,"") -> Bebidas, líquidos alcoólicos e vinagres | C32: =IF(aux!AW7>0,aux!AW7,0) -> 4865.771 | D32: =IF(SUM($C$31:$C$41)<>0,C32/SUM($C$31:$C$41),0) -> 0.1348741364 | F32: =IF(H32>0,aux!AZ7,"") -> 16p | G32: =IF(H32>0,aux!BA7,"") -> Preparações e conservas de peixes ou crustáceos (NC 1604-05) (p) | H32: =IF(aux!BB7>0,aux!BB7,0) -> 3977.258 | I32: =IF(SUM($H$31:$H$41)<>0,H32/SUM($H$31:$H$41),0) -> 0.178465314
A33: =IF(C33>0,aux!AU8,"") -> 16a | B33: =IF(C33>0,aux!AV8,"") -> Preparações de carnes (exc. NC 1604-05) (a) | C33: =IF(aux!AW8>0,aux!AW8,0) -> 4677.303 | D33: 0.1296499984 | F33: =IF(H33>0,aux!AZ8,"") -> 04 | G33: =IF(H33>0,aux!BA8,"") -> Leite e laticínios; ovos; mel, etc. | H33: =IF(aux!BB8>0,aux!BB8,0) -> 2446.363 | I33: 0.1097718431
A34: =IF(C34>0,aux!AU9,"") -> 44 | B34: =IF(C34>0,aux!AV9,"") -> Madeira e suas obras | C34: =IF(aux!AW9>0,aux!AW9,0) -> 4033.172 | D34: 0.1117953538 | F34: =IF(H34>0,aux!AZ9,"") -> 20 | G34: =IF(H34>0,aux!BA9,"") -> Preparações de produtos vegetais | H34: =IF(aux!BB9>0,aux!BB9,0) -> 1854.593 | I34: 0.08321826799
A35: =IF(C35>0,aux!AU10,"") -> 19a | B35: =IF(C35>0,aux!AV10,"") -> Preparações à base de cereais (exc. NC 19022010) (a) | C35: =IF(aux!AW10>0,aux!AW10,0) -> 2008.377 | D35: 0.0556701319 | F35: =IF(H35>0,aux!AZ10,"") -> 08 | G35: =IF(H35>0,aux!BA10,"") -> Frutas | H35: =IF(aux!BB10>0,aux!BB10,0) -> 1559.063 | I35: 0.06995740982
A36: =IF(C36>0,aux!AU11,"") -> 18 | B36: =IF(C36>0,aux!AV11,"") -> Cacau e suas preparações | C36: =IF(aux!AW11>0,aux!AW11,0) -> 1743.403 | D36: 0.04832532685 | F36: =IF(H36>0,aux!AZ11,"") -> 48 | G36: =IF(H36>0,aux!BA11,"") -> Papel e cartão | H36: =IF(aux!BB11>0,aux!BB11,0) -> 1295.05 | I36: 0.05811076498
A37: =IF(C37>0,aux!AU12,"") -> 21 | B37: =IF(C37>0,aux!AV12,"") -> Preparações alimentícias diversas | C37: =IF(aux!AW12>0,aux!AW12,0) -> 1281.761 | D37: 0.03552908838 | F37: =IF(H37>0,aux!AZ12,"") -> 24 | G37: =IF(H37>0,aux!BA12,"") -> Tabaco | H37: =IF(aux!BB12>0,aux!BB12,0) -> 1244.936 | I37: 0.05586207738
A38: =IF(C38>0,aux!AU13,"") -> 15 | B38: =IF(C38>0,aux!AV13,"") -> Gorduras e óleos animais ou vegetais | C38: =IF(aux!AW13>0,aux!AW13,0) -> 1224.995 | D38: 0.03395559361 | F38: =IF(H38>0,aux!AZ13,"") -> 21 | G38: =IF(H38>0,aux!BA13,"") -> Preparações alimentícias diversas | H38: =IF(aux!BB13>0,aux!BB13,0) -> 1238.458 | I38: 0.05557140016
A39: =IF(C39>0,aux!AU14,"") -> 04 | B39: =IF(C39>0,aux!AV14,"") -> Leite e laticínios; ovos; mel, etc. | C39: =IF(aux!AW14>0,aux!AW14,0) -> 912.561 | D39: 0.02529524648 | F39: =IF(H39>0,aux!AZ14,"") -> 22 | G39: =IF(H39>0,aux!BA14,"") -> Bebidas, líquidos alcoólicos e vinagres | H39: =IF(aux!BB14>0,aux!BB14,0) -> 897.393 | I39: 0.04026732074
A40: =IF(C40>0,aux!AU15,"") -> 08 | B40: =IF(C40>0,aux!AV15,"") -> Frutas | C40: =IF(aux!AW15>0,aux!AW15,0) -> 877.126 | D40: 0.02431302495 | F40: =IF(H40>0,aux!AZ15,"") -> 44 | G40: =IF(H40>0,aux!BA15,"") -> Madeira e suas obras | H40: =IF(aux!BB15>0,aux!BB15,0) -> 239.656 | I40: 0.01075371105
B41: Outros contributos para o aumento das importações | C41: =SUMIF(aux!AW16:AW51,">0") -> 2960.466 | D41: 0.08206105363 | G41: Outros contributos para o aumento das exportações | H41: =SUMIF(aux!BB16:BB51,">0") -> 1100.776 | I41: 0.04939340986
B42: Outros contributos para a redução das importações | C42: =SUMIF(aux!AW6:AW41,"<0") -> 0 | D42: =IF(SUM($C$42:$C$52)<>0,C42/SUM($C$42:$C$52),0) -> 0 | G42: Outros contributos para a redução das exportações | H42: =SUMIF(aux!BB6:BB41,"<0") -> 0 | I42: =IF(SUM($H$42:$H$52)<>0,H42/SUM($H$42:$H$52),0) -> 0
A43: =IF(C43<>0,aux!AU42,"") ->  | B43: =IF(C43<0,aux!AV42,"") ->  | C43: =IF(aux!AW42<0,aux!AW42,0) -> 0 | D43: =IF(SUM($C$42:$C$52)<>0,C43/SUM($C$42:$C$52),0) -> 0 | F43: =IF(H43<>0,aux!AZ42,"") -> 13f | G43: =IF(H43<>0,aux!BA42,"") -> Gomas e resinas (NC 1301) (f) | H43: =IF(aux!BB42<0,aux!BB42,0) -> -0.147 | I43: =IF(SUM($H$42:$H$52)<>0,H43/SUM($H$42:$H$52),0) -> 2.331419719e-05
A44: =IF(C44<>0,aux!AU43,"") -> 53 | B44: =IF(C44<0,aux!AV43,"") -> Linho e cânhamo em bruto (NC 5301-5302) | C44: =IF(aux!AW43<0,aux!AW43,0) -> -0.123 | D44: 5.490002839e-05 | F44: =IF(H44<>0,aux!AZ43,"") -> 23a | G44: =IF(H44<>0,aux!BA43,"") -> Resíduos indústrias alimentares; alimentos p/ animais (exc. NC 230120) (a) | H44: =IF(aux!BB43<0,aux!BB43,0) -> -5.593 | I44: 0.000887049693
A45: =IF(C45<>0,aux!AU44,"") -> 45 | B45: =IF(C45<0,aux!AV44,"") -> Cortiça e suas obras | C45: =IF(aux!AW44<0,aux!AW44,0) -> -4.09 | D45: 0.001825537529 | F45: =IF(H45<>0,aux!AZ44,"") -> 50 | G45: =IF(H45<>0,aux!BA44,"") -> Seda crua (NC 5001-5003) | H45: =IF(aux!BB44<0,aux!BB44,0) -> -9.642 | I45: 0.001529221016
A46: =IF(C46<>0,aux!AU45,"") -> 50 | B46: =IF(C46<0,aux!AV45,"") -> Seda crua (NC 5001-5003) | C46: =IF(aux!AW45<0,aux!AW45,0) -> -18.765 | D46: 0.008375601892 | F46: =IF(H46<>0,aux!AZ45,"") -> 16a | G46: =IF(H46<>0,aux!BA45,"") -> Preparações de carnes (exc. NC 1604-05) (a) | H46: =IF(aux!BB45<0,aux!BB45,0) -> -12.104 | I46: 0.001919694168
A47: =IF(C47<>0,aux!AU46,"") -> 07 | B47: =IF(C47<0,aux!AV46,"") -> Produtos hortícolas | C47: =IF(aux!AW46<0,aux!AW46,0) -> -28.997 | D47: 0.01294257011 | F47: =IF(H47<>0,aux!AZ46,"") -> 25 | G47: =IF(H47<>0,aux!BA46,"") -> Sal e cloreto de sódio puro; água do mar (NC 2501) | H47: =IF(aux!BB46<0,aux!BB46,0) -> -34.386 | I47: 0.005453618942
A48: =IF(C48<>0,aux!AU47,"") -> 33 | B48: =IF(C48<0,aux!AV47,"") -> Óleos essenciais e resinóides (NC 3301) | C48: =IF(aux!AW47<0,aux!AW47,0) -> -29.624 | D48: 0.01322242635 | F48: =IF(H48<>0,aux!AZ47,"") -> 02 | G48: =IF(H48<>0,aux!BA47,"") -> Carnes e miudezas | H48: =IF(aux!BB47<0,aux!BB47,0) -> -107.447 | I48: 0.01704109214
A49: =IF(C49<>0,aux!AU48,"") -> 41 | B49: =IF(C49<0,aux!AV48,"") -> Couro e peles em bruto (NC 4101 a 4103) | C49: =IF(aux!AW48<0,aux!AW48,0) -> -78.098 | D49: 0.03485839363 | F49: =IF(H49<>0,aux!AZ48,"") -> 05a | G49: =IF(H49<>0,aux!BA48,"") -> Outros produtos de origem animal (exc. NC 0508, 051191) (a) | H49: =IF(aux!BB48<0,aux!BB48,0) -> -246.496 | I49: 0.03909426089
A50: =IF(C50<>0,aux!AU49,"") -> 03 | B50: =IF(C50<0,aux!AV49,"") -> Peixes e crustáceos | C50: =IF(aux!AW49<0,aux!AW49,0) -> -212.52 | D50: 0.09485653685 | F50: =IF(H50<>0,aux!AZ49,"") -> 03 | G50: =IF(H50<>0,aux!BA49,"") -> Peixes e crustáceos | H50: =IF(aux!BB49<0,aux!BB49,0) -> -287.885 | I50: 0.04565855549
A51: =IF(C51<>0,aux!AU50,"") -> 23a | B51: =IF(C51<0,aux!AV50,"") -> Resíduos indústrias alimentares; alimentos p/ animais (exc. NC 230120) (a) | C51: =IF(aux!AW50<0,aux!AW50,0) -> -252.494 | D51: 0.1126985997 | F51: =IF(H51<>0,aux!AZ50,"") -> 19a | G51: =IF(H51<>0,aux!BA50,"") -> Preparações à base de cereais (exc. NC 19022010) (a) | H51: =IF(aux!BB50<0,aux!BB50,0) -> -1119.345 | I51: 0.1775280956
A52: =IF(C52<>0,aux!AU51,"") -> 47 | B52: =IF(C52<0,aux!AV51,"") -> Pastas de madeira | C52: =IF(aux!AW51<0,aux!AW51,0) -> -1615.725 | D52: 0.7211654339 | F52: =IF(H52<>0,aux!AZ51,"") -> 15 | G52: =IF(H52<>0,aux!BA51,"") -> Gorduras e óleos animais ou vegetais | H52: =IF(aux!BB51<0,aux!BB51,0) -> -4482.126 | I52: 0.7108650979
A53: TOTAL | C53: =SUM(C31:C52) -> 33835.947 | F53: TOTAL | H53: =SUM(H31:H52) -> 15980.717

Sheet 5.2A
A1: Trocas comerciais Portugal-Áustria 2019-2023 em milhares de euros (NC 4 dígitos) | G1: Produtos agrícolas e agroalimentares, do mar e da floresta
A2: Cód. NC | B2: Descritivo | C2: Importações | K2: Exportações | S2: Saldo quinquénio (exp-imp) | T2: Evolução das importações | U2: =+"Variação das Importações " & INDEX(K3:N3,1,aux!AL1) & "-"& '5.2'!O3 &"" -> Variação das Importações 2019-2023 | Z2: Evolução das exportações | AA2: ="Variação das Exportações " & INDEX(K3:N3,1,aux!AL1) & "-"& '5.2'!O3 &"" -> Variação das Exportações 2019-2023
C3: 2019 | D3: 2020 | E3: 2021 | F3: 2022 | G3: 2023 | H3: média quinquénio | I3: % Subtot | J3: % Total | K3: 2019 | L3: 2020 | M3: 2021 | N3: 2022 | O3: 2023 | P3: média quinquénio | Q3: % Subtot | R3: % Total | U3: variação total em valor | V3: % no subtotal de variação | W3: % no total de variação | X3: taxa de variação média anual | Y3: taxa de variação total | AA3: variação total em valor | AB3: % no subtotal de variação | AC3: % no total de variação | AD3: taxa de variação média anual | AE3: taxa de variação total | AX3: filtro
A4: 0101 | B4: Equídeos vivos | C4: 0 | D4: 0 | E4: 0 | F4: 0 | G4: 0 | H4: 0 | I4: 0 | J4: 0 | K4: 0 | L4: 0 | M4: 0 | N4: 0 | O4: 0 | P4: 0 | Q4: 0 | R4: 0 | S4: 0 | U4: =G4-INDEX($C4:$G4,1,aux!$AL$1) -> 0 | V4: =IF($U$237<>0,U4/$U$237, "n.d.") -> 0 | W4: =IF($U$322<>0,U4/$U$322, "n.d.") -> 0 | X4: =+IF(INDEX($C4:$G4,1,aux!$AL$1)>0,(G4/INDEX($C4:$G4,1,aux!$AL$1))^(1/($G$3-INDEX($C$3:$G$3,1,aux!$AL$1)))-1,"n.d.") -> n.d. | Y4: =IF(INDEX($C4:$G4,1,aux!$AL$1)>0,(G4-INDEX($C4:$G4,1,aux!$AL$1))/INDEX($C4:$G4,1,aux!$AL$1),"n.d.") -> n.d. | AA4: =O4-INDEX($K4:$O4,1,aux!$AL$1) -> 0 | AB4: =IF($AA$237<>0,AA4/$AA$237, "n.d.") -> 0 | AC4: =IF($AA$322<>0,AA4/$AA$322, "n.d.") -> 0 | AD4: =+IF(INDEX($K4:$O4,1,aux!$AL$1)>0,(O4/INDEX($K4:$O4,1,aux!$AL$1))^(1/($O$3-INDEX($K$3:$O$3,1,aux!$AL$1)))-1,"n.d.") -> n.d. | AE4: =IF(INDEX($K4:$O4,1,aux!$AL$1)>0,(O4-INDEX($K4:$O4,1,aux!$AL$1))/INDEX($K4:$O4,1,aux!$AL$1),"n.d.") -> n.d. | AX4: =+LEFT(A4,2) -> 01
A5: 0102 | B5: Bovinos vivos | C5: 0 | D5: 0 | E5: 0 | F5: 0 | G5: 0 | H5: 0 | I5: 0 | J5: 0 | K5: 0 | L5: 0 | M5: 0 | N5: 0 | O5: 0 | P5: 0 | Q5: 0 | R5: 0 | S5: 0 | U5: =G5-INDEX($C5:$G5,1,aux!$AL$1) -> 0 | V5: 0 | W5: 0 | X5: =+IF(INDEX($C5:$G5,1,aux!$AL$1)>0,(G5/INDEX($C5:$G5,1,aux!$AL$1))^(1/($G$3-INDEX($C$3:$G$3,1,aux!$AL$1)))-1,"n.d.") -> n.d. | Y5: =IF(INDEX($C5:$G5,1,aux!$AL$1)>0,(G5-INDEX($C5:$G5,1,aux!$AL$1))/INDEX($C5:$G5,1,aux!$AL$1),"n.d.") -> n.d. | AA5: =O5-INDEX($K5:$O5,1,aux!$AL$1) -> 0 | AB5: 0 | AC5: 0 | AD5: =+IF(INDEX($K5:$O5,1,aux!$AL$1)>0,(O5/INDEX($K5:$O5,1,aux!$AL$1))^(1/($O$3-INDEX($K$3:$O$3,1,aux!$AL$1)))-1,"n.d.") -> n.d. | AE5: =IF(INDEX($K5:$O5,1,aux!$AL$1)>0,(O5-INDEX($K5:$O5,1,aux!$AL$1))/INDEX($K5:$O5,1,aux!$AL$1),"n.d.") -> n.d. | AX5: 01
A6: 0103 | B6: Suínos vivos | C6: 0 | D6: 0 | E6: 0 | F6: 0 | G6: 0 | H6: 0 | I6: 0 | J6: 0 | K6: 0 | L6: 0 | M6: 0 | N6: 0 | O6: 104.126 | P6: 20.8252 | Q6: 0.001430554097 | R6: 0.0004932187374 | S6: 20.8252 | U6: =G6-INDEX($C6:$G6,1,aux!$AL$1) -> 0 | V6: 0 | W6: 0 | X6: =+IF(INDEX($C6:$G6,1,aux!$AL$1)>0,(G6/INDEX($C6:$G6,1,aux!$AL$1))^(1/($G$3-INDEX($C$3:$G$3,1,aux!$AL$1)))-1,"n.d.") -> n.d. | Y6: =IF(INDEX($C6:$G6,1,aux!$AL$1)>0,(G6-INDEX($C6:$G6,1,aux!$AL$1))/INDEX($C6:$G6,1,aux!$AL$1),"n.d.") -> n.d. | AA6: =O6-INDEX($K6:$O6,1,aux!$AL$1) -> 104.126 | AB6: 0.02511324063 | AC6: 0.006515727674 | AD6: =+IF(INDEX($K6:$O6,1,aux!$AL$1)>0,(O6/INDEX($K6:$O6,1,aux!$AL$1))^(1/($O$3-INDEX($K$3:$O$3,1,aux!$AL$1)))-1,"n.d.") -> n.d. | AE6: =IF(INDEX($K6:$O6,1,aux!$AL$1)>0,(O6-INDEX($K6:$O6,1,aux!$AL$1))/INDEX($K6:$O6,1,aux!$AL$1),"n.d.") -> n.d. | AX6: 01
A7: 0104 | B7: Ovinos ou caprinos vivos | C7: 0 | D7: 0 | E7: 0 | F7: 0 | G7: 0 | H7: 0 | I7: 0 | J7: 0 | K7: 0 | L7: 0 | M7: 0 | N7: 0 | O7: 0 | P7: 0 | Q7: 0 | R7: 0 | S7: 0 | U7: =G7-INDEX($C7:$G7,1,aux!$AL$1) -> 0 | V7: 0 | W7: 0 | X7: =+IF(INDEX($C7:$G7,1,aux!$AL$1)>0,(G7/INDEX($C7:$G7,1,aux!$AL$1))^(1/($G$3-INDEX($C$3:$G$3,1,aux!$AL$1)))-1,"n.d.") -> n.d. | Y7: =IF(INDEX($C7:$G7,1,aux!$AL$1)>0,(G7-INDEX($C7:$G7,1,aux!$AL$1))/INDEX($C7:$G7,1,aux!$AL$1),"n.d.") -> n.d. | AA7: =O7-INDEX($K7:$O7,1,aux!$AL$1) -> 0 | AB7: 0 | AC7: 0 | AD7: =+IF(INDEX($K7:$O7,1,aux!$AL$1)>0,(O7/INDEX($K7:$O7,1,aux!$AL$1))^(1/($O$3-INDEX($K$3:$O$3,1,aux!$AL$1)))-1,"n.d.") -> n.d. | AE7: =IF(INDEX($K7:$O7,1,aux!$AL$1)>0,(O7-INDEX($K7:$O7,1,aux!$AL$1))/INDEX($K7:$O7,1,aux!$AL$1),"n.d.") -> n.d. | AX7: 01
A8: 0105 | B8: Aves de capoeira vivas | C8: 0 | D8: 0 | E8: 0 | F8: 0 | G8: 0 | H8: 0 | I8: 0 | J8: 0 | K8: 0 | L8: 0 | M8: 0 | N8: 0 | O8: 0 | P8: 0 | Q8: 0 | R8: 0 | S8: 0 | U8: =G8-INDEX($C8:$G8,1,aux!$AL$1) -> 0 | V8: 0 | W8: 0 | X8: =+IF(INDEX($C8:$G8,1,aux!$AL$1)>0,(G8/INDEX($C8:$G8,1,aux!$AL$1))^(1/($G$3-INDEX($C$3:$G$3,1,aux!$AL$1)))-1,"n.d.") -> n.d. | Y8: =IF(INDEX($C8:$G8,1,aux!$AL$1)>0,(G8-INDEX($C8:$G8,1,aux!$AL$1))/INDEX($C8:$G8,1,aux!$AL$1),"n.d.") -> n.d. | AA8: =O8-INDEX($K8:$O8,1,aux!$AL$1) -> 0 | AB8: 0 | AC8: 0 | AD8: =+IF(INDEX($K8:$O8,1,aux!$AL$1)>0,(O8/INDEX($K8:$O8,1,aux!$AL$1))^(1/($O$3-INDEX($K$3:$O$3,1,aux!$AL$1)))-1,"n.d.") -> n.d. | AE8: =IF(INDEX($K8:$O8,1,aux!$AL$1)>0,(O8-INDEX($K8:$O8,1,aux!$AL$1))/INDEX($K8:$O8,1,aux!$AL$1),"n.d.") -> n.d. | AX8: 01
A9: 0106 | B9: Outros animais vivos | C9: 1.253 | D9: 0 | E9: 0.703 | F9: 0 | G9: 29.866 | H9: 6.3644 | I9: 0.000230229596 | J9: 9.039202971e-05 | K9: 0 | L9: 0 | M9: 1.493 | N9: 54.228 | O9: 9.95 | P9: 13.1342 | Q9: 0.0009022330457 | R9: 0.0003110670505 | S9: 6.7698 | U9: =G9-INDEX($C9:$G9,1,aux!$AL$1) -> 28.613 | V9: 0.001433532619 | W9: 0.0008456391068 | X9: =+IF(INDEX($C9:$G9,1,aux!$AL$1)>0,(G9/INDEX($C9:$G9,1,aux!$AL$1))^(1/($G$3-INDEX($C$3:$G$3,1,aux!$AL$1)))-1,"n.d.") -> 1.209563552 | Y9: =IF(INDEX($C9:$G9,1,aux!$AL$1)>0,(G9-INDEX($C9:$G9,1,aux!$AL$1))/INDEX($C9:$G9,1,aux!$AL$1),"n.d.") -> 22.83559457 | AA9: =O9-INDEX($K9:$O9,1,aux!$AL$1) -> 9.95 | AB9: 0.002399753609 | AC9: 0.0006226253803 | AD9: =+IF(INDEX($K9:$O9,1,aux!$AL$1)>0,(O9/INDEX($K9:$O9,1,aux!$AL$1))^(1/($O$3-INDEX($K$3:$O$3,1,aux!$AL$1)))-1,"n.d.") -> n.d. | AE9: =IF(INDEX($K9:$O9,1,aux!$AL$1)>0,(O9-INDEX($K9:$O9,1,aux!$AL$1))/INDEX($K9:$O9,1,aux!$AL$1),"n.d.") -> n.d. | AX9: 01
A10: 01SS | B10: Animais vivos | C10: 0 | D10: 0 | E10: 0 | F10: 0 | G10: 0 | H10: 0 | I10: 0 | J10: 0 | K10: 0 | L10: 0 | M10: 0 | N10: 0 | O10: 0 | P10: 0 | Q10: 0 | R10: 0 | S10: 0 | U10: =G10-INDEX($C10:$G10,1,aux!$AL$1) -> 0 | V10: 0 | W10: 0 | X10: =+IF(INDEX($C10:$G10,1,aux!$AL$1)>0,(G10/INDEX($C10:$G10,1,aux!$AL$1))^(1/($G$3-INDEX($C$3:$G$3,1,aux!$AL$1)))-1,"n.d.") -> n.d. | Y10: =IF(INDEX($C10:$G10,1,aux!$AL$1)>0,(G10-INDEX($C10:$G10,1,aux!$AL$1))/INDEX($C10:$G10,1,aux!$AL$1),"n.d.") -> n.d. | AA10: =O10-INDEX($K10:$O10,1,aux!$AL$1) -> 0 | AB10: 0 | AC10: 0 | AD10: =+IF(INDEX($K10:$O10,1,aux!$AL$1)>0,(O10/INDEX($K10:$O10,1,aux!$AL$1))^(1/($O$3-INDEX($K$3:$O$3,1,aux!$AL$1)))-1,"n.d.") -> n.d. | AE10: =IF(INDEX($K10:$O10,1,aux!$AL$1)>0,(O10-INDEX($K10:$O10,1,aux!$AL$1))/INDEX($K10:$O10,1,aux!$AL$1),"n.d.") -> n.d. | AX10: 01
A11: 0201 | B11: Carnes de bovino, frescas ou refrigeradas | C11: 103.354 | D11: 64.471 | E11: 365.968 | F11: 179.321 | G11: 242.937 | H11: 191.2102 | I11: 0.006916951651 | J11: 0.002715712098 | K11: 0 | L11: 0 | M11: 31.664 | N11: 20.644 | O11: 0 | P11: 10.4616 | Q11: 0.0007186430259 | R11: 0.0002477698722 | S11: -180.7486 | U11: =G11-INDEX($C11:$G11,1,aux!$AL$1) -> 139.583 | V11: 0.006993212301 | W11: 0.004125287228 | X11: =+IF(INDEX($C11:$G11,1,aux!$AL$1)>0,(G11/INDEX($C11:$G11,1,aux!$AL$1))^(1/($G$3-INDEX($C$3:$G$3,1,aux!$AL$1)))-1,"n.d.") -> 0.2382022638 | Y11: =IF(INDEX($C11:$G11,1,aux!$AL$1)>0,(G11-INDEX($C11:$G11,1,aux!$AL$1))/INDEX($C11:$G11,1,aux!$AL$1),"n.d.") -> 1.350533119 | AA11: =O11-INDEX($K11:$O11,1,aux!$AL$1) -> 0 | AB11: 0 | AC11: 0 | AD11: =+IF(INDEX($K11:$O11,1,aux!$AL$1)>0,(O11/INDEX($K11:$O11,1,aux!$AL$1))^(1/($O$3-INDEX($K$3:$O$3,1,aux!$AL$1)))-1,"n.d.") -> n.d. | AE11: =IF(INDEX($K11:$O11,1,aux!$AL$1)>0,(O11-INDEX($K11:$O11,1,aux!$AL$1))/INDEX($K11:$O11,1,aux!$AL$1),"n.d.") -> n.d. | AX11: 02
A12: 0202 | B12: Carnes de bovino, congeladas | C12: 2.567 | D12: 0 | E12: 15.219 | F12: 54.818 | G12: 114.579 | H12: 37.4366 | I12: 0.001354253864 | J12: 0.0005317029507 | K12: 0 | L12: 0 | M12: 0 | N12: 0 | O12: 0 | P12: 0 | Q12: 0 | R12: 0 | S12: -37.4366 | U12: =G12-INDEX($C12:$G12,1,aux!$AL$1) -> 112.012 | V12: 0.005611884658 | W12: 0.003310443772 | X12: =+IF(INDEX($C12:$G12,1,aux!$AL$1)>0,(G12/INDEX($C12:$G12,1,aux!$AL$1))^(1/($G$3-INDEX($C$3:$G$3,1,aux!$AL$1)))-1,"n.d.") -> 1.584757414 | Y12: =IF(INDEX($C12:$G12,1,aux!$AL$1)>0,(G12-INDEX($C12:$G12,1,aux!$AL$1))/INDEX($C12:$G12,1,aux!$AL$1),"n.d.") -> 43.63537203 | AA12: =O12-INDEX($K12:$O12,1,aux!$AL$1) -> 0 | AB12: 0 | AC12: 0 | AD12: =+IF(INDEX($K12:$O12,1,aux!$AL$1)>0,(O12/INDEX($K12:$O12,1,aux!$AL$1))^(1/($O$3-INDEX($K$3:$O$3,1,aux!$AL$1)))-1,"n.d.") -> n.d. | AE12: =IF(INDEX($K12:$O12,1,aux!$AL$1)>0,(O12-INDEX($K12:$O12,1,aux!$AL$1))/INDEX($K12:$O12,1,aux!$AL$1),"n.d.") -> n.d. | AX12: 02
A13: 0203 | B13: Carnes de suíno | C13: 0 | D13: 154.591 | E13: 112.728 | F13: 0 | G13: 0 | H13: 53.4638 | I13: 0.001934031342 | J13: 0.0007593333854 | K13: 132.363 | L13: 17.621 | M13: 43.38 | N13: 0 | O13: 0 | P13: 38.6728 | Q13: 0.002656566683 | R13: 0.000915916754 | S13: -14.791 | U13: =G13-INDEX($C13:$G13,1,aux!$AL$1) -> 0 | V13: 0 | W13: 0 | X13: =+IF(INDEX($C13:$G13,1,aux!$AL$1)>0,(G13/INDEX($C13:$G13,1,aux!$AL$1))^(1/($G$3-INDEX($C$3:$G$3,1,aux!$AL$1)))-1,"n.d.") -> n.d. | Y13: =IF(INDEX($C13:$G13,1,aux!$AL$1)>0,(G13-INDEX($C13:$G13,1,aux!$AL$1))/INDEX($C13:$G13,1,aux!$AL$1),"n.d.") -> n.d. | AA13: =O13-INDEX($K13:$O13,1,aux!$AL$1) -> -132.363 | AB13: -0.03192347608 | AC13: -0.00828266967 | AD13: =+IF(INDEX($K13:$O13,1,aux!$AL$1)>0,(O13/INDEX($K13:$O13,1,aux!$AL$1))^(1/($O$3-INDEX($K$3:$O$3,1,aux!$AL$1)))-1,"n.d.") -> -1 | AE13: =IF(INDEX($K13:$O13,1,aux!$AL$1)>0,(O13-INDEX($K13:$O13,1,aux!$AL$1))/INDEX($K13:$O13,1,aux!$AL$1),"n.d.") -> -1 | AX13: 02
A14: 0204 | B14: Carnes de ovino ou caprino | C14: 0 | D14: 0 | E14: 0 | F14: 0 | G14: 0 | H14: 0 | I14: 0 | J14: 0 | K14: 0 | L14: 0 | M14: 0 | N14: 0 | O14: 0 | P14: 0 | Q14: 0 | R14: 0 | S14: 0 | U14: =G14-INDEX($C14:$G14,1,aux!$AL$1) -> 0 | V14: 0 | W14: 0 | X14: =+IF(INDEX($C14:$G14,1,aux!$AL$1)>0,(G14/INDEX($C14:$G14,1,aux!$AL$1))^(1/($G$3-INDEX($C$3:$G$3,1,aux!$AL$1)))-1,"n.d.") -> n.d. | Y14: =IF(INDEX($C14:$G14,1,aux!$AL$1)>0,(G14-INDEX($C14:$G14,1,aux!$AL$1))/INDEX($C14:$G14,1,aux!$AL$1),"n.d.") -> n.d. | AA14: =O14-INDEX($K14:$O14,1,aux!$AL$1) -> 0 | AB14: 0 | AC14: 0 | AD14: =+IF(INDEX($K14:$O14,1,aux!$AL$1)>0,(O14/INDEX($K14:$O14,1,aux!$AL$1))^(1/($O$3-INDEX($K$3:$O$3,1,aux!$AL$1)))-1,"n.d.") -> n.d. | AE14: =IF(INDEX($K14:$O14,1,aux!$AL$1)>0,(O14-INDEX($K14:$O14,1,aux!$AL$1))/INDEX($K14:$O14,1,aux!$AL$1),"n.d.") -> n.d. | AX14: 02
A15: 0205 | B15: Carnes de equídeo | C15: 0 | D15: 0 | E15: 0 | F15: 0 | G15: 0 | H15: 0 | I15: 0 | J15: 0 | K15: 0 | L15: 0 | M15: 0 | N15: 0 | O15: 0 | P15: 0 | Q15: 0 | R15: 0 | S15: 0 | U15: =G15-INDEX($C15:$G15,1,aux!$AL$1) -> 0 | V15: 0 | W15: 0 | X15: =+IF(INDEX($C15:$G15,1,aux!$AL$1)>0,(G15/INDEX($C15:$G15,1,aux!$AL$1))^(1/($G$3-INDEX($C$3:$G$3,1,aux!$AL$1)))-1,"n.d.") -> n.d. | Y15: =IF(INDEX($C15:$G15,1,aux!$AL$1)>0,(G15-INDEX($C15:$G15,1,aux!$AL$1))/INDEX($C15:$G15,1,aux!$AL$1),"n.d.") -> n.d. | AA15: =O15-INDEX($K15:$O15,1,aux!$AL$1) -> 0 | AB15: 0 | AC15: 0 | AD15: =+IF(INDEX($K15:$O15,1,aux!$AL$1)>0,(O15/INDEX($K15:$O15,1,aux!$AL$1))^(1/($O$3-INDEX($K$3:$O$3,1,aux!$AL$1)))-1,"n.d.") -> n.d. | AE15: =IF(INDEX($K15:$O15,1,aux!$AL$1)>0,(O15-INDEX($K15:$O15,1,aux!$AL$1))/INDEX($K15:$O15,1,aux!$AL$1),"n.d.") -> n.d. | AX15: 02
A16: 0206 | B16: Miudezas de bovino, suíno, ovino, caprino,equídeo | C16: 0 | D16: 0 | E16: 0 | F16: 0 | G16: 0 | H16: 0 | I16: 0 | J16: 0 | K16: 0 | L16: 19.765 | M16: 1.788 | N16: 0 | O16: 0 | P16: 4.3106 | Q16: 0.0002961098329 | R16: 0.0001020911535 | S16: 4.3106 | U16: =G16-INDEX($C16:$G16,1,aux!$AL$1) -> 0 | V16: 0 | W16: 0 | X16: =+IF(INDEX($C16:$G16,1,aux!$AL$1)>0,(G16/INDEX($C16:$G16,1,aux!$AL$1))^(1/($G$3-INDEX($C$3:$G$3,1,aux!$AL$1)))-1,"n.d.") -> n.d. | Y16: =IF(INDEX($C16:$G16,1,aux!$AL$1)>0,(G16-INDEX($C16:$G16,1,aux!$AL$1))/INDEX($C16:$G16,1,aux!$AL$1),"n.d.") -> n.d. | AA16: =O16-INDEX($K16:$O16,1,aux!$AL$1) -> 0 | AB16: 0 | AC16: 0 | AD16: =+IF(INDEX($K16:$O16,1,aux!$AL$1)>0,(O16/INDEX($K16:$O16,1,aux!$AL$1))^(1/($O$3-INDEX($K$3:$O$3,1,aux!$AL$1)))-1,"n.d.") -> n.d. | AE16: =IF(INDEX($K16:$O16,1,aux!$AL$1)>0,(O16-INDEX($K16:$O16,1,aux!$AL$1))/INDEX($K16:$O16,1,aux!$AL$1),"n.d.") -> n.d. | AX16: 02
A17: 0207 | B17: Carnes e miudezas de aves de capoeira | C17: 0 | D17: 33.267 | E17: 0 | F17: 0 | G17: 0 | H17: 6.6534 | I17: 0.0002406840541 | J17: 9.449662662e-05 | K17: 0 | L17: 0 | M17: 0 | N17: 0 | O17: 0.055 | P17: 0.011 | Q17: 7.556275603e-07 | R17: 2.605212008e-07 | S17: -6.6424 | U17: =G17-INDEX($C17:$G17,1,aux!$AL$1) -> 0 | V17: 0 | W17: 0 | X17: =+IF(INDEX($C17:$G17,1,aux!$AL$1)>0,(G17/INDEX($C17:$G17,1,aux!$AL$1))^(1/($G$3-INDEX($C$3:$G$3,1,aux!$AL$1)))-1,"n.d.") -> n.d. | Y17: =IF(INDEX($C17:$G17,1,aux!$AL$1)>0,(G17-INDEX($C17:$G17,1,aux!$AL$1))/INDEX($C17:$G17,1,aux!$AL$1),"n.d.") -> n.d. | AA17: =O17-INDEX($K17:$O17,1,aux!$AL$1) -> 0.055 | AB17: 1.32649697e-05 | AC17: 3.441647831e-06 | AD17: =+IF(INDEX($K17:$O17,1,aux!$AL$1)>0,(O17/INDEX($K17:$O17,1,aux!$AL$1))^(1/($O$3-INDEX($K$3:$O$3,1,aux!$AL$1)))-1,"n.d.") -> n.d. | AE17: =IF(INDEX($K17:$O17,1,aux!$AL$1)>0,(O17-INDEX($K17:$O17,1,aux!$AL$1))/INDEX($K17:$O17,1,aux!$AL$1),"n.d.") -> n.d. | AX17: 02
A18: 0208 | B18: Outras carnes e miudezas | C18: 0 | D18: 0 | E18: 0 | F18: 0 | G18: 0 | H18: 0 | I18: 0 | J18: 0 | K18: 0 | L18: 0 | M18: 0 | N18: 0 | O18: 0.96 | P18: 0.192 | Q18: 1.31891356e-05 | R18: 4.547279141e-06 | S18: 0.192 | U18: =G18-INDEX($C18:$G18,1,aux!$AL$1) -> 0 | V18: 0 | W18: 0 | X18: =+IF(INDEX($C18:$G18,1,aux!$AL$1)>0,(G18/INDEX($C18:$G18,1,aux!$AL$1))^(1/($G$3-INDEX($C$3:$G$3,1,aux!$AL$1)))-1,"n.d.") -> n.d. | Y18: =IF(INDEX($C18:$G18,1,aux!$AL$1)>0,(G18-INDEX($C18:$G18,1,aux!$AL$1))/INDEX($C18:$G18,1,aux!$AL$1),"n.d.") -> n.d. | AA18: =O18-INDEX($K18:$O18,1,aux!$AL$1) -> 0.96 | AB18: 0.0002315340166 | AC18: 6.00723985e-05 | AD18: =+IF(INDEX($K18:$O18,1,aux!$AL$1)>0,(O18/INDEX($K18:$O18,1,aux!$AL$1))^(1/($O$3-INDEX($K$3:$O$3,1,aux!$AL$1)))-1,"n.d.") -> n.d. | AE18: =IF(INDEX($K18:$O18,1,aux!$AL$1)>0,(O18-INDEX($K18:$O18,1,aux!$AL$1))/INDEX($K18:$O18,1,aux!$AL$1),"n.d.") -> n.d. | AX18: 02
A19: 0209 | B19: Toucinho, gorduras de porco e de aves | C19: 0 | D19: 0 | E19: 0 | F19: 0 | G19: 0 | H19: 0 | I19: 0 | J19: 0 | K19: 0 | L19: 0 | M19: 0 | N19: 0 | O19: 0 | P19: 0 | Q19: 0 | R19: 0 | S19: 0 | U19: =G19-INDEX($C19:$G19,1,aux!$AL$1) -> 0 | V19: 0 | W19: 0 | X19: =+IF(INDEX($C19:$G19,1,aux!$AL$1)>0,(G19/INDEX($C19:$G19,1,aux!$AL$1))^(1/($G$3-INDEX($C$3:$G$3,1,aux!$AL$1)))-1,"n.d.") -> n.d. | Y19: =IF(INDEX($C19:$G19,1,aux!$AL$1)>0,(G19-INDEX($C19:$G19,1,aux!$AL$1))/INDEX($C19:$G19,1,aux!$AL$1),"n.d.") -> n.d. | AA19: =O19-INDEX($K19:$O19,1,aux!$AL$1) -> 0 | AB19: 0 | AC19: 0 | AD19: =+IF(INDEX($K19:$O19,1,aux!$AL$1)>0,(O19/INDEX($K19:$O19,1,aux!$AL$1))^(1/($O$3-INDEX($K$3:$O$3,1,aux!$AL$1)))-1,"n.d.") -> n.d. | AE19: =IF(INDEX($K19:$O19,1,aux!$AL$1)>0,(O19-INDEX($K19:$O19,1,aux!$AL$1))/INDEX($K19:$O19,1,aux!$AL$1),"n.d.") -> n.d. | AX19: 02
A20: 0210 | B20: Carnes e miudezas processadas; farinhas de carnes | C20: 10.64 | D20: 20.076 | E20: 5.009 | F20: 11.74 | G20: 11.736 | H20: 11.8402 | I20: 0.0004283144463 | J20: 0.0001681634891 | K20: 0.146 | L20: 0.297 | M20: 0.659 | N20: 1.243 | O20: 24.047 | P20: 5.2784 | Q20: 0.0003625913195 | R20: 0.0001250122824 | S20: -6.5618 | U20: =G20-INDEX($C20:$G20,1,aux!$AL$1) -> 1.096 | V20: 5.491041661e-05 | W20: 3.239158638e-05 | X20: =+IF(INDEX($C20:$G20,1,aux!$AL$1)>0,(G20/INDEX($C20:$G20,1,aux!$AL$1))^(1/($G$3-INDEX($C$3:$G$3,1,aux!$AL$1)))-1,"n.d.") -> 0.02481298187 | Y20: =IF(INDEX($C20:$G20,1,aux!$AL$1)>0,(G20-INDEX($C20:$G20,1,aux!$AL$1))/INDEX($C20:$G20,1,aux!$AL$1),"n.d.") -> 0.1030075188 | AA20: =O20-INDEX($K20:$O20,1,aux!$AL$1) -> 23.901 | AB20: 0.005764473469 | AC20: 0.001495614996 | AD20: =+IF(INDEX($K20:$O20,1,aux!$AL$1)>0,(O20/INDEX($K20:$O20,1,aux!$AL$1))^(1/($O$3-INDEX($K$3:$O$3,1,aux!$AL$1)))-1,"n.d.") -> 2.582424216 | AE20: =IF(INDEX($K20:$O20,1,aux!$AL$1)>0,(O20-INDEX($K20:$O20,1,aux!$AL$1))/INDEX($K20:$O20,1,aux!$AL$1),"n.d.") -> 163.7054795 | AX20: 02
A21: 02SS | B21: Carnes e miudezas, comestíveis | C21: 0 | D21: 0 | E21: 0 | F21: 0 | G21: 0 | H21: 0 | I21: 0 | J21: 0 | K21: 0 | L21: 0 | M21: 0 | N21: 0 | O21: 0 | P21: 0 | Q21: 0 | R21: 0 | S21: 0 | U21: =G21-INDEX($C21:$G21,1,aux!$AL$1) -> 0 | V21: 0 | W21: 0 | X21: =+IF(INDEX($C21:$G21,1,aux!$AL$1)>0,(G21/INDEX($C21:$G21,1,aux!$AL$1))^(1/($G$3-INDEX($C$3:$G$3,1,aux!$AL$1)))-1,"n.d.") -> n.d. | Y21: =IF(INDEX($C21:$G21,1,aux!$AL$1)>0,(G21-INDEX($C21:$G21,1,aux!$AL$1))/INDEX($C21:$G21,1,aux!$AL$1),"n.d.") -> n.d. | AA21: =O21-INDEX($K21:$O21,1,aux!$AL$1) -> 0 | AB21: 0 | AC21: 0 | AD21: =+IF(INDEX($K21:$O21,1,aux!$AL$1)>0,(O21/INDEX($K21:$O21,1,aux!$AL$1))^(1/($O$3-INDEX($K$3:$O$3,1,aux!$AL$1)))-1,"n.d.") -> n.d. | AE21: =IF(INDEX($K21:$O21,1,aux!$AL$1)>0,(O21-INDEX($K21:$O21,1,aux!$AL$1))/INDEX($K21:$O21,1,aux!$AL$1),"n.d.") -> n.d. | AX21: 02
A22: 0401 | B22: Leite e nata, não concentrados | C22: 7.854 | D22: 6.298 | E22: 6.763 | F22: 8.065 | G22: 16.954 | H22: 9.1868 | I22: 0.0003323287745 | J22: 0.0001304778924 | K22: 0 | L22: 0 | M22: 0.048 | N22: 0 | O22: 0.036 | P22: 0.0168 | Q22: 1.154049365e-06 | R22: 3.978869249e-07 | S22: -9.17 | U22: =G22-INDEX($C22:$G22,1,aux!$AL$1) -> 9.1 | V22: 0.0004559167803 | W22: 0.0002689447409 | X22: =+IF(INDEX($C22:$G22,1,aux!$AL$1)>0,(G22/INDEX($C22:$G22,1,aux!$AL$1))^(1/($G$3-INDEX($C$3:$G$3,1,aux!$AL$1)))-1,"n.d.") -> 0.212119172 | Y22: =IF(INDEX($C22:$G22,1,aux!$AL$1)>0,(G22-INDEX($C22:$G22,1,aux!$AL$1))/INDEX($C22:$G22,1,aux!$AL$1),"n.d.") -> 1.158645276 | AA22: =O22-INDEX($K22:$O22,1,aux!$AL$1) -> 0.036 | AB22: 8.682525621e-06 | AC22: 2.252714944e-06 | AD22: =+IF(INDEX($K22:$O22,1,aux!$AL$1)>0,(O22/INDEX($K22:$O22,1,aux!$AL$1))^(1/($O$3-INDEX($K$3:$O$3,1,aux!$AL$1)))-1,"n.d.") -> n.d. | AE22: =IF(INDEX($K22:$O22,1,aux!$AL$1)>0,(O22-INDEX($K22:$O22,1,aux!$AL$1))/INDEX($K22:$O22,1,aux!$AL$1),"n.d.") -> n.d. | AX22: 04
A23: 0402 | B23: Leite e nata, concentrados | C23: 272.345 | D23: 78.749 | E23: 271.769 | F23: 333.919 | G23: 817.873 | H23: 354.931 | I23: 0.01283948538 | J23: 0.005040998915 | K23: 0.321 | L23: 0.525 | M23: 636.941 | N23: 3705.122 | O23: 1839.115 | P23: 1236.4048 | Q23: 0.08493286751 | R23: 0.02928269665 | S23: 881.4738 | U23: =G23-INDEX($C23:$G23,1,aux!$AL$1) -> 545.528 | V23: 0.02733135926 | W23: 0.01612273479 | X23: =+IF(INDEX($C23:$G23,1,aux!$AL$1)>0,(G23/INDEX($C23:$G23,1,aux!$AL$1))^(1/($G$3-INDEX($C$3:$G$3,1,aux!$AL$1)))-1,"n.d.") -> 0.3164113443 | Y23: =IF(INDEX($C23:$G23,1,aux!$AL$1)>0,(G23-INDEX($C23:$G23,1,aux!$AL$1))/INDEX($C23:$G23,1,aux!$AL$1),"n.d.") -> 2.00307698 | AA23: =O23-INDEX($K23:$O23,1,aux!$AL$1) -> 1838.794 | AB23: 0.4434826671 | AC23: 0.1150632978 | AD23: =+IF(INDEX($K23:$O23,1,aux!$AL$1)>0,(O23/INDEX($K23:$O23,1,aux!$AL$1))^(1/($O$3-INDEX($K$3:$O$3,1,aux!$AL$1)))-1,"n.d.") -> 7.700134437 | AE23: =IF(INDEX($K23:$O23,1,aux!$AL$1)>0,(O23-INDEX($K23:$O23,1,aux!$AL$1))/INDEX($K23:$O23,1,aux!$AL$1),"n.d.") -> 5728.330218 | AX23: 04
A24: 0403 | B24: Leitelho, leite coalhado, iogurte, etc. | C24: 629.272 | D24: 552.004 | E24: 440.46 | F24: 681.895 | G24: 1273.198 | H24: 715.3658 | I24: 0.02587806849 | J24: 0.01016016697 | K24: 0 | L24: 0.024 | M24: 0 | N24: 0 | O24: 0.087 | P24: 0.0222 | Q24: 1.524993804e-06 | R24: 5.257791507e-07 | S24: -715.3436 | U24: =G24-INDEX($C24:$G24,1,aux!$AL$1) -> 643.926 | V24: 0.03226117238 | W24: 0.01903082541 | X24: =+IF(INDEX($C24:$G24,1,aux!$AL$1)>0,(G24/INDEX($C24:$G24,1,aux!$AL$1))^(1/($G$3-INDEX($C$3:$G$3,1,aux!$AL$1)))-1,"n.d.") -> 0.192653769 | Y24: =IF(INDEX($C24:$G24,1,aux!$AL$1)>0,(G24-INDEX($C24:$G24,1,aux!$AL$1))/INDEX($C24:$G24,1,aux!$AL$1),"n.d.") -> 1.023287227 | AA24: =O24-INDEX($K24:$O24,1,aux!$AL$1) -> 0.087 | AB24: 2.098277025e-05 | AC24: 5.444061114e-06 | AD24: =+IF(INDEX($K24:$O24,1,aux!$AL$1)>0,(O24/INDEX($K24:$O24,1,aux!$AL$1))^(1/($O$3-INDEX($K$3:$O$3,1,aux!$AL$1)))-1,"n.d.") -> n.d. | AE24: =IF(INDEX($K24:$O24,1,aux!$AL$1)>0,(O24-INDEX($K24:$O24,1,aux!$AL$1))/INDEX($K24:$O24,1,aux!$AL$1),"n.d.") -> n.d. | AX24: 04
A25: 0404 | B25: Soro de leite e outros produtos do leite | C25: 28.105 | D25: 0 | E25: 0 | F25: 4.361 | G25: 1.834 | H25: 6.86 | I25: 0.0002481577255 | J25: 9.743091632e-05 | K25: 0 | L25: 0.368 | M25: 0 | N25: 0 | O25: 0 | P25: 0.0736 | Q25: 5.055835313e-06 | R25: 1.743123671e-06 | S25: -6.7864 | U25: =G25-INDEX($C25:$G25,1,aux!$AL$1) -> -26.271 | V25: -0.001316196674 | W25: -0.000776422779 | X25: =+IF(INDEX($C25:$G25,1,aux!$AL$1)>0,(G25/INDEX($C25:$G25,1,aux!$AL$1))^(1/($G$3-INDEX($C$3:$G$3,1,aux!$AL$1)))-1,"n.d.") -> -0.4945782404 | Y25: =IF(INDEX($C25:$G25,1,aux!$AL$1)>0,(G25-INDEX($C25:$G25,1,aux!$AL$1))/INDEX($C25:$G25,1,aux!$AL$1),"n.d.") -> -0.9347447073 | AA25: =O25-INDEX($K25:$O25,1,aux!$AL$1) -> 0 | AB25: 0 | AC25: 0 | AD25: =+IF(INDEX($K25:$O25,1,aux!$AL$1)>0,(O25/INDEX($K25:$O25,1,aux!$AL$1))^(1/($O$3-INDEX($K$3:$O$3,1,aux!$AL$1)))-1,"n.d.") -> n.d. | AE25: =IF(INDEX($K25:$O25,1,aux!$AL$1)>0,(O25-INDEX($K25:$O25,1,aux!$AL$1))/INDEX($K25:$O25,1,aux!$AL$1),"n.d.") -> n.d. | AX25: 04
A26: 0405 | B26: Manteiga | C26: 17.678 | D26: 16.199 | E26: 19.225 | F26: 23.974 | G26: 25.207 | H26: 20.4566 | I26: 0.0007400092315 | J26: 0.0002905401287 | K26: 0.095 | L26: 0.324 | M26: 28.607 | N26: 121.862 | O26: 0.355 | P26: 30.2486 | Q26: 0.00207787962 | R26: 0.000716400145 | S26: 9.792 | U26: =G26-INDEX($C26:$G26,1,aux!$AL$1) -> 7.529 | V26: 0.0003772085097 | W26: 0.0002225148302 | X26: =+IF(INDEX($C26:$G26,1,aux!$AL$1)>0,(G26/INDEX($C26:$G26,1,aux!$AL$1))^(1/($G$3-INDEX($C$3:$G$3,1,aux!$AL$1)))-1,"n.d.") -> 0.09275300125 | Y26: =IF(INDEX($C26:$G26,1,aux!$AL$1)>0,(G26-INDEX($C26:$G26,1,aux!$AL$1))/INDEX($C26:$G26,1,aux!$AL$1),"n.d.") -> 0.4258965946 | AA26: =O26-INDEX($K26:$O26,1,aux!$AL$1) -> 0.26 | AB26: 6.270712949e-05 | AC26: 1.626960793e-05 | AD26: =+IF(INDEX($K26:$O26,1,aux!$AL$1)>0,(O26/INDEX($K26:$O26,1,aux!$AL$1))^(1/($O$3-INDEX($K$3:$O$3,1,aux!$AL$1)))-1,"n.d.") -> 0.3903565492 | AE26: =IF(INDEX($K26:$O26,1,aux!$AL$1)>0,(O26-INDEX($K26:$O26,1,aux!$AL$1))/INDEX($K26:$O26,1,aux!$AL$1),"n.d.") -> 2.736842105 | AX26: 04
A27: 0406 | B27: Queijos e requeijão | C27: 342.668 | D27: 335.052 | E27: 347.968 | F27: 228.894 | G27: 75.14 | H27: 265.9444 | I27: 0.009620431111 | J27: 0.003777143817 | K27: 344.201 | L27: 241.134 | M27: 653.045 | N27: 658.883 | O27: 909.757 | P27: 561.404 | Q27: 0.03856475771 | R27: 0.01329614947 | S27: 295.4596 | U27: =G27-INDEX($C27:$G27,1,aux!$AL$1) -> -267.528 | V27: -0.01340335213 | W27: -0.007906620731 | X27: =+IF(INDEX($C27:$G27,1,aux!$AL$1)>0,(G27/INDEX($C27:$G27,1,aux!$AL$1))^(1/($G$3-INDEX($C$3:$G$3,1,aux!$AL$1)))-1,"n.d.") -> -0.3156954775 | Y27: =IF(INDEX($C27:$G27,1,aux!$AL$1)>0,(G27-INDEX($C27:$G27,1,aux!$AL$1))/INDEX($C27:$G27,1,aux!$AL$1),"n.d.") -> -0.7807206976 | AA27: =O27-INDEX($K27:$O27,1,aux!$AL$1) -> 565.556 | AB27: 0.1364015128 | AC27: 0.03538990147 | AD27: =+IF(INDEX($K27:$O27,1,aux!$AL$1)>0,(O27/INDEX($K27:$O27,1,aux!$AL$1))^(1/($O$3-INDEX($K$3:$O$3,1,aux!$AL$1)))-1,"n.d.") -> 0.2750532411 | AE27: =IF(INDEX($K27:$O27,1,aux!$AL$1)>0,(O27-INDEX($K27:$O27,1,aux!$AL$1))/INDEX($K27:$O27,1,aux!$AL$1),"n.d.") -> 1.643098074 | AX27: 04
A28: 0407 | B28: Ovos de aves, com cascas | C28: 0 | D28: 0 | E28: 0 | F28: 0 | G28: 0 | H28: 0 | I28: 0 | J28: 0 | K28: 0 | L28: 142.813 | M28: 15.116 | N28: 0 | O28: 0 | P28: 31.5858 | Q28: 0.002169736454 | R28: 0.0007480700495 | S28: 31.5858 | U28: =G28-INDEX($C28:$G28,1,aux!$AL$1) -> 0 | V28: 0 | W28: 0 | X28: =+IF(INDEX($C28:$G28,1,aux!$AL$1)>0,(G28/INDEX($C28:$G28,1,aux!$AL$1))^(1/($G$3-INDEX($C$3:$G$3,1,aux!$AL$1)))-1,"n.d.") -> n.d. | Y28: =IF(INDEX($C28:$G28,1,aux!$AL$1)>0,(G28-INDEX($C28:$G28,1,aux!$AL$1))/INDEX($C28:$G28,1,aux!$AL$1),"n.d.") -> n.d. | AA28: =O28-INDEX($K28:$O28,1,aux!$AL$1) -> 0 | AB28: 0 | AC28: 0 | AD28: =+IF(INDEX($K28:$O28,1,aux!$AL$1)>0,(O28/INDEX($K28:$O28,1,aux!$AL$1))^(1/($O$3-INDEX($K$3:$O$3,1,aux!$AL$1)))-1,"n.d.") -> n.d. | AE28: =IF(INDEX($K28:$O28,1,aux!$AL$1)>0,(O28-INDEX($K28:$O28,1,aux!$AL$1))/INDEX($K28:$O28,1,aux!$AL$1),"n.d.") -> n.d. | AX28: 04
A29: 0408 | B29: Ovos de aves, sem casca | C29: 0 | D29: 0 | E29: 0 | F29: 0 | G29: 0 | H29: 0 | I29: 0 | J29: 0 | K29: 0 | L29: 0 | M29: 0 | N29: 0 | O29: 0 | P29: 0 | Q29: 0 | R29: 0 | S29: 0 | U29: =G29-INDEX($C29:$G29,1,aux!$AL$1) -> 0 | V29: 0 | W29: 0 | X29: =+IF(INDEX($C29:$G29,1,aux!$AL$1)>0,(G29/INDEX($C29:$G29,1,aux!$AL$1))^(1/($G$3-INDEX($C$3:$G$3,1,aux!$AL$1)))-1,"n.d.") -> n.d. | Y29: =IF(INDEX($C29:$G29,1,aux!$AL$1)>0,(G29-INDEX($C29:$G29,1,aux!$AL$1))/INDEX($C29:$G29,1,aux!$AL$1),"n.d.") -> n.d. | AA29: =O29-INDEX($K29:$O29,1,aux!$AL$1) -> 0 | AB29: 0 | AC29: 0 | AD29: =+IF(INDEX($K29:$O29,1,aux!$AL$1)>0,(O29/INDEX($K29:$O29,1,aux!$AL$1))^(1/($O$3-INDEX($K$3:$O$3,1,aux!$AL$1)))-1,"n.d.") -> n.d. | AE29: =IF(INDEX($K29:$O29,1,aux!$AL$1)>0,(O29-INDEX($K29:$O29,1,aux!$AL$1))/INDEX($K29:$O29,1,aux!$AL$1),"n.d.") -> n.d. | AX29: 04
A30: 0409 | B30: Mel natural | C30: 0 | D30: 0 | E30: 0 | F30: 1.218 | G30: 0.277 | H30: 0.299 | I30: 1.081620407e-05 | J30: 4.246624487e-06 | K30: 0.012 | L30: 0.037 | M30: 71.069 | N30: 0.706 | O30: 41.642 | P30: 22.6932 | Q30: 0.001558873396 | R30: 0.000537459974 | S30: 22.3942 | U30: =G30-INDEX($C30:$G30,1,aux!$AL$1) -> 0.277 | V30: 1.387790639e-05 | W30: 8.186559696e-06 | X30: =+IF(INDEX($C30:$G30,1,aux!$AL$1)>0,(G30/INDEX($C30:$G30,1,aux!$AL$1))^(1/($G$3-INDEX($C$3:$G$3,1,aux!$AL$1)))-1,"n.d.") -> n.d. | Y30: =IF(INDEX($C30:$G30,1,aux!$AL$1)>0,(G30-INDEX($C30:$G30,1,aux!$AL$1))/INDEX($C30:$G30,1,aux!$AL$1),"n.d.") -> n.d. | AA30: =O30-INDEX($K30:$O30,1,aux!$AL$1) -> 41.63 | AB30: 0.01004037616 | AC30: 0.002605014531 | AD30: =+IF(INDEX($K30:$O30,1,aux!$AL$1)>0,(O30/INDEX($K30:$O30,1,aux!$AL$1))^(1/($O$3-INDEX($K$3:$O$3,1,aux!$AL$1)))-1,"n.d.") -> 6.675162575 | AE30: =IF(INDEX($K30:$O30,1,aux!$AL$1)>0,(O30-INDEX($K30:$O30,1,aux!$AL$1))/INDEX($K30:$O30,1,aux!$AL$1),"n.d.") -> 3469.166667 | AX30: 04
A31: 0410 | B31: Outros produtos comestíveis de origem animal | C31: 0 | D31: 0 | E31: 0 | F31: 0 | G31: 0 | H31: 0 | I31: 0 | J31: 0 | K31: 0 | L31: 0 | M31: 0 | N31: 0 | O31: 0 | P31: 0 | Q31: 0 | R31: 0 | S31: 0 | U31: =G31-INDEX($C31:$G31,1,aux!$AL$1) -> 0 | V31: 0 | W31: 0 | X31: =+IF(INDEX($C31:$G31,1,aux!$AL$1)>0,(G31/INDEX($C31:$G31,1,aux!$AL$1))^(1/($G$3-INDEX($C$3:$G$3,1,aux!$AL$1)))-1,"n.d.") -> n.d. | Y31: =IF(INDEX($C31:$G31,1,aux!$AL$1)>0,(G31-INDEX($C31:$G31,1,aux!$AL$1))/INDEX($C31:$G31,1,aux!$AL$1),"n.d.") -> n.d. | AA31: =O31-INDEX($K31:$O31,1,aux!$AL$1) -> 0 | AB31: 0 | AC31: 0 | AD31: =+IF(INDEX($K31:$O31,1,aux!$AL$1)>0,(O31/INDEX($K31:$O31,1,aux!$AL$1))^(1/($O$3-INDEX($K$3:$O$3,1,aux!$AL$1)))-1,"n.d.") -> n.d. | AE31: =IF(INDEX($K31:$O31,1,aux!$AL$1)>0,(O31-INDEX($K31:$O31,1,aux!$AL$1))/INDEX($K31:$O31,1,aux!$AL$1),"n.d.") -> n.d. | AX31: 04
A32: 04SS | B32: Leite e lacticínios; ovos de aves; mel natural; etc. | C32: 0 | D32: 0 | E32: 0 | F32: 0 | G32: 0 | H32: 0 | I32: 0 | J32: 0 | K32: 0 | L32: 0 | M32: 0 | N32: 0 | O32: 0 | P32: 0 | Q32: 0 | R32: 0 | S32: 0 | U32: =G32-INDEX($C32:$G32,1,aux!$AL$1) -> 0 | V32: 0 | W32: 0 | X32: =+IF(INDEX($C32:$G32,1,aux!$AL$1)>0,(G32/INDEX($C32:$G32,1,aux!$AL$1))^(1/($G$3-INDEX($C$3:$G$3,1,aux!$AL$1)))-1,"n.d.") -> n.d. | Y32: =IF(INDEX($C32:$G32,1,aux!$AL$1)>0,(G32-INDEX($C32:$G32,1,aux!$AL$1))/INDEX($C32:$G32,1,aux!$AL$1),"n.d.") -> n.d. | AA32: =O32-INDEX($K32:$O32,1,aux!$AL$1) -> 0 | AB32: 0 | AC32: 0 | AD32: =+IF(INDEX($K32:$O32,1,aux!$AL$1)>0,(O32/INDEX($K32:$O32,1,aux!$AL$1))^(1/($O$3-INDEX($K$3:$O$3,1,aux!$AL$1)))-1,"n.d.") -> n.d. | AE32: =IF(INDEX($K32:$O32,1,aux!$AL$1)>0,(O32-INDEX($K32:$O32,1,aux!$AL$1))/INDEX($K32:$O32,1,aux!$AL$1),"n.d.") -> n.d. | AX32: 04
A33: 0501 | B33: Cabelos em bruto | C33: 0 | D33: 0 | E33: 0 | F33: 0 | G33: 0 | H33: 0 | I33: 0 | J33: 0 | K33: 0 | L33: 0 | M33: 0 | N33: 0 | O33: 0 | P33: 0 | Q33: 0 | R33: 0 | S33: 0 | U33: =G33-INDEX($C33:$G33,1,aux!$AL$1) -> 0 | V33: 0 | W33: 0 | X33: =+IF(INDEX($C33:$G33,1,aux!$AL$1)>0,(G33/INDEX($C33:$G33,1,aux!$AL$1))^(1/($G$3-INDEX($C$3:$G$3,1,aux!$AL$1)))-1,"n.d.") -> n.d. | Y33: =IF(INDEX($C33:$G33,1,aux!$AL$1)>0,(G33-INDEX($C33:$G33,1,aux!$AL$1))/INDEX($C33:$G33,1,aux!$AL$1),"n.d.") -> n.d. | AA33: =O33-INDEX($K33:$O33,1,aux!$AL$1) -> 0 | AB33: 0 | AC33: 0 | AD33: =+IF(INDEX($K33:$O33,1,aux!$AL$1)>0,(O33/INDEX($K33:$O33,1,aux!$AL$1))^(1/($O$3-INDEX($K$3:$O$3,1,aux!$AL$1)))-1,"n.d.") -> n.d. | AE33: =IF(INDEX($K33:$O33,1,aux!$AL$1)>0,(O33-INDEX($K33:$O33,1,aux!$AL$1))/INDEX($K33:$O33,1,aux!$AL$1),"n.d.") -> n.d. | AX33: 05
A34: 0502 | B34: Cerdas de porco ou de javali, etc. | C34: 0 | D34: 0 | E34: 0 | F34: 0 | G34: 293.914 | H34: 58.7828 | I34: 0.002126444016 | J34: 0.0008348778524 | K34: 0 | L34: 0 | M34: 0 | N34: 0 | O34: 0 | P34: 0 | Q34: 0 | R34: 0 | S34: -58.7828 | U34: =G34-INDEX($C34:$G34,1,aux!$AL$1) -> 293.914 | V34: 0.01472531039 | W34: 0.008686442262 | X34: =+IF(INDEX($C34:$G34,1,aux!$AL$1)>0,(G34/INDEX($C34:$G34,1,aux!$AL$1))^(1/($G$3-INDEX($C$3:$G$3,1,aux!$AL$1)))-1,"n.d.") -> n.d. | Y34: =IF(INDEX($C34:$G34,1,aux!$AL$1)>0,(G34-INDEX($C34:$G34,1,aux!$AL$1))/INDEX($C34:$G34,1,aux!$AL$1),"n.d.") -> n.d. | AA34: =O34-INDEX($K34:$O34,1,aux!$AL$1) -> 0 | AB34: 0 | AC34: 0 | AD34: =+IF(INDEX($K34:$O34,1,aux!$AL$1)>0,(O34/INDEX($K34:$O34,1,aux!$AL$1))^(1/($O$3-INDEX($K$3:$O$3,1,aux!$AL$1)))-1,"n.d.") -> n.d. | AE34: =IF(INDEX($K34:$O34,1,aux!$AL$1)>0,(O34-INDEX($K34:$O34,1,aux!$AL$1))/INDEX($K34:$O34,1,aux!$AL$1),"n.d.") -> n.d. | AX34: 05
A35: 0504 | B35: Tripas de animais (excepto peixes) | C35: 3.591 | D35: 0 | E35: 0 | F35: 0 | G35: 0 | H35: 0.7182 | I35: 2.598059453e-05 | J35: 1.020042042e-05 | K35: 370.007 | L35: 232.71 | M35: 352.266 | N35: 312.298 | O35: 123.511 | P35: 278.1584 | Q35: 0.01910765029 | R35: 0.006587832762 | S35: 277.4402 | U35: =G35-INDEX($C35:$G35,1,aux!$AL$1) -> -3.591 | V35: -0.0001799117756 | W35: -0.0001061297324 | X35: =+IF(INDEX($C35:$G35,1,aux!$AL$1)>0,(G35/INDEX($C35:$G35,1,aux!$AL$1))^(1/($G$3-INDEX($C$3:$G$3,1,aux!$AL$1)))-1,"n.d.") -> -1 | Y35: =IF(INDEX($C35:$G35,1,aux!$AL$1)>0,(G35-INDEX($C35:$G35,1,aux!$AL$1))/INDEX($C35:$G35,1,aux!$AL$1),"n.d.") -> -1 | AA35: =O35-INDEX($K35:$O35,1,aux!$AL$1) -> -246.496 | AB35: -0.05945021765 | AC35: -0.01542458952 | AD35: =+IF(INDEX($K35:$O35,1,aux!$AL$1)>0,(O35/INDEX($K35:$O35,1,aux!$AL$1))^(1/($O$3-INDEX($K$3:$O$3,1,aux!$AL$1)))-1,"n.d.") -> -0.2398944136 | AE35: =IF(INDEX($K35:$O35,1,aux!$AL$1)>0,(O35-INDEX($K35:$O35,1,aux!$AL$1))/INDEX($K35:$O35,1,aux!$AL$1),"n.d.") -> -0.6661928018 | AX35: 05
A36: 0505 | B36: Peles e outras partes de aves | C36: 0 | D36: 0 | E36: 0 | F36: 0 | G36: 0 | H36: 0 | I36: 0 | J36: 0 | K36: 0 | L36: 0 | M36: 0 | N36: 0 | O36: 0 | P36: 0 | Q36: 0 | R36: 0 | S36: 0 | U36: =G36-INDEX($C36:$G36,1,aux!$AL$1) -> 0 | V36: 0 | W36: 0 | X36: =+IF(INDEX($C36:$G36,1,aux!$AL$1)>0,(G36/INDEX($C36:$G36,1,aux!$AL$1))^(1/($G$3-INDEX($C$3:$G$3,1,aux!$AL$1)))-1,"n.d.") -> n.d. | Y36: =IF(INDEX($C36:$G36,1,aux!$AL$1)>0,(G36-INDEX($C36:$G36,1,aux!$AL$1))/INDEX($C36:$G36,1,aux!$AL$1),"n.d.") -> n.d. | AA36: =O36-INDEX($K36:$O36,1,aux!$AL$1) -> 0 | AB36: 0 | AC36: 0 | AD36: =+IF(INDEX($K36:$O36,1,aux!$AL$1)>0,(O36/INDEX($K36:$O36,1,aux!$AL$1))^(1/($O$3-INDEX($K$3:$O$3,1,aux!$AL$1)))-1,"n.d.") -> n.d. | AE36: =IF(INDEX($K36:$O36,1,aux!$AL$1)>0,(O36-INDEX($K36:$O36,1,aux!$AL$1))/INDEX($K36:$O36,1,aux!$AL$1),"n.d.") -> n.d. | AX36: 05
A37: 0506 | B37: Ossos e núcleos córneos, em bruto | C37: 0 | D37: 0 | E37: 0 | F37: 0 | G37: 0 | H37: 0 | I37: 0 | J37: 0 | K37: 0 | L37: 0 | M37: 0 | N37: 0 | O37: 0 | P37: 0 | Q37: 0 | R37: 0 | S37: 0 | U37: =G37-INDEX($C37:$G37,1,aux!$AL$1) -> 0 | V37: 0 | W37: 0 | X37: =+IF(INDEX($C37:$G37,1,aux!$AL$1)>0,(G37/INDEX($C37:$G37,1,aux!$AL$1))^(1/($G$3-INDEX($C$3:$G$3,1,aux!$AL$1)))-1,"n.d.") -> n.d. | Y37: =IF(INDEX($C37:$G37,1,aux!$AL$1)>0,(G37-INDEX($C37:$G37,1,aux!$AL$1))/INDEX($C37:$G37,1,aux!$AL$1),"n.d.") -> n.d. | AA37: =O37-INDEX($K37:$O37,1,aux!$AL$1) -> 0 | AB37: 0 | AC37: 0 | AD37: =+IF(INDEX($K37:$O37,1,aux!$AL$1)>0,(O37/INDEX($K37:$O37,1,aux!$AL$1))^(1/($O$3-INDEX($K$3:$O$3,1,aux!$AL$1)))-1,"n.d.") -> n.d. | AE37: =IF(INDEX($K37:$O37,1,aux!$AL$1)>0,(O37-INDEX($K37:$O37,1,aux!$AL$1))/INDEX($K37:$O37,1,aux!$AL$1),"n.d.") -> n.d. | AX37: 05
A38: 0507 | B38: Marfim, carapaças de tartaruga, etc. | C38: 0 | D38: 0 | E38: 0 | F38: 0 | G38: 0 | H38: 0 | I38: 0 | J38: 0 | K38: 0 | L38: 0 | M38: 0 | N38: 0 | O38: 0 | P38: 0 | Q38: 0 | R38: 0 | S38: 0 | U38: =G38-INDEX($C38:$G38,1,aux!$AL$1) -> 0 | V38: 0 | W38: 0 | X38: =+IF(INDEX($C38:$G38,1,aux!$AL$1)>0,(G38/INDEX($C38:$G38,1,aux!$AL$1))^(1/($G$3-INDEX($C$3:$G$3,1,aux!$AL$1)))-1,"n.d.") -> n.d. | Y38: =IF(INDEX($C38:$G38,1,aux!$AL$1)>0,(G38-INDEX($C38:$G38,1,aux!$AL$1))/INDEX($C38:$G38,1,aux!$AL$1),"n.d.") -> n.d. | AA38: =O38-INDEX($K38:$O38,1,aux!$AL$1) -> 0 | AB38: 0 | AC38: 0 | AD38: =+IF(INDEX($K38:$O38,1,aux!$AL$1)>0,(O38/INDEX($K38:$O38,1,aux!$AL$1))^(1/($O$3-INDEX($K$3:$O$3,1,aux!$AL$1)))-1,"n.d.") -> n.d. | AE38: =IF(INDEX($K38:$O38,1,aux!$AL$1)>0,(O38-INDEX($K38:$O38,1,aux!$AL$1))/INDEX($K38:$O38,1,aux!$AL$1),"n.d.") -> n.d. | AX38: 05
A39: 0510 | B39: Âmbar-cinzento, castóreo, algália e almíscar, etc. | C39: 0 | D39: 0 | E39: 0 | F39: 0 | G39: 0 | H39: 0 | I39: 0 | J39: 0 | K39: 0 | L39: 0 | M39: 0 | N39: 0 | O39: 0 | P39: 0 | Q39: 0 | R39: 0 | S39: 0 | U39: =G39-INDEX($C39:$G39,1,aux!$AL$1) -> 0 | V39: 0 | W39: 0 | X39: =+IF(INDEX($C39:$G39,1,aux!$AL$1)>0,(G39/INDEX($C39:$G39,1,aux!$AL$1))^(1/($G$3-INDEX($C$3:$G$3,1,aux!$AL$1)))-1,"n.d.") -> n.d. | Y39: =IF(INDEX($C39:$G39,1,aux!$AL$1)>0,(G39-INDEX($C39:$G39,1,aux!$AL$1))/INDEX($C39:$G39,1,aux!$AL$1),"n.d.") -> n.d. | AA39: =O39-INDEX($K39:$O39,1,aux!$AL$1) -> 0 | AB39: 0 | AC39: 0 | AD39: =+IF(INDEX($K39:$O39,1,aux!$AL$1)>0,(O39/INDEX($K39:$O39,1,aux!$AL$1))^(1/($O$3-INDEX($K$3:$O$3,1,aux!$AL$1)))-1,"n.d.") -> n.d. | AE39: =IF(INDEX($K39:$O39,1,aux!$AL$1)>0,(O39-INDEX($K39:$O39,1,aux!$AL$1))/INDEX($K39:$O39,1,aux!$AL$1),"n.d.") -> n.d. | AX39: 05
A40: 0511 | B40: Outros produtos de origem animal (exc. NC 0511 91) (a) | C40: 0 | D40: 0 | E40: 0 | F40: 0 | G40: 0 | H40: 0 | I40: 0 | J40: 0 | K40: 0 | L40: 0 | M40: 0 | N40: 0 | O40: 0 | P40: 0 | Q40: 0 | R40: 0 | S40: 0 | U40: =G40-INDEX($C40:$G40,1,aux!$AL$1) -> 0 | V40: 0 | W40: 0 | X40: =+IF(INDEX($C40:$G40,1,aux!$AL$1)>0,(G40/INDEX($C40:$G40,1,aux!$AL$1))^(1/($G$3-INDEX($C$3:$G$3,1,aux!$AL$1)))-1,"n.d.") -> n.d. | Y40: =IF(INDEX($C40:$G40,1,aux!$AL$1)>0,(G40-INDEX($C40:$G40,1,aux!$AL$1))/INDEX($C40:$G40,1,aux!$AL$1),"n.d.") -> n.d. | AA40: =O40-INDEX($K40:$O40,1,aux!$AL$1) -> 0 | AB40: 0 | AC40: 0 | AD40: =+IF(INDEX($K40:$O40,1,aux!$AL$1)>0,(O40/INDEX($K40:$O40,1,aux!$AL$1))^(1/($O$3-INDEX($K$3:$O$3,1,aux!$AL$1)))-1,"n.d.") -> n.d. | AE40: =IF(INDEX($K40:$O40,1,aux!$AL$1)>0,(O40-INDEX($K40:$O40,1,aux!$AL$1))/INDEX($K40:$O40,1,aux!$AL$1),"n.d.") -> n.d. | AX40: 05
A41: 05SS | B41: Outros produtos de origem animal | C41: 0 | D41: 0 | E41: 0 | F41: 0 | G41: 0 | H41: 0 | I41: 0 | J41: 0 | K41: 0 | L41: 0 | M41: 0 | N41: 0 | O41: 0 | P41: 0 | Q41: 0 | R41: 0 | S41: 0 | U41: =G41-INDEX($C41:$G41,1,aux!$AL$1) -> 0 | V41: 0 | W41: 0 | X41: =+IF(INDEX($C41:$G41,1,aux!$AL$1)>0,(G41/INDEX($C41:$G41,1,aux!$AL$1))^(1/($G$3-INDEX($C$3:$G$3,1,aux!$AL$1)))-1,"n.d.") -> n.d. | Y41: =IF(INDEX($C41:$G41,1,aux!$AL$1)>0,(G41-INDEX($C41:$G41,1,aux!$AL$1))/INDEX($C41:$G41,1,aux!$AL$1),"n.d.") -> n.d. | AA41: =O41-INDEX($K41:$O41,1,aux!$AL$1) -> 0 | AB41: 0 | AC41: 0 | AD41: =+IF(INDEX($K41:$O41,1,aux!$AL$1)>0,(O41/INDEX($K41:$O41,1,aux!$AL$1))^(1/($O$3-INDEX($K$3:$O$3,1,aux!$AL$1)))-1,"n.d.") -> n.d. | AE41: =IF(INDEX($K41:$O41,1,aux!$AL$1)>0,(O41-INDEX($K41:$O41,1,aux!$AL$1))/INDEX($K41:$O41,1,aux!$AL$1),"n.d.") -> n.d. | AX41: 05
A42: 0601 | B42: Bolbos, tubérculos, raízes, etc. | C42: 0 | D42: 5.987 | E42: 0 | F42: 0 | G42: 0 | H42: 1.1974 | I42: 4.331546072e-05 | J42: 1.700638181e-05 | K42: 29.572 | L42: 79.7 | M42: 48.013 | N42: 14.357 | O42: 90.744 | P42: 52.4772 | Q42: 0.003604838055 | R42: 0.001242856651 | S42: 51.2798 | U42: =G42-INDEX($C42:$G42,1,aux!$AL$1) -> 0 | V42: 0 | W42: 0 | X42: =+IF(INDEX($C42:$G42,1,aux!$AL$1)>0,(G42/INDEX($C42:$G42,1,aux!$AL$1))^(1/($G$3-INDEX($C$3:$G$3,1,aux!$AL$1)))-1,"n.d.") -> n.d. | Y42: =IF(INDEX($C42:$G42,1,aux!$AL$1)>0,(G42-INDEX($C42:$G42,1,aux!$AL$1))/INDEX($C42:$G42,1,aux!$AL$1),"n.d.") -> n.d. | AA42: =O42-INDEX($K42:$O42,1,aux!$AL$1) -> 61.172 | AB42: 0.01475354048 | AC42: 0.003827863293 | AD42: =+IF(INDEX($K42:$O42,1,aux!$AL$1)>0,(O42/INDEX($K42:$O42,1,aux!$AL$1))^(1/($O$3-INDEX($K$3:$O$3,1,aux!$AL$1)))-1,"n.d.") -> 0.3235315714 | AE42: =IF(INDEX($K42:$O42,1,aux!$AL$1)>0,(O42-INDEX($K42:$O42,1,aux!$AL$1))/INDEX($K42:$O42,1,aux!$AL$1),"n.d.") -> 2.068578385 | AX42: 06
A43: 0602 | B43: Plantas vivas | C43: 0 | D43: 0 | E43: 0 | F43: 0 | G43: 12.605 | H43: 2.521 | I43: 9.11961554e-05 | J43: 3.580515161e-05 | K43: 43.737 | L43: 93.119 | M43: 71.426 | N43: 79.822 | O43: 89.134 | P43: 75.4476 | Q43: 0.005182753265 | R43: 0.001786881759 | S43: 72.9266 | U43: =G43-INDEX($C43:$G43,1,aux!$AL$1) -> 12.605 | V43: 0.0006315198918 | W43: 0.0003725327977 | X43: =+IF(INDEX($C43:$G43,1,aux!$AL$1)>0,(G43/INDEX($C43:$G43,1,aux!$AL$1))^(1/($G$3-INDEX($C$3:$G$3,1,aux!$AL$1)))-1,"n.d.") -> n.d. | Y43: =IF(INDEX($C43:$G43,1,aux!$AL$1)>0,(G43-INDEX($C43:$G43,1,aux!$AL$1))/INDEX($C43:$G43,1,aux!$AL$1),"n.d.") -> n.d. | AA43: =O43-INDEX($K43:$O43,1,aux!$AL$1) -> 45.397 | AB43: 0.01094890599 | AC43: 0.00284073612 | AD43: =+IF(INDEX($K43:$O43,1,aux!$AL$1)>0,(O43/INDEX($K43:$O43,1,aux!$AL$1))^(1/($O$3-INDEX($K$3:$O$3,1,aux!$AL$1)))-1,"n.d.") -> 0.1948093195 | AE43: =IF(INDEX($K43:$O43,1,aux!$AL$1)>0,(O43-INDEX($K43:$O43,1,aux!$AL$1))/INDEX($K43:$O43,1,aux!$AL$1),"n.d.") -> 1.037954135 | AX43: 06
A44: 0603 | B44: Flores e seus botões | C44: 1.274 | D44: 0.397 | E44: 0.305 | F44: 0 | G44: 0.077 | H44: 0.4106 | I44: 1.485328894e-05 | J44: 5.831652222e-06 | K44: 0 | L44: 0 | M44: 0 | N44: 0 | O44: 0 | P44: 0 | Q44: 0 | R44: 0 | S44: -0.4106 | U44: =G44-INDEX($C44:$G44,1,aux!$AL$1) -> -1.197 | V44: -5.997059186e-05 | W44: -3.537657746e-05 | X44: =+IF(INDEX($C44:$G44,1,aux!$AL$1)>0,(G44/INDEX($C44:$G44,1,aux!$AL$1))^(1/($G$3-INDEX($C$3:$G$3,1,aux!$AL$1)))-1,"n.d.") -> -0.5041728265 | Y44: =IF(INDEX($C44:$G44,1,aux!$AL$1)>0,(G44-INDEX($C44:$G44,1,aux!$AL$1))/INDEX($C44:$G44,1,aux!$AL$1),"n.d.") -> -0.9395604396 | AA44: =O44-INDEX($K44:$O44,1,aux!$AL$1) -> 0 | AB44: 0 | AC44: 0 | AD44: =+IF(INDEX($K44:$O44,1,aux!$AL$1)>0,(O44/INDEX($K44:$O44,1,aux!$AL$1))^(1/($O$3-INDEX($K$3:$O$3,1,aux!$AL$1)))-1,"n.d.") -> n.d. | AE44: =IF(INDEX($K44:$O44,1,aux!$AL$1)>0,(O44-INDEX($K44:$O44,1,aux!$AL$1))/INDEX($K44:$O44,1,aux!$AL$1),"n.d.") -> n.d. | AX44: 06
A45: 0604 | B45: Folhagem, folhas, ramos e outras partes de plantas | C45: 0 | D45: 0 | E45: 0 | F45: 0 | G45: 0 | H45: 0 | I45: 0 | J45: 0 | K45: 0 | L45: 0 | M45: 196.878 | N45: 145.737 | O45: 55.117 | P45: 79.5464 | Q45: 0.005464313833 | R45: 0.001883956695 | S45: 79.5464 | U45: =G45-INDEX($C45:$G45,1,aux!$AL$1) -> 0 | V45: 0 | W45: 0 | X45: =+IF(INDEX($C45:$G45,1,aux!$AL$1)>0,(G45/INDEX($C45:$G45,1,aux!$AL$1))^(1/($G$3-INDEX($C$3:$G$3,1,aux!$AL$1)))-1,"n.d.") -> n.d. | Y45: =IF(INDEX($C45:$G45,1,aux!$AL$1)>0,(G45-INDEX($C45:$G45,1,aux!$AL$1))/INDEX($C45:$G45,1,aux!$AL$1),"n.d.") -> n.d. | AA45: =O45-INDEX($K45:$O45,1,aux!$AL$1) -> 55.117 | AB45: 0.01329318791 | AC45: 0.003448969155 | AD45: =+IF(INDEX($K45:$O45,1,aux!$AL$1)>0,(O45/INDEX($K45:$O45,1,aux!$AL$1))^(1/($O$3-INDEX($K$3:$O$3,1,aux!$AL$1)))-1,"n.d.") -> n.d. | AE45: =IF(INDEX($K45:$O45,1,aux!$AL$1)>0,(O45-INDEX($K45:$O45,1,aux!$AL$1))/INDEX($K45:$O45,1,aux!$AL$1),"n.d.") -> n.d. | AX45: 06
A46: 06SS | B46: Plantas vivas e produtos de floricultura | C46: 0 | D46: 0 | E46: 0 | F46: 0 | G46: 0 | H46: 0 | I46: 0 | J46: 0 | K46: 0 | L46: 0 | M46: 0 | N46: 0 | O46: 0 | P46: 0 | Q46: 0 | R46: 0 | S46: 0 | U46: =G46-INDEX($C46:$G46,1,aux!$AL$1) -> 0 | V46: 0 | W46: 0 | X46: =+IF(INDEX($C46:$G46,1,aux!$AL$1)>0,(G46/INDEX($C46:$G46,1,aux!$AL$1))^(1/($G$3-INDEX($C$3:$G$3,1,aux!$AL$1)))-1,"n.d.") -> n.d. | Y46: =IF(INDEX($C46:$G46,1,aux!$AL$1)>0,(G46-INDEX($C46:$G46,1,aux!$AL$1))/INDEX($C46:$G46,1,aux!$AL$1),"n.d.") -> n.d. | AA46: =O46-INDEX($K46:$O46,1,aux!$AL$1) -> 0 | AB46: 0 | AC46: 0 | AD46: =+IF(INDEX($K46:$O46,1,aux!$AL$1)>0,(O46/INDEX($K46:$O46,1,aux!$AL$1))^(1/($O$3-INDEX($K$3:$O$3,1,aux!$AL$1)))-1,"n.d.") -> n.d. | AE46: =IF(INDEX($K46:$O46,1,aux!$AL$1)>0,(O46-INDEX($K46:$O46,1,aux!$AL$1))/INDEX($K46:$O46,1,aux!$AL$1),"n.d.") -> n.d. | AX46: 06
A47: 0701 | B47: Batatas, frescas ou refrigeradas | C47: 0 | D47: 0 | E47: 0 | F47: 0 | G47: 0 | H47: 0 | I47: 0 | J47: 0 | K47: 16.305 | L47: 21.03 | M47: 0 | N47: 55.461 | O47: 32.382 | P47: 25.0356 | Q47: 0.00171978085 | R47: 0.0005929367795 | S47: 25.0356 | U47: =G47-INDEX($C47:$G47,1,aux!$AL$1) -> 0 | V47: 0 | W47: 0 | X47: =+IF(INDEX($C47:$G47,1,aux!$AL$1)>0,(G47/INDEX($C47:$G47,1,aux!$AL$1))^(1/($G$3-INDEX($C$3:$G$3,1,aux!$AL$1)))-1,"n.d.") -> n.d. | Y47: =IF(INDEX($C47:$G47,1,aux!$AL$1)>0,(G47-INDEX($C47:$G47,1,aux!$AL$1))/INDEX($C47:$G47,1,aux!$AL$1),"n.d.") -> n.d. | AA47: =O47-INDEX($K47:$O47,1,aux!$AL$1) -> 16.077 | AB47: 0.003877471234 | AC47: 0.001006024949 | AD47: =+IF(INDEX($K47:$O47,1,aux!$AL$1)>0,(O47/INDEX($K47:$O47,1,aux!$AL$1))^(1/($O$3-INDEX($K$3:$O$3,1,aux!$AL$1)))-1,"n.d.") -> 0.1871229918 | AE47: =IF(INDEX($K47:$O47,1,aux!$AL$1)>0,(O47-INDEX($K47:$O47,1,aux!$AL$1))/INDEX($K47:$O47,1,aux!$AL$1),"n.d.") -> 0.9860165593 | AX47: 07
A48: 0702 | B48: Tomates, frescos ou refrigerados | C48: 0 | D48: 0 | E48: 0 | F48: 0 | G48: 1.205 | H48: 0.241 | I48: 8.718077529e-06 | J48: 3.422864553e-06 | K48: 63.937 | L48: 161.864 | M48: 113.33 | N48: 8.692 | O48: 0 | P48: 69.5646 | Q48: 0.004778629907 | R48: 0.001647550284 | S48: 69.3236 | U48: =G48-INDEX($C48:$G48,1,aux!$AL$1) -> 1.205 | V48: 6.037139783e-05 | W48: 3.56130124e-05 | X48: =+IF(INDEX($C48:$G48,1,aux!$AL$1)>0,(G48/INDEX($C48:$G48,1,aux!$AL$1))^(1/($G$3-INDEX($C$3:$G$3,1,aux!$AL$1)))-1,"n.d.") -> n.d. | Y48: =IF(INDEX($C48:$G48,1,aux!$AL$1)>0,(G48-INDEX($C48:$G48,1,aux!$AL$1))/INDEX($C48:$G48,1,aux!$AL$1),"n.d.") -> n.d. | AA48: =O48-INDEX($K48:$O48,1,aux!$AL$1) -> -63.937 | AB48: -0.01542040668 | AC48: -0.004000884316 | AD48: =+IF(INDEX($K48:$O48,1,aux!$AL$1)>0,(O48/INDEX($K48:$O48,1,aux!$AL$1))^(1/($O$3-INDEX($K$3:$O$3,1,aux!$AL$1)))-1,"n.d.") -> -1 | AE48: =IF(INDEX($K48:$O48,1,aux!$AL$1)>0,(O48-INDEX($K48:$O48,1,aux!$AL$1))/INDEX($K48:$O48,1,aux!$AL$1),"n.d.") -> -1 | AX48: 07
A49: 0703 | B49: Cebolas, alhos, etc., frescos ou refrigerados | C49: 0 | D49: 0 | E49: 0 | F49: 0 | G49: 0 | H49: 0 | I49: 0 | J49: 0 | K49: 0 | L49: 0 | M49: 87.162 | N49: 0 | O49: 0 | P49: 17.4324 | Q49: 0.00119749108 | R49: 0.0004128645255 | S49: 17.4324 | U49: =G49-INDEX($C49:$G49,1,aux!$AL$1) -> 0 | V49: 0 | W49: 0 | X49: =+IF(INDEX($C49:$G49,1,aux!$AL$1)>0,(G49/INDEX($C49:$G49,1,aux!$AL$1))^(1/($G$3-INDEX($C$3:$G$3,1,aux!$AL$1)))-1,"n.d.") -> n.d. | Y49: =IF(INDEX($C49:$G49,1,aux!$AL$1)>0,(G49-INDEX($C49:$G49,1,aux!$AL$1))/INDEX($C49:$G49,1,aux!$AL$1),"n.d.") -> n.d. | AA49: =O49-INDEX($K49:$O49,1,aux!$AL$1) -> 0 | AB49: 0 | AC49: 0 | AD49: =+IF(INDEX($K49:$O49,1,aux!$AL$1)>0,(O49/INDEX($K49:$O49,1,aux!$AL$1))^(1/($O$3-INDEX($K$3:$O$3,1,aux!$AL$1)))-1,"n.d.") -> n.d. | AE49: =IF(INDEX($K49:$O49,1,aux!$AL$1)>0,(O49-INDEX($K49:$O49,1,aux!$AL$1))/INDEX($K49:$O49,1,aux!$AL$1),"n.d.") -> n.d. | AX49: 07
A50: 0704 | B50: Couves, frescas ou refrigeradas | C50: 0 | D50: 0.013 | E50: 0 | F50: 0 | G50: 0 | H50: 0.0026 | I50: 9.405394845e-08 | J50: 3.692716945e-08 | K50: 0 | L50: 0 | M50: 0 | N50: 0 | O50: 0 | P50: 0 | Q50: 0 | R50: 0 | S50: -0.0026 | U50: =G50-INDEX($C50:$G50,1,aux!$AL$1) -> 0 | V50: 0 | W50: 0 | X50: =+IF(INDEX($C50:$G50,1,aux!$AL$1)>0,(G50/INDEX($C50:$G50,1,aux!$AL$1))^(1/($G$3-INDEX($C$3:$G$3,1,aux!$AL$1)))-1,"n.d.") -> n.d. | Y50: =IF(INDEX($C50:$G50,1,aux!$AL$1)>0,(G50-INDEX($C50:$G50,1,aux!$AL$1))/INDEX($C50:$G50,1,aux!$AL$1),"n.d.") -> n.d. | AA50: =O50-INDEX($K50:$O50,1,aux!$AL$1) -> 0 | AB50: 0 | AC50: 0 | AD50: =+IF(INDEX($K50:$O50,1,aux!$AL$1)>0,(O50/INDEX($K50:$O50,1,aux!$AL$1))^(1/($O$3-INDEX($K$3:$O$3,1,aux!$AL$1)))-1,"n.d.") -> n.d. | AE50: =IF(INDEX($K50:$O50,1,aux!$AL$1)>0,(O50-INDEX($K50:$O50,1,aux!$AL$1))/INDEX($K50:$O50,1,aux!$AL$1),"n.d.") -> n.d. | AX50: 07
A51: 0705 | B51: Alfaces, frescas ou refrigeradas | C51: 0 | D51: 0 | E51: 0 | F51: 0 | G51: 0 | H51: 0 | I51: 0 | J51: 0 | K51: 0 | L51: 0 | M51: 0.289 | N51: 0 | O51: 0 | P51: 0.0578 | Q51: 3.970479362e-06 | R51: 1.368920491e-06 | S51: 0.0578 | U51: =G51-INDEX($C51:$G51,1,aux!$AL$1) -> 0 | V51: 0 | W51: 0 | X51: =+IF(INDEX($C51:$G51,1,aux!$AL$1)>0,(G51/INDEX($C51:$G51,1,aux!$AL$1))^(1/($G$3-INDEX($C$3:$G$3,1,aux!$AL$1)))-1,"n.d.") -> n.d. | Y51: =IF(INDEX($C51:$G51,1,aux!$AL$1)>0,(G51-INDEX($C51:$G51,1,aux!$AL$1))/INDEX($C51:$G51,1,aux!$AL$1),"n.d.") -> n.d. | AA51: =O51-INDEX($K51:$O51,1,aux!$AL$1) -> 0 | AB51: 0 | AC51: 0 | AD51: =+IF(INDEX($K51:$O51,1,aux!$AL$1)>0,(O51/INDEX($K51:$O51,1,aux!$AL$1))^(1/($O$3-INDEX($K$3:$O$3,1,aux!$AL$1)))-1,"n.d.") -> n.d. | AE51: =IF(INDEX($K51:$O51,1,aux!$AL$1)>0,(O51-INDEX($K51:$O51,1,aux!$AL$1))/INDEX($K51:$O51,1,aux!$AL$1),"n.d.") -> n.d. | AX51: 07
A52: 0706 | B52: Cenouras, nabos, beterrabas, etc., frescos ou refrigerados | C52: 0.946 | D52: 1.372 | E52: 0 | F52: 0 | G52: 0 | H52: 0.4636 | I52: 1.67705425e-05 | J52: 6.584398368e-06 | K52: 0 | L52: 0 | M52: 0 | N52: 0 | O52: 0 | P52: 0 | Q52: 0 | R52: 0 | S52: -0.4636 | U52: =G52-INDEX($C52:$G52,1,aux!$AL$1) -> -0.946 | V52: -4.739530485e-05 | W52: -2.795843131e-05 | X52: =+IF(INDEX($C52:$G52,1,aux!$AL$1)>0,(G52/INDEX($C52:$G52,1,aux!$AL$1))^(1/($G$3-INDEX($C$3:$G$3,1,aux!$AL$1)))-1,"n.d.") -> -1 | Y52: =IF(INDEX($C52:$G52,1,aux!$AL$1)>0,(G52-INDEX($C52:$G52,1,aux!$AL$1))/INDEX($C52:$G52,1,aux!$AL$1),"n.d.") -> -1 | AA52: =O52-INDEX($K52:$O52,1,aux!$AL$1) -> 0 | AB52: 0 | AC52: 0 | AD52: =+IF(INDEX($K52:$O52,1,aux!$AL$1)>0,(O52/INDEX($K52:$O52,1,aux!$AL$1))^(1/($O$3-INDEX($K$3:$O$3,1,aux!$AL$1)))-1,"n.d.") -> n.d. | AE52: =IF(INDEX($K52:$O52,1,aux!$AL$1)>0,(O52-INDEX($K52:$O52,1,aux!$AL$1))/INDEX($K52:$O52,1,aux!$AL$1),"n.d.") -> n.d. | AX52: 07
A53: 0707 | B53: Pepinos e pepininhos, frescos ou refrigerados | C53: 0 | D53: 0 | E53: 0 | F53: 0 | G53: 0 | H53: 0 | I53: 0 | J53: 0 | K53: 0 | L53: 0 | M53: 0 | N53: 0 | O53: 0 | P53: 0 | Q53: 0 | R53: 0 | S53: 0 | U53: =G53-INDEX($C53:$G53,1,aux!$AL$1) -> 0 | V53: 0 | W53: 0 | X53: =+IF(INDEX($C53:$G53,1,aux!$AL$1)>0,(G53/INDEX($C53:$G53,1,aux!$AL$1))^(1/($G$3-INDEX($C$3:$G$3,1,aux!$AL$1)))-1,"n.d.") -> n.d. | Y53: =IF(INDEX($C53:$G53,1,aux!$AL$1)>0,(G53-INDEX($C53:$G53,1,aux!$AL$1))/INDEX($C53:$G53,1,aux!$AL$1),"n.d.") -> n.d. | AA53: =O53-INDEX($K53:$O53,1,aux!$AL$1) -> 0 | AB53: 0 | AC53: 0 | AD53: =+IF(INDEX($K53:$O53,1,aux!$AL$1)>0,(O53/INDEX($K53:$O53,1,aux!$AL$1))^(1/($O$3-INDEX($K$3:$O$3,1,aux!$AL$1)))-1,"n.d.") -> n.d. | AE53: =IF(INDEX($K53:$O53,1,aux!$AL$1)>0,(O53-INDEX($K53:$O53,1,aux!$AL$1))/INDEX($K53:$O53,1,aux!$AL$1),"n.d.") -> n.d. | AX53: 07
A54: 0708 | B54: Tomates preparados ou conservados | C54: 0 | D54: 0 | E54: 0 | F54: 0 | G54: 0 | H54: 0 | I54: 0 | J54: 0 | K54: 0 | L54: 0 | M54: 0 | N54: 2.694 | O54: 0.257 | P54: 0.5902 | Q54: 4.054285328e-05 | R54: 1.397814661e-05 | S54: 0.5902 | U54: =G54-INDEX($C54:$G54,1,aux!$AL$1) -> 0 | V54: 0 | W54: 0 | X54: =+IF(INDEX($C54:$G54,1,aux!$AL$1)>0,(G54/INDEX($C54:$G54,1,aux!$AL$1))^(1/($G$3-INDEX($C$3:$G$3,1,aux!$AL$1)))-1,"n.d.") -> n.d. | Y54: =IF(INDEX($C54:$G54,1,aux!$AL$1)>0,(G54-INDEX($C54:$G54,1,aux!$AL$1))/INDEX($C54:$G54,1,aux!$AL$1),"n.d.") -> n.d. | AA54: =O54-INDEX($K54:$O54,1,aux!$AL$1) -> 0.257 | AB54: 6.198358569e-05 | AC54: 1.608188168e-05 | AD54: =+IF(INDEX($K54:$O54,1,aux!$AL$1)>0,(O54/INDEX($K54:$O54,1,aux!$AL$1))^(1/($O$3-INDEX($K$3:$O$3,1,aux!$AL$1)))-1,"n.d.") -> n.d. | AE54: =IF(INDEX($K54:$O54,1,aux!$AL$1)>0,(O54-INDEX($K54:$O54,1,aux!$AL$1))/INDEX($K54:$O54,1,aux!$AL$1),"n.d.") -> n.d. | AX54: 07
A55: 0709 | B55: Outros produtos hortícolas, frescos ou refrigerados | C55: 1.169 | D55: 34.655 | E55: 103.617 | F55: 137.118 | G55: 20.214 | H55: 59.3546 | I55: 0.002147128649 | J55: 0.0008429989892 | K55: 0.07 | L55: 0.231 | M55: 0.168 | N55: 0.166 | O55: 0.184 | P55: 0.1638 | Q55: 1.125198131e-05 | R55: 3.879397517e-06 | S55: -59.1908 | U55: =G55-INDEX($C55:$G55,1,aux!$AL$1) -> 19.045 | V55: 0.0009541686901 | W55: 0.0005628629221 | X55: =+IF(INDEX($C55:$G55,1,aux!$AL$1)>0,(G55/INDEX($C55:$G55,1,aux!$AL$1))^(1/($G$3-INDEX($C$3:$G$3,1,aux!$AL$1)))-1,"n.d.") -> 1.039198193 | Y55: =IF(INDEX($C55:$G55,1,aux!$AL$1)>0,(G55-INDEX($C55:$G55,1,aux!$AL$1))/INDEX($C55:$G55,1,aux!$AL$1),"n.d.") -> 16.29170231 | AA55: =O55-INDEX($K55:$O55,1,aux!$AL$1) -> 0.114 | AB55: 2.749466447e-05 | AC55: 7.133597322e-06 | AD55: =+IF(INDEX($K55:$O55,1,aux!$AL$1)>0,(O55/INDEX($K55:$O55,1,aux!$AL$1))^(1/($O$3-INDEX($K$3:$O$3,1,aux!$AL$1)))-1,"n.d.") -> 0.2732976741 | AE55: =IF(INDEX($K55:$O55,1,aux!$AL$1)>0,(O55-INDEX($K55:$O55,1,aux!$AL$1))/INDEX($K55:$O55,1,aux!$AL$1),"n.d.") -> 1.628571429 | AX55: 07
A56: 0710 | B56: Produtos hortícolas congelados | C56: 53.999 | D56: 0.041 | E56: 0 | F56: 0 | G56: 0 | H56: 10.808 | I56: 0.0003909750288 | J56: 0.0001535034029 | K56: 168.746 | L56: 126.996 | M56: 434.277 | N56: 374.965 | O56: 92.074 | P56: 239.4116 | Q56: 0.01644600029 | R56: 0.005670163411 | S56: 228.6036 | U56: =G56-INDEX($C56:$G56,1,aux!$AL$1) -> -53.999 | V56: -0.002705390134 | W56: -0.001595906271 | X56: =+IF(INDEX($C56:$G56,1,aux!$AL$1)>0,(G56/INDEX($C56:$G56,1,aux!$AL$1))^(1/($G$3-INDEX($C$3:$G$3,1,aux!$AL$1)))-1,"n.d.") -> -1 | Y56: =IF(INDEX($C56:$G56,1,aux!$AL$1)>0,(G56-INDEX($C56:$G56,1,aux!$AL$1))/INDEX($C56:$G56,1,aux!$AL$1),"n.d.") -> -1 | AA56: =O56-INDEX($K56:$O56,1,aux!$AL$1) -> -76.672 | AB56: -0.01849185012 | AC56: -0.004797782227 | AD56: =+IF(INDEX($K56:$O56,1,aux!$AL$1)>0,(O56/INDEX($K56:$O56,1,aux!$AL$1))^(1/($O$3-INDEX($K$3:$O$3,1,aux!$AL$1)))-1,"n.d.") -> -0.1405395807 | AE56: =IF(INDEX($K56:$O56,1,aux!$AL$1)>0,(O56-INDEX($K56:$O56,1,aux!$AL$1))/INDEX($K56:$O56,1,aux!$AL$1),"n.d.") -> -0.4543633627 | AX56: 07
A57: 0711 | B57: Produtos hortícolas conservados transitoriamente | C57: 0 | D57: 0 | E57: 0 | F57: 0 | G57: 0 | H57: 0 | I57: 0 | J57: 0 | K57: 0 | L57: 0 | M57: 0.032 | N57: 0.022 | O57: 0.017 | P57: 0.0142 | Q57: 9.754464869e-07 | R57: 3.363091865e-07 | S57: 0.0142 | U57: =G57-INDEX($C57:$G57,1,aux!$AL$1) -> 0 | V57: 0 | W57: 0 | X57: =+IF(INDEX($C57:$G57,1,aux!$AL$1)>0,(G57/INDEX($C57:$G57,1,aux!$AL$1))^(1/($G$3-INDEX($C$3:$G$3,1,aux!$AL$1)))-1,"n.d.") -> n.d. | Y57: =IF(INDEX($C57:$G57,1,aux!$AL$1)>0,(G57-INDEX($C57:$G57,1,aux!$AL$1))/INDEX($C57:$G57,1,aux!$AL$1),"n.d.") -> n.d. | AA57: =O57-INDEX($K57:$O57,1,aux!$AL$1) -> 0.017 | AB57: 4.100081543e-06 | AC57: 1.063782057e-06 | AD57: =+IF(INDEX($K57:$O57,1,aux!$AL$1)>0,(O57/INDEX($K57:$O57,1,aux!$AL$1))^(1/($O$3-INDEX($K$3:$O$3,1,aux!$AL$1)))-1,"n.d.") -> n.d. | AE57: =IF(INDEX($K57:$O57,1,aux!$AL$1)>0,(O57-INDEX($K57:$O57,1,aux!$AL$1))/INDEX($K57:$O57,1,aux!$AL$1),"n.d.") -> n.d. | AX57: 07
A58: 0712 | B58: Produtos hortícolas secos | C58: 3.184 | D58: 3.618 | E58: 2.437 | F58: 1.943 | G58: 8.882 | H58: 4.0128 | I58: 0.0001451614171 | J58: 5.699282522e-05 | K58: 0 | L58: 0 | M58: 238.167 | N58: 315.018 | O58: 347.569 | P58: 180.1508 | Q58: 0.01237517359 | R58: 0.004266645704 | S58: 176.138 | U58: =G58-INDEX($C58:$G58,1,aux!$AL$1) -> 5.698 | V58: 0.0002854740455 | W58: 0.0001684007839 | X58: =+IF(INDEX($C58:$G58,1,aux!$AL$1)>0,(G58/INDEX($C58:$G58,1,aux!$AL$1))^(1/($G$3-INDEX($C$3:$G$3,1,aux!$AL$1)))-1,"n.d.") -> 0.2923627371 | Y58: =IF(INDEX($C58:$G58,1,aux!$AL$1)>0,(G58-INDEX($C58:$G58,1,aux!$AL$1))/INDEX($C58:$G58,1,aux!$AL$1),"n.d.") -> 1.789572864 | AA58: =O58-INDEX($K58:$O58,1,aux!$AL$1) -> 347.569 | AB58: 0.08382713188 | AC58: 0.02174927445 | AD58: =+IF(INDEX($K58:$O58,1,aux!$AL$1)>0,(O58/INDEX($K58:$O58,1,aux!$AL$1))^(1/($O$3-INDEX($K$3:$O$3,1,aux!$AL$1)))-1,"n.d.") -> n.d. | AE58: =IF(INDEX($K58:$O58,1,aux!$AL$1)>0,(O58-INDEX($K58:$O58,1,aux!$AL$1))/INDEX($K58:$O58,1,aux!$AL$1),"n.d.") -> n.d. | AX58: 07
A59: 0713 | B59: Legumes de vagem, secos, em grão | C59: 0 | D59: 0 | E59: 0 | F59: 0 | G59: 0 | H59: 0 | I59: 0 | J59: 0 | K59: 43.087 | L59: 0.204 | M59: 0.557 | N59: 0.386 | O59: 29.267 | P59: 14.7002 | Q59: 0.001009806933 | R59: 0.000348155796 | S59: 14.7002 | U59: =G59-INDEX($C59:$G59,1,aux!$AL$1) -> 0 | V59: 0 | W59: 0 | X59: =+IF(INDEX($C59:$G59,1,aux!$AL$1)>0,(G59/INDEX($C59:$G59,1,aux!$AL$1))^(1/($G$3-INDEX($C$3:$G$3,1,aux!$AL$1)))-1,"n.d.") -> n.d. | Y59: =IF(INDEX($C59:$G59,1,aux!$AL$1)>0,(G59-INDEX($C59:$G59,1,aux!$AL$1))/INDEX($C59:$G59,1,aux!$AL$1),"n.d.") -> n.d. | AA59: =O59-INDEX($K59:$O59,1,aux!$AL$1) -> -13.82 | AB59: -0.003333125114 | AC59: -0.0008647922368 | AD59: =+IF(INDEX($K59:$O59,1,aux!$AL$1)>0,(O59/INDEX($K59:$O59,1,aux!$AL$1))^(1/($O$3-INDEX($K$3:$O$3,1,aux!$AL$1)))-1,"n.d.") -> -0.09216277268 | AE59: =IF(INDEX($K59:$O59,1,aux!$AL$1)>0,(O59-INDEX($K59:$O59,1,aux!$AL$1))/INDEX($K59:$O59,1,aux!$AL$1),"n.d.") -> -0.3207463968 | AX59: 07
A60: 0714 | B60: Raízes de mandioca, de araruta, batata-doce, etc. | C60: 0 | D60: 0 | E60: 0 | F60: 0 | G60: 0 | H60: 0 | I60: 0 | J60: 0 | K60: 0 | L60: 0 | M60: 0.148 | N60: 0 | O60: 11.389 | P60: 2.3074 | Q60: 0.0001585031848 | R60: 5.464787443e-05 | S60: 2.3074 | U60: =G60-INDEX($C60:$G60,1,aux!$AL$1) -> 0 | V60: 0 | W60: 0 | X60: =+IF(INDEX($C60:$G60,1,aux!$AL$1)>0,(G60/INDEX($C60:$G60,1,aux!$AL$1))^(1/($G$3-INDEX($C$3:$G$3,1,aux!$AL$1)))-1,"n.d.") -> n.d. | Y60: =IF(INDEX($C60:$G60,1,aux!$AL$1)>0,(G60-INDEX($C60:$G60,1,aux!$AL$1))/INDEX($C60:$G60,1,aux!$AL$1),"n.d.") -> n.d. | AA60: =O60-INDEX($K60:$O60,1,aux!$AL$1) -> 11.389 | AB60: 0.002746813453 | AC60: 0.0007126714027 | AD60: =+IF(INDEX($K60:$O60,1,aux!$AL$1)>0,(O60/INDEX($K60:$O60,1,aux!$AL$1))^(1/($O$3-INDEX($K$3:$O$3,1,aux!$AL$1)))-1,"n.d.") -> n.d. | AE60: =IF(INDEX($K60:$O60,1,aux!$AL$1)>0,(O60-INDEX($K60:$O60,1,aux!$AL$1))/INDEX($K60:$O60,1,aux!$AL$1),"n.d.") -> n.d. | AX60: 07
A61: 07SS | B61: Produtos hortícolas, plantas, raízes e tubérculos, comestíveis | C61: 0 | D61: 0 | E61: 0 | F61: 0 | G61: 0 | H61: 0 | I61: 0 | J61: 0 | K61: 0 | L61: 0 | M61: 0 | N61: 0 | O61: 0 | P61: 0 | Q61: 0 | R61: 0 | S61: 0 | U61: =G61-INDEX($C61:$G61,1,aux!$AL$1) -> 0 | V61: 0 | W61: 0 | X61: =+IF(INDEX($C61:$G61,1,aux!$AL$1)>0,(G61/INDEX($C61:$G61,1,aux!$AL$1))^(1/($G$3-INDEX($C$3:$G$3,1,aux!$AL$1)))-1,"n.d.") -> n.d. | Y61: =IF(INDEX($C61:$G61,1,aux!$AL$1)>0,(G61-INDEX($C61:$G61,1,aux!$AL$1))/INDEX($C61:$G61,1,aux!$AL$1),"n.d.") -> n.d. | AA61: =O61-INDEX($K61:$O61,1,aux!$AL$1) -> 0 | AB61: 0 | AC61: 0 | AD61: =+IF(INDEX($K61:$O61,1,aux!$AL$1)>0,(O61/INDEX($K61:$O61,1,aux!$AL$1))^(1/($O$3-INDEX($K$3:$O$3,1,aux!$AL$1)))-1,"n.d.") -> n.d. | AE61: =IF(INDEX($K61:$O61,1,aux!$AL$1)>0,(O61-INDEX($K61:$O61,1,aux!$AL$1))/INDEX($K61:$O61,1,aux!$AL$1),"n.d.") -> n.d. | AX61: 07
A62: 0801 | B62: Cocos, castanhas do brasil e castanha de cajú | C62: 0 | D62: 0.067 | E62: 0.098 | F62: 0.618 | G62: 1.474 | H62: 0.4514 | I62: 1.632921243e-05 | J62: 6.411124727e-06 | K62: 0 | L62: 0 | M62: 0.056 | N62: 0 | O62: 0.03 | P62: 0.0172 | Q62: 1.181526731e-06 | R62: 4.073604231e-07 | S62: -0.4342 | U62: =G62-INDEX($C62:$G62,1,aux!$AL$1) -> 1.474 | V62: 7.384849825e-05 | W62: 4.356313716e-05 | X62: =+IF(INDEX($C62:$G62,1,aux!$AL$1)>0,(G62/INDEX($C62:$G62,1,aux!$AL$1))^(1/($G$3-INDEX($C$3:$G$3,1,aux!$AL$1)))-1,"n.d.") -> n.d. | Y62: =IF(INDEX($C62:$G62,1,aux!$AL$1)>0,(G62-INDEX($C62:$G62,1,aux!$AL$1))/INDEX($C62:$G62,1,aux!$AL$1),"n.d.") -> n.d. | AA62: =O62-INDEX($K62:$O62,1,aux!$AL$1) -> 0.03 | AB62: 7.235438018e-06 | AC62: 1.877262453e-06 | AD62: =+IF(INDEX($K62:$O62,1,aux!$AL$1)>0,(O62/INDEX($K62:$O62,1,aux!$AL$1))^(1/($O$3-INDEX($K$3:$O$3,1,aux!$AL$1)))-1,"n.d.") -> n.d. | AE62: =IF(INDEX($K62:$O62,1,aux!$AL$1)>0,(O62-INDEX($K62:$O62,1,aux!$AL$1))/INDEX($K62:$O62,1,aux!$AL$1),"n.d.") -> n.d. | AX62: 08
A63: 0802 | B63: Frutas de casca rija | C63: 0 | D63: 0 | E63: 0 | F63: 49.923 | G63: 0 | H63: 9.9846 | I63: 0.0003611888668 | J63: 0.0001418088523 | K63: 0 | L63: 177.469 | M63: 164.495 | N63: 197.742 | O63: 169.971 | P63: 141.9354 | Q63: 0.009750027275 | R63: 0.003361561895 | S63: 131.9508 | U63: =G63-INDEX($C63:$G63,1,aux!$AL$1) -> 0 | V63: 0 | W63: 0 | X63: =+IF(INDEX($C63:$G63,1,aux!$AL$1)>0,(G63/INDEX($C63:$G63,1,aux!$AL$1))^(1/($G$3-INDEX($C$3:$G$3,1,aux!$AL$1)))-1,"n.d.") -> n.d. | Y63: =IF(INDEX($C63:$G63,1,aux!$AL$1)>0,(G63-INDEX($C63:$G63,1,aux!$AL$1))/INDEX($C63:$G63,1,aux!$AL$1),"n.d.") -> n.d. | AA63: =O63-INDEX($K63:$O63,1,aux!$AL$1) -> 169.971 | AB63: 0.04099382118 | AC63: 0.01063600588 | AD63: =+IF(INDEX($K63:$O63,1,aux!$AL$1)>0,(O63/INDEX($K63:$O63,1,aux!$AL$1))^(1/($O$3-INDEX($K$3:$O$3,1,aux!$AL$1)))-1,"n.d.") -> n.d. | AE63: =IF(INDEX($K63:$O63,1,aux!$AL$1)>0,(O63-INDEX($K63:$O63,1,aux!$AL$1))/INDEX($K63:$O63,1,aux!$AL$1),"n.d.") -> n.d. | AX63: 08
A64: 0803 | B64: Bananas, frescas ou secas | C64: 0 | D64: 0 | E64: 0 | F64: 0 | G64: 0 | H64: 0 | I64: 0 | J64: 0 | K64: 0 | L64: 1.044 | M64: 2.389 | N64: 11.162 | O64: 0.79 | P64: 3.077 | Q64: 0.0002113696366 | R64: 7.287488499e-05 | S64: 3.077 | U64: =G64-INDEX($C64:$G64,1,aux!$AL$1) -> 0 | V64: 0 | W64: 0 | X64: =+IF(INDEX($C64:$G64,1,aux!$AL$1)>0,(G64/INDEX($C64:$G64,1,aux!$AL$1))^(1/($G$3-INDEX($C$3:$G$3,1,aux!$AL$1)))-1,"n.d.") -> n.d. | Y64: =IF(INDEX($C64:$G64,1,aux!$AL$1)>0,(G64-INDEX($C64:$G64,1,aux!$AL$1))/INDEX($C64:$G64,1,aux!$AL$1),"n.d.") -> n.d. | AA64: =O64-INDEX($K64:$O64,1,aux!$AL$1) -> 0.79 | AB64: 0.0001905332011 | AC64: 4.943457794e-05 | AD64: =+IF(INDEX($K64:$O64,1,aux!$AL$1)>0,(O64/INDEX($K64:$O64,1,aux!$AL$1))^(1/($O$3-INDEX($K$3:$O$3,1,aux!$AL$1)))-1,"n.d.") -> n.d. | AE64: =IF(INDEX($K64:$O64,1,aux!$AL$1)>0,(O64-INDEX($K64:$O64,1,aux!$AL$1))/INDEX($K64:$O64,1,aux!$AL$1),"n.d.") -> n.d. | AX64: 08
A65: 0804 | B65: Tâmaras, figos, ananases, abacates, goiabas, mangas | C65: 0 | D65: 0 | E65: 0 | F65: 0 | G65: 17.855 | H65: 3.571 | I65: 0.0001291794807 | J65: 5.071804696e-05 | K65: 4 | L65: 31.65 | M65: 66.143 | N65: 48.281 | O65: 71.263 | P65: 44.2674 | Q65: 0.00304087886 | R65: 0.001048417837 | S65: 40.6964 | U65: =G65-INDEX($C65:$G65,1,aux!$AL$1) -> 17.855 | V65: 0.0008945488035 | W65: 0.0005276932252 | X65: =+IF(INDEX($C65:$G65,1,aux!$AL$1)>0,(G65/INDEX($C65:$G65,1,aux!$AL$1))^(1/($G$3-INDEX($C$3:$G$3,1,aux!$AL$1)))-1,"n.d.") -> n.d. | Y65: =IF(INDEX($C65:$G65,1,aux!$AL$1)>0,(G65-INDEX($C65:$G65,1,aux!$AL$1))/INDEX($C65:$G65,1,aux!$AL$1),"n.d.") -> n.d. | AA65: =O65-INDEX($K65:$O65,1,aux!$AL$1) -> 67.263 | AB65: 0.01622257558 | AC65: 0.004209010146 | AD65: =+IF(INDEX($K65:$O65,1,aux!$AL$1)>0,(O65/INDEX($K65:$O65,1,aux!$AL$1))^(1/($O$3-INDEX($K$3:$O$3,1,aux!$AL$1)))-1,"n.d.") -> 1.054475788 | AE65: =IF(INDEX($K65:$O65,1,aux!$AL$1)>0,(O65-INDEX($K65:$O65,1,aux!$AL$1))/INDEX($K65:$O65,1,aux!$AL$1),"n.d.") -> 16.81575 | AX65: 08
A66: 0805 | B66: Citrinos, frescos ou secos | C66: 0.045 | D66: 0.015 | E66: 0 | F66: 12.973 | G66: 0 | H66: 2.6066 | I66: 9.429270078e-05 | J66: 3.702090765e-05 | K66: 3.417 | L66: 350.92 | M66: 11.279 | N66: 10.155 | O66: 11.419 | P66: 77.438 | Q66: 0.005319480638 | R66: 0.001834021886 | S66: 74.8314 | U66: =G66-INDEX($C66:$G66,1,aux!$AL$1) -> -0.045 | V66: -2.254533529e-06 | W66: -1.329946521e-06 | X66: =+IF(INDEX($C66:$G66,1,aux!$AL$1)>0,(G66/INDEX($C66:$G66,1,aux!$AL$1))^(1/($G$3-INDEX($C$3:$G$3,1,aux!$AL$1)))-1,"n.d.") -> -1 | Y66: =IF(INDEX($C66:$G66,1,aux!$AL$1)>0,(G66-INDEX($C66:$G66,1,aux!$AL$1))/INDEX($C66:$G66,1,aux!$AL$1),"n.d.") -> -1 | AA66: =O66-INDEX($K66:$O66,1,aux!$AL$1) -> 8.002 | AB66: 0.001929932501 | AC66: 0.0005007284717 | AD66: =+IF(INDEX($K66:$O66,1,aux!$AL$1)>0,(O66/INDEX($K66:$O66,1,aux!$AL$1))^(1/($O$3-INDEX($K$3:$O$3,1,aux!$AL$1)))-1,"n.d.") -> 0.3520594052 | AE66: =IF(INDEX($K66:$O66,1,aux!$AL$1)>0,(O66-INDEX($K66:$O66,1,aux!$AL$1))/INDEX($K66:$O66,1,aux!$AL$1),"n.d.") -> 2.34182031 | AX66: 08
A67: 0806 | B67: Uvas, frescas ou secas | C67: 0 | D67: 0 | E67: 0 | F67: 0 | G67: 0 | H67: 0 | I67: 0 | J67: 0 | K67: 0 | L67: 0 | M67: 0 | N67: 0 | O67: 0 | P67: 0 | Q67: 0 | R67: 0 | S67: 0 | U67: =G67-INDEX($C67:$G67,1,aux!$AL$1) -> 0 | V67: 0 | W67: 0 | X67: =+IF(INDEX($C67:$G67,1,aux!$AL$1)>0,(G67/INDEX($C67:$G67,1,aux!$AL$1))^(1/($G$3-INDEX($C$3:$G$3,1,aux!$AL$1)))-1,"n.d.") -> n.d. | Y67: =IF(INDEX($C67:$G67,1,aux!$AL$1)>0,(G67-INDEX($C67:$G67,1,aux!$AL$1))/INDEX($C67:$G67,1,aux!$AL$1),"n.d.") -> n.d. | AA67: =O67-INDEX($K67:$O67,1,aux!$AL$1) -> 0 | AB67: 0 | AC67: 0 | AD67: =+IF(INDEX($K67:$O67,1,aux!$AL$1)>0,(O67/INDEX($K67:$O67,1,aux!$AL$1))^(1/($O$3-INDEX($K$3:$O$3,1,aux!$AL$1)))-1,"n.d.") -> n.d. | AE67: =IF(INDEX($K67:$O67,1,aux!$AL$1)>0,(O67-INDEX($K67:$O67,1,aux!$AL$1))/INDEX($K67:$O67,1,aux!$AL$1),"n.d.") -> n.d. | AX67: 08
A68: 0807 | B68: Melões, melancias e papaia, frescos | C68: 0 | D68: 0 | E68: 15.167 | F68: 0 | G68: 0 | H68: 3.0334 | I68: 0.0001097320182 | J68: 4.308264454e-05 | K68: 0 | L68: 0 | M68: 0.055 | N68: 0 | O68: 0 | P68: 0.011 | Q68: 7.556275603e-07 | R68: 2.605212008e-07 | S68: -3.0224 | U68: =G68-INDEX($C68:$G68,1,aux!$AL$1) -> 0 | V68: =IF($U$237<>0,U68/$U$237, "n.d.") -> 0 | W68: =IF($U$322<>0,U68/$U$322, "n.d.") -> 0 | X68: =+IF(INDEX($C68:$G68,1,aux!$AL$1)>0,(G68/INDEX($C68:$G68,1,aux!$AL$1))^(1/($G$3-INDEX($C$3:$G$3,1,aux!$AL$1)))-1,"n.d.") -> n.d. | Y68: =IF(INDEX($C68:$G68,1,aux!$AL$1)>0,(G68-INDEX($C68:$G68,1,aux!$AL$1))/INDEX($C68:$G68,1,aux!$AL$1),"n.d.") -> n.d. | AA68: =O68-INDEX($K68:$O68,1,aux!$AL$1) -> 0 | AB68: =IF($AA$237<>0,AA68/$AA$237, "n.d.") -> 0 | AC68: =IF($AA$322<>0,AA68/$AA$322, "n.d.") -> 0 | AD68: =+IF(INDEX($K68:$O68,1,aux!$AL$1)>0,(O68/INDEX($K68:$O68,1,aux!$AL$1))^(1/($O$3-INDEX($K$3:$O$3,1,aux!$AL$1)))-1,"n.d.") -> n.d. | AE68: =IF(INDEX($K68:$O68,1,aux!$AL$1)>0,(O68-INDEX($K68:$O68,1,aux!$AL$1))/INDEX($K68:$O68,1,aux!$AL$1),"n.d.") -> n.d. | AX68: 08
A69: 0808 | B69: Maçãs, peras e marmelos, frescos | C69: 0 | D69: 0 | E69: 17.219 | F69: 0 | G69: 681.311 | H69: 139.706 | I69: 0.005053808047 | J69: 0.001984210437 | K69: 0 | L69: 0 | M69: 0 | N69: 0 | O69: 0 | P69: 0 | Q69: 0 | R69: 0 | S69: -139.706 | U69: =G69-INDEX($C69:$G69,1,aux!$AL$1) -> 681.311 | V69: 0.03413418873 | W69: 0.02013571543 | X69: =+IF(INDEX($C69:$G69,1,aux!$AL$1)>0,(G69/INDEX($C69:$G69,1,aux!$AL$1))^(1/($G$3-INDEX($C$3:$G$3,1,aux!$AL$1)))-1,"n.d.") -> n.d. | Y69: =IF(INDEX($C69:$G69,1,aux!$AL$1)>0,(G69-INDEX($C69:$G69,1,aux!$AL$1))/INDEX($C69:$G69,1,aux!$AL$1),"n.d.") -> n.d. | AA69: =O69-INDEX($K69:$O69,1,aux!$AL$1) -> 0 | AB69: 0 | AC69: 0 | AD69: =+IF(INDEX($K69:$O69,1,aux!$AL$1)>0,(O69/INDEX($K69:$O69,1,aux!$AL$1))^(1/($O$3-INDEX($K$3:$O$3,1,aux!$AL$1)))-1,"n.d.") -> n.d. | AE69: =IF(INDEX($K69:$O69,1,aux!$AL$1)>0,(O69-INDEX($K69:$O69,1,aux!$AL$1))/INDEX($K69:$O69,1,aux!$AL$1),"n.d.") -> n.d. | AX69: 08
A70: 0809 | B70: Damascos, cerejas, pêssegos, etc., frescos | C70: 0 | D70: 0 | E70: 21.939 | F70: 17.767 | G70: 0 | H70: 7.9412 | I70: 0.0002872696982 | J70: 0.0001127869377 | K70: 0 | L70: 83.08 | M70: 0 | N70: 207.746 | O70: 85.404 | P70: 75.246 | Q70: 0.005168904673 | R70: 0.001782107116 | S70: 67.3048 | U70: =G70-INDEX($C70:$G70,1,aux!$AL$1) -> 0 | V70: 0 | W70: 0 | X70: =+IF(INDEX($C70:$G70,1,aux!$AL$1)>0,(G70/INDEX($C70:$G70,1,aux!$AL$1))^(1/($G$3-INDEX($C$3:$G$3,1,aux!$AL$1)))-1,"n.d.") -> n.d. | Y70: =IF(INDEX($C70:$G70,1,aux!$AL$1)>0,(G70-INDEX($C70:$G70,1,aux!$AL$1))/INDEX($C70:$G70,1,aux!$AL$1),"n.d.") -> n.d. | AA70: =O70-INDEX($K70:$O70,1,aux!$AL$1) -> 85.404 | AB70: 0.02059784495 | AC70: 0.005344190752 | AD70: =+IF(INDEX($K70:$O70,1,aux!$AL$1)>0,(O70/INDEX($K70:$O70,1,aux!$AL$1))^(1/($O$3-INDEX($K$3:$O$3,1,aux!$AL$1)))-1,"n.d.") -> n.d. | AE70: =IF(INDEX($K70:$O70,1,aux!$AL$1)>0,(O70-INDEX($K70:$O70,1,aux!$AL$1))/INDEX($K70:$O70,1,aux!$AL$1),"n.d.") -> n.d. | AX70: 08
A71: 0810 | B71: Outras frutas frescas | C71: 4.877 | D71: 9.754 | E71: 93.363 | F71: 15.415 | G71: 93.902 | H71: 43.4622 | I71: 0.001572227507 | J71: 0.0006172830862 | K71: 0.993 | L71: 23.812 | M71: 38.227 | N71: 21.25 | O71: 1310.177 | P71: 278.8918 | Q71: 0.01915803004 | R71: 0.006605202421 | S71: 235.4296 | U71: =G71-INDEX($C71:$G71,1,aux!$AL$1) -> 89.025 | V71: 0.004460218831 | W71: 0.002631077534 | X71: =+IF(INDEX($C71:$G71,1,aux!$AL$1)>0,(G71/INDEX($C71:$G71,1,aux!$AL$1))^(1/($G$3-INDEX($C$3:$G$3,1,aux!$AL$1)))-1,"n.d.") -> 1.094741909 | Y71: =IF(INDEX($C71:$G71,1,aux!$AL$1)>0,(G71-INDEX($C71:$G71,1,aux!$AL$1))/INDEX($C71:$G71,1,aux!$AL$1),"n.d.") -> 18.25404962 | AA71: =O71-INDEX($K71:$O71,1,aux!$AL$1) -> 1309.184 | AB71: 0.3157506562 | AC71: 0.08192273225 | AD71: =+IF(INDEX($K71:$O71,1,aux!$AL$1)>0,(O71/INDEX($K71:$O71,1,aux!$AL$1))^(1/($O$3-INDEX($K$3:$O$3,1,aux!$AL$1)))-1,"n.d.") -> 5.026916585 | AE71: =IF(INDEX($K71:$O71,1,aux!$AL$1)>0,(O71-INDEX($K71:$O71,1,aux!$AL$1))/INDEX($K71:$O71,1,aux!$AL$1),"n.d.") -> 1318.41289 | AX71: 08
A72: 0811 | B72: Frutas não cozidas ou cozidas em água ou vapor, congeladas | C72: 402.549 | D72: 170.624 | E72: 332.816 | F72: 587.508 | G72: 536.26 | H72: 405.9514 | I72: 0.01468512771 | J72: 0.005765629283 | K72: 318.378 | L72: 248.199 | M72: 162.113 | N72: 186.003 | O72: 236.797 | P72: 230.298 | Q72: 0.01581995599 | R72: 0.005454319227 | S72: -175.6534 | U72: =G72-INDEX($C72:$G72,1,aux!$AL$1) -> 133.711 | V72: 0.006699020726 | W72: 0.003951743984 | X72: =+IF(INDEX($C72:$G72,1,aux!$AL$1)>0,(G72/INDEX($C72:$G72,1,aux!$AL$1))^(1/($G$3-INDEX($C$3:$G$3,1,aux!$AL$1)))-1,"n.d.") -> 0.07433361074 | Y72: =IF(INDEX($C72:$G72,1,aux!$AL$1)>0,(G72-INDEX($C72:$G72,1,aux!$AL$1))/INDEX($C72:$G72,1,aux!$AL$1),"n.d.") -> 0.3321608053 | AA72: =O72-INDEX($K72:$O72,1,aux!$AL$1) -> -81.581 | AB72: -0.01967580896 | AC72: -0.00510496494 | AD72: =+IF(INDEX($K72:$O72,1,aux!$AL$1)>0,(O72/INDEX($K72:$O72,1,aux!$AL$1))^(1/($O$3-INDEX($K$3:$O$3,1,aux!$AL$1)))-1,"n.d.") -> -0.07133669251 | AE72: =IF(INDEX($K72:$O72,1,aux!$AL$1)>0,(O72-INDEX($K72:$O72,1,aux!$AL$1))/INDEX($K72:$O72,1,aux!$AL$1),"n.d.") -> -0.2562394387 | AX72: 08
A73: 0812 | B73: Frutas conservadas transitoriamente | C73: 0 | D73: 0 | E73: 0 | F73: 0 | G73: 0 | H73: 0 | I73: 0 | J73: 0 | K73: 0 | L73: 0 | M73: 0 | N73: 0 | O73: 0 | P73: 0 | Q73: 0 | R73: 0 | S73: 0 | U73: =G73-INDEX($C73:$G73,1,aux!$AL$1) -> 0 | V73: 0 | W73: 0 | X73: =+IF(INDEX($C73:$G73,1,aux!$AL$1)>0,(G73/INDEX($C73:$G73,1,aux!$AL$1))^(1/($G$3-INDEX($C$3:$G$3,1,aux!$AL$1)))-1,"n.d.") -> n.d. | Y73: =IF(INDEX($C73:$G73,1,aux!$AL$1)>0,(G73-INDEX($C73:$G73,1,aux!$AL$1))/INDEX($C73:$G73,1,aux!$AL$1),"n.d.") -> n.d. | AA73: =O73-INDEX($K73:$O73,1,aux!$AL$1) -> 0 | AB73: 0 | AC73: 0 | AD73: =+IF(INDEX($K73:$O73,1,aux!$AL$1)>0,(O73/INDEX($K73:$O73,1,aux!$AL$1))^(1/($O$3-INDEX($K$3:$O$3,1,aux!$AL$1)))-1,"n.d.") -> n.d. | AE73: =IF(INDEX($K73:$O73,1,aux!$AL$1)>0,(O73-INDEX($K73:$O73,1,aux!$AL$1))/INDEX($K73:$O73,1,aux!$AL$1),"n.d.") -> n.d. | AX73: 08
A74: 0813 | B74: Outras frutas secas | C74: 46.205 | D74: 15.751 | E74: 13.787 | F74: 0.035 | G74: 0 | H74: 15.1556 | I74: 0.0005482477004 | J74: 0.0002152513113 | K74: 0 | L74: 0 | M74: 0 | N74: 0 | O74: 0 | P74: 0 | Q74: 0 | R74: 0 | S74: -15.1556 | U74: =G74-INDEX($C74:$G74,1,aux!$AL$1) -> -46.205 | V74: -0.002314904927 | W74: -0.001365559533 | X74: =+IF(INDEX($C74:$G74,1,aux!$AL$1)>0,(G74/INDEX($C74:$G74,1,aux!$AL$1))^(1/($G$3-INDEX($C$3:$G$3,1,aux!$AL$1)))-1,"n.d.") -> -1 | Y74: =IF(INDEX($C74:$G74,1,aux!$AL$1)>0,(G74-INDEX($C74:$G74,1,aux!$AL$1))/INDEX($C74:$G74,1,aux!$AL$1),"n.d.") -> -1 | AA74: =O74-INDEX($K74:$O74,1,aux!$AL$1) -> 0 | AB74: 0 | AC74: 0 | AD74: =+IF(INDEX($K74:$O74,1,aux!$AL$1)>0,(O74/INDEX($K74:$O74,1,aux!$AL$1))^(1/($O$3-INDEX($K$3:$O$3,1,aux!$AL$1)))-1,"n.d.") -> n.d. | AE74: =IF(INDEX($K74:$O74,1,aux!$AL$1)>0,(O74-INDEX($K74:$O74,1,aux!$AL$1))/INDEX($K74:$O74,1,aux!$AL$1),"n.d.") -> n.d. | AX74: 08
A75: 0814 | B75: Cascas de citrinos, melões ou melancias | C75: 0 | D75: 0 | E75: 0 | F75: 0 | G75: 0 | H75: 0 | I75: 0 | J75: 0 | K75: 0 | L75: 0 | M75: 0 | N75: 0 | O75: 0 | P75: 0 | Q75: 0 | R75: 0 | S75: 0 | U75: =G75-INDEX($C75:$G75,1,aux!$AL$1) -> 0 | V75: 0 | W75: 0 | X75: =+IF(INDEX($C75:$G75,1,aux!$AL$1)>0,(G75/INDEX($C75:$G75,1,aux!$AL$1))^(1/($G$3-INDEX($C$3:$G$3,1,aux!$AL$1)))-1,"n.d.") -> n.d. | Y75: =IF(INDEX($C75:$G75,1,aux!$AL$1)>0,(G75-INDEX($C75:$G75,1,aux!$AL$1))/INDEX($C75:$G75,1,aux!$AL$1),"n.d.") -> n.d. | AA75: =O75-INDEX($K75:$O75,1,aux!$AL$1) -> 0 | AB75: 0 | AC75: 0 | AD75: =+IF(INDEX($K75:$O75,1,aux!$AL$1)>0,(O75/INDEX($K75:$O75,1,aux!$AL$1))^(1/($O$3-INDEX($K$3:$O$3,1,aux!$AL$1)))-1,"n.d.") -> n.d. | AE75: =IF(INDEX($K75:$O75,1,aux!$AL$1)>0,(O75-INDEX($K75:$O75,1,aux!$AL$1))/INDEX($K75:$O75,1,aux!$AL$1),"n.d.") -> n.d. | AX75: =+LEFT(A75,2) -> 08
A76: 08SS | B76: Frutas; cascas de citrinos e de melões | C76: 0 | D76: 0 | E76: 0 | F76: 0 | G76: 0 | H76: 0 | I76: 0 | J76: 0 | K76: 0 | L76: 0 | M76: 0 | N76: 0 | O76: 0 | P76: 0 | Q76: 0 | R76: 0 | S76: 0 | U76: =G76-INDEX($C76:$G76,1,aux!$AL$1) -> 0 | V76: 0 | W76: 0 | X76: =+IF(INDEX($C76:$G76,1,aux!$AL$1)>0,(G76/INDEX($C76:$G76,1,aux!$AL$1))^(1/($G$3-INDEX($C$3:$G$3,1,aux!$AL$1)))-1,"n.d.") -> n.d. | Y76: =IF(INDEX($C76:$G76,1,aux!$AL$1)>0,(G76-INDEX($C76:$G76,1,aux!$AL$1))/INDEX($C76:$G76,1,aux!$AL$1),"n.d.") -> n.d. | AA76: =O76-INDEX($K76:$O76,1,aux!$AL$1) -> 0 | AB76: 0 | AC76: 0 | AD76: =+IF(INDEX($K76:$O76,1,aux!$AL$1)>0,(O76/INDEX($K76:$O76,1,aux!$AL$1))^(1/($O$3-INDEX($K$3:$O$3,1,aux!$AL$1)))-1,"n.d.") -> n.d. | AE76: =IF(INDEX($K76:$O76,1,aux!$AL$1)>0,(O76-INDEX($K76:$O76,1,aux!$AL$1))/INDEX($K76:$O76,1,aux!$AL$1),"n.d.") -> n.d. | AX76: 08
A77: 0901 | B77: Café | C77: 2.425 | D77: 0.788 | E77: 96.589 | F77: 0.943 | G77: 484.502 | H77: 117.0494 | I77: 0.004234214705 | J77: 0.001662424241 | K77: 64.266 | L77: 164.372 | M77: 349.059 | N77: 350.698 | O77: 210.843 | P77: 227.8476 | Q77: 0.01565162965 | R77: 0.005396284577 | S77: 110.7982 | U77: =G77-INDEX($C77:$G77,1,aux!$AL$1) -> 482.077 | V77: 0.02415241689 | W77: 0.01424748065 | X77: =+IF(INDEX($C77:$G77,1,aux!$AL$1)>0,(G77/INDEX($C77:$G77,1,aux!$AL$1))^(1/($G$3-INDEX($C$3:$G$3,1,aux!$AL$1)))-1,"n.d.") -> 2.75963737 | Y77: =IF(INDEX($C77:$G77,1,aux!$AL$1)>0,(G77-INDEX($C77:$G77,1,aux!$AL$1))/INDEX($C77:$G77,1,aux!$AL$1),"n.d.") -> 198.7946392 | AA77: =O77-INDEX($K77:$O77,1,aux!$AL$1) -> 146.577 | AB77: 0.03535162661 | AC77: 0.00917211662 | AD77: =+IF(INDEX($K77:$O77,1,aux!$AL$1)>0,(O77/INDEX($K77:$O77,1,aux!$AL$1))^(1/($O$3-INDEX($K$3:$O$3,1,aux!$AL$1)))-1,"n.d.") -> 0.3458432458 | AE77: =IF(INDEX($K77:$O77,1,aux!$AL$1)>0,(O77-INDEX($K77:$O77,1,aux!$AL$1))/INDEX($K77:$O77,1,aux!$AL$1),"n.d.") -> 2.280786108 | AX77: 09
A78: 0902 | B78: Chá | C78: 6.745 | D78: 7.615 | E78: 9.706 | F78: 9.429 | G78: 9.292 | H78: 8.5574 | I78: 0.000309560484 | J78: 0.0001215386769 | K78: 0.038 | L78: 0.046 | M78: 0.022 | N78: 0.031 | O78: 0.043 | P78: 0.036 | Q78: 2.472962925e-06 | R78: 8.52614839e-07 | S78: -8.5214 | U78: =G78-INDEX($C78:$G78,1,aux!$AL$1) -> 2.547 | V78: 0.0001276065977 | W78: 7.527497309e-05 | X78: =+IF(INDEX($C78:$G78,1,aux!$AL$1)>0,(G78/INDEX($C78:$G78,1,aux!$AL$1))^(1/($G$3-INDEX($C$3:$G$3,1,aux!$AL$1)))-1,"n.d.") -> 0.08338248922 | Y78: =IF(INDEX($C78:$G78,1,aux!$AL$1)>0,(G78-INDEX($C78:$G78,1,aux!$AL$1))/INDEX($C78:$G78,1,aux!$AL$1),"n.d.") -> 0.3776130467 | AA78: =O78-INDEX($K78:$O78,1,aux!$AL$1) -> 0.005 | AB78: 1.205906336e-06 | AC78: 3.128770755e-07 | AD78: =+IF(INDEX($K78:$O78,1,aux!$AL$1)>0,(O78/INDEX($K78:$O78,1,aux!$AL$1))^(1/($O$3-INDEX($K$3:$O$3,1,aux!$AL$1)))-1,"n.d.") -> 0.03138595898 | AE78: =IF(INDEX($K78:$O78,1,aux!$AL$1)>0,(O78-INDEX($K78:$O78,1,aux!$AL$1))/INDEX($K78:$O78,1,aux!$AL$1),"n.d.") -> 0.1315789474 | AX78: 09
A79: 0903 | B79: Mate | C79: 0 | D79: 0 | E79: 0 | F79: 0 | G79: 0 | H79: 0 | I79: 0 | J79: 0 | K79: 0 | L79: 0 | M79: 0.208 | N79: 13.959 | O79: 0.615 | P79: 2.9564 | Q79: 0.0002030852108 | R79: 7.001862528e-05 | S79: 2.9564 | U79: =G79-INDEX($C79:$G79,1,aux!$AL$1) -> 0 | V79: 0 | W79: 0 | X79: =+IF(INDEX($C79:$G79,1,aux!$AL$1)>0,(G79/INDEX($C79:$G79,1,aux!$AL$1))^(1/($G$3-INDEX($C$3:$G$3,1,aux!$AL$1)))-1,"n.d.") -> n.d. | Y79: =IF(INDEX($C79:$G79,1,aux!$AL$1)>0,(G79-INDEX($C79:$G79,1,aux!$AL$1))/INDEX($C79:$G79,1,aux!$AL$1),"n.d.") -> n.d. | AA79: =O79-INDEX($K79:$O79,1,aux!$AL$1) -> 0.615 | AB79: 0.0001483264794 | AC79: 3.848388029e-05 | AD79: =+IF(INDEX($K79:$O79,1,aux!$AL$1)>0,(O79/INDEX($K79:$O79,1,aux!$AL$1))^(1/($O$3-INDEX($K$3:$O$3,1,aux!$AL$1)))-1,"n.d.") -> n.d. | AE79: =IF(INDEX($K79:$O79,1,aux!$AL$1)>0,(O79-INDEX($K79:$O79,1,aux!$AL$1))/INDEX($K79:$O79,1,aux!$AL$1),"n.d.") -> n.d. | AX79: 09
A80: 0904 | B80: Pimenta | C80: 9.523 | D80: 65.192 | E80: 38.859 | F80: 28.775 | G80: 51.072 | H80: 38.6842 | I80: 0.001399385289 | J80: 0.0005494223109 | K80: 0 | L80: 0 | M80: 0.068 | N80: 0.013 | O80: 0.022 | P80: 0.0206 | Q80: 1.41508434e-06 | R80: 4.878851579e-07 | S80: -38.6636 | U80: =G80-INDEX($C80:$G80,1,aux!$AL$1) -> 41.549 | V80: 0.002081635857 | W80: 0.0012279544 | X80: =+IF(INDEX($C80:$G80,1,aux!$AL$1)>0,(G80/INDEX($C80:$G80,1,aux!$AL$1))^(1/($G$3-INDEX($C$3:$G$3,1,aux!$AL$1)))-1,"n.d.") -> 0.5217813952 | Y80: =IF(INDEX($C80:$G80,1,aux!$AL$1)>0,(G80-INDEX($C80:$G80,1,aux!$AL$1))/INDEX($C80:$G80,1,aux!$AL$1),"n.d.") -> 4.363015856 | AA80: =O80-INDEX($K80:$O80,1,aux!$AL$1) -> 0.022 | AB80: 5.30598788e-06 | AC80: 1.376659132e-06 | AD80: =+IF(INDEX($K80:$O80,1,aux!$AL$1)>0,(O80/INDEX($K80:$O80,1,aux!$AL$1))^(1/($O$3-INDEX($K$3:$O$3,1,aux!$AL$1)))-1,"n.d.") -> n.d. | AE80: =IF(INDEX($K80:$O80,1,aux!$AL$1)>0,(O80-INDEX($K80:$O80,1,aux!$AL$1))/INDEX($K80:$O80,1,aux!$AL$1),"n.d.") -> n.d. | AX80: 09
A81: 0905 | B81: Baunilha | C81: 19.97 | D81: 7.978 | E81: 10.037 | F81: 9.096 | G81: 8.542 | H81: 11.1246 | I81: 0.0004024279057 | J81: 0.0001579999959 | K81: 0 | L81: 0 | M81: 0 | N81: 0 | O81: 0 | P81: 0 | Q81: 0 | R81: 0 | S81: -11.1246 | U81: =G81-INDEX($C81:$G81,1,aux!$AL$1) -> -11.428 | V81: -0.0005725513148 | W81: -0.0003377473076 | X81: =+IF(INDEX($C81:$G81,1,aux!$AL$1)>0,(G81/INDEX($C81:$G81,1,aux!$AL$1))^(1/($G$3-INDEX($C$3:$G$3,1,aux!$AL$1)))-1,"n.d.") -> -0.1912852289 | Y81: =IF(INDEX($C81:$G81,1,aux!$AL$1)>0,(G81-INDEX($C81:$G81,1,aux!$AL$1))/INDEX($C81:$G81,1,aux!$AL$1),"n.d.") -> -0.5722583876 | AA81: =O81-INDEX($K81:$O81,1,aux!$AL$1) -> 0 | AB81: 0 | AC81: 0 | AD81: =+IF(INDEX($K81:$O81,1,aux!$AL$1)>0,(O81/INDEX($K81:$O81,1,aux!$AL$1))^(1/($O$3-INDEX($K$3:$O$3,1,aux!$AL$1)))-1,"n.d.") -> n.d. | AE81: =IF(INDEX($K81:$O81,1,aux!$AL$1)>0,(O81-INDEX($K81:$O81,1,aux!$AL$1))/INDEX($K81:$O81,1,aux!$AL$1),"n.d.") -> n.d. | AX81: 09
A82: 0906 | B82: Canela | C82: 31.652 | D82: 43.675 | E82: 37.998 | F82: 31.642 | G82: 37.568 | H82: 36.507 | I82: 0.00132062596 | J82: 0.0005185000673 | K82: 0.016 | L82: 0.033 | M82: 0.012 | N82: 0.034 | O82: 0.016 | P82: 0.0222 | Q82: 1.524993804e-06 | R82: 5.257791507e-07 | S82: -36.4848 | U82: =G82-INDEX($C82:$G82,1,aux!$AL$1) -> 5.916 | V82: 0.0002963960079 | W82: 0.000174843636 | X82: =+IF(INDEX($C82:$G82,1,aux!$AL$1)>0,(G82/INDEX($C82:$G82,1,aux!$AL$1))^(1/($G$3-INDEX($C$3:$G$3,1,aux!$AL$1)))-1,"n.d.") -> 0.04376860442 | Y82: =IF(INDEX($C82:$G82,1,aux!$AL$1)>0,(G82-INDEX($C82:$G82,1,aux!$AL$1))/INDEX($C82:$G82,1,aux!$AL$1),"n.d.") -> 0.1869076204 | AA82: =O82-INDEX($K82:$O82,1,aux!$AL$1) -> 0 | AB82: 0 | AC82: 0 | AD82: =+IF(INDEX($K82:$O82,1,aux!$AL$1)>0,(O82/INDEX($K82:$O82,1,aux!$AL$1))^(1/($O$3-INDEX($K$3:$O$3,1,aux!$AL$1)))-1,"n.d.") -> 0 | AE82: =IF(INDEX($K82:$O82,1,aux!$AL$1)>0,(O82-INDEX($K82:$O82,1,aux!$AL$1))/INDEX($K82:$O82,1,aux!$AL$1),"n.d.") -> 0 | AX82: 09
A83: 0907 | B83: Cravo-da-índia | C83: 2.755 | D83: 5.01 | E83: 4.955 | F83: 4.555 | G83: 12.705 | H83: 5.996 | I83: 0.000216902875 | J83: 8.515973385e-05 | K83: 0 | L83: 0 | M83: 0 | N83: 0 | O83: 0 | P83: 0 | Q83: 0 | R83: 0 | S83: -5.996 | U83: =G83-INDEX($C83:$G83,1,aux!$AL$1) -> 9.95 | V83: 0.0004985024136 | W83: 0.000294065953 | X83: =+IF(INDEX($C83:$G83,1,aux!$AL$1)>0,(G83/INDEX($C83:$G83,1,aux!$AL$1))^(1/($G$3-INDEX($C$3:$G$3,1,aux!$AL$1)))-1,"n.d.") -> 0.4654238874 | Y83: =IF(INDEX($C83:$G83,1,aux!$AL$1)>0,(G83-INDEX($C83:$G83,1,aux!$AL$1))/INDEX($C83:$G83,1,aux!$AL$1),"n.d.") -> 3.611615245 | AA83: =O83-INDEX($K83:$O83,1,aux!$AL$1) -> 0 | AB83: 0 | AC83: 0 | AD83: =+IF(INDEX($K83:$O83,1,aux!$AL$1)>0,(O83/INDEX($K83:$O83,1,aux!$AL$1))^(1/($O$3-INDEX($K$3:$O$3,1,aux!$AL$1)))-1,"n.d.") -> n.d. | AE83: =IF(INDEX($K83:$O83,1,aux!$AL$1)>0,(O83-INDEX($K83:$O83,1,aux!$AL$1))/INDEX($K83:$O83,1,aux!$AL$1),"n.d.") -> n.d. | AX83: 09
A84: 0908 | B84: Noz-moscada, etc. | C84: 12.05 | D84: 21.812 | E84: 16.846 | F84: 17.802 | G84: 19.957 | H84: 17.6934 | I84: 0.000640051589 | J84: 0.0002512950692 | K84: 0 | L84: 0 | M84: 0 | N84: 0 | O84: 0.03 | P84: 0.006 | Q84: 4.121604874e-07 | R84: 1.421024732e-07 | S84: -17.6874 | U84: =G84-INDEX($C84:$G84,1,aux!$AL$1) -> 7.907 | V84: 0.0003961465914 | W84: 0.0002336863809 | X84: =+IF(INDEX($C84:$G84,1,aux!$AL$1)>0,(G84/INDEX($C84:$G84,1,aux!$AL$1))^(1/($G$3-INDEX($C$3:$G$3,1,aux!$AL$1)))-1,"n.d.") -> 0.1344283013 | Y84: =IF(INDEX($C84:$G84,1,aux!$AL$1)>0,(G84-INDEX($C84:$G84,1,aux!$AL$1))/INDEX($C84:$G84,1,aux!$AL$1),"n.d.") -> 0.6561825726 | AA84: =O84-INDEX($K84:$O84,1,aux!$AL$1) -> 0.03 | AB84: 7.235438018e-06 | AC84: 1.877262453e-06 | AD84: =+IF(INDEX($K84:$O84,1,aux!$AL$1)>0,(O84/INDEX($K84:$O84,1,aux!$AL$1))^(1/($O$3-INDEX($K$3:$O$3,1,aux!$AL$1)))-1,"n.d.") -> n.d. | AE84: =IF(INDEX($K84:$O84,1,aux!$AL$1)>0,(O84-INDEX($K84:$O84,1,aux!$AL$1))/INDEX($K84:$O84,1,aux!$AL$1),"n.d.") -> n.d. | AX84: 09
A85: 0909 | B85: Sementes de anis, funcho, etc. | C85: 8.185 | D85: 8.056 | E85: 8.012 | F85: 9.31 | G85: 8.219 | H85: 8.3564 | I85: 0.0003022893903 | J85: 0.0001186839226 | K85: 0 | L85: 0 | M85: 0 | N85: 0 | O85: 0.005 | P85: 0.001 | Q85: 6.869341457e-08 | R85: 2.368374553e-08 | S85: -8.3554 | U85: =G85-INDEX($C85:$G85,1,aux!$AL$1) -> 0.034 | V85: 1.703425333e-06 | W85: 1.004848483e-06 | X85: =+IF(INDEX($C85:$G85,1,aux!$AL$1)>0,(G85/INDEX($C85:$G85,1,aux!$AL$1))^(1/($G$3-INDEX($C$3:$G$3,1,aux!$AL$1)))-1,"n.d.") -> 0.001036871266 | Y85: =IF(INDEX($C85:$G85,1,aux!$AL$1)>0,(G85-INDEX($C85:$G85,1,aux!$AL$1))/INDEX($C85:$G85,1,aux!$AL$1),"n.d.") -> 0.004153940134 | AA85: =O85-INDEX($K85:$O85,1,aux!$AL$1) -> 0.005 | AB85: 1.205906336e-06 | AC85: 3.128770755e-07 | AD85: =+IF(INDEX($K85:$O85,1,aux!$AL$1)>0,(O85/INDEX($K85:$O85,1,aux!$AL$1))^(1/($O$3-INDEX($K$3:$O$3,1,aux!$AL$1)))-1,"n.d.") -> n.d. | AE85: =IF(INDEX($K85:$O85,1,aux!$AL$1)>0,(O85-INDEX($K85:$O85,1,aux!$AL$1))/INDEX($K85:$O85,1,aux!$AL$1),"n.d.") -> n.d. | AX85: 09
A86: 0910 | B86: Gengibre, açafrão, tomilho, louro, etc. | C86: 102.497 | D86: 105.374 | E86: 86.562 | F86: 145.623 | G86: 76.292 | H86: 103.2696 | I86: 0.003735736013 | J86: 0.001466713084 | K86: 0 | L86: 0.069 | M86: 0.047 | N86: 0 | O86: 16.092 | P86: 3.2416 | Q86: 0.0002226765727 | R86: 7.67732295e-05 | S86: -100.028 | U86: =G86-INDEX($C86:$G86,1,aux!$AL$1) -> -26.205 | V86: -0.001312890025 | W86: -0.0007744721908 | X86: =+IF(INDEX($C86:$G86,1,aux!$AL$1)>0,(G86/INDEX($C86:$G86,1,aux!$AL$1))^(1/($G$3-INDEX($C$3:$G$3,1,aux!$AL$1)))-1,"n.d.") -> -0.0711577507 | Y86: =IF(INDEX($C86:$G86,1,aux!$AL$1)>0,(G86-INDEX($C86:$G86,1,aux!$AL$1))/INDEX($C86:$G86,1,aux!$AL$1),"n.d.") -> -0.2556660195 | AA86: =O86-INDEX($K86:$O86,1,aux!$AL$1) -> 16.092 | AB86: 0.003881088953 | AC86: 0.00100696358 | AD86: =+IF(INDEX($K86:$O86,1,aux!$AL$1)>0,(O86/INDEX($K86:$O86,1,aux!$AL$1))^(1/($O$3-INDEX($K$3:$O$3,1,aux!$AL$1)))-1,"n.d.") -> n.d. | AE86: =IF(INDEX($K86:$O86,1,aux!$AL$1)>0,(O86-INDEX($K86:$O86,1,aux!$AL$1))/INDEX($K86:$O86,1,aux!$AL$1),"n.d.") -> n.d. | AX86: 09
A87: 09SS | B87: Café, chá, mate e especiarias | C87: 0 | D87: 0 | E87: 0 | F87: 0 | G87: 0 | H87: 0 | I87: 0 | J87: 0 | K87: 0 | L87: 0 | M87: 0 | N87: 0 | O87: 0 | P87: 0 | Q87: 0 | R87: 0 | S87: 0 | U87: =G87-INDEX($C87:$G87,1,aux!$AL$1) -> 0 | V87: 0 | W87: 0 | X87: =+IF(INDEX($C87:$G87,1,aux!$AL$1)>0,(G87/INDEX($C87:$G87,1,aux!$AL$1))^(1/($G$3-INDEX($C$3:$G$3,1,aux!$AL$1)))-1,"n.d.") -> n.d. | Y87: =IF(INDEX($C87:$G87,1,aux!$AL$1)>0,(G87-INDEX($C87:$G87,1,aux!$AL$1))/INDEX($C87:$G87,1,aux!$AL$1),"n.d.") -> n.d. | AA87: =O87-INDEX($K87:$O87,1,aux!$AL$1) -> 0 | AB87: 0 | AC87: 0 | AD87: =+IF(INDEX($K87:$O87,1,aux!$AL$1)>0,(O87/INDEX($K87:$O87,1,aux!$AL$1))^(1/($O$3-INDEX($K$3:$O$3,1,aux!$AL$1)))-1,"n.d.") -> n.d. | AE87: =IF(INDEX($K87:$O87,1,aux!$AL$1)>0,(O87-INDEX($K87:$O87,1,aux!$AL$1))/INDEX($K87:$O87,1,aux!$AL$1),"n.d.") -> n.d. | AX87: 09
A88: 1001 | B88: Trigo e mistura trigo/centeio | C88: 0 | D88: 0 | E88: 0 | F88: 0 | G88: 0 | H88: 0 | I88: 0 | J88: 0 | K88: 0 | L88: 0 | M88: 0 | N88: 0 | O88: 0 | P88: 0 | Q88: 0 | R88: 0 | S88: 0 | U88: =G88-INDEX($C88:$G88,1,aux!$AL$1) -> 0 | V88: 0 | W88: 0 | X88: =+IF(INDEX($C88:$G88,1,aux!$AL$1)>0,(G88/INDEX($C88:$G88,1,aux!$AL$1))^(1/($G$3-INDEX($C$3:$G$3,1,aux!$AL$1)))-1,"n.d.") -> n.d. | Y88: =IF(INDEX($C88:$G88,1,aux!$AL$1)>0,(G88-INDEX($C88:$G88,1,aux!$AL$1))/INDEX($C88:$G88,1,aux!$AL$1),"n.d.") -> n.d. | AA88: =O88-INDEX($K88:$O88,1,aux!$AL$1) -> 0 | AB88: 0 | AC88: 0 | AD88: =+IF(INDEX($K88:$O88,1,aux!$AL$1)>0,(O88/INDEX($K88:$O88,1,aux!$AL$1))^(1/($O$3-INDEX($K$3:$O$3,1,aux!$AL$1)))-1,"n.d.") -> n.d. | AE88: =IF(INDEX($K88:$O88,1,aux!$AL$1)>0,(O88-INDEX($K88:$O88,1,aux!$AL$1))/INDEX($K88:$O88,1,aux!$AL$1),"n.d.") -> n.d. | AX88: 10
A89: 1002 | B89: Centeio | C89: 0 | D89: 0 | E89: 0 | F89: 0 | G89: 0 | H89: 0 | I89: 0 | J89: 0 | K89: 0 | L89: 0 | M89: 0 | N89: 0 | O89: 0 | P89: 0 | Q89: 0 | R89: 0 | S89: 0 | U89: =G89-INDEX($C89:$G89,1,aux!$AL$1) -> 0 | V89: 0 | W89: 0 | X89: =+IF(INDEX($C89:$G89,1,aux!$AL$1)>0,(G89/INDEX($C89:$G89,1,aux!$AL$1))^(1/($G$3-INDEX($C$3:$G$3,1,aux!$AL$1)))-1,"n.d.") -> n.d. | Y89: =IF(INDEX($C89:$G89,1,aux!$AL$1)>0,(G89-INDEX($C89:$G89,1,aux!$AL$1))/INDEX($C89:$G89,1,aux!$AL$1),"n.d.") -> n.d. | AA89: =O89-INDEX($K89:$O89,1,aux!$AL$1) -> 0 | AB89: 0 | AC89: 0 | AD89: =+IF(INDEX($K89:$O89,1,aux!$AL$1)>0,(O89/INDEX($K89:$O89,1,aux!$AL$1))^(1/($O$3-INDEX($K$3:$O$3,1,aux!$AL$1)))-1,"n.d.") -> n.d. | AE89: =IF(INDEX($K89:$O89,1,aux!$AL$1)>0,(O89-INDEX($K89:$O89,1,aux!$AL$1))/INDEX($K89:$O89,1,aux!$AL$1),"n.d.") -> n.d. | AX89: 10
A90: 1003 | B90: Cevada | C90: 0 | D90: 0 | E90: 0 | F90: 0 | G90: 0 | H90: 0 | I90: 0 | J90: 0 | K90: 0 | L90: 0 | M90: 0 | N90: 0 | O90: 0 | P90: 0 | Q90: 0 | R90: 0 | S90: 0 | U90: =G90-INDEX($C90:$G90,1,aux!$AL$1) -> 0 | V90: 0 | W90: 0 | X90: =+IF(INDEX($C90:$G90,1,aux!$AL$1)>0,(G90/INDEX($C90:$G90,1,aux!$AL$1))^(1/($G$3-INDEX($C$3:$G$3,1,aux!$AL$1)))-1,"n.d.") -> n.d. | Y90: =IF(INDEX($C90:$G90,1,aux!$AL$1)>0,(G90-INDEX($C90:$G90,1,aux!$AL$1))/INDEX($C90:$G90,1,aux!$AL$1),"n.d.") -> n.d. | AA90: =O90-INDEX($K90:$O90,1,aux!$AL$1) -> 0 | AB90: 0 | AC90: 0 | AD90: =+IF(INDEX($K90:$O90,1,aux!$AL$1)>0,(O90/INDEX($K90:$O90,1,aux!$AL$1))^(1/($O$3-INDEX($K$3:$O$3,1,aux!$AL$1)))-1,"n.d.") -> n.d. | AE90: =IF(INDEX($K90:$O90,1,aux!$AL$1)>0,(O90-INDEX($K90:$O90,1,aux!$AL$1))/INDEX($K90:$O90,1,aux!$AL$1),"n.d.") -> n.d. | AX90: 10
A91: 1004 | B91: Aveia | C91: 0 | D91: 0 | E91: 0 | F91: 0 | G91: 17.416 | H91: 3.4832 | I91: 0.0001260033512 | J91: 4.947104486e-05 | K91: 0 | L91: 0 | M91: 0 | N91: 0 | O91: 0 | P91: 0 | Q91: 0 | R91: 0 | S91: -3.4832 | U91: =G91-INDEX($C91:$G91,1,aux!$AL$1) -> 17.416 | V91: 0.0008725545764 | W91: 0.000514718858 | X91: =+IF(INDEX($C91:$G91,1,aux!$AL$1)>0,(G91/INDEX($C91:$G91,1,aux!$AL$1))^(1/($G$3-INDEX($C$3:$G$3,1,aux!$AL$1)))-1,"n.d.") -> n.d. | Y91: =IF(INDEX($C91:$G91,1,aux!$AL$1)>0,(G91-INDEX($C91:$G91,1,aux!$AL$1))/INDEX($C91:$G91,1,aux!$AL$1),"n.d.") -> n.d. | AA91: =O91-INDEX($K91:$O91,1,aux!$AL$1) -> 0 | AB91: 0 | AC91: 0 | AD91: =+IF(INDEX($K91:$O91,1,aux!$AL$1)>0,(O91/INDEX($K91:$O91,1,aux!$AL$1))^(1/($O$3-INDEX($K$3:$O$3,1,aux!$AL$1)))-1,"n.d.") -> n.d. | AE91: =IF(INDEX($K91:$O91,1,aux!$AL$1)>0,(O91-INDEX($K91:$O91,1,aux!$AL$1))/INDEX($K91:$O91,1,aux!$AL$1),"n.d.") -> n.d. | AX91: 10
A92: 1005 | B92: Milho | C92: 0 | D92: 0.625 | E92: 10.681 | F92: 316.932 | G92: 189.807 | H92: 103.609 | I92: 0.003748013671 | J92: 0.0014715335 | K92: 0 | L92: 0 | M92: 0.018 | N92: 0 | O92: 0.029 | P92: 0.0094 | Q92: 6.45718097e-07 | R92: 2.22627208e-07 | S92: -103.5996 | U92: =G92-INDEX($C92:$G92,1,aux!$AL$1) -> 189.807 | V92: 0.009509472122 | W92: 0.005609625763 | X92: =+IF(INDEX($C92:$G92,1,aux!$AL$1)>0,(G92/INDEX($C92:$G92,1,aux!$AL$1))^(1/($G$3-INDEX($C$3:$G$3,1,aux!$AL$1)))-1,"n.d.") -> n.d. | Y92: =IF(INDEX($C92:$G92,1,aux!$AL$1)>0,(G92-INDEX($C92:$G92,1,aux!$AL$1))/INDEX($C92:$G92,1,aux!$AL$1),"n.d.") -> n.d. | AA92: =O92-INDEX($K92:$O92,1,aux!$AL$1) -> 0.029 | AB92: 6.99425675e-06 | AC92: 1.814687038e-06 | AD92: =+IF(INDEX($K92:$O92,1,aux!$AL$1)>0,(O92/INDEX($K92:$O92,1,aux!$AL$1))^(1/($O$3-INDEX($K$3:$O$3,1,aux!$AL$1)))-1,"n.d.") -> n.d. | AE92: =IF(INDEX($K92:$O92,1,aux!$AL$1)>0,(O92-INDEX($K92:$O92,1,aux!$AL$1))/INDEX($K92:$O92,1,aux!$AL$1),"n.d.") -> n.d. | AX92: 10
A93: 1006 | B93: Arroz | C93: 0 | D93: 0 | E93: 4.801 | F93: 0 | G93: 0 | H93: 0.9602 | I93: 3.473484665e-05 | J93: 1.363748773e-05 | K93: 0.134 | L93: 331.89 | M93: 57.541 | N93: 168.835 | O93: 73.524 | P93: 126.3848 | Q93: 0.008681803462 | R93: 0.002993265442 | S93: 125.4246 | U93: =G93-INDEX($C93:$G93,1,aux!$AL$1) -> 0 | V93: 0 | W93: 0 | X93: =+IF(INDEX($C93:$G93,1,aux!$AL$1)>0,(G93/INDEX($C93:$G93,1,aux!$AL$1))^(1/($G$3-INDEX($C$3:$G$3,1,aux!$AL$1)))-1,"n.d.") -> n.d. | Y93: =IF(INDEX($C93:$G93,1,aux!$AL$1)>0,(G93-INDEX($C93:$G93,1,aux!$AL$1))/INDEX($C93:$G93,1,aux!$AL$1),"n.d.") -> n.d. | AA93: =O93-INDEX($K93:$O93,1,aux!$AL$1) -> 73.39 | AB93: 0.0177002932 | AC93: 0.004592409715 | AD93: =+IF(INDEX($K93:$O93,1,aux!$AL$1)>0,(O93/INDEX($K93:$O93,1,aux!$AL$1))^(1/($O$3-INDEX($K$3:$O$3,1,aux!$AL$1)))-1,"n.d.") -> 3.839840863 | AE93: =IF(INDEX($K93:$O93,1,aux!$AL$1)>0,(O93-INDEX($K93:$O93,1,aux!$AL$1))/INDEX($K93:$O93,1,aux!$AL$1),"n.d.") -> 547.6865672 | AX93: 10
A94: 1007 | B94: Sorgo de grão | C94: 0 | D94: 0 | E94: 0 | F94: 28.045 | G94: 1.371 | H94: 5.8832 | I94: 0.0002128223806 | J94: 8.355766281e-05 | K94: 0 | L94: 0 | M94: 0 | N94: 0 | O94: 0 | P94: 0 | Q94: 0 | R94: 0 | S94: -5.8832 | U94: =G94-INDEX($C94:$G94,1,aux!$AL$1) -> 1.371 | V94: 6.868812151e-05 | W94: 4.051903734e-05 | X94: =+IF(INDEX($C94:$G94,1,aux!$AL$1)>0,(G94/INDEX($C94:$G94,1,aux!$AL$1))^(1/($G$3-INDEX($C$3:$G$3,1,aux!$AL$1)))-1,"n.d.") -> n.d. | Y94: =IF(INDEX($C94:$G94,1,aux!$AL$1)>0,(G94-INDEX($C94:$G94,1,aux!$AL$1))/INDEX($C94:$G94,1,aux!$AL$1),"n.d.") -> n.d. | AA94: =O94-INDEX($K94:$O94,1,aux!$AL$1) -> 0 | AB94: 0 | AC94: 0 | AD94: =+IF(INDEX($K94:$O94,1,aux!$AL$1)>0,(O94/INDEX($K94:$O94,1,aux!$AL$1))^(1/($O$3-INDEX($K$3:$O$3,1,aux!$AL$1)))-1,"n.d.") -> n.d. | AE94: =IF(INDEX($K94:$O94,1,aux!$AL$1)>0,(O94-INDEX($K94:$O94,1,aux!$AL$1))/INDEX($K94:$O94,1,aux!$AL$1),"n.d.") -> n.d. | AX94: 10
A95: 1008 | B95: Trigo mourisco, painço e outros cereais | C95: 3.056 | D95: 0 | E95: 12.737 | F95: 2.169 | G95: 0.088 | H95: 3.61 | I95: 0.00013059029 | J95: 5.127195451e-05 | K95: 0 | L95: 0 | M95: 0 | N95: 0 | O95: 0 | P95: 0 | Q95: 0 | R95: 0 | S95: -3.61 | U95: =G95-INDEX($C95:$G95,1,aux!$AL$1) -> -2.968 | V95: -0.0001486990114 | W95: -8.771736166e-05 | X95: =+IF(INDEX($C95:$G95,1,aux!$AL$1)>0,(G95/INDEX($C95:$G95,1,aux!$AL$1))^(1/($G$3-INDEX($C$3:$G$3,1,aux!$AL$1)))-1,"n.d.") -> -0.58806155 | Y95: =IF(INDEX($C95:$G95,1,aux!$AL$1)>0,(G95-INDEX($C95:$G95,1,aux!$AL$1))/INDEX($C95:$G95,1,aux!$AL$1),"n.d.") -> -0.9712041885 | AA95: =O95-INDEX($K95:$O95,1,aux!$AL$1) -> 0 | AB95: 0 | AC95: 0 | AD95: =+IF(INDEX($K95:$O95,1,aux!$AL$1)>0,(O95/INDEX($K95:$O95,1,aux!$AL$1))^(1/($O$3-INDEX($K$3:$O$3,1,aux!$AL$1)))-1,"n.d.") -> n.d. | AE95: =IF(INDEX($K95:$O95,1,aux!$AL$1)>0,(O95-INDEX($K95:$O95,1,aux!$AL$1))/INDEX($K95:$O95,1,aux!$AL$1),"n.d.") -> n.d. | AX95: 10
A96: 10SS | B96: Cereais | C96: 0 | D96: 0 | E96: 0 | F96: 0 | G96: 0 | H96: 0 | I96: 0 | J96: 0 | K96: 0 | L96: 0 | M96: 0 | N96: 0 | O96: 0 | P96: 0 | Q96: 0 | R96: 0 | S96: 0 | U96: =G96-INDEX($C96:$G96,1,aux!$AL$1) -> 0 | V96: 0 | W96: 0 | X96: =+IF(INDEX($C96:$G96,1,aux!$AL$1)>0,(G96/INDEX($C96:$G96,1,aux!$AL$1))^(1/($G$3-INDEX($C$3:$G$3,1,aux!$AL$1)))-1,"n.d.") -> n.d. | Y96: =IF(INDEX($C96:$G96,1,aux!$AL$1)>0,(G96-INDEX($C96:$G96,1,aux!$AL$1))/INDEX($C96:$G96,1,aux!$AL$1),"n.d.") -> n.d. | AA96: =O96-INDEX($K96:$O96,1,aux!$AL$1) -> 0 | AB96: 0 | AC96: 0 | AD96: =+IF(INDEX($K96:$O96,1,aux!$AL$1)>0,(O96/INDEX($K96:$O96,1,aux!$AL$1))^(1/($O$3-INDEX($K$3:$O$3,1,aux!$AL$1)))-1,"n.d.") -> n.d. | AE96: =IF(INDEX($K96:$O96,1,aux!$AL$1)>0,(O96-INDEX($K96:$O96,1,aux!$AL$1))/INDEX($K96:$O96,1,aux!$AL$1),"n.d.") -> n.d. | AX96: 10
A97: 1101 | B97: Farinhas de trigo ou trigo/centeio | C97: 0 | D97: 0 | E97: 0 | F97: 0 | G97: 0 | H97: 0 | I97: 0 | J97: 0 | K97: 0.02 | L97: 139.393 | M97: 0.03 | N97: 233.701 | O97: 0.026 | P97: 74.634 | Q97: 0.005126864303 | R97: 0.001767612664 | S97: 74.634 | U97: =G97-INDEX($C97:$G97,1,aux!$AL$1) -> 0 | V97: 0 | W97: 0 | X97: =+IF(INDEX($C97:$G97,1,aux!$AL$1)>0,(G97/INDEX($C97:$G97,1,aux!$AL$1))^(1/($G$3-INDEX($C$3:$G$3,1,aux!$AL$1)))-1,"n.d.") -> n.d. | Y97: =IF(INDEX($C97:$G97,1,aux!$AL$1)>0,(G97-INDEX($C97:$G97,1,aux!$AL$1))/INDEX($C97:$G97,1,aux!$AL$1),"n.d.") -> n.d. | AA97: =O97-INDEX($K97:$O97,1,aux!$AL$1) -> 0.006 | AB97: 1.447087604e-06 | AC97: 3.754524906e-07 | AD97: =+IF(INDEX($K97:$O97,1,aux!$AL$1)>0,(O97/INDEX($K97:$O97,1,aux!$AL$1))^(1/($O$3-INDEX($K$3:$O$3,1,aux!$AL$1)))-1,"n.d.") -> 0.06778997237 | AE97: =IF(INDEX($K97:$O97,1,aux!$AL$1)>0,(O97-INDEX($K97:$O97,1,aux!$AL$1))/INDEX($K97:$O97,1,aux!$AL$1),"n.d.") -> 0.3 | AX97: 11
A98: 1102 | B98: Outras farinhas de cereais | C98: 3.399 | D98: 1.236 | E98: 2.148 | F98: 4.093 | G98: 5.053 | H98: 3.1858 | I98: 0.0001152450265 | J98: 4.524714478e-05 | K98: 0.004 | L98: 0.024 | M98: 0.081 | N98: 0.057 | O98: 0.66 | P98: 0.1652 | Q98: 1.134815209e-05 | R98: 3.912554761e-06 | S98: -3.0206 | U98: =G98-INDEX($C98:$G98,1,aux!$AL$1) -> 1.654 | V98: 8.286663237e-05 | W98: 4.888292324e-05 | X98: =+IF(INDEX($C98:$G98,1,aux!$AL$1)>0,(G98/INDEX($C98:$G98,1,aux!$AL$1))^(1/($G$3-INDEX($C$3:$G$3,1,aux!$AL$1)))-1,"n.d.") -> 0.1042045527 | Y98: =IF(INDEX($C98:$G98,1,aux!$AL$1)>0,(G98-INDEX($C98:$G98,1,aux!$AL$1))/INDEX($C98:$G98,1,aux!$AL$1),"n.d.") -> 0.4866137099 | AA98: =O98-INDEX($K98:$O98,1,aux!$AL$1) -> 0.656 | AB98: 0.0001582149113 | AC98: 4.104947231e-05 | AD98: =+IF(INDEX($K98:$O98,1,aux!$AL$1)>0,(O98/INDEX($K98:$O98,1,aux!$AL$1))^(1/($O$3-INDEX($K$3:$O$3,1,aux!$AL$1)))-1,"n.d.") -> 2.584024634 | AE98: =IF(INDEX($K98:$O98,1,aux!$AL$1)>0,(O98-INDEX($K98:$O98,1,aux!$AL$1))/INDEX($K98:$O98,1,aux!$AL$1),"n.d.") -> 164 | AX98: 11
A99: 1103 | B99: Grumos, sêmolas, etc. de cereais | C99: 1.999 | D99: 0 | E99: 0 | F99: 0 | G99: 0 | H99: 0.3998 | I99: 1.44626033e-05 | J99: 5.678262441e-06 | K99: 0 | L99: 0 | M99: 0 | N99: 0 | O99: 0 | P99: 0 | Q99: 0 | R99: 0 | S99: -0.3998 | U99: =G99-INDEX($C99:$G99,1,aux!$AL$1) -> -1.999 | V99: -0.0001001513894 | W99: -5.90791799e-05 | X99: =+IF(INDEX($C99:$G99,1,aux!$AL$1)>0,(G99/INDEX($C99:$G99,1,aux!$AL$1))^(1/($G$3-INDEX($C$3:$G$3,1,aux!$AL$1)))-1,"n.d.") -> -1 | Y99: =IF(INDEX($C99:$G99,1,aux!$AL$1)>0,(G99-INDEX($C99:$G99,1,aux!$AL$1))/INDEX($C99:$G99,1,aux!$AL$1),"n.d.") -> -1 | AA99: =O99-INDEX($K99:$O99,1,aux!$AL$1) -> 0 | AB99: 0 | AC99: 0 | AD99: =+IF(INDEX($K99:$O99,1,aux!$AL$1)>0,(O99/INDEX($K99:$O99,1,aux!$AL$1))^(1/($O$3-INDEX($K$3:$O$3,1,aux!$AL$1)))-1,"n.d.") -> n.d. | AE99: =IF(INDEX($K99:$O99,1,aux!$AL$1)>0,(O99-INDEX($K99:$O99,1,aux!$AL$1))/INDEX($K99:$O99,1,aux!$AL$1),"n.d.") -> n.d. | AX99: 11
A100: 1104 | B100: Grãos de cereais processados | C100: 1.923 | D100: 3.846 | E100: 9.138 | F100: 12.436 | G100: 14.942 | H100: 8.457 | I100: 0.0003059285546 | J100: 0.00012011272 | K100: 0 | L100: 0 | M100: 0.428 | N100: 0.121 | O100: 0.173 | P100: 0.1444 | Q100: 9.919329064e-06 | R100: 3.419932854e-06 | S100: -8.3126 | U100: =G100-INDEX($C100:$G100,1,aux!$AL$1) -> 13.019 | V100: 0.0006522616002 | W100: 0.0003847683057 | X100: =+IF(INDEX($C100:$G100,1,aux!$AL$1)>0,(G100/INDEX($C100:$G100,1,aux!$AL$1))^(1/($G$3-INDEX($C$3:$G$3,1,aux!$AL$1)))-1,"n.d.") -> 0.6695804933 | Y100: =IF(INDEX($C100:$G100,1,aux!$AL$1)>0,(G100-INDEX($C100:$G100,1,aux!$AL$1))/INDEX($C100:$G100,1,aux!$AL$1),"n.d.") -> 6.770150806 | AA100: =O100-INDEX($K100:$O100,1,aux!$AL$1) -> 0.173 | AB100: 4.172435924e-05 | AC100: 1.082554681e-05 | AD100: =+IF(INDEX($K100:$O100,1,aux!$AL$1)>0,(O100/INDEX($K100:$O100,1,aux!$AL$1))^(1/($O$3-INDEX($K$3:$O$3,1,aux!$AL$1)))-1,"n.d.") -> n.d. | AE100: =IF(INDEX($K100:$O100,1,aux!$AL$1)>0,(O100-INDEX($K100:$O100,1,aux!$AL$1))/INDEX($K100:$O100,1,aux!$AL$1),"n.d.") -> n.d. | AX100: 11
A101: 1105 | B101: Farinha, sêmola, etc. de batata | C101: 0 | D101: 0 | E101: 0 | F101: 0 | G101: 0 | H101: 0 | I101: 0 | J101: 0 | K101: 0 | L101: 0 | M101: 0 | N101: 0 | O101: 0 | P101: 0 | Q101: 0 | R101: 0 | S101: 0 | U101: =G101-INDEX($C101:$G101,1,aux!$AL$1) -> 0 | V101: 0 | W101: 0 | X101: =+IF(INDEX($C101:$G101,1,aux!$AL$1)>0,(G101/INDEX($C101:$G101,1,aux!$AL$1))^(1/($G$3-INDEX($C$3:$G$3,1,aux!$AL$1)))-1,"n.d.") -> n.d. | Y101: =IF(INDEX($C101:$G101,1,aux!$AL$1)>0,(G101-INDEX($C101:$G101,1,aux!$AL$1))/INDEX($C101:$G101,1,aux!$AL$1),"n.d.") -> n.d. | AA101: =O101-INDEX($K101:$O101,1,aux!$AL$1) -> 0 | AB101: 0 | AC101: 0 | AD101: =+IF(INDEX($K101:$O101,1,aux!$AL$1)>0,(O101/INDEX($K101:$O101,1,aux!$AL$1))^(1/($O$3-INDEX($K$3:$O$3,1,aux!$AL$1)))-1,"n.d.") -> n.d. | AE101: =IF(INDEX($K101:$O101,1,aux!$AL$1)>0,(O101-INDEX($K101:$O101,1,aux!$AL$1))/INDEX($K101:$O101,1,aux!$AL$1),"n.d.") -> n.d. | AX101: 11
A102: 1106 | B102: Farinhas, etc. de leguminosas e outros tubérculos | C102: 7.08 | D102: 0 | E102: 16.695 | F102: 7.464 | G102: 0 | H102: 6.2478 | I102: 0.0002260116381 | J102: 8.873598819e-05 | K102: 0.03 | L102: 0.386 | M102: 0.022 | N102: 0.073 | O102: 0.079 | P102: 0.118 | Q102: 8.10582292e-06 | R102: 2.794681972e-06 | S102: -6.1298 | U102: =G102-INDEX($C102:$G102,1,aux!$AL$1) -> -7.08 | V102: -0.0003547132752 | W102: -0.0002092449193 | X102: =+IF(INDEX($C102:$G102,1,aux!$AL$1)>0,(G102/INDEX($C102:$G102,1,aux!$AL$1))^(1/($G$3-INDEX($C$3:$G$3,1,aux!$AL$1)))-1,"n.d.") -> -1 | Y102: =IF(INDEX($C102:$G102,1,aux!$AL$1)>0,(G102-INDEX($C102:$G102,1,aux!$AL$1))/INDEX($C102:$G102,1,aux!$AL$1),"n.d.") -> -1 | AA102: =O102-INDEX($K102:$O102,1,aux!$AL$1) -> 0.049 | AB102: 1.18178821e-05 | AC102: 3.06619534e-06 | AD102: =+IF(INDEX($K102:$O102,1,aux!$AL$1)>0,(O102/INDEX($K102:$O102,1,aux!$AL$1))^(1/($O$3-INDEX($K$3:$O$3,1,aux!$AL$1)))-1,"n.d.") -> 0.2738739574 | AE102: =IF(INDEX($K102:$O102,1,aux!$AL$1)>0,(O102-INDEX($K102:$O102,1,aux!$AL$1))/INDEX($K102:$O102,1,aux!$AL$1),"n.d.") -> 1.633333333 | AX102: 11
A103: 1107 | B103: Malte, mesmo torrado | C103: 2.02 | D103: 1.22 | E103: 1.968 | F103: 1.252 | G103: 1.558 | H103: 1.6036 | I103: 5.800958143e-05 | J103: 2.27755419e-05 | K103: 0 | L103: 0 | M103: 0 | N103: 0 | O103: 0 | P103: 0 | Q103: 0 | R103: 0 | S103: -1.6036 | U103: =G103-INDEX($C103:$G103,1,aux!$AL$1) -> -0.462 | V103: -2.314654423e-05 | W103: -1.365411762e-05 | X103: =+IF(INDEX($C103:$G103,1,aux!$AL$1)>0,(G103/INDEX($C103:$G103,1,aux!$AL$1))^(1/($G$3-INDEX($C$3:$G$3,1,aux!$AL$1)))-1,"n.d.") -> -0.06286098035 | Y103: =IF(INDEX($C103:$G103,1,aux!$AL$1)>0,(G103-INDEX($C103:$G103,1,aux!$AL$1))/INDEX($C103:$G103,1,aux!$AL$1),"n.d.") -> -0.2287128713 | AA103: =O103-INDEX($K103:$O103,1,aux!$AL$1) -> 0 | AB103: 0 | AC103: 0 | AD103: =+IF(INDEX($K103:$O103,1,aux!$AL$1)>0,(O103/INDEX($K103:$O103,1,aux!$AL$1))^(1/($O$3-INDEX($K$3:$O$3,1,aux!$AL$1)))-1,"n.d.") -> n.d. | AE103: =IF(INDEX($K103:$O103,1,aux!$AL$1)>0,(O103-INDEX($K103:$O103,1,aux!$AL$1))/INDEX($K103:$O103,1,aux!$AL$1),"n.d.") -> n.d. | AX103: 11
A104: 1108 | B104: Amidos e féculas; inulina | C104: 66.372 | D104: 20.747 | E104: 74.843 | F104: 39.606 | G104: 299.564 | H104: 100.2264 | I104: 0.003625649484 | J104: 0.001423491252 | K104: 0 | L104: 0 | M104: 0.864 | N104: 0.312 | O104: 0.076 | P104: 0.2504 | Q104: 1.720083101e-05 | R104: 5.93040988e-06 | S104: -99.976 | U104: =G104-INDEX($C104:$G104,1,aux!$AL$1) -> 233.192 | V104: 0.01168309295 | W104: 0.006891841981 | X104: =+IF(INDEX($C104:$G104,1,aux!$AL$1)>0,(G104/INDEX($C104:$G104,1,aux!$AL$1))^(1/($G$3-INDEX($C$3:$G$3,1,aux!$AL$1)))-1,"n.d.") -> 0.4575591197 | Y104: =IF(INDEX($C104:$G104,1,aux!$AL$1)>0,(G104-INDEX($C104:$G104,1,aux!$AL$1))/INDEX($C104:$G104,1,aux!$AL$1),"n.d.") -> 3.513409269 | AA104: =O104-INDEX($K104:$O104,1,aux!$AL$1) -> 0.076 | AB104: 1.832977631e-05 | AC104: 4.755731548e-06 | AD104: =+IF(INDEX($K104:$O104,1,aux!$AL$1)>0,(O104/INDEX($K104:$O104,1,aux!$AL$1))^(1/($O$3-INDEX($K$3:$O$3,1,aux!$AL$1)))-1,"n.d.") -> n.d. | AE104: =IF(INDEX($K104:$O104,1,aux!$AL$1)>0,(O104-INDEX($K104:$O104,1,aux!$AL$1))/INDEX($K104:$O104,1,aux!$AL$1),"n.d.") -> n.d. | AX104: 11
A105: 1109 | B105: Glúten de trigo, mesmo seco | C105: 0 | D105: 0 | E105: 0 | F105: 0 | G105: 0 | H105: 0 | I105: 0 | J105: 0 | K105: 0 | L105: 0 | M105: 0 | N105: 0 | O105: 0 | P105: 0 | Q105: 0 | R105: 0 | S105: 0 | U105: =G105-INDEX($C105:$G105,1,aux!$AL$1) -> 0 | V105: 0 | W105: 0 | X105: =+IF(INDEX($C105:$G105,1,aux!$AL$1)>0,(G105/INDEX($C105:$G105,1,aux!$AL$1))^(1/($G$3-INDEX($C$3:$G$3,1,aux!$AL$1)))-1,"n.d.") -> n.d. | Y105: =IF(INDEX($C105:$G105,1,aux!$AL$1)>0,(G105-INDEX($C105:$G105,1,aux!$AL$1))/INDEX($C105:$G105,1,aux!$AL$1),"n.d.") -> n.d. | AA105: =O105-INDEX($K105:$O105,1,aux!$AL$1) -> 0 | AB105: 0 | AC105: 0 | AD105: =+IF(INDEX($K105:$O105,1,aux!$AL$1)>0,(O105/INDEX($K105:$O105,1,aux!$AL$1))^(1/($O$3-INDEX($K$3:$O$3,1,aux!$AL$1)))-1,"n.d.") -> n.d. | AE105: =IF(INDEX($K105:$O105,1,aux!$AL$1)>0,(O105-INDEX($K105:$O105,1,aux!$AL$1))/INDEX($K105:$O105,1,aux!$AL$1),"n.d.") -> n.d. | AX105: 11
A106: 11SS | B106: Produtos da indústria de moagem e outros | C106: 0 | D106: 0 | E106: 0 | F106: 0 | G106: 0 | H106: 0 | I106: 0 | J106: 0 | K106: 0 | L106: 0 | M106: 0 | N106: 0 | O106: 0 | P106: 0 | Q106: 0 | R106: 0 | S106: 0 | U106: =G106-INDEX($C106:$G106,1,aux!$AL$1) -> 0 | V106: 0 | W106: 0 | X106: =+IF(INDEX($C106:$G106,1,aux!$AL$1)>0,(G106/INDEX($C106:$G106,1,aux!$AL$1))^(1/($G$3-INDEX($C$3:$G$3,1,aux!$AL$1)))-1,"n.d.") -> n.d. | Y106: =IF(INDEX($C106:$G106,1,aux!$AL$1)>0,(G106-INDEX($C106:$G106,1,aux!$AL$1))/INDEX($C106:$G106,1,aux!$AL$1),"n.d.") -> n.d. | AA106: =O106-INDEX($K106:$O106,1,aux!$AL$1) -> 0 | AB106: 0 | AC106: 0 | AD106: =+IF(INDEX($K106:$O106,1,aux!$AL$1)>0,(O106/INDEX($K106:$O106,1,aux!$AL$1))^(1/($O$3-INDEX($K$3:$O$3,1,aux!$AL$1)))-1,"n.d.") -> n.d. | AE106: =IF(INDEX($K106:$O106,1,aux!$AL$1)>0,(O106-INDEX($K106:$O106,1,aux!$AL$1))/INDEX($K106:$O106,1,aux!$AL$1),"n.d.") -> n.d. | AX106: 11
A107: 1201 | B107: Soja, mesmo triturada | C107: 16.245 | D107: 21.019 | E107: 0.421 | F107: 0 | G107: 0.886 | H107: 7.7142 | I107: 0.000279058065 | J107: 0.0001095629118 | K107: 0 | L107: 0 | M107: 0 | N107: 0 | O107: 0 | P107: 0 | Q107: 0 | R107: 0 | S107: -7.7142 | U107: =G107-INDEX($C107:$G107,1,aux!$AL$1) -> -15.359 | V107: -0.0007694973437 | W107: -0.0004539255248 | X107: =+IF(INDEX($C107:$G107,1,aux!$AL$1)>0,(G107/INDEX($C107:$G107,1,aux!$AL$1))^(1/($G$3-INDEX($C$3:$G$3,1,aux!$AL$1)))-1,"n.d.") -> -0.5167426127 | Y107: =IF(INDEX($C107:$G107,1,aux!$AL$1)>0,(G107-INDEX($C107:$G107,1,aux!$AL$1))/INDEX($C107:$G107,1,aux!$AL$1),"n.d.") -> -0.9454601416 | AA107: =O107-INDEX($K107:$O107,1,aux!$AL$1) -> 0 | AB107: 0 | AC107: 0 | AD107: =+IF(INDEX($K107:$O107,1,aux!$AL$1)>0,(O107/INDEX($K107:$O107,1,aux!$AL$1))^(1/($O$3-INDEX($K$3:$O$3,1,aux!$AL$1)))-1,"n.d.") -> n.d. | AE107: =IF(INDEX($K107:$O107,1,aux!$AL$1)>0,(O107-INDEX($K107:$O107,1,aux!$AL$1))/INDEX($K107:$O107,1,aux!$AL$1),"n.d.") -> n.d. | AX107: 12
A108: 1202 | B108: Amendoins não torrados | C108: 0 | D108: 0 | E108: 0 | F108: 0.492 | G108: 0 | H108: 0.0984 | I108: 3.559580203e-06 | J108: 1.397551336e-06 | K108: 0 | L108: 0 | M108: 0 | N108: 0.022 | O108: 0 | P108: 0.0044 | Q108: 3.022510241e-07 | R108: 1.042084803e-07 | S108: -0.094 | U108: =G108-INDEX($C108:$G108,1,aux!$AL$1) -> 0 | V108: 0 | W108: 0 | X108: =+IF(INDEX($C108:$G108,1,aux!$AL$1)>0,(G108/INDEX($C108:$G108,1,aux!$AL$1))^(1/($G$3-INDEX($C$3:$G$3,1,aux!$AL$1)))-1,"n.d.") -> n.d. | Y108: =IF(INDEX($C108:$G108,1,aux!$AL$1)>0,(G108-INDEX($C108:$G108,1,aux!$AL$1))/INDEX($C108:$G108,1,aux!$AL$1),"n.d.") -> n.d. | AA108: =O108-INDEX($K108:$O108,1,aux!$AL$1) -> 0 | AB108: 0 | AC108: 0 | AD108: =+IF(INDEX($K108:$O108,1,aux!$AL$1)>0,(O108/INDEX($K108:$O108,1,aux!$AL$1))^(1/($O$3-INDEX($K$3:$O$3,1,aux!$AL$1)))-1,"n.d.") -> n.d. | AE108: =IF(INDEX($K108:$O108,1,aux!$AL$1)>0,(O108-INDEX($K108:$O108,1,aux!$AL$1))/INDEX($K108:$O108,1,aux!$AL$1),"n.d.") -> n.d. | AX108: 12
A109: 1203 | B109: Copra | C109: 0 | D109: 0 | E109: 0 | F109: 0 | G109: 0 | H109: 0 | I109: 0 | J109: 0 | K109: 0 | L109: 0 | M109: 0 | N109: 0 | O109: 0 | P109: 0 | Q109: 0 | R109: 0 | S109: 0 | U109: =G109-INDEX($C109:$G109,1,aux!$AL$1) -> 0 | V109: 0 | W109: 0 | X109: =+IF(INDEX($C109:$G109,1,aux!$AL$1)>0,(G109/INDEX($C109:$G109,1,aux!$AL$1))^(1/($G$3-INDEX($C$3:$G$3,1,aux!$AL$1)))-1,"n.d.") -> n.d. | Y109: =IF(INDEX($C109:$G109,1,aux!$AL$1)>0,(G109-INDEX($C109:$G109,1,aux!$AL$1))/INDEX($C109:$G109,1,aux!$AL$1),"n.d.") -> n.d. | AA109: =O109-INDEX($K109:$O109,1,aux!$AL$1) -> 0 | AB109: 0 | AC109: 0 | AD109: =+IF(INDEX($K109:$O109,1,aux!$AL$1)>0,(O109/INDEX($K109:$O109,1,aux!$AL$1))^(1/($O$3-INDEX($K$3:$O$3,1,aux!$AL$1)))-1,"n.d.") -> n.d. | AE109: =IF(INDEX($K109:$O109,1,aux!$AL$1)>0,(O109-INDEX($K109:$O109,1,aux!$AL$1))/INDEX($K109:$O109,1,aux!$AL$1),"n.d.") -> n.d. | AX109: 12
A110: 1204 | B110: Sementes de linho (linhaça) | C110: 0 | D110: 0 | E110: 11.26 | F110: 0 | G110: 0 | H110: 2.252 | I110: 8.146518919e-05 | J110: 3.198460985e-05 | K110: 0 | L110: 0 | M110: 0 | N110: 0 | O110: 0 | P110: 0 | Q110: 0 | R110: 0 | S110: -2.252 | U110: =G110-INDEX($C110:$G110,1,aux!$AL$1) -> 0 | V110: 0 | W110: 0 | X110: =+IF(INDEX($C110:$G110,1,aux!$AL$1)>0,(G110/INDEX($C110:$G110,1,aux!$AL$1))^(1/($G$3-INDEX($C$3:$G$3,1,aux!$AL$1)))-1,"n.d.") -> n.d. | Y110: =IF(INDEX($C110:$G110,1,aux!$AL$1)>0,(G110-INDEX($C110:$G110,1,aux!$AL$1))/INDEX($C110:$G110,1,aux!$AL$1),"n.d.") -> n.d. | AA110: =O110-INDEX($K110:$O110,1,aux!$AL$1) -> 0 | AB110: 0 | AC110: 0 | AD110: =+IF(INDEX($K110:$O110,1,aux!$AL$1)>0,(O110/INDEX($K110:$O110,1,aux!$AL$1))^(1/($O$3-INDEX($K$3:$O$3,1,aux!$AL$1)))-1,"n.d.") -> n.d. | AE110: =IF(INDEX($K110:$O110,1,aux!$AL$1)>0,(O110-INDEX($K110:$O110,1,aux!$AL$1))/INDEX($K110:$O110,1,aux!$AL$1),"n.d.") -> n.d. | AX110: 12
A111: 1205 | B111: Sementes de nabo silvestre ou de colza | C111: 0 | D111: 0 | E111: 0 | F111: 0 | G111: 0 | H111: 0 | I111: 0 | J111: 0 | K111: 0 | L111: 0.074 | M111: 0 | N111: 0 | O111: 0 | P111: 0.0148 | Q111: 1.016662536e-06 | R111: 3.505194338e-07 | S111: 0.0148 | U111: =G111-INDEX($C111:$G111,1,aux!$AL$1) -> 0 | V111: 0 | W111: 0 | X111: =+IF(INDEX($C111:$G111,1,aux!$AL$1)>0,(G111/INDEX($C111:$G111,1,aux!$AL$1))^(1/($G$3-INDEX($C$3:$G$3,1,aux!$AL$1)))-1,"n.d.") -> n.d. | Y111: =IF(INDEX($C111:$G111,1,aux!$AL$1)>0,(G111-INDEX($C111:$G111,1,aux!$AL$1))/INDEX($C111:$G111,1,aux!$AL$1),"n.d.") -> n.d. | AA111: =O111-INDEX($K111:$O111,1,aux!$AL$1) -> 0 | AB111: 0 | AC111: 0 | AD111: =+IF(INDEX($K111:$O111,1,aux!$AL$1)>0,(O111/INDEX($K111:$O111,1,aux!$AL$1))^(1/($O$3-INDEX($K$3:$O$3,1,aux!$AL$1)))-1,"n.d.") -> n.d. | AE111: =IF(INDEX($K111:$O111,1,aux!$AL$1)>0,(O111-INDEX($K111:$O111,1,aux!$AL$1))/INDEX($K111:$O111,1,aux!$AL$1),"n.d.") -> n.d. | AX111: 12
A112: 1206 | B112: Sementes de girassol | C112: 0 | D112: 0 | E112: 49.331 | F112: 32.114 | G112: 255.305 | H112: 67.35 | I112: 0.002436359011 | J112: 0.0009565557163 | K112: 0 | L112: 0 | M112: 0 | N112: 0 | O112: 0 | P112: 0 | Q112: 0 | R112: 0 | S112: -67.35 | U112: =G112-INDEX($C112:$G112,1,aux!$AL$1) -> 255.305 | V112: 0.01279097072 | W112: 0.007545377701 | X112: =+IF(INDEX($C112:$G112,1,aux!$AL$1)>0,(G112/INDEX($C112:$G112,1,aux!$AL$1))^(1/($G$3-INDEX($C$3:$G$3,1,aux!$AL$1)))-1,"n.d.") -> n.d. | Y112: =IF(INDEX($C112:$G112,1,aux!$AL$1)>0,(G112-INDEX($C112:$G112,1,aux!$AL$1))/INDEX($C112:$G112,1,aux!$AL$1),"n.d.") -> n.d. | AA112: =O112-INDEX($K112:$O112,1,aux!$AL$1) -> 0 | AB112: 0 | AC112: 0 | AD112: =+IF(INDEX($K112:$O112,1,aux!$AL$1)>0,(O112/INDEX($K112:$O112,1,aux!$AL$1))^(1/($O$3-INDEX($K$3:$O$3,1,aux!$AL$1)))-1,"n.d.") -> n.d. | AE112: =IF(INDEX($K112:$O112,1,aux!$AL$1)>0,(O112-INDEX($K112:$O112,1,aux!$AL$1))/INDEX($K112:$O112,1,aux!$AL$1),"n.d.") -> n.d. | AX112: 12
A113: 1207 | B113: Sementes e frutos oleaginosos | C113: 1.163 | D113: 0.092 | E113: 2.368 | F113: 9.087 | G113: 11.942 | H113: 4.9304 | I113: 0.0001783552259 | J113: 7.002527548e-05 | K113: 0 | L113: 0 | M113: 0 | N113: 0.002 | O113: 0.002 | P113: 0.0008 | Q113: 5.495473166e-08 | R113: 1.894699642e-08 | S113: -4.9296 | U113: =G113-INDEX($C113:$G113,1,aux!$AL$1) -> 10.779 | V113: 0.0005400359313 | W113: 0.0003185665233 | X113: =+IF(INDEX($C113:$G113,1,aux!$AL$1)>0,(G113/INDEX($C113:$G113,1,aux!$AL$1))^(1/($G$3-INDEX($C$3:$G$3,1,aux!$AL$1)))-1,"n.d.") -> 0.7900878219 | Y113: =IF(INDEX($C113:$G113,1,aux!$AL$1)>0,(G113-INDEX($C113:$G113,1,aux!$AL$1))/INDEX($C113:$G113,1,aux!$AL$1),"n.d.") -> 9.268271711 | AA113: =O113-INDEX($K113:$O113,1,aux!$AL$1) -> 0.002 | AB113: 4.823625345e-07 | AC113: 1.251508302e-07 | AD113: =+IF(INDEX($K113:$O113,1,aux!$AL$1)>0,(O113/INDEX($K113:$O113,1,aux!$AL$1))^(1/($O$3-INDEX($K$3:$O$3,1,aux!$AL$1)))-1,"n.d.") -> n.d. | AE113: =IF(INDEX($K113:$O113,1,aux!$AL$1)>0,(O113-INDEX($K113:$O113,1,aux!$AL$1))/INDEX($K113:$O113,1,aux!$AL$1),"n.d.") -> n.d. | AX113: 12
A114: 1208 | B114: Farinhas de sementes oleaginosas | C114: 104.265 | D114: 69.671 | E114: 70.278 | F114: 41.023 | G114: 77.825 | H114: 72.6124 | I114: 0.002626724202 | J114: 0.001031296307 | K114: 0 | L114: 0 | M114: 0 | N114: 13.168 | O114: 0 | P114: 2.6336 | Q114: 0.0001809109766 | R114: 6.237351222e-05 | S114: -69.9788 | U114: =G114-INDEX($C114:$G114,1,aux!$AL$1) -> -26.44 | V114: -0.0013246637 | W114: -0.0007814174671 | X114: =+IF(INDEX($C114:$G114,1,aux!$AL$1)>0,(G114/INDEX($C114:$G114,1,aux!$AL$1))^(1/($G$3-INDEX($C$3:$G$3,1,aux!$AL$1)))-1,"n.d.") -> -0.07050909316 | Y114: =IF(INDEX($C114:$G114,1,aux!$AL$1)>0,(G114-INDEX($C114:$G114,1,aux!$AL$1))/INDEX($C114:$G114,1,aux!$AL$1),"n.d.") -> -0.2535846161 | AA114: =O114-INDEX($K114:$O114,1,aux!$AL$1) -> 0 | AB114: 0 | AC114: 0 | AD114: =+IF(INDEX($K114:$O114,1,aux!$AL$1)>0,(O114/INDEX($K114:$O114,1,aux!$AL$1))^(1/($O$3-INDEX($K$3:$O$3,1,aux!$AL$1)))-1,"n.d.") -> n.d. | AE114: =IF(INDEX($K114:$O114,1,aux!$AL$1)>0,(O114-INDEX($K114:$O114,1,aux!$AL$1))/INDEX($K114:$O114,1,aux!$AL$1),"n.d.") -> n.d. | AX114: 12
